Workbook

Sheet Home
A1: =RIGHT(CELL("FILENAME", $A$1), LEN(CELL("FILENAME", $A$1)) - SEARCH("]", CELL("FILENAME", $A$1))) -> Home
B2: =A1 -> Home
Q5: Value for Money Analysis
I7: Revenue module
H9: =Revenues!$A$1 -> Revenues | O9: PSC VfM module | S9: VfM Outputs module
O11: ='PSC Financing'!$A$1 -> PSC Financing | S11: ='Subsidy & Bid'!$A$1 -> Subsidy & Bid
I13: Core calculations module | O13: ='PSC Reserves'!$A$1 -> PSC Reserves | S13: ='VfM Graph Data'!$A$1 -> VfM Graph Data
H15: ='Time&Esc'!$A$1 -> Time&Esc | J15: =Construction!$A$1 -> Construction | O15: ='PSC CWF'!$A$1 -> PSC CWF | S15: ="Outputs: " & 'VfM Output Summary'!$A$1 -> Outputs: VfM Output Summary
H17: =Traffic!$A$1 -> Traffic | J17: ='O&M'!$A$1 -> O&M | S17: ="Outputs: " & 'VfM PSC & P3 Summary'!$A$1 -> Outputs: VfM PSC & P3 Summary
D19: Inputs module | O19: P3 VfM module | S19: ="Outputs: " & 'VfM PSC & P3 Data Tables'!A$1 -> Outputs: VfM PSC & P3 Data Tables
D21: ="Inputs: " & 'Project Inputs'!B$2 -> Inputs: Project Inputs | I21: Risk assessment module | O21: ='P3 Financing'!$A$1 -> P3 Financing | S21: ="Outputs: " & 'VfM Comparison Graph'!$A$1 -> Outputs: VfM Comparison Graph
D23: ="Inputs: " & 'Risk Matrix'!$A$1 -> Inputs: Risk Matrix | H23: ='Pure Risks'!$A$1 -> Pure Risks | J23: ="Outputs: " & 'Risk Output for VfM'!$A$1 -> Outputs: Risk Output for VfM | O23: ='P3 Reserves'!$A$1 -> P3 Reserves | S23: ="Outputs: " & 'VfM PSC Graph'!$A$1 -> Outputs: VfM PSC Graph
D25: ="Inputs: " & 'Other BCA Inputs'!$A$1 -> Inputs: Other BCA Inputs | H25: ='Base Variability'!$A$1 -> Base Variability | J25: ="Outputs: " & 'Risk Output for PDBCA'!$A$1 -> Outputs: Risk Output for PDBCA | O25: ='P3 Depreciation'!$A$1 -> P3 Depreciation | S25: ="Outputs: " & 'VfM P3 (Public) Graph'!$A$1 -> Outputs: VfM P3 (Public) Graph
H27: ='Lifecycle Performance Risk'!$A$1 -> Lifecycle Performance Risk | O27: ='P3 FinStat'!$A$1 -> P3 FinStat | S27: ="Outputs: " & 'VfM P3 (Private) Graph'!$A$1 -> Outputs: VfM P3 (Private) Graph
O29: ='P3 (Pub) CWF'!$A$1 -> P3 (Pub) CWF | S29: ="Outputs: " & 'Financing Outputs'!$A$1 -> Outputs: Financing Outputs
I31: Travel cost module | O31: ='P3 CWF'!$A$1 -> P3 CWF
H33: =Speed!$A$1 -> Speed | J33: ='Non-Fuel Cost'!$A$1 -> Non-Fuel Cost
H35: ='Travel Time Cost'!$A$1 -> Travel Time Cost | J35: ='Fuel Cost'!$A$1 -> Fuel Cost | Q35: Project Delivery Benefit-Cost Analysis
H37: ='Construction Delays'!$A$1 -> Construction Delays | J37: =Accidents!$A$1 -> Accidents
H39: ='O&M Delays'!$A$1 -> O&M Delays | J39: =Emissions!$A$1 -> Emissions | O39: Benefits module | S39: PDBCA Outputs module
H41: ='Incident Delays'!$A$1 -> Incident Delays | J41: =Transit!$A$1 -> Transit | O41: ='Benefits Per Vehicle'!$A$1 -> Benefits Per Vehicle | S41: ='PDBCA Graph Data'!$A$1 -> PDBCA Graph Data
H43: =Carpooling!$A$1 -> Carpooling | O43: ='Benefits Existing Traffic'!$A$1 -> Benefits Existing Traffic | S43: ="Outputs: " & 'PDBCA Output Summary'!$A$1 -> Outputs: PDBCA Output Summary
O45: ='Benefits Induced Traffic'!$A$1 -> Benefits Induced Traffic | S45: ="Outputs: " & 'PDBCA Data Tables'!A$1 -> Outputs: PDBCA Data Tables
O47: ='Net Benefits'!$A$1 -> Net Benefits | S47: ="Outputs: " & 'PDBCA Incremental Comparison'!$A$1 -> Outputs: PDBCA Incremental Comparison
O49: ='Transit Benefits'!A$1 -> Transit Benefits | S49: ="Outputs: " & 'PDBCA Delayed PSC Graph'!$A$1 -> Outputs: PDBCA Delayed PSC Graph
O51: ='Carpooling Benefits'!A$1 -> Carpooling Benefits | S51: ="Outputs: " & 'PDBCA PSC Graph'!$A$1 -> Outputs: PDBCA PSC Graph
S53: ="Outputs: " & 'PDBCA P3 Graph'!$A$1 -> Outputs: PDBCA P3 Graph

Sheet Sheets
A1: =RIGHT(CELL("FILENAME", $A$1), LEN(CELL("FILENAME", $A$1)) - SEARCH("]", CELL("FILENAME", $A$1))) -> Sheets
B2: =A1 -> Sheets
C5: SHEET NO. | D5: SHEET NAME | E5: DESCRIPTION
C6: =ROWS(D$6:D6) -> 1 | D6: =Home!$A$1 -> Home | E6: Contains the full model flow diagram
C7: =ROWS(D$6:D7) -> 2 | D7: =Sheets!$A$1 -> Sheets | E7: Lists all the sheets with a short description of what each sheet does
C8: =ROWS(D$6:D8) -> 3 | D8: =Key!$A$1 -> Key | E8: Lists the following: 1) Purpose of different colors used in the model, 2) Abbreviations used in the model, and 3) Name ranges used in the model
C9: =ROWS(D$6:D9) -> 4 | D9: ='Inputs >>'!A$1 -> Inputs >> | E9: Contains introduction and model flow diagram of inputs module
C10: =ROWS(D$6:D10) -> 5 | D10: ='Project Inputs'!B$2 -> Project Inputs | E10: Contains project inputs
C11: =ROWS(D$6:D11) -> 6 | D11: ='Risk Matrix'!$A$1 -> Risk Matrix | E11: Contains risk matrix
C12: =ROWS(D$6:D12) -> 7 | D12: ='Other BCA Inputs'!$A$1 -> Other BCA Inputs | E12: Contains additional inputs for the Benefit-Cost Analysis (BCA) module
C13: =ROWS(D$6:D13) -> 8 | D13: ='Core Calc >>'!$A$1 -> Core Calc >> | E13: Contains introduction and model flow diagram for core calculations
C14: =ROWS(D$6:D14) -> 9 | D14: ='Time&Esc'!$A$1 -> Time&Esc | E14: Contains timing (i.e. flags) & escalation (i.e. inflation indexation) calculations
C15: =ROWS(D$6:D15) -> 10 | D15: =Construction!$A$1 -> Construction | E15: Contains implementation cost calculations
C16: =ROWS(D$6:D16) -> 11 | D16: ='O&M'!$A$1 -> O&M | E16: Contains operations & maintenance cost calculations
C17: =ROWS(D$6:D17) -> 12 | D17: =Traffic!$A$1 -> Traffic | E17: Contains traffic calculations
C18: =ROWS(D$6:D18) -> 13 | D18: ='Risk Assessment >>'!$A$1 -> Risk Assessment >> | E18: Contains introduction and model flow diagram for risk module
C19: =ROWS(D$6:D19) -> 14 | D19: ='Pure Risks'!$A$1 -> Pure Risks | E19: Contains pure risks calculations
C20: =ROWS(D$6:D20) -> 15 | D20: ='Base Variability'!$A$1 -> Base Variability | E20: Contains base variability risks calculations
C21: =ROWS(D$6:D21) -> 16 | D21: ='Lifecycle Performance Risk'!$A$1 -> Lifecycle Performance Risk | E21: Contains lifecycle performance risks calculations
C22: =ROWS(D$6:D22) -> 17 | D22: ='Risk Output for VfM'!$A$1 -> Risk Output for VfM | E22: Contains risk outputs related to VfM
C23: =ROWS(D$6:D23) -> 18 | D23: ='Risk Output for PDBCA'!$A$1 -> Risk Output for PDBCA | E23: Contains risk outputs related to PDBCA
C24: =ROWS(D$6:D24) -> 19 | D24: ='Revenues VfM >>'!$A$1 -> Revenues VfM >> | E24: Contains introduction and model flow diagram for revenues
C25: =ROWS(D$6:D25) -> 20 | D25: =Revenues!$A$1 -> Revenues | E25: Contains revenues calculations
C26: =ROWS(D$6:D26) -> 21 | D26: ='PSC VfM >>'!$A$1 -> PSC VfM >> | E26: Contains introduction and model flow diagram for PSC Value-for-Money component
C27: =ROWS(D$6:D27) -> 22 | D27: ='PSC Financing'!$A$1 -> PSC Financing | E27: Contains PSC financing calculations
C28: =ROWS(D$6:D28) -> 23 | D28: ='PSC Reserves'!$A$1 -> PSC Reserves | E28: Contains PSC reserves calculations
C29: =ROWS(D$6:D29) -> 24 | D29: ='PSC CWF'!$A$1 -> PSC CWF | E29: Contains PSC cash waterfall
C30: =ROWS(D$6:D30) -> 25 | D30: ='P3 VfM >>'!$A$1 -> P3 VfM >> | E30: Contains introduction and model flow diagram for P3 Value-for-Money component
C31: =ROWS(D$6:D31) -> 26 | D31: ='P3 Financing'!$A$1 -> P3 Financing | E31: Contains P3 financing calculations
C32: =ROWS(D$6:D32) -> 27 | D32: ='P3 Reserves'!$A$1 -> P3 Reserves | E32: Contains P3 reserves calculations
C33: =ROWS(D$6:D33) -> 28 | D33: ='P3 CWF'!$A$1 -> P3 CWF | E33: Contains P3 cash waterfall
C34: =ROWS(D$6:D34) -> 29 | D34: ='P3 Depreciation'!$A$1 -> P3 Depreciation | E34: Contains P3 depreciation calculations
C35: =ROWS(D$6:D35) -> 30 | D35: ='P3 FinStat'!$A$1 -> P3 FinStat | E35: Contains following statements of P3: Profit & loss, balance sheet
C36: =ROWS(D$6:D36) -> 31 | D36: ='P3 (Pub) CWF'!$A$1 -> P3 (Pub) CWF | E36: Contains P3 (public sector) cash waterfall
C37: =ROWS(D$6:D37) -> 32 | D37: ='VfM Outputs >>'!$A$1 -> VfM Outputs >> | E37: Contains introduction and model flow diagram for Value-for-Money output
C38: =ROWS(D$6:D38) -> 33 | D38: ='Subsidy & Bid'!$A$1 -> Subsidy & Bid | E38: Contains calculations related to viability analysis: Calculation of subsidy, concession fee & availability payment
C39: =ROWS(D$6:D39) -> 34 | D39: ='VfM Graph Data'!$A$1 -> VfM Graph Data | E39: Calculates line items needed by graphs in 'VfM Output' sheet
C40: =ROWS(D$6:D40) -> 35 | D40: ='VfM Output Summary'!$A$1 -> VfM Output Summary | E40: Contains simplified VfM output table
C41: =ROWS(D$6:D41) -> 36 | D41: ='VfM PSC & P3 Summary'!$A$1 -> VfM PSC & P3 Summary | E41: Contains graphs and tables related to VfM analysis
C42: =ROWS(D$6:D42) -> 37 | D42: ='VfM PSC & P3 Data Tables'!A$1 -> VfM PSC & P3 Data Tables | E42: Contains data tables used in VfM graphs
C43: =ROWS(D$6:D43) -> 38 | D43: ='VfM Comparison Graph'!$A$1 -> VfM Comparison Graph | E43: Contains graph comparing PSC and P3
C44: =ROWS(D$6:D44) -> 39 | D44: ='VfM PSC Graph'!$A$1 -> VfM PSC Graph | E44: Contains graphs with costs & revenues to Agency under PSC
C45: =ROWS(D$6:D45) -> 40 | D45: ='VfM P3 (Public) Graph'!$A$1 -> VfM P3 (Public) Graph | E45: Contains graphs with costs & revenues to Agency under P3
C46: =ROWS(D$6:D46) -> 41 | D46: ='VfM P3 (Private) Graph'!$A$1 -> VfM P3 (Private) Graph | E46: Contains graphs with costs & revenues to Developer under P3
C47: =ROWS(D$6:D47) -> 42 | D47: ='Financing Outputs'!$A$1 -> Financing Outputs | E47: Contains debt schedules and DSCR
C48: =ROWS(D$6:D48) -> 43 | D48: ='Travel Cost Calc >>'!$A$1 -> Travel Cost Calc >> | E48: Contains introduction and model flow diagram for benefits calculations
C49: =ROWS(D$6:D49) -> 44 | D49: =Speed!$A$1 -> Speed | E49: Contains travel speed calculations
C50: =ROWS(D$6:D50) -> 45 | D50: ='Travel Time Cost'!$A$1 -> Travel Time Cost | E50: Contains travel time cost per vehicle calculations
C51: =ROWS(D$6:D51) -> 46 | D51: ='Construction Delays'!$A$1 -> Construction Delays | E51: Contains construction delays per vehicle calculations
C52: =ROWS(D$6:D52) -> 47 | D52: ='O&M Delays'!$A$1 -> O&M Delays | E52: Contains O&M delays per vehicle calculations
C53: =ROWS(D$6:D53) -> 48 | D53: ='Incident Delays'!$A$1 -> Incident Delays | E53: Contains incident delays per vehicle calculations
C54: =ROWS(D$6:D54) -> 49 | D54: ='Non-Fuel Cost'!$A$1 -> Non-Fuel Cost | E54: Contains of non-fuel costs per vehicle calculations
C55: =ROWS(D$6:D55) -> 50 | D55: ='Fuel Cost'!$A$1 -> Fuel Cost | E55: Contains fuel costs per vehicle calculations
C56: =ROWS(D$6:D56) -> 51 | D56: =Accidents!$A$1 -> Accidents | E56: Contains accident costs per vehicle calculations
C57: =ROWS(D$6:D57) -> 52 | D57: =Emissions!$A$1 -> Emissions | E57: Contains emissions costs calculations
C58: =ROWS(D$6:D58) -> 53 | D58: =Transit!A$1 -> Transit | E58: Contains transit passengers calculations
C59: =ROWS(D$6:D59) -> 54 | D59: =Carpooling!A$1 -> Carpooling | E59: Contains carpooling passengers calculations
C60: =ROWS(D$6:D60) -> 55 | D60: ='Benefits >>'!$A$1 -> Benefits >> | E60: Contains introduction and model flow diagram for PDBCA module
C61: =ROWS(D$6:D61) -> 56 | D61: ='Benefits Per Vehicle'!$A$1 -> Benefits Per Vehicle | E61: Contains calculation of all benefits per vehicle (i.e. travel time / vehicle, incident delays / vehicle, etc.)
C62: =ROWS(D$6:D62) -> 57 | D62: ='Benefits Existing Traffic'!$A$1 -> Benefits Existing Traffic | E62: Contains calculation of annual benefits to existing traffic
C63: =ROWS(D$6:D63) -> 58 | D63: ='Benefits Induced Traffic'!$A$1 -> Benefits Induced Traffic | E63: Contains calculation of annual benefits to induced traffic
C64: =ROWS(D$6:D64) -> 59 | D64: ='Transit Benefits'!A$1 -> Transit Benefits | E64: Contains calculation of transit passenger benefits
C65: =ROWS(D$6:D65) -> 60 | D65: ='Carpooling Benefits'!A$1 -> Carpooling Benefits | E65: Contains calculation of carpooling passenger benefits
C66: =ROWS(D$6:D66) -> 61 | D66: ='Net Benefits'!$A$1 -> Net Benefits | E66: Contains calculation of total benefits as well as NPVs of benefits, real costs and differences in benefits and costs of delivery models
C67: =ROWS(D$6:D67) -> 62 | D67: ='PDBCA Outputs >>'!$A$1 -> PDBCA Outputs >> | E67: Contains introduction and model flow diagram for PDBCA Outputs
C68: =ROWS(D$6:D68) -> 63 | D68: ='PDBCA Graph Data'!$A$1 -> PDBCA Graph Data | E68: Contains calculations for PDBCA graphs and tables
C69: =ROWS(D$6:D69) -> 64 | D69: ='PDBCA Output Summary'!$A$1 -> PDBCA Output Summary | E69: Contains PDBCA graphs and tables
C70: =ROWS(D$6:D70) -> 65 | D70: ='PDBCA Data Tables'!A$1 -> PDBCA Data Tables | E70: Contains data tables used in PDBCA graphs
C71: =ROWS(D$6:D71) -> 66 | D71: ='PDBCA Incremental Comparison'!$A$1 -> PDBCA Incremental Comparison | E71: Contains PDBCA difference tables and graph, showing differences in benefits and costs between different delivery models
C72: =ROWS(D$6:D72) -> 67 | D72: ='PDBCA Delayed PSC Graph'!$A$1 -> PDBCA Delayed PSC Graph | E72: Contains graphs with costs & benefits to society under Delayed PSC
C73: =ROWS(D$6:D73) -> 68 | D73: ='PDBCA PSC Graph'!$A$1 -> PDBCA PSC Graph | E73: Contains graphs with costs & benefits to society under PSC
C74: =ROWS(D$6:D74) -> 69 | D74: ='PDBCA P3 Graph'!$A$1 -> PDBCA P3 Graph | E74: Contains graphs with costs & benefits to society under P3
C75: =ROWS(D$6:D75) -> 70 | D75: =Checks!$B$2 -> Checks | E75: Contains a list of all error and alert checks present in the model
C76: =ROWS(D$6:D76) -> 71 | D76: =Navigation!$A$1 -> Navigation | E76: Supports buttons in Model Navigator: Contains a list of sheets which will be displayed by clicking on a button in the Model Navigator
C77: =ROWS(D$6:D77) -> 72 | D77: =HideUnhide!$A$1 -> HideUnhide | E77: Supports switch between high level and detailed level view in Model Navigator: Contains list of sheets to be hidden in high level view

Sheet Key
A1: =RIGHT(CELL("FILENAME", $A$1), LEN(CELL("FILENAME", $A$1)) - SEARCH("]", CELL("FILENAME", $A$1))) -> Key
B2: =A1 -> Key
C5: SHORTCUTS, SHEET TABS, CELLS, ERRORS & ALERTS
D7: Shortcuts
E9: Control + H | G9: Go to Home sheet
E11: Control + N | G11: Launch Model Navigator
E13: Control + O | G13: Launch Model Optimizer
E15: Control + E | G15: Go to Errors & Alerts
D17: Sheet tabs
E19: Light yellow | G19: ="Input sheets: " & 'Project Inputs'!A$1 & ", " & 'Risk Matrix'!A$1 & ", and " & 'Other BCA Inputs'!A$1 & " sheets" -> Input sheets: Project Inputs, Risk Matrix, and Other BCA Inputs sheets
E21: No color (default Excel tab color) | G21: Calculations and documentation sheets: All other sheets not listed above or below
E23: Turquoise | G23: ="Modeling & results quality control sheet: " & Checks!B$2 & " sheet" -> Modeling & results quality control sheet: Checks sheet
E25: Blue grey | G25: ="Output sheets: " & 'Risk Output for VfM'!$A$1 & ", " & 'Risk Output for PDBCA'!$A$1 & ", " & 'VfM Output Summary'!$A$1 & ", " & 'VfM PSC & P3 Summary'!$A$1 & ", " & 'VfM PSC & P3 Data Tables'!A$1 & ", " & 'VfM Comparison Graph'!$A$1 & ", " & 'VfM PSC Graph'!$A$1 & ", " -> Output sheets: Risk Output for VfM, Risk Output for PDBCA, VfM Output Summary, VfM PSC & P3 Summary, VfM PSC & P3 Data Tables, VfM Comparison Graph, VfM PSC Graph,
G26: ='VfM P3 (Public) Graph'!$A$1 & ", " & 'VfM P3 (Private) Graph'!$A$1 & ", " & 'Financing Outputs'!$A$1 & ", " & 'PDBCA Output Summary'!$A$1 & ", " & 'PDBCA Incremental Comparison'!$A$1 & ", " & 'PDBCA Delayed PSC Graph'!$A$1 & ", " & 'PDBCA PSC Graph'!$A$1 & ", " -> VfM P3 (Public) Graph, VfM P3 (Private) Graph, Financing Outputs, PDBCA Output Summary, PDBCA Incremental Comparison, PDBCA Delayed PSC Graph, PDBCA PSC Graph,
G27: ="and " & 'PDBCA P3 Graph'!$A$1 & " sheets" -> and PDBCA P3 Graph sheets
D29: Input cells
E31: Light yellow shade + star sign (*) | G31: Project specific inputs (inputs required by user)
E33: Light orange shade + plus sign (+) | G33: Non-project specific inputs (default values may be used)
E35: Grey shade + text or value + number sign (#) | G35: Descriptive labels and non changeable technical inputs
E37: Grosshatched fill | G37: No inputs required in crosshatched cells
D39: Calculation cells
E41: Blue font + text (imported row) | G41: Imported row from another sheet
E43: Red font + text (exported row) | G43: Exported row to another sheet
E45: Black font | G45: Within-sheet link or calculation
E47: Black font + grey shade + text (counter flow) | G47: Within-worksheet counter-flow
E49: Blue font + grey shade + text (imported row - counter flow) | G49: Between-worksheet counter-flow
E51: Black font + turquoise shade + double star sign (**) | G51: Macro-driven values
E53: Black font + grey shade + number sign (#) | G53: Non changeable technical inputs
D55: Errors & alerts
E57: Green shade + text (no error/alert) | G57: OK
E59: Red shade + text (number of errors) | G59: Error
E61: Gold shade + text (number of alerts) | G61: Alert
C65: ABBREVIATIONS
E67: AP | F67: Availability payment
E68: Bal | F68: Balance
E69: BEG | F69: Beginning
E70: BS | F70: Balance sheet
E71: Calc | F71: Calculation
E72: CF | F72: Cash flow
E73: Chk | F73: Check
E74: Constr. | F74: Construction
E75: DSCR | F75: Debt service coverage ratio
E76: DSRA | F76: Debt service reserve account
E77: Delayed PSC | F77: Financially Constrained Public Sector Comparator
E78: FinStat | F78: Financial Statement
E79: gallon | F79: gallonlon
E80: GPL | F80: General purpose lane
E81: Hr | F81: Hour
E82: Inp | F82: Input
E83: Max. | F83: Maximum
E84: Min. | F84: Minimum
E85: ML/TL | F85: Managed lane / Toll lane
E86: MMA | F86: Major maintenance asset
E87: MMRA | F87: Major maintenance reserve account
E88: NPV | F88: Net present value
E89: No. | F89: Number
E90: O&M | F90: Operations and maintenance
E91: p.a. | F91: Per Annum
E92: pd | F92: Period
E93: P&L | F93: Profit and Loss
E94: POS | F94: Positive
E95: Post-ops. | F95: Post-operation
E96: PSC | F96: Public Sector Comparator
E97: Pre-constr. | F97: Pre-construction
E98: Pub | F98: Public
E99: P3 | F99: Public Private Partnership
E100: Tol | F100: Tolerance
E101: VfM | F101: Value-for-Money
E102: VMT | F102: Vehicle mile travelled
E103: vs. | F103: Versus
E104: WACC | F104: Weighted Average Cost Of Capital
E105: YoE | F105: Year of Expenditure
C109: NAMES
E111: ACTIVE_CASE_NAME | F111: ='Project Inputs'!$F$337
E112: AP | F112: ='Subsidy & Bid'!$F$130
E113: CHK_TOL | F113: ='Project Inputs'!$F$118
E114: FACILITY_TOLL_SWITCH | F114: ='Project Inputs'!$F$335
E115: FUNDING_REQ_AVG | F115: ='PSC Financing'!$J$30:$BQ$30
E116: FUNDING_REQ_CALC | F116: ='PSC Financing'!$J$24:$BQ$24
E117: FUNDING_REQ_CHK | F117: ='PSC Financing'!$F$26
E118: FUNDING_REQ_INP | F118: ='PSC Financing'!$J$25:$BQ$25
E119: GEARING | F119: ='Project Inputs'!$F$322
E120: HUNDRED | F120: ='Project Inputs'!$F$109
E121: MATRIX_TRANSITION_BCA | F121: ='Other BCA Inputs'!$157:$729
E122: MATRIX_TRANSITION_PROJECT_INPUTS | F122: ='Project Inputs'!$64:$394
E123: MATRIX_TRANSITION_RISK_MATRIX | F123: ='Risk Matrix'!$40:$218
E124: MODEL_START_YEAR | F124: ='Time&Esc'!$F$84
E125: NAV_1 | F125: =Navigation!$E$7:$E$28
E126: NAV_2 | F126: =Navigation!$E$28:$E$58
E127: NAV_3 | F127: =Navigation!$E$58:$E$90
E128: NPV_YEAR | F128: ='Project Inputs'!$F$340
E129: NUMBER_OF_DIRECTIONS | F129: ='Project Inputs'!$F$104
E130: P_CASE | F130: ='Other BCA Inputs'!$F$164
E131: P3_AVG_DSCR | F131: ='P3 Financing'!$F$388
E132: P3_EQ_IRR_POST | F132: ='Subsidy & Bid'!$F$260
E133: P3_EQ_IRR_PRE | F133: ='Subsidy & Bid'!$F$257
E134: P3_EST_AP | F134: ='Subsidy & Bid'!$F$108
E135: P3_EST_SUB | F135: ='Subsidy & Bid'!$F$175
E136: P3_FIN_TYPE_SWITCH | F136: ='Project Inputs'!$F$324
E137: P3_FUND_REQ | F137: ='P3 Financing'!$F$28
E138: P3_FUNDING_REQ_AVG | F138: ='P3 Financing'!$J$32:$BQ$32
E139: P3_FUNDING_REQ_CHK | F139: ='P3 Financing'!$F$25
E140: P3_FUNDING_REQ_INP | F140: ='P3 Financing'!$J$24:$BQ$24
E141: P3_MIN_DSCR | F141: ='P3 Financing'!$F$389
E142: P3_MIN_DSCR_DIFF | F142: ='P3 Financing'!$F$411
E143: P3_MIN_REQ_DSCR | F143: ='Project Inputs'!$F$328
E144: P3_NPV | F144: ='Subsidy & Bid'!$F$243
E145: P3_NPV_AMP_CHK | F145: ='P3 Financing'!$F$156
E146: P3_NPV_AVG | F146: ='P3 Financing'!$F$152
E147: P3_NPV_CHK | F147: ='P3 Financing'!$F$148
E148: P3_NPV_INP | F148: ='P3 Financing'!$F$147
E149: P3_OPT_CHK | F149: ='Subsidy & Bid'!$F$246
E150: P3_REQ_EQ_IRR | F150: ='Project Inputs'!$F$321
E151: P3_TOLL_SWITCH | F151: ='Project Inputs'!$F$336
E152: P3_WACC_POST | F152: ='P3 Financing'!$F$446
E153: P3_WACC_PRE | F153: ='P3 Financing'!$F$438
E154: Print_Titles | F154: =Key!$A:$I,Key!$1:$3
E155: PSC_EST_SUB | F155: ='Subsidy & Bid'!$F$34
E156: PSC_FIN_APPROACH | F156: ='Project Inputs'!$F$311
E157: PSC_FIN_SWITCH | F157: ='Project Inputs'!$F$308
E158: PSC_FUND_REQ | F158: ='PSC Financing'!$F$33
E159: PSC_MIN_DSCR_DIFF | F159: ='PSC Financing'!$F$230
E160: PSC_NPV | F160: ='Subsidy & Bid'!$F$72
E161: PSC_NPV_CHK | F161: ='Subsidy & Bid'!$F$75
E162: PSC_OPT_CHK | F162: ='Subsidy & Bid'!$F$46
E163: PSC_TOLL | F163: ='Subsidy & Bid'!$F$40
E164: PSC_TOLL_SWITCH | F164: ='Project Inputs'!$F$335
E165: RISK_MODE | F165: ='Project Inputs'!$F$71
E166: SHEET_HIDE_UNHIDE | F166: =HideUnhide!$E$7:$E$81
E167: TC | F167: ='Subsidy & Bid'!$F$181
E168: THOUSAND | F168: ='Project Inputs'!$F$110
E169: TOL_AMP | F169: ='Project Inputs'!$F$119
E170: TRANSIT_CARPOOLING_MODE | F170: ='Project Inputs'!$F$72
E171: VIEW_MODE | F171: ='Project Inputs'!$F$70
C175: LIST OF FUNCTIONS USED
E177: IF | G177: Returns one value if a condition is true and another value if it is false.
E178: LEFT | G178: Extracts text from the left of a string.
E179: CELL | G179: Returns information about a cell in a worksheet.
E180: LEN | G180: Returns the length of the specified string.
E181: LOWER | G181: Returns a lower-case version of a given text string.
E182: RIGHT | G182: Extracts text from the right of a string.
E183: SUMPRODUCT | G183: Multiplies corresponding components in the given arrays, and returns the sum of those products.
E184: SEARCH | G184: Returns the location of one text string inside another.
E185: MIN | G185: Returns the smallest value from a set of data.
E186: MAX | G186: Returns the largest value from a set of data.
E187: ABS | G187: Returns the absolute value of a number.
E188: INDEX | G188: Returns a value or the reference to a value from within a table or range, selected by the row and column number indexes.
E189: AVERAGE | G189: Returns the average (arithmetic mean) of the arguments.
E190: VLOOKUP | G190: Looks up a value in a table by matching on the first column.
E191: SUMIF | G191: Adds all the numbers in a range of cells, based on a given criteria.
E192: ISNA | G192: Checks for #N/A. If the value is #N/A, this function will return TRUE otherwise it will return FALSE.
E193: ROUND | G193: Rounds a number to a specified number of digits.
E194: NORMINV | G194: Returns the inverse of the normal cumulative distribution for the specified mean and standard deviation.
E195: SQRT | G195: Returns a positive square root.
E196: COUNTIF | G196: Counts the number of cells in a range that match the supplied criteria.
E197: IRR | G197: Returns the internal rate of return for a series of cash flows represented by the numbers in values.
E198: IFERROR | G198: Returns a value you specify if a formula evaluates to an error; otherwise, returns the result of the formula.
E199: OR | G199: Returns TRUE if any argument evaluates to TRUE.
E200: MOD | G200: Returns the remainder after number is divided by divisor. The result has the same sign as divisor.
E201: TEXT | G201: Formats a number and converts it to text.
E202: PPMT | G202: Returns the payment on the principal for a given period for an investment based on periodic, constant payments and a constant interest rate.
E203: ROWS | G203: Returns the row number of a reference.
E204: MATCH | G204: The MATCH function searches for a specified item in a range of cells, and then returns the relative position of that item in the range.

Sheet Inputs >>
A1: =RIGHT(CELL("FILENAME", $A$1), LEN(CELL("FILENAME", $A$1)) - SEARCH("]", CELL("FILENAME", $A$1))) -> Inputs >>
B2: =A1 -> Inputs >>
C5: 1. INTRODUCTION
E6: ="Model Flow Diagram This figure shows the Model Flow Diagram for the " & LEFT( A1, LEN( A1 ) - 3 ) & " module. It shows the following: Elements used in module: " & _xlfn.TEXTJOIN( ", ", TRUE, E17,E19,E21, E23, E25, E27, E29, E31, E33, E35, E37, E39, E41, E43, E45, E47, E49 ) & ". These elements lead to the following calculation sheets in this module: " & _xlfn.TEXTJOIN( ", ", TRUE, I17, I19, I21, I23, I25, I27, I29, I31, I33, I35, I37, I39, I41, I43, I45, I47, I49 ) & ". These calculation sheets lead to following impacted modules or output sheets: " & _xlfn.TEXTJOIN( ", ", TRUE, M17, M19, M21, M23, M25, M27, M29, M31, M33, M35, M37, M39, M41, M43, M45, M47, M49 ) & "." -> Model Flow Diagram This figure shows the Model Flow Diagram for the Inputs module. It shows the following: Elements used in module: Project Inputs, Risk Matrix, Other BCA Inputs. These elements lead to the following calculation sheets in this module: Time&Esc, Traffic, Construction, O&M, Revenues, Pure Risks, Base Variability, Lifecycle Performance Risk, PSC Financing, PSC Reserves, P3 Financing, P3 Reserves. These calculation sheets lead to following impacted modules or output sheets: P3 Depreciation, Subsidy & Bid, Speed, Travel Time Cost, Construction Delays, O&M Delays, Incident Delays, Non-Fuel Cost, Accidents, Emissions, Transit, Carpooling.
C7: The Inputs Module contains the inputs which will used throughout the model to carry out the required calculations.
C11: 2. MODEL FLOW DIAGRAM
E13: INPUT SHEETS | K13: CALCULATION SHEETS
E17: ='Project Inputs'!B$2 -> Project Inputs | I17: ='Time&Esc'!$A$1 -> Time&Esc | M17: ='P3 Depreciation'!$A$1 -> P3 Depreciation
E19: ='Risk Matrix'!$A$1 -> Risk Matrix | I19: =Traffic!$A$1 -> Traffic | M19: ='Subsidy & Bid'!$A$1 -> Subsidy & Bid
E21: ='Other BCA Inputs'!$A$1 -> Other BCA Inputs | I21: =Construction!$A$1 -> Construction | M21: =Speed!$A$1 -> Speed
I23: ='O&M'!$A$1 -> O&M | M23: ='Travel Time Cost'!$A$1 -> Travel Time Cost
I25: =Revenues!$A$1 -> Revenues | M25: ='Construction Delays'!$A$1 -> Construction Delays
I27: ='Pure Risks'!$A$1 -> Pure Risks | M27: ='O&M Delays'!$A$1 -> O&M Delays
I29: ='Base Variability'!$A$1 -> Base Variability | M29: ='Incident Delays'!$A$1 -> Incident Delays
I31: ='Lifecycle Performance Risk'!$A$1 -> Lifecycle Performance Risk | M31: ='Non-Fuel Cost'!$A$1 -> Non-Fuel Cost
I33: ='PSC Financing'!$A$1 -> PSC Financing | M33: =Accidents!$A$1 -> Accidents
I35: ='PSC Reserves'!$A$1 -> PSC Reserves | M35: =Emissions!$A$1 -> Emissions
I37: ='P3 Financing'!$A$1 -> P3 Financing | M37: =Transit!A$1 -> Transit
I39: ='P3 Reserves'!$A$1 -> P3 Reserves | M39: =Carpooling!A$1 -> Carpooling

Sheet Project Inputs
A1: =RIGHT(CELL("FILENAME", $A$1), LEN(CELL("FILENAME", $A$1)) - SEARCH("]", CELL("FILENAME", $A$1))) -> Project Inputs
B2: =A1 -> Project Inputs
C5: TIMING, COST, DELIVERY, FUNDING & FINANCING INPUTS | M5: TRAFFIC, TOLL & COMPETITIVE NEUTRALITY INPUTS | X5: BCA, TAXATION, INFLATION, DISCOUNTING & RISK INPUTS
E7: Project Timing | F7: PSC | G7: Delayed PSC | H7: P3 | O7: Bidirectional P50 Traffic | P7: Empty | Q7: Year | R7: No Build | S7: ML/TL | T7: GPL | Z7: Project Configuration (for BCA)
E8: Project preparation start year | F8: 2020 | G8: 2025 | H8: 2020 | O8: Weekday daily traffic in model start year | Q8: ='Time&Esc'!$F$84 -> 2020 | R8: 120 | S8: 25 | T8: 105 | Z8: Segment length | AC8: 20
E9: Project preparation duration | F9: 1 | G9: =F$9 -> 1 | H9: 1 | O9: Weekday daily traffic in input year 2 | Q9: 2025 | R9: 127 | S9: 30 | T9: 110 | Z9: No. of unidirectional peak hours in a day (during AM, PM or combined) | AC9: 3
E10: Procurement duration | F10: 1 | G10: =F$10 -> 1 | H10: 1 | O10: Weekday daily traffic in input year 3 | Q10: 2030 | R10: 138 | S10: 35 | T10: 121 | Z10: No. of unidirectional off-peak hours in a day | AC10: 15
E11: Implementation duration | F11: 4 | G11: =F$11 -> 4 | H11: 3 | O11: Weekday daily traffic in input year 4 | Q11: 2040 | R11: 150 | S11: 40 | T11: 131
E12: Operations duration | F12: 40 | G12: =F12 - ( G8 - F8 ) -> 35 | H12: 41 | O12: Weekday daily traffic in input year 5 | Q12: 2050 | R12: 158 | S12: 45 | T12: 142 | Z12: Delays & Pavement Quality (for BCA) | AA12: No Build | AB12: PSC | AC12: P3
O13: Annual traffic growth after last input year | Q13: ="> " & MAX(Q8:Q12) -> > 2050 | R13: 0.005 | S13: 0.01 | T13: 0.005 | Z13: Average duration of construction activity | AA13: 0 | AB13: 8 | AC13: 7.5
E14: Capital Cost (in Base Year $) | F14: PSC | G14: Delayed PSC | H14: P3 | I14: P3 share (note 1) | Z14: Average duration of O&M activity | AA14: 4 | AB14: 3 | AC14: 2.75
E15: Project preparation cost | F15: 25 | G15: =F$15 -> 25 | H15: 22.5 | I15: 0 | O15: Tolls | P15: Empty | Q15: Empty2 | R15: No Build | S15: ML/TL | T15: GPL | Z15: Speed adjustment factor for incident delays | AA15: 0.18 | AB15: 0.09 | AC15: 0.085
E16: Public procurement cost | F16: 5 | G16: =F$16 -> 5 | H16: 10 | I16: 0 | O16: Passenger car toll rate - Weekday peak | R16: 0 | S16: 4 | T16: 0 | Z16: Pavement quality (IRI) | AA16: 150 | AB16: 140 | AC16: 130
E17: Private procurement cost (cost of winning bidder) | F17: 5 | G17: =F$17 -> 5 | H17: 10 | I17: 1 | O17: Passenger car toll rate - Weekday off-peak | R17: 0 | S17: 2 | T17: 0
E18: Implementation cost | F18: 400 | G18: =F$18 -> 400 | H18: 367.5 | I18: 1 | O18: Passenger car toll rate - Weekend | R18: 0 | S18: 2 | T18: 0 | Z18: Transit & Carpool (for BCA) | AA18: No Build | AB18: ML/TL | AC18: GPL
O19: Truck/bus axle toll rate - Weekday peak | R19: 0 | S19: 6 | T19: 0 | Z19: Additional passengers carried by transit (% of vehicles) | AA19: 0.02 | AB19: 0.04 | AC19: 0.015
E20: Operational Cost (in Base Year $) | F20: PSC | G20: Delayed PSC | H20: P3 | I20: P3 share (note 1) | O20: Truck/bus axle toll rate - Weekday off-peak | R20: 0 | S20: 4 | T20: 0 | Z20: Additional passengers carried by carpools (% of vehicles) | AA20: 0.02 | AB20: 0.04 | AC20: 0.015
E21: Annual routine O&M cost | F21: 4 | G21: =F$21 -> 4 | H21: 3.6 | I21: 1 | O21: Truck/bus axle toll rate - Weekend | R21: 0 | S21: 4 | T21: 0 | Z21: Do you want to use detailed transit and carpooling forecasts instead of the above inputs (note 4)? | AC21: FALSE
E22: Major maintenance cost per cycle | F22: 10 | G22: =F$22 -> 10 | H22: 9 | I22: 1
E23: Handback cost | F23: 0 | G23: =F$23 -> 0 | H23: 0 | I23: 1 | O23: Traffic & Speed Characteristics | P23: Empty | Q23: Empty2 | R23: No Build | S23: ML/TL | T23: GPL | Z23: Taxation
E24: Major maintenance frequency | F24: 8 | G24: =F$24 -> 8 | H24: 8 | O24: No. of lanes per direction | R24: 3 | S24: 2 | T24: 3 | Z24: State tax rate | AC24: 0.1
E25: No Build annual O&M cost | F25: 10 | G25: =F$25 -> 10 | H25: =F$25 -> 10 | O25: Unidirectional peak traffic percentage (% of total traffic) | R25: 0.3 | S25: 0.3 | T25: 0.3 | Z25: Federal tax rate | AC25: 0.01
O26: Weekend traffic (% of weekday traffic) | R26: 0.6 | S26: 0.6 | T26: 0.6 | Z26: Tax pass-through to parent company? | AC26: TRUE
E27: Delivery, Funding & Financing | F27: PSC | G27: Delayed PSC | H27: P3 | O27: Passenger car percentage - Peak (% of total traffic) | R27: 0.95 | S27: 1 | T27: 0.95 | Z27: Tax losses expiration period (only relevant if no tax pass-through to parent company) | AC27: 20
E28: Facility tolled? | F28: TRUE | H28: =F$28 -> TRUE | O28: Passenger car percentage - Off-peak (% of total traffic) | R28: 0.9 | S28: 1 | T28: 0.9
E29: P3 delivery model | H29: Toll concession | O29: Passenger car percentage - Weekend (% of total traffic) | R29: 0.95 | S29: 1 | T29: 0.95 | Z29: Inflation & Discount Rates
E30: PSC upfront funding or public debt financing? | F30: Debt financing | O30: Highway free flow speed - Passenger car (in mph) | R30: 65 | S30: 70 | T30: 70 | Z30: Indexation and NPV base year | AC30: 2020
E31: Subsidy/milestone payment (see note 2) | F31: 0 | H31: 0 | O31: Highway free flow speed - Truck/bus (in mph) | R31: 60 | S31: 65 | T31: 65 | Z31: Indexation rate for preparation and implementation costs | AC31: 0.02
E32: Cost of equity | H32: 0.12 | Z32: Indexation rate for operating costs | AC32: 0.02
E33: Gearing | H33: 0.75 | O33: Ramp-Up & Leakage | P33: Empty | Q33: Empty2 | R33: PSC | S33: Delayed PSC | T33: P3 | Z33: Indexation rate for toll rates | AC33: 0.02
E34: Public debt financing type (note 3) | F34: Revenue bonds | O34: Ramp-up starting traffic (% of post-ramp up traffic) | R34: 0.5 | S34: 0.5 | T34: 0.5 | Z34: Indexation rate for CPI | AC34: 0.02
E35: Long-term debt maturity (from start construction) | F35: 35 | H35: 35 | O35: Ramp-up period duration (in years) | R35: 5 | S35: 5 | T35: 5 | Z35: Nominal discount rate (GO bond interest rate, used for VfM) | AC35: 0.03
E36: Long-term debt repayment profile (sculpted or annuity) | F36: Sculpted | H36: Sculpted | O36: Toll revenue leakage (in percent) | R36: 0.01 | T36: 0.01 | Z36: Real discount rate (used for BCA) | AC36: 0.01
E37: Long-term debt grace period (for annuity only) | F37: 0 | H37: 0
E38: Long-term debt interest rate | F38: 0.0375 | H38: 0.04 | O38: Competitive Neutrality Adjustments | Z38: Lifecycle Performance Risk, Revenue Uncertainty Adjustment & Risk Matrix
E39: Construction loan interest rate | H39: 0.025 | O39: State tax considered for competitive neutrality adjustment? | T39: TRUE | Z39: Lifecycle performance risk calculation method (see options below) | AC39: 1
E40: Minimum required DSCR (multiple of debt service) | F40: 1.3 | H40: 1.3 | O40: Federal tax considered for competitive neutrality adjustment? | T40: TRUE | Z40: Lifecycle performance risk aggregate premium (in million $, option 2 only) | AC40: 0
E41: DSRA sizing | F41: 6 | H41: 6 | O41: Value of implementation self-insurance (% of transferred implementation costs) | T41: 0 | Z41: Revenue uncertainty adjustment calculation method (see options below) | AC41: =AC39 -> 1
E42: Interest rate on reserves | F42: 0.01 | H42: 0.01 | O42: Value of O&M and major maintenance self-insurance (% of transferred O&M costs) | T42: 0 | Z42: Delta between availability payment & toll concession WACC (in percent, option 1 only) | AC42: 0.016
E43: Debt issuance/arrangement fee | F43: 0.015 | H43: 0.015 | O43: Value of credit subsidy or tax benefits under PSC delivery | T43: 0 | Z43: Revenue uncertainty adjustment (% of aannual toll revenue collection, option 2 only) | AC43: 0.2
O44: Value of credit subsidy or tax benefits under P3 delivery | T44: 0 | Z44: Do you want to use the detailed risk matrix input sheet (note 5)? | AC44: FALSE
C48: INSTRUCTIONS | M48: ACRONYMS & NOTES | X48: RISK GUIDANCE
E50: Enter inputs into all starred (*) yellow-shaded input cells on this sheet | O50: Benefit-cost analysis | P50: BCA | R50: Public-private partnership | T50: P3 | Z50: Guidance for Lifecycle Performance Risks Valuation Options
E51: Only enter numerical values into the input cells; units (e.g. $M) will appear automatically | O51: Debt service coverage ratio | P51: DSCR | R51: Public sector comparator | T51: PSC | Z51: Option 1: WACC-based risk premium is calculated to determine the value of lifecycle performance risks
E52: No values should be entered in grayed out cells | O52: General purpose lanes | P52: GPL | R52: Tolled lanes | T52: TL | Z52: Option 2: User to provide a risk premium for the aggregate value of lifecycle performance risks
E53: Use the Risk Matrix and BCA Input sheets to enter detailed risk and benefit cost analysis inputs | O53: Managed lanes | P53: ML | R53: Value for money | T53: VfM | Z53: Option 3: Lifecycle performance risks are ignored in the analysis
E54: After completing all inputs, optimize the model by clicking on the Optimizer button | O54: Net present value | P54: NPV | R54: Weighted average cost of capital | T54: WACC
E55: After optimizing the model, click on the Navigator button to navigate to the output sheets | O55: Operations and maintenance | P55: O&M | R55: Year of expenditure | T55: YOE | Z55: Guidance for Revenue Uncertainty Adjustment Valuation Options
E56: Errors (located next to the optimizer button) refer to critical issues that users check | Z56: Option 1: WACC-based risk premium is calculated to determine the value of revenue uncertainty adjustment
E57: Alerts (located next to the optimizer button) refer to non-critical issues that users should be aware of | O57: Note 1: Share of total cost transferred to P3 concessionaire | Z57: Option 2: User to provide a risk premium for the value of annual revenue uncertainty adjustment
E58: Errors and alerts should only be consulted after the model is optimized | O58: Note 2: Payment assumed to occur at end of construction, expressed in year-of-expendigure dollars | Z58: Option 3: Revenue uncertainty is ignored in the analysis
O59: Note 3: For GO bonds, net revenues are adjusted downwards using the revenue uncertainty adjustment
O60: Note 4: You can input a detailed forecast for transit and carpooling in the BCA Inputs sheet
O61: Note 5: If you do not use the risk matrix input sheet, make sure that cost inputs on this page are risk adjusted
A64: END OF PROJECT INPUTS
C67: NON CHANGEABLE TECHNICAL INPUTS
E69: View & Input Modes | F69: Constant | G69: Unit
E70: View mode ("Detailed Level View" or "High Level View") - Macro driven | F70: Detailed Level View | G70: label
E71: Risk mode (1 = use risk matrix, 0 = don't use risk matrix) | F71: =IF( AC$44, 1, 0 ) -> 0 | G71: switch
E72: Transit & carpooling input mode (1 = Other BCA Inputs, 0 = Project Inputs) | F72: =IF( AC$21, 1, 0 ) -> 0 | G72: switch
E74: Timeline Labels for PSC & P3 | F74: Constant | G74: Unit
E75: Project initiation period | F75: ="" ->  | G75: label
E76: Pre-construction period | F76: Pre-Constr. | G76: label
E77: Implementation period | F77: Construction | G77: label
E78: Operations period | F78: Operations | G78: label
E79: Post-operations period | F79: Post-Ops. | G79: label
E81: Timeline Labels for Delayed PSC | F81: Constant | G81: Unit
E82: Project initiation period | F82: Delayed | G82: label
E83: Pre-construction period | F83: Pre-Constr. | G83: label
E84: Implementation period | F84: Construction | G84: label
E85: Operations period | F85: Operations | G85: label
E86: Post-operations period | F86: Post-Ops. | G86: label
E88: Pulldown Menus | F88: Constant | G88: Unit
E89: Pulldown menu for P3 delivery model - option 1 | F89: Availability payment | G89: label
E90: Pulldown menu for P3 delivery model - option 2 | F90: Toll concession | G90: label
E91: Pulldown menu for public financing - option 1 | F91: GO bonds | G91: label
E92: Pulldown menu for public financing - option 2 | F92: Revenue bonds | G92: label
E93: Pulldown menu for debt repayment profile - option 1 | F93: Sculpted | G93: label
E94: Pulldown menu for debt repayment profile - option 2 | F94: Annuity | G94: label
E95: Pulldown menu for public funding or financing - option 1 | F95: Upfront funding | G95: label
E96: Pulldown menu for public funding or financing - option 2 | F96: Debt financing | G96: label
E97: Pulldown menu for risk distribution - option 1 | F97: Uniform | G97: label
E98: Pulldown menu for risk distribution - option 2 | F98: Triangular | G98: label
E99: Pulldown menu for true/false - option 1 | F99: TRUE | G99: label
E100: Pulldown menu for true/false - option 2 | F100: FALSE | G100: label
E102: Constants | F102: Constant | G102: Unit
E103: Consumer surplus factor (for PDBCA) | F103: =1 / 2 -> 0.5 | G103: factor
E104: Number of directions in bidirectional traffic | F104: 2 | G104: directions
E105: Variance quadratic factor | F105: 2 | G105: factor
E106: Uniform variance factor | F106: 12 | G106: factor
E107: Triangular variance factor | F107: 18 | G107: factor
E108: Goal seek precision multiplier | F108: 1 | G108: #
E109: Units in a hundred | F109: 100 | G109: units
E110: Units in a thousand | F110: 1000 | G110: units
E111: No. of days in a year | F111: 365 | G111: days
E112: No. of weekdays in a year | F112: 250 | G112: days
E113: No. of weekend days / holidays in a year | F113: =F111 - F112 -> 115 | G113: days
E114: Months in a year | F114: 12 | G114: months
E115: Units in a million | F115: 1000000 | G115: units
E117: Model Tolerance & Optimization Parameters | F117: Constant | G117: Unit
E118: Model check tolerance level | F118: 0.001 | G118: tolerance
E119: Model check tolerance level amplifier | F119: 0.1 | G119: tolerance
E120: P3 - WACC for initial AP estimation in macro | F120: 0.06 | G120: % p.a.
E121: P3 - WACC for initial subsidy / concession fee estimation in macro | F121: 0.08 | G121: % p.a.
A124: END OF NON CHANGEABLE TECHNICAL INPUTS
C127: INPUT TRANSITION: TIMING & COST
E129: PSC - Timeline | F129: Constant | G129: Unit
E130: PSC - Project preparation start year | F130: =F$8 -> 2020 | G130: year #
E131: PSC - Project preparation duration | F131: =F$9 -> 1 | G131: years
E132: PSC - Procurement duration | F132: =F$10 -> 1 | G132: years
E133: PSC - Implementation duration | F133: =F$11 -> 4 | G133: years
E134: PSC - Operations duration | F134: =F$12 -> 40 | G134: years
E136: PSC - Cost | F136: Constant | G136: Unit
E137: PSC - Project preparation cost | F137: =F$15 * THOUSAND -> 25000 | G137: USD k
E138: PSC - Public procurement cost (including compensation of losing bids) | F138: =F$16 * THOUSAND -> 5000 | G138: USD k
E139: PSC - Private procurement cost (costs of winning bid) | F139: =F$17 * THOUSAND -> 5000 | G139: USD k
E140: PSC - Implementation cost | F140: =F$18 * THOUSAND -> 400000 | G140: USD k
E141: PSC - Annual routine operations and maintenance cost | F141: =F$21 * THOUSAND -> 4000 | G141: USD k p.a.
E142: PSC - Major maintenance cost (cost per maintenance cycle) | F142: =F$22 * THOUSAND -> 10000 | G142: USD k
E143: PSC - Handback cost | F143: =F$23 * THOUSAND -> 0 | G143: USD k
E144: PSC - Major maintenance frequency (in years) | F144: =F$24 -> 8 | G144: years
E145: No Build annual O&M cost | F145: =F$25 * THOUSAND -> 10000 | G145: USD k p.a.
E147: Delayed PSC - Timeline | F147: Constant | G147: Unit
E148: Delayed PSC - Project preparation start year | F148: =G$8 -> 2025 | G148: year #
E149: Delayed PSC - Project preparation duration | F149: =G$9 -> 1 | G149: years
E150: Delayed PSC - Procurement duration | F150: =G$10 -> 1 | G150: years
E151: Delayed PSC - Implementation duration | F151: =G$11 -> 4 | G151: years
E152: Delayed PSC - Operations duration | F152: =G$12 -> 35 | G152: years
E154: Delayed PSC - Cost | F154: Constant | G154: Unit
E155: Delayed PSC - Project preparation cost | F155: =G$15 * THOUSAND -> 25000 | G155: USD k
E156: Delayed PSC - Public procurement cost (including compensation of losing bids) | F156: =G$16 * THOUSAND -> 5000 | G156: USD k
E157: Delayed PSC - Private procurement cost (costs of winning bid) | F157: =G$17 * THOUSAND -> 5000 | G157: USD k
E158: Delayed PSC - Implementation cost | F158: =G$18 * THOUSAND -> 400000 | G158: USD k
E159: Delayed PSC - Annual routine operations and maintenance cost | F159: =G$21 * THOUSAND -> 4000 | G159: USD k p.a.
E160: Delayed PSC - Major maintenance cost (cost per maintenance cycle) | F160: =G$22 * THOUSAND -> 10000 | G160: USD k
E161: Delayed PSC - Handback cost | F161: =G$23 * THOUSAND -> 0 | G161: USD k
E162: Delayed PSC - Major maintenance frequency (in years) | F162: =G$24 -> 8 | G162: years
E164: P3 - Timeline | F164: Constant | G164: Unit
E165: P3 - Project preparation start year | F165: =H$8 -> 2020 | G165: year #
E166: P3 - Project preparation duration | F166: =H$9 -> 1 | G166: years
E167: P3 - Procurement duration | F167: =H$10 -> 1 | G167: years
E168: P3 - Implementation duration | F168: =H$11 -> 3 | G168: years
E169: P3 - Operations duration | F169: =H$12 -> 41 | G169: years
E171: P3 - Cost | F171: Constant | G171: Unit
E172: P3 - Project preparation cost | F172: =H$15 * THOUSAND -> 22500 | G172: USD k
E173: P3 - Public procurement cost (including compensation of losing bids) | F173: =H$16 * THOUSAND -> 10000 | G173: USD k
E174: P3 - Private procurement cost (costs of winning bid) | F174: =H$17 * THOUSAND -> 10000 | G174: USD k
E175: P3 - Implementation cost | F175: =H$18 * THOUSAND -> 367500 | G175: USD k
E176: P3 - Annual routine operations and maintenance cost | F176: =H$21 * THOUSAND -> 3600 | G176: USD k p.a.
E177: P3 - Major maintenance cost (cost per maintenance cycle) | F177: =H$22 * THOUSAND -> 9000 | G177: USD k
E178: P3 - Handback cost | F178: =H$23 * THOUSAND -> 0 | G178: USD k
E179: P3 - Major maintenance frequency (in years) | F179: =H$24 -> 8 | G179: years
E181: P3 - Transferred cost share | F181: Constant | G181: Unit
E182: P3 - Project preparation cost - Transferred cost | F182: =I$15 -> 0 | G182: %
E183: P3 - Public procurement cost (including compensation of losing bids) - Transferred cost | F183: =I$16 -> 0 | G183: %
E184: P3 - Private procurement cost (costs of winning bid) - Transferred cost | F184: =I$17 -> 1 | G184: %
E185: P3 - Implementation cost - Transferred cost | F185: =I$18 -> 1 | G185: %
E186: P3 - Annual routine operations and maintenance cost - Transferred cost | F186: =I$21 -> 1 | G186: %
E187: P3 - Major maintenance cost (cost per maintenance cycle) - Transferred cost | F187: =I$22 -> 1 | G187: %
E188: P3 - Handback cost - Transferred cost | F188: =I$23 -> 1 | G188: %
E190: Inflation | F190: Constant | G190: Unit
E191: Indexation base year | F191: =AC$30 -> 2020 | G191: year #
E192: Indexation rate - Project preparation, procurement and implementation | F192: =AC$31 -> 0.02 | G192: %
E193: Indexation rate - Operations | F193: =AC$32 -> 0.02 | G193: %
E194: Indexation rate - Toll rates | F194: =AC$33 -> 0.02 | G194: %
E195: Indexation rate - CPI | F195: =AC$34 -> 0.02 | G195: %
C197: INPUT TRANSITION: TRAFFIC & TOLL
E199: Tolls | F199: Constant | G199: Unit
E200: No Build - 2 axle vehicles toll rates - Weekday - Peak | F200: =R$16 -> 0 | G200: USD / vehicle
E201: No Build - 2 axle vehicles toll rates - Weekday - Off-peak | F201: =R$17 -> 0 | G201: USD / vehicle
E202: No Build - 2 axle vehicles toll rates - Weekend | F202: =R$18 -> 0 | G202: USD / vehicle
E203: No Build - 4+ axle vehicles toll rates - Weekday - Peak | F203: =R$19 -> 0 | G203: USD / vehicle
E204: No Build - 4+ axle vehicles toll rates - Weekday - Off-peak | F204: =R$20 -> 0 | G204: USD / vehicle
E205: No Build - 4+ axle vehicles toll rates - Weekend | F205: =R$21 -> 0 | G205: USD / vehicle
E206: ML/TL - 2 axle vehicles toll rates - Weekday - Peak | F206: =S$16 -> 4 | G206: USD / vehicle
E207: ML/TL - 2 axle vehicles toll rates - Weekday - Off-peak | F207: =S$17 -> 2 | G207: USD / vehicle
E208: ML/TL - 2 axle vehicles toll rates - Weekend | F208: =S$18 -> 2 | G208: USD / vehicle
E209: ML/TL - 4+ axle vehicles toll rates - Weekday - Peak | F209: =S$19 -> 6 | G209: USD / vehicle
E210: ML/TL - 4+ axle vehicles toll rates - Weekday - Off-peak | F210: =S$20 -> 4 | G210: USD / vehicle
E211: ML/TL - 4+ axle vehicles toll rates - Weekend | F211: =S$21 -> 4 | G211: USD / vehicle
E212: GPL - 2 axle vehicles toll rates - Weekday - Peak | F212: =T$16 -> 0 | G212: USD / vehicle
E213: GPL - 2 axle vehicles toll rates - Weekday - Off-peak | F213: =T$17 -> 0 | G213: USD / vehicle
E214: GPL - 2 axle vehicles toll rates - Weekend | F214: =T$18 -> 0 | G214: USD / vehicle
E215: GPL - 4+ axle vehicles toll rates - Weekday - Peak | F215: =T$19 -> 0 | G215: USD / vehicle
E216: GPL - 4+ axle vehicles toll rates - Weekday - Off-peak | F216: =T$20 -> 0 | G216: USD / vehicle
E217: GPL - 4+ axle vehicles toll rates - Weekend | F217: =T$21 -> 0 | G217: USD / vehicle
E218: PSC - Toll revenue leakage | F218: =R$36 -> 0.01 | G218: %
E219: P3 - Toll revenue leakage | F219: =T$36 -> 0.01 | G219: %
E221: No Build traffic forecast | F221: Constant | G221: Unit
E222: =Q$8 -> 2020 | F222: =R$8 -> 120 | G222: 000s
E223: =Q$9 -> 2025 | F223: =R$9 -> 127 | G223: 000s
E224: =Q$10 -> 2030 | F224: =R$10 -> 138 | G224: 000s
E225: =Q$11 -> 2040 | F225: =R$11 -> 150 | G225: 000s
E226: =Q$12 -> 2050 | F226: =R$12 -> 158 | G226: 000s
E228: ML/TL traffic forecast | F228: Constant | G228: Unit
E229: =Q$8 -> 2020 | F229: =S$8 -> 25 | G229: 000s
E230: =Q$9 -> 2025 | F230: =S$9 -> 30 | G230: 000s
E231: =Q$10 -> 2030 | F231: =S$10 -> 35 | G231: 000s
E232: =Q$11 -> 2040 | F232: =S$11 -> 40 | G232: 000s
E233: =Q$12 -> 2050 | F233: =S$12 -> 45 | G233: 000s
... 137 more rows

Sheet Risk Matrix
A1: =RIGHT(CELL("FILENAME", $A$1), LEN(CELL("FILENAME", $A$1)) - SEARCH("]", CELL("FILENAME", $A$1))) -> Risk Matrix
B2: =A1 -> Risk Matrix
C5: PURE RISK INPUTS
E7: Pure Risk Probability Level
E8: Probability level for pure risk analysis | F8: 0.7
E10: Pure Risks During Implementation Period | F10: Likelihood of occurrence | G10: Minimum risk value | H10: Maximum risk value | I10: Risk distribution | J10: PSC most likely impact | K10: PSC most likely value | L10: Delayed PSC most likely value | M10: P3 most likely risk value | N10: Risk share transferred to P3 concessionaire
E11: Design risks | F11: 0.3 | G11: -0.25 | H11: 0.5 | I11: Uniform | J11: 0 | K11: =F11 * J11 -> 0 | L11: =K11 -> 0 | M11: 0 | N11: 0.9
E12: Construction risks | F12: 0.5 | G12: -0.25 | H12: 0.5 | I12: Uniform | J12: 0 | K12: =F12 * J12 -> 0 | L12: =K12 -> 0 | M12: 0 | N12: 0.9
E13: Third-party risks | F13: 0.15 | G13: -0.25 | H13: 0.5 | I13: Uniform | J13: 0 | K13: 0 | L13: 0 | M13: 0 | N13: 0.9
E14: Environmental risks | F14: 0.5 | G14: -0.25 | H14: 0.5 | I14: Uniform | J14: 0 | K14: 0 | L14: 0 | M14: 0 | N14: 0.9
E15: Right-of-way/real estate risks | F15: 0.7 | G15: -0.25 | H15: 0.5 | I15: Uniform | J15: 0 | K15: 0 | L15: 0 | M15: 0 | N15: 0.9
E16: Geotechnical and hazmat risks | F16: 0.15 | G16: -0.25 | H16: 0.5 | I16: Uniform | J16: 0 | K16: 0 | L16: 0 | M16: 0 | N16: 0.9
E17: Organizational risks | F17: 0.15 | G17: -0.25 | H17: 0.5 | I17: Uniform | J17: 0 | K17: 0 | L17: 0 | M17: 0 | N17: 0.9
E18: External risks | F18: 0.15 | G18: -0.25 | H18: 0.5 | I18: Uniform | J18: 0 | K18: 0 | L18: 0 | M18: 0 | N18: 1
E19: Latent defect | F19: 0.15 | G19: -0.25 | H19: 0.5 | I19: Uniform | J19: 0 | K19: 0 | L19: 0 | M19: 0 | N19: 1
E20: Force majeure risk | F20: 0.15 | G20: -0.25 | H20: 0.5 | I20: Uniform | J20: 0 | K20: 0 | L20: 0 | M20: 0 | N20: 1
E21: Insurance risk | F21: 0.15 | G21: -0.25 | H21: 0.5 | I21: Uniform | J21: 0 | K21: 0 | L21: 0 | M21: 0 | N21: 1
E22: Changes in law & policy | F22: 0.15 | G22: -0.25 | H22: 0.5 | I22: Uniform | J22: 0 | K22: 0 | L22: 0 | M22: 0 | N22: 1
E24: Pure Risks During Operations Period | F24: Likelihood of occurrence | G24: Minimum risk value | H24: Maximum risk value | I24: Risk distribution | J24: PSC most likely impact | K24: PSC most likely value | L24: Delayed PSC most likely value | M24: P3 most likely risk value | N24: Risk share transferred to P3 concessionaire
E25: Latent defect | F25: 0.7 | G25: -0.25 | H25: 0.5 | I25: Uniform | J25: 0 | K25: =F25 * J25 -> 0 | L25: =K25 -> 0 | M25: 0 | N25: 0.9
E26: Operations risk | F26: 0.3 | G26: -0.25 | H26: 0.5 | I26: Uniform | J26: 0 | K26: 0 | L26: =K26 -> 0 | M26: 0 | N26: 0.9
E27: Maintenance risk | F27: 0.3 | G27: -0.25 | H27: 0.5 | I27: Uniform | J27: 0 | K27: 0 | L27: 0 | M27: 0 | N27: 0.9
E28: Force majeure | F28: 0.15 | G28: -0.25 | H28: 0.5 | I28: Uniform | J28: 0 | K28: 0 | L28: 0 | M28: 0 | N28: 0.9
E29: Insurance risk | F29: 0.15 | G29: -0.25 | H29: 0.5 | I29: Uniform | J29: 0 | K29: 0 | L29: 0 | M29: 0 | N29: 1
E30: Changes in law & policy | F30: 0.15 | G30: -0.25 | H30: 0.5 | I30: Uniform | J30: 0 | K30: 0 | L30: 0 | M30: 0 | N30: 1
C32: BASE VARIABILITY INPUTS
E34: Base Variability | F34: Empty | G34: Empty2 | H34: Empty3 | I34: Empty4 | J34: Empty5 | K34: Empty6 | L34: PSC | M34: Delayed PSC | N34: P3
E35: Base variability on project preparation and procurement costs | L35: 0 | M35: =L35 -> 0 | N35: 0
E36: Base variability on implementation costs | L36: 0 | M36: =L36 -> 0 | N36: 0
E37: Base variability on O&M costs | L37: 0 | M37: =L37 -> 0 | N37: 0
A40: END OF RISK MATRIX INPUTS
C43: INPUT TRANSITION
E45: Probability level for pure risk analysis | F45: Constant | G45: Unit
E46: =E$8 -> Probability level for pure risk analysis | F46: =F$8 -> 0.7 | G46: %
E48: Pure risks during implementation - Min. value | F48: Constant | G48: Unit
E49: ="Min. value - " & E11 & " (%)" -> Min. value - Design risks (%) | F49: =G11 -> -0.25 | G49: %
E50: ="Min. value - " & E12 & " (%)" -> Min. value - Construction risks (%) | F50: -0.25 | G50: %
E51: Min. value - Third-party risks (%) | F51: -0.25 | G51: %
E52: Min. value - Environmental risks (%) | F52: -0.25 | G52: %
E53: Min. value - Right-of-way/real estate risks (%) | F53: -0.25 | G53: %
E54: Min. value - Geotechnical and hazmat risks (%) | F54: -0.25 | G54: %
E55: Min. value - Organizational risks (%) | F55: -0.25 | G55: %
E56: Min. value - External risks (%) | F56: -0.25 | G56: %
E57: Min. value - Latent defect (%) | F57: -0.25 | G57: %
E58: Min. value - Force majeure risk (%) | F58: -0.25 | G58: %
E59: Min. value - Insurance risk (%) | F59: -0.25 | G59: %
E60: Min. value - Changes in law & policy (%) | F60: -0.25 | G60: %
E62: Pure risks during implementation - Max. value | F62: Constant | G62: Unit
E63: ="Max. value - " & E11 & " (%)" -> Max. value - Design risks (%) | F63: =H11 -> 0.5 | G63: %
E64: ="Max. value - " & E12 & " (%)" -> Max. value - Construction risks (%) | F64: 0.5 | G64: %
E65: Max. value - Third-party risks (%) | F65: 0.5 | G65: %
E66: Max. value - Environmental risks (%) | F66: 0.5 | G66: %
E67: Max. value - Right-of-way/real estate risks (%) | F67: 0.5 | G67: %
E68: Max. value - Geotechnical and hazmat risks (%) | F68: 0.5 | G68: %
E69: Max. value - Organizational risks (%) | F69: 0.5 | G69: %
E70: Max. value - External risks (%) | F70: 0.5 | G70: %
E71: Max. value - Latent defect (%) | F71: 0.5 | G71: %
E72: Max. value - Force majeure risk (%) | F72: 0.5 | G72: %
E73: Max. value - Insurance risk (%) | F73: 0.5 | G73: %
E74: Max. value - Changes in law & policy (%) | F74: 0.5 | G74: %
E76: Pure risks during implementation - Risk distribution | F76: Constant | G76: Unit
E77: ="Risk distribution - " & E11 & " (0 = Uniform, 1 = Triangular)" -> Risk distribution - Design risks (0 = Uniform, 1 = Triangular) | F77: =IF( I11 = 'Project Inputs'!F$97, 0, 1 ) -> 0 | G77: switch
E78: ="Risk distribution - " & E12 & " (0 = Uniform, 1 = Triangular)" -> Risk distribution - Construction risks (0 = Uniform, 1 = Triangular) | F78: =IF( I12 = 'Project Inputs'!F$97, 0, 1 ) -> 0 | G78: switch
E79: Risk distribution - Third-party risks (0 = Uniform, 1 = Triangular) | F79: =IF( I13 = 'Project Inputs'!F$97, 0, 1 ) -> 0 | G79: switch
E80: Risk distribution - Environmental risks (0 = Uniform, 1 = Triangular) | F80: =IF( I14 = 'Project Inputs'!F$97, 0, 1 ) -> 0 | G80: switch
E81: Risk distribution - Right-of-way/real estate risks (0 = Uniform, 1 = Triangular) | F81: =IF( I15 = 'Project Inputs'!F$97, 0, 1 ) -> 0 | G81: switch
E82: Risk distribution - Geotechnical and hazmat risks (0 = Uniform, 1 = Triangular) | F82: =IF( I16 = 'Project Inputs'!F$97, 0, 1 ) -> 0 | G82: switch
E83: Risk distribution - Organizational risks (0 = Uniform, 1 = Triangular) | F83: =IF( I17 = 'Project Inputs'!F$97, 0, 1 ) -> 0 | G83: switch
E84: Risk distribution - External risks (0 = Uniform, 1 = Triangular) | F84: =IF( I18 = 'Project Inputs'!F$97, 0, 1 ) -> 0 | G84: switch
E85: Risk distribution - Latent defect (0 = Uniform, 1 = Triangular) | F85: =IF( I19 = 'Project Inputs'!F$97, 0, 1 ) -> 0 | G85: switch
E86: Risk distribution - Force majeure risk (0 = Uniform, 1 = Triangular) | F86: =IF( I20 = 'Project Inputs'!F$97, 0, 1 ) -> 0 | G86: switch
E87: Risk distribution - Insurance risk (0 = Uniform, 1 = Triangular) | F87: =IF( I21 = 'Project Inputs'!F$97, 0, 1 ) -> 0 | G87: switch
E88: Risk distribution - Changes in law & policy (0 = Uniform, 1 = Triangular) | F88: =IF( I22 = 'Project Inputs'!F$97, 0, 1 ) -> 0 | G88: switch
E90: Pure risks during operations - Min. value | F90: Constant | G90: Unit
E91: ="Min. value - " & E25 & " (%)" -> Min. value - Latent defect (%) | F91: =G25 -> -0.25 | G91: %
E92: ="Min. value - " & E26 & " (%)" -> Min. value - Operations risk (%) | F92: -0.25 | G92: %
E93: Min. value - Maintenance risk (%) | F93: -0.25 | G93: %
E94: Min. value - Force majeure (%) | F94: -0.25 | G94: %
E95: Min. value - Insurance risk (%) | F95: -0.25 | G95: %
E96: Min. value - Changes in law & policy (%) | F96: -0.25 | G96: %
E98: Pure risks during operations - Max. value | F98: Constant | G98: Unit
E99: ="Max. value - " & E25 & " (%)" -> Max. value - Latent defect (%) | F99: =H25 -> 0.5 | G99: %
E100: ="Max. value - " & E26 & " (%)" -> Max. value - Operations risk (%) | F100: 0.5 | G100: %
E101: Max. value - Maintenance risk (%) | F101: 0.5 | G101: %
E102: Max. value - Force majeure (%) | F102: 0.5 | G102: %
E103: Max. value - Insurance risk (%) | F103: 0.5 | G103: %
E104: Max. value - Changes in law & policy (%) | F104: 0.5 | G104: %
E106: Pure risks during operations - Risk distribution | F106: Constant | G106: Unit
E107: ="Risk distribution - " & E25 & " (0 = Uniform, 1 = Triangular)" -> Risk distribution - Latent defect (0 = Uniform, 1 = Triangular) | F107: =IF( I25 = 'Project Inputs'!F$97, 0, 1 ) -> 0 | G107: switch
E108: ="Risk distribution - " & E26 & " (0 = Uniform, 1 = Triangular)" -> Risk distribution - Operations risk (0 = Uniform, 1 = Triangular) | F108: =IF( I26 = 'Project Inputs'!F$97, 0, 1 ) -> 0 | G108: switch
E109: Risk distribution - Maintenance risk (0 = Uniform, 1 = Triangular) | F109: =IF( I27 = 'Project Inputs'!F$97, 0, 1 ) -> 0 | G109: switch
E110: Risk distribution - Force majeure (0 = Uniform, 1 = Triangular) | F110: =IF( I28 = 'Project Inputs'!F$97, 0, 1 ) -> 0 | G110: switch
E111: Risk distribution - Insurance risk (0 = Uniform, 1 = Triangular) | F111: =IF( I29 = 'Project Inputs'!F$97, 0, 1 ) -> 0 | G111: switch
E112: Risk distribution - Changes in law & policy (0 = Uniform, 1 = Triangular) | F112: =IF( I30 = 'Project Inputs'!F$97, 0, 1 ) -> 0 | G112: switch
E114: PSC - Construction period pure risk - Most likely value | F114: Constant | G114: Unit
E115: ="PSC - "& E11 & " - Most likely value" -> PSC - Design risks - Most likely value | F115: ='Project Inputs'!F$71 * K11 * THOUSAND -> 0 | G115: USD k
E116: PSC - Construction risks - Most likely value | F116: ='Project Inputs'!F$71 * K12 * THOUSAND -> 0 | G116: USD k
E117: PSC - Third-party risks - Most likely value | F117: ='Project Inputs'!F$71 * K13 * THOUSAND -> 0 | G117: USD k
E118: PSC - Environmental risks - Most likely value | F118: ='Project Inputs'!F$71 * K14 * THOUSAND -> 0 | G118: USD k
E119: PSC - Right-of-way/real estate risks - Most likely value | F119: ='Project Inputs'!F$71 * K15 * THOUSAND -> 0 | G119: USD k
E120: PSC - Geotechnical and hazmat risks - Most likely value | F120: ='Project Inputs'!F$71 * K16 * THOUSAND -> 0 | G120: USD k
E121: PSC - Organizational risks - Most likely value | F121: ='Project Inputs'!F$71 * K17 * THOUSAND -> 0 | G121: USD k
E122: PSC - External risks - Most likely value | F122: ='Project Inputs'!F$71 * K18 * THOUSAND -> 0 | G122: USD k
E123: PSC - Latent defect - Most likely value | F123: ='Project Inputs'!F$71 * K19 * THOUSAND -> 0 | G123: USD k
E124: PSC - Force majeure risk - Most likely value | F124: ='Project Inputs'!F$71 * K20 * THOUSAND -> 0 | G124: USD k
E125: PSC - Insurance risk - Most likely value | F125: ='Project Inputs'!F$71 * K21 * THOUSAND -> 0 | G125: USD k
E126: PSC - Changes in law & policy - Most likely value | F126: ='Project Inputs'!F$71 * K22 * THOUSAND -> 0 | G126: USD k
E128: PSC - Operations period pure risk - Most likely value | F128: Constant | G128: Unit
E129: ="PSC - "& E25 & " - Most likely value" -> PSC - Latent defect - Most likely value | F129: ='Project Inputs'!F$71 * K25 * THOUSAND -> 0 | G129: USD k p.a.
E130: PSC - Operations risk - Most likely value | F130: ='Project Inputs'!F$71 * K26 * THOUSAND -> 0 | G130: USD k p.a.
E131: PSC - Maintenance risk - Most likely value | F131: ='Project Inputs'!F$71 * K27 * THOUSAND -> 0 | G131: USD k p.a.
E132: PSC - Force majeure - Most likely value | F132: ='Project Inputs'!F$71 * K28 * THOUSAND -> 0 | G132: USD k p.a.
E133: PSC - Insurance risk - Most likely value | F133: ='Project Inputs'!F$71 * K29 * THOUSAND -> 0 | G133: USD k p.a.
E134: PSC - Changes in law & policy - Most likely value | F134: ='Project Inputs'!F$71 * K30 * THOUSAND -> 0 | G134: USD k p.a.
E136: PSC - Base variability | F136: Constant | G136: Unit
E137: ="PSC - " & E35 -> PSC - Base variability on project preparation and procurement costs | F137: ='Project Inputs'!F$71 * L35 -> 0 | G137: %
E138: ="PSC - " & E36 -> PSC - Base variability on implementation costs | F138: ='Project Inputs'!F$71 * L36 -> 0 | G138: %
E139: ="PSC - " & E37 -> PSC - Base variability on O&M costs | F139: ='Project Inputs'!F$71 * L37 -> 0 | G139: %
E141: Delayed PSC - Construction period pure risk - Most likely value | F141: Constant | G141: Unit
E142: ="Delayed PSC - "& E11 & " - Most likely value" -> Delayed PSC - Design risks - Most likely value | F142: ='Project Inputs'!F$71 * L11 * THOUSAND -> 0 | G142: USD k
E143: Delayed PSC - Construction risks - Most likely value | F143: ='Project Inputs'!F$71 * L12 * THOUSAND -> 0 | G143: USD k
E144: Delayed PSC - Third-party risks - Most likely value | F144: ='Project Inputs'!F$71 * L13 * THOUSAND -> 0 | G144: USD k
E145: Delayed PSC - Environmental risks - Most likely value | F145: ='Project Inputs'!F$71 * L14 * THOUSAND -> 0 | G145: USD k
E146: Delayed PSC - Right-of-way/real estate risks - Most likely value | F146: ='Project Inputs'!F$71 * L15 * THOUSAND -> 0 | G146: USD k
E147: Delayed PSC - Geotechnical and hazmat risks - Most likely value | F147: ='Project Inputs'!F$71 * L16 * THOUSAND -> 0 | G147: USD k
E148: Delayed PSC - Organizational risks - Most likely value | F148: ='Project Inputs'!F$71 * L17 * THOUSAND -> 0 | G148: USD k
E149: Delayed PSC - External risks - Most likely value | F149: ='Project Inputs'!F$71 * L18 * THOUSAND -> 0 | G149: USD k
E150: Delayed PSC - Latent defect - Most likely value | F150: ='Project Inputs'!F$71 * L19 * THOUSAND -> 0 | G150: USD k
E151: Delayed PSC - Force majeure risk - Most likely value | F151: ='Project Inputs'!F$71 * L20 * THOUSAND -> 0 | G151: USD k
E152: Delayed PSC - Insurance risk - Most likely value | F152: ='Project Inputs'!F$71 * L21 * THOUSAND -> 0 | G152: USD k
E153: Delayed PSC - Changes in law & policy - Most likely value | F153: ='Project Inputs'!F$71 * L22 * THOUSAND -> 0 | G153: USD k
E155: Delayed PSC - Operations period pure risk - Most likely value | F155: Constant | G155: Unit
E156: ="Delayed PSC - "& E25 & " - Most likely value" -> Delayed PSC - Latent defect - Most likely value | F156: ='Project Inputs'!F$71 * L25 * THOUSAND -> 0 | G156: USD k p.a.
E157: Delayed PSC - Operations risk - Most likely value | F157: ='Project Inputs'!F$71 * L26 * THOUSAND -> 0 | G157: USD k p.a.
E158: Delayed PSC - Maintenance risk - Most likely value | F158: ='Project Inputs'!F$71 * L27 * THOUSAND -> 0 | G158: USD k p.a.
E159: Delayed PSC - Force majeure - Most likely value | F159: ='Project Inputs'!F$71 * L28 * THOUSAND -> 0 | G159: USD k p.a.
E160: Delayed PSC - Insurance risk - Most likely value | F160: ='Project Inputs'!F$71 * L29 * THOUSAND -> 0 | G160: USD k p.a.
E161: Delayed PSC - Changes in law & policy - Most likely value | F161: ='Project Inputs'!F$71 * L30 * THOUSAND -> 0 | G161: USD k p.a.
E163: Delayed PSC - Base variability | F163: Constant | G163: Unit
E164: ="Delayed PSC - " & E35 -> Delayed PSC - Base variability on project preparation and procurement costs | F164: ='Project Inputs'!F$71 * M35 -> 0 | G164: %
E165: ="Delayed PSC - " & E36 -> Delayed PSC - Base variability on implementation costs | F165: ='Project Inputs'!F$71 * M36 -> 0 | G165: %
E166: ="Delayed PSC - " & E37 -> Delayed PSC - Base variability on O&M costs | F166: ='Project Inputs'!F$71 * M37 -> 0 | G166: %
E168: P3 - Construction period pure risk - Most likely value | F168: Constant | G168: Unit
E169: ="P3 - "& E11 & " - Most likely value" -> P3 - Design risks - Most likely value | F169: ='Project Inputs'!F$71 * M11 * THOUSAND -> 0 | G169: USD k
E170: P3 - Construction risks - Most likely value | F170: ='Project Inputs'!F$71 * M12 * THOUSAND -> 0 | G170: USD k
E171: P3 - Third-party risks - Most likely value | F171: ='Project Inputs'!F$71 * M13 * THOUSAND -> 0 | G171: USD k
E172: P3 - Environmental risks - Most likely value | F172: ='Project Inputs'!F$71 * M14 * THOUSAND -> 0 | G172: USD k
E173: P3 - Right-of-way/real estate risks - Most likely value | F173: ='Project Inputs'!F$71 * M15 * THOUSAND -> 0 | G173: USD k
E174: P3 - Geotechnical and hazmat risks - Most likely value | F174: ='Project Inputs'!F$71 * M16 * THOUSAND -> 0 | G174: USD k
E175: P3 - Organizational risks - Most likely value | F175: ='Project Inputs'!F$71 * M17 * THOUSAND -> 0 | G175: USD k
E176: P3 - External risks - Most likely value | F176: ='Project Inputs'!F$71 * M18 * THOUSAND -> 0 | G176: USD k
E177: P3 - Latent defect - Most likely value | F177: ='Project Inputs'!F$71 * M19 * THOUSAND -> 0 | G177: USD k
E178: P3 - Force majeure risk - Most likely value | F178: ='Project Inputs'!F$71 * M20 * THOUSAND -> 0 | G178: USD k
E179: P3 - Insurance risk - Most likely value | F179: ='Project Inputs'!F$71 * M21 * THOUSAND -> 0 | G179: USD k
E180: P3 - Changes in law & policy - Most likely value | F180: ='Project Inputs'!F$71 * M22 * THOUSAND -> 0 | G180: USD k
E182: P3 - Construction period pure risk - Transferred risk | F182: Constant | G182: Unit
E183: ="P3 - "& E11 & " - Transferred risks" -> P3 - Design risks - Transferred risks | F183: =N11 -> 0.9 | G183: %
E184: P3 - Construction risks - Transferred risks | F184: 0.9 | G184: %
E185: P3 - Third-party risks - Transferred risks | F185: 0.9 | G185: %
E186: P3 - Environmental risks - Transferred risks | F186: 0.9 | G186: %
E187: P3 - Right-of-way/real estate risks - Transferred risks | F187: 0.9 | G187: %
E188: P3 - Geotechnical and hazmat risks - Transferred risks | F188: 0.9 | G188: %
E189: P3 - Organizational risks - Transferred risks | F189: 0.9 | G189: %
E190: P3 - External risks - Transferred risks | F190: 1 | G190: %
E191: P3 - Latent defect - Transferred risks | F191: 1 | G191: %
E192: P3 - Force majeure risk - Transferred risks | F192: 1 | G192: %
E193: P3 - Insurance risk - Transferred risks | F193: 1 | G193: %
E194: P3 - Changes in law & policy - Transferred risks | F194: 1 | G194: %
E196: P3 - Operations period pure risk - Most likely value | F196: Constant | G196: Unit
E197: ="P3 - "& E25 & " - Most likely value" -> P3 - Latent defect - Most likely value | F197: ='Project Inputs'!F$71 * M25 * THOUSAND -> 0 | G197: USD k p.a.
E198: P3 - Operations risk - Most likely value | F198: ='Project Inputs'!F$71 * M26 * THOUSAND -> 0 | G198: USD k p.a.
E199: P3 - Maintenance risk - Most likely value | F199: ='Project Inputs'!F$71 * M27 * THOUSAND -> 0 | G199: USD k p.a.
E200: P3 - Force majeure - Most likely value | F200: ='Project Inputs'!F$71 * M28 * THOUSAND -> 0 | G200: USD k p.a.
E201: P3 - Insurance risk - Most likely value | F201: ='Project Inputs'!F$71 * M29 * THOUSAND -> 0 | G201: USD k p.a.
E202: P3 - Changes in law & policy - Most likely value | F202: ='Project Inputs'!F$71 * M30 * THOUSAND -> 0 | G202: USD k p.a.
E204: P3 - Operations period pure risk - Transferred risk | F204: Constant | G204: Unit
E205: ="P3 - "& E25 & " - Transferred risks" -> P3 - Latent defect - Transferred risks | F205: =N25 -> 0.9 | G205: %
E206: P3 - Operations risk - Transferred risks | F206: 0.9 | G206: %
E207: P3 - Maintenance risk - Transferred risks | F207: 0.9 | G207: %
E208: P3 - Force majeure - Transferred risks | F208: 0.9 | G208: %
E209: P3 - Insurance risk - Transferred risks | F209: 1 | G209: %
E210: P3 - Changes in law & policy - Transferred risks | F210: 1 | G210: %
E212: P3 - Base variability | F212: Constant | G212: Unit
E213: ="P3 - " & E35 -> P3 - Base variability on project preparation and procurement costs | F213: ='Project Inputs'!F$71 * N35 -> 0 | G213: %
E214: ="P3 - " & E36 -> P3 - Base variability on implementation costs | F214: ='Project Inputs'!F$71 * N36 -> 0 | G214: %
E215: ="P3 - " & E37 -> P3 - Base variability on O&M costs | F215: ='Project Inputs'!F$71 * N37 -> 0 | G215: %
A218: END OF INPUT TRANSITION

Sheet Other BCA Inputs
A1: =RIGHT(CELL("FILENAME", $A$1), LEN(CELL("FILENAME", $A$1)) - SEARCH("]", CELL("FILENAME", $A$1))) -> Other BCA Inputs
B2: =A1 -> Other BCA Inputs
C5: DELAYS, VALUE OF TIME, OCCUPANCY, OTHER INPUTS | K5: TRANSIT & CARPOOLING, ACCIDENT & CAPACITY INPUTS
E7: Traffic Sensitivity Factor | M7: Transit Passengers Forecast | N7: Year | O7: No Build | P7: ML/TL | Q7: GPL
E8: Traffic sensitivity factor for PDBCA* | G8: 1 | M8: Weekday daily transit passengers in model start year | N8: ='Time&Esc'!F$84 -> 2020 | O8: 0 | P8: 0 | Q8: 0
E9: * Applies to traffic above No Build base year traffic | M9: Weekday daily transit passengers in input year 2 | N9: 2025 | O9: 0 | P9: 0 | Q9: 0
M10: Weekday daily transit passengers in input year 3 | N10: 2030 | O10: 0 | P10: 0 | Q10: 0
E11: Construction and O&M Delay Frequency | F11: Construction | G11: O&M | M11: Weekday daily transit passengers in input year 4 | N11: 2040 | O11: 0 | P11: 0 | Q11: 0
E12: No Build - Peak | F12: 0 | G12: 0 | M12: Weekday daily transit passengers in input year 5 | N12: 2050 | O12: 0 | P12: 0 | Q12: 0
E13: No Build - Off-peak | F13: 0 | G13: 25 | M13: Annual transit passengers growth after last input year | N13: ="> " & MAX(N8:N12) -> > 2050 | O13: 0 | P13: 0 | Q13: 0
E14: No Build - Weekends | F14: 0 | G14: 20
E15: ML/TL - Peak | F15: 0 | G15: 0 | M15: Transit Passengers Shares | N15: Empty | O15: No Build | P15: ML/TL | Q15: GPL
E16: ML/TL - Off-peak | F16: 200 | G16: 25 | M16: Unidirectional peak transit percentage (% of total transit passengers) | O16: 0.3 | P16: 0.3 | Q16: 0.3
E17: ML/TL - Weekends | F17: 50 | G17: 20 | M17: Unidirectional off-peak transit percentage (% of total transit passengers) | O17: =1 - O16 -> 0.7 | P17: =1 - P16 -> 0.7 | Q17: =1 - Q16 -> 0.7
E18: GPL - Peak | F18: 0 | G18: 0 | M18: Weekend transit passengers percentage (% of weekday transit passengers) | O18: 0.6 | P18: 0.6 | Q18: 0.6
E19: GPL - Off-peak | F19: 200 | G19: 25
E20: GPL - Weekends | F20: 50 | G20: 20 | M20: Carpooling Passengers Forecast | N20: Year | O20: No Build | P20: ML/TL | Q20: GPL
M21: Weekday daily carpooling passengers in model start year | N21: ='Time&Esc'!F$84 -> 2020 | O21: 0 | P21: 0 | Q21: 0
E22: Affected Segment Length & Speed Adjustment Factor | M22: Weekday daily carpooling passengers in input year 2 | N22: 2025 | O22: 0 | P22: 0 | Q22: 0
E23: Average affected segment length - Construction delays | G23: 4 | M23: Weekday daily carpooling passengers in input year 3 | N23: 2030 | O23: 0 | P23: 0 | Q23: 0
E24: Average affected segment length - O&M delays | G24: 4 | M24: Weekday daily carpooling passengers in input year 4 | N24: 2040 | O24: 0 | P24: 0 | Q24: 0
E25: Speed adjustment factor - Construction delays | G25: 0.45 | M25: Weekday daily carpooling passengers in input year 5 | N25: 2050 | O25: 0 | P25: 0 | Q25: 0
E26: Speed adjustment factor - O&M delays | G26: 0.45 | M26: Annual carpooling passengers growth after last input year | N26: ="> " & MAX(N21:N25) -> > 2050 | O26: 0 | P26: 0 | Q26: 0
E28: Vehicle Occupancy | M28: Carpooling Passengers Shares | N28: Empty | O28: No Build | P28: ML/TL | Q28: GPL
E29: Passenger vehicle occupancy - Peak | G29: 1.15 | M29: Unidirectional peak carpool percentage (% of total carpool passengers) | O29: 0.8 | P29: 0.8 | Q29: 0.8
E30: Passenger vehicle occupancy - Off-peak | G30: 1.3 | M30: Unidirectional off-peak carpool percentage (% of total carpool passengers) | O30: =1 - O29 -> 0.2 | P30: =1 - P29 -> 0.2 | Q30: =1 - Q29 -> 0.2
E31: Passenger vehicle occupancy - Weekend | G31: 1.3 | M31: Weekend carpool passengers percentage (% of weekday carpool passengers) | O31: 0.15 | P31: 0.15 | Q31: 0.15
E33: Value of Time | M33: Accident Cost | N33: Empty | O33: Fatal accident | P33: Injury accident | Q33: Damage-only
E34: 2 axle vehicles | G34: 17.39 | M34: Accident cost | O34: 9200000 | P34: 500000 | Q34: 15000
E35: 4+ axle vehicles | G35: 25.75 | M35: No Build accident frequency | O35: 0.0109 | P35: 0.77 | Q35: 1.9
E36: Transit passenger | G36: 10 | M36: Build accident frequency | O36: 0.0106 | P36: 0.75 | Q36: 1.85
E37: Carpooling passenger | G37: 10
M38: Capacity | N38: Empty | O38: No Build | P38: ML/TL | Q38: GPL
E39: Volume Delay Function | G39: Factor | M39: Hourly-to-daily capacity conversion factor | O39: 15 | P39: 10 | Q39: 15
E40: Bureau of Public Road Volume Delay Function: Alpha | G40: 0.15 | M40: Ratio of LOS E capacity to LOS C capacity* | O40: 1.333333333 | P40: 1 | Q40: 1.333333333
E41: Bureau of Public Road Volume Delay Function: Beta | G41: 4 | M41: P50 traffic capacity breach check | O41: =Traffic!$F$250 -> 0 | P41: =Traffic!$F$251 -> 0 | Q41: =Traffic!$F$252 -> 0
E42: Lane vehicle capacity at LOS C | G42: 1.5 | M42: =P_CASE & " traffic capacity breach check" -> 100% of P50 traffic capacity breach check | O42: =Traffic!$F$253 -> 0 | P42: =Traffic!$F$254 -> 0 | Q42: =Traffic!$F$255 -> 0
M43: Maximum peak vehicle-capacity ratio (V/C) - Calculated | O43: =Speed!$F$133 -> 1.891931917 | P43: =Speed!$F$134 -> 0.8707267165 | Q43: =Speed!$F$135 -> 1.700343875
E44: Vehicle Operating Costs | F44: Non-fuel cost | G44: Fuel cost | M44: Maximum off-peak vehicle-capacity ratio (V/C) - Calculated | O44: =Speed!$F$151 -> 0.8829015613 | P44: =Speed!$F$152 -> 0.4063391344 | Q44: =Speed!$F$153 -> 0.7934938083
E45: 2 axle vehicles | F45: 0.2978 | G45: 2.5 | M45: Maximum weekend vehicle-capacity ratio (V/C) - Calculated | O45: =Speed!$F$169 -> 0.6306439724 | P45: =Speed!$F$170 -> 0.2902422388 | Q45: =Speed!$F$171 -> 0.5667812916
E46: 4+ axle vehiclres | F46: 0.447 | G46: 2.4 | M46: * LOS E = maximum vehicle throughput, LOS C = vehicle throughput at or near free flow
C50: EMISSIONS INPUTS
E52: Pavement Quality Adjustment on Fuel Costs | F52: Passenger vehicls | G52: Bus/trucks | O52: Pavement Quality Adjustment on Non-Fuel Costs | P52: Passenger vehicls | Q52: Bus/trucks
E53: 0 | F53: 0.9705221313 | G53: 0.9607247245 | O53: 0 | P53: 1 | Q53: 1
E54: 25 | F54: 0.9767907836 | G54: 0.9653071759 | O54: 25 | P54: 1 | Q54: 1
E55: 50 | F55: 0.9800018645 | G55: 0.9703585008 | O55: 50 | P55: 1 | Q55: 1
E56: 75 | F56: 0.9823644562 | G56: 0.9752574104 | O56: 75 | P56: 1 | Q56: 1
E57: 100 | F57: 0.9845546635 | G57: 0.9798965899 | O57: 100 | P57: 1 | Q57: 1
E58: 125 | F58: 0.9899645771 | G58: 0.9864425973 | O58: 125 | P58: 1 | Q58: 1
E59: 150 | F59: 0.9952063993 | G59: 0.9930872697 | O59: 150 | P59: 1.016534091 | Q59: 1.018371212
E60: 175 | F60: 1 | G60: 1 | O60: 175 | P60: 1.034289773 | Q60: 1.038099747
E61: 200 | F61: 1.005311092 | G61: 1.007420738 | O61: 200 | P61: 1.052045455 | Q61: 1.057828283
E62: 225 | F62: 1.012385023 | G62: 1.016572008 | O62: 225 | P62: 1.069801136 | Q62: 1.077556818
E63: 250 | F63: 1.019458954 | G63: 1.025723278 | O63: 250 | P63: 1.087556818 | Q63: 1.097285354
E64: 275 | F64: 1.026641431 | G64: 1.036037349 | O64: 275 | P64: 1.1053125 | Q64: 1.117013889
E65: 300 | F65: 1.033865169 | G65: 1.046793436 | O65: 300 | P65: 1.123068182 | Q65: 1.136742424
E66: 325 | F66: 1.041088907 | G66: 1.057549522 | O66: 325 | P66: 1.140823864 | Q66: 1.15647096
E67: 350 | F67: 1.050072248 | G67: 1.070254114 | O67: 350 | P67: 1.158579545 | Q67: 1.176199495
E68: 375 | F68: 1.060826084 | G68: 1.084919274 | O68: 375 | P68: 1.176335227 | Q68: 1.19592803
E69: 400 | F69: 1.07157992 | G69: 1.099584434 | O69: 400 | P69: 1.194090909 | Q69: 1.215656566
E70: 425 | F70: 1.082333756 | G70: 1.114249594 | O70: 425 | P70: 1.211846591 | Q70: 1.235385101
E71: 450 | F71: 1.093087592 | G71: 1.128914753 | O71: 450 | P71: 1.229602273 | Q71: 1.255113636
E74: Vehicle Speed Adjustment on Fuel Costs | F74: Passenger vehicls | G74: Bus/trucks | O74: Vehicle Speed Adjustment on Emission Costs | P74: Passenger vehicls | Q74: Bus/trucks
E75: 1 | F75: 0.1439 | G75: 0.2234 | O75: 1 | P75: 0.07532 | Q75: 0.11482
E76: 2 | F76: 0.1439 | G76: 0.2234 | O76: 2 | P76: 0.07532 | Q76: 0.11482
E77: 3 | F77: 0.1439 | G77: 0.2234 | O77: 3 | P77: 0.07532 | Q77: 0.11482
E78: 4 | F78: 0.1439 | G78: 0.2234 | O78: 4 | P78: 0.07532 | Q78: 0.11482
E79: 5 | F79: 0.1439 | G79: 0.2234 | O79: 5 | P79: 0.07532 | Q79: 0.11482
E80: 6 | F80: 0.1366 | G80: 0.213 | O80: 6 | P80: 0.07225 | Q80: 0.11058
E81: 7 | F81: 0.1293 | G81: 0.2026 | O81: 7 | P81: 0.06918 | Q81: 0.1063
E82: 8 | F82: 0.122 | G82: 0.1922 | O82: 8 | P82: 0.06611 | Q82: 0.10207
E83: 9 | F83: 0.1147 | G83: 0.1818 | O83: 9 | P83: 0.06304 | Q83: 0.09779
E84: 10 | F84: 0.1074 | G84: 0.1714 | O84: 10 | P84: 0.05997 | Q84: 0.09355
E85: 11 | F85: 0.1025 | G85: 0.1631 | O85: 11 | P85: 0.05796 | Q85: 0.09008
E86: 12 | F86: 0.0977 | G86: 0.1548 | O86: 12 | P86: 0.05595 | Q86: 0.08661
E87: 13 | F87: 0.0929 | G87: 0.1466 | O87: 13 | P87: 0.05393 | Q87: 0.08314
E88: 14 | F88: 0.088 | G88: 0.1383 | O88: 14 | P88: 0.05192 | Q88: 0.07967
E89: 15 | F89: 0.0832 | G89: 0.13 | O89: 15 | P89: 0.04991 | Q89: 0.0762
E90: 16 | F90: 0.08 | G90: 0.1247 | O90: 16 | P90: 0.0486 | Q90: 0.07394
E91: 17 | F91: 0.0767 | G91: 0.1193 | O91: 17 | P91: 0.04726 | Q91: 0.07168
E92: 18 | F92: 0.0735 | G92: 0.1139 | O92: 18 | P92: 0.04592 | Q92: 0.06943
E93: 19 | F93: 0.0702 | G93: 0.1086 | O93: 19 | P93: 0.04458 | Q93: 0.06717
E94: 20 | F94: 0.067 | G94: 0.1032 | O94: 20 | P94: 0.04328 | Q94: 0.06491
E95: 21 | F95: 0.0648 | G95: 0.0997 | O95: 21 | P95: 0.04238 | Q95: 0.06341
E96: 22 | F96: 0.0626 | G96: 0.0962 | O96: 22 | P96: 0.04148 | Q96: 0.06191
E97: 23 | F97: 0.0603 | G97: 0.0926 | O97: 23 | P97: 0.04058 | Q97: 0.06041
E98: 24 | F98: 0.0581 | G98: 0.0891 | O98: 24 | P98: 0.03969 | Q98: 0.0589
E99: 25 | F99: 0.0559 | G99: 0.0856 | O99: 25 | P99: 0.03879 | Q99: 0.05744
E100: 26 | F100: 0.0544 | G100: 0.0832 | O100: 26 | P100: 0.03818 | Q100: 0.05642
E101: 27 | F101: 0.0529 | G101: 0.0809 | O101: 27 | P101: 0.03758 | Q101: 0.05545
E102: 28 | F102: 0.0515 | G102: 0.0785 | O102: 28 | P102: 0.03697 | Q102: 0.05447
E103: 29 | F103: 0.05 | G103: 0.0762 | O103: 29 | P103: 0.03637 | Q103: 0.05346
E104: 30 | F104: 0.0485 | G104: 0.0738 | O104: 30 | P104: 0.03576 | Q104: 0.05248
E105: 31 | F105: 0.0475 | G105: 0.0723 | O105: 31 | P105: 0.03537 | Q105: 0.05185
E106: 32 | F106: 0.0465 | G106: 0.0708 | O106: 32 | P106: 0.03499 | Q106: 0.05123
E107: 33 | F107: 0.0455 | G107: 0.0693 | O107: 33 | P107: 0.03456 | Q107: 0.05061
E108: 34 | F108: 0.0445 | G108: 0.0678 | O108: 34 | P108: 0.03417 | Q108: 0.04995
E109: 35 | F109: 0.0435 | G109: 0.0663 | O109: 35 | P109: 0.03378 | Q109: 0.04932
E110: 36 | F110: 0.0429 | G110: 0.0654 | O110: 36 | P110: 0.03354 | Q110: 0.04898
E111: 37 | F111: 0.0423 | G111: 0.0645 | O111: 37 | P111: 0.03329 | Q111: 0.04859
E112: 38 | F112: 0.0417 | G112: 0.0635 | O112: 38 | P112: 0.03307 | Q112: 0.04821
E113: 39 | F113: 0.0411 | G113: 0.0626 | O113: 39 | P113: 0.03282 | Q113: 0.04782
E114: 40 | F114: 0.0405 | G114: 0.0617 | O114: 40 | P114: 0.03257 | Q114: 0.04747
E115: 41 | F115: 0.0402 | G115: 0.0613 | O115: 41 | P115: 0.03247 | Q115: 0.04732
E116: 42 | F116: 0.04 | G116: 0.0609 | O116: 42 | P116: 0.03234 | Q116: 0.04714
E117: 43 | F117: 0.0397 | G117: 0.0604 | O117: 43 | P117: 0.03224 | Q117: 0.04699
E118: 44 | F118: 0.0394 | G118: 0.06 | O118: 44 | P118: 0.0321 | Q118: 0.04684
E119: 45 | F119: 0.0391 | G119: 0.0596 | O119: 45 | P119: 0.032 | Q119: 0.04669
E120: 46 | F120: 0.0391 | G120: 0.0596 | O120: 46 | P120: 0.032 | Q120: 0.04672
E121: 47 | F121: 0.0391 | G121: 0.0596 | O121: 47 | P121: 0.032 | Q121: 0.04678
E122: 48 | F122: 0.0391 | G122: 0.0596 | O122: 48 | P122: 0.03196 | Q122: 0.04681
E123: 49 | F123: 0.0391 | G123: 0.0596 | O123: 49 | P123: 0.03196 | Q123: 0.04684
E124: 50 | F124: 0.039 | G124: 0.0596 | O124: 50 | P124: 0.03197 | Q124: 0.04691
E125: 51 | F125: 0.0393 | G125: 0.06 | O125: 51 | P125: 0.03207 | Q125: 0.04712
E126: 52 | F126: 0.0396 | G126: 0.0604 | O126: 52 | P126: 0.03217 | Q126: 0.04738
E127: 53 | F127: 0.0399 | G127: 0.0608 | O127: 53 | P127: 0.03227 | Q127: 0.04763
E128: 54 | F128: 0.0401 | G128: 0.0612 | O128: 54 | P128: 0.03237 | Q128: 0.04788
E129: 55 | F129: 0.0404 | G129: 0.0617 | O129: 55 | P129: 0.03248 | Q129: 0.0481
E130: 56 | F130: 0.041 | G130: 0.0626 | O130: 56 | P130: 0.03273 | Q130: 0.04857
E131: 57 | F131: 0.0416 | G131: 0.0635 | O131: 57 | P131: 0.03294 | Q131: 0.04905
E132: 58 | F132: 0.0422 | G132: 0.0644 | O132: 58 | P132: 0.03316 | Q132: 0.04952
E133: 59 | F133: 0.0428 | G133: 0.0653 | O133: 59 | P133: 0.03341 | Q133: 0.04999
E134: 60 | F134: 0.0433 | G134: 0.0662 | O134: 60 | P134: 0.03362 | Q134: 0.05047
E135: 61 | F135: 0.0443 | G135: 0.0677 | O135: 61 | P135: 0.03397 | Q135: 0.05122
E136: 62 | F136: 0.0453 | G136: 0.0692 | O136: 62 | P136: 0.03436 | Q136: 0.052
E137: 63 | F137: 0.0462 | G137: 0.0708 | O137: 63 | P137: 0.03475 | Q137: 0.05276
E138: 64 | F138: 0.0472 | G138: 0.0723 | O138: 64 | P138: 0.0351 | Q138: 0.05351
E139: 65 | F139: 0.0482 | G139: 0.0738 | O139: 65 | P139: 0.03549 | Q139: 0.0543
E140: 66 | F140: 0.0488 | G140: 0.0752 | O140: 66 | P140: 0.03574 | Q140: 0.05509
E141: 67 | F141: 0.0495 | G141: 0.0767 | O141: 67 | P141: 0.03602 | Q141: 0.05589
E142: 68 | F142: 0.0502 | G142: 0.0781 | O142: 68 | P142: 0.03627 | Q142: 0.05669
E143: 69 | F143: 0.0509 | G143: 0.0796 | O143: 69 | P143: 0.03654 | Q143: 0.05753
E144: 70 | F144: 0.0515 | G144: 0.081 | O144: 70 | P144: 0.03679 | Q144: 0.05833
E145: 71 | F145: 0.0516 | G145: 0.0821 | O145: 71 | P145: 0.03681 | Q145: 0.05912
E146: 72 | F146: 0.0516 | G146: 0.0831 | O146: 72 | P146: 0.03686 | Q146: 0.05996
E147: 73 | F147: 0.0516 | G147: 0.0842 | O147: 73 | P147: 0.03687 | Q147: 0.06075
E148: 74 | F148: 0.0517 | G148: 0.0854 | O148: 74 | P148: 0.03689 | Q148: 0.06159
E149: 75 | F149: 0.0517 | G149: 0.0865 | O149: 75 | P149: 0.0369 | Q149: 0.06238
E150: 76 | F150: 0.0518 | G150: 0.0882 | O150: 76 | P150: 0.03693 | Q150: 0.06366
E151: 77 | F151: 0.0518 | G151: 0.09 | O151: 77 | P151: 0.03695 | Q151: 0.06489
E152: 78 | F152: 0.0519 | G152: 0.0918 | O152: 78 | P152: 0.03697 | Q152: 0.06613
E153: 79 | F153: 0.0519 | G153: 0.0936 | O153: 79 | P153: 0.037 | Q153: 0.0674
E154: 80 | F154: 0.052 | G154: 0.095 | O154: 80 | P154: 0.03702 | Q154: 0.06864
A157: END OF BCA INPUTS
C160: INPUT TRANSITION
E162: Traffic sensitivity | F162: Constant | G162: Unit
E163: Traffic sensitivity factor for PDBCA (applies to traffic above No Build base year traffic) | F163: =G$8 -> 1 | G163: %
E164: Traffic sensitivity label | F164: =F163 * HUNDRED & "% of P50" -> 100% of P50 | G164: label
E166: Value of time | F166: Constant | G166: Unit
E167: Value of time - 2 axle | F167: =G$34 -> 17.39 | G167: USD / hr / person
E168: Value of time - 4+ axle | F168: =G$35 -> 25.75 | G168: USD / hr / person
E169: Value of time - transit passenger | F169: =G$36 -> 10 | G169: USD / hr / person
E170: Value of time - carpooling passenger | F170: =G$37 -> 10 | G170: USD / hr / person
E172: Capacity conversion factor | F172: Constant | G172: Unit
E173: Hourly-to-daily capacity conversion factor - No Build | F173: =$O$39 -> 15 | G173: factor
E174: Hourly-to-daily capacity conversion factor - ML/TL | F174: =$P$39 -> 10 | G174: factor
E175: Hourly-to-daily capacity conversion factor - GPL | F175: =$Q$39 -> 15 | G175: factor
E177: Ratio LOS E to LOS C capacity | F177: Constant | G177: Unit
E178: Ratio of LOS E capacity to LOS C capacity* - No Build | F178: =$O$40 -> 1.333333333 | G178: factor
E179: Ratio of LOS E capacity to LOS C capacity* - ML/TL | F179: =$P$40 -> 1 | G179: factor
E180: Ratio of LOS E capacity to LOS C capacity* - GPL | F180: =$Q$40 -> 1.333333333 | G180: factor
E181: * LOS E = maximum vehicle throughput, LOS C = vehicle throughput at or near free flow
E183: Volume delay function elements | F183: Constant | G183: Unit
E184: Bureau of Public Road Volume Delay Function parameter Alpha | F184: =G$40 -> 0.15 | G184: factor
E185: Bureau of Public Road Volume Delay Function parameter Beta | F185: =G$41 -> 4 | G185: factor
E186: Lane vehicle capacity at LOS C | F186: =G$42 -> 1.5 | G186: 000s/lane/hour
E188: Construction and O&M delay days per year | F188: Constant | G188: Unit
E189: ="Construction days per year - " & E$12 -> Construction days per year - No Build - Peak | F189: =F$12 -> 0 | G189: days
E190: ="Construction days per year - " & E$13 -> Construction days per year - No Build - Off-peak | F190: =F$13 -> 0 | G190: days
E191: ="Construction days per year - " & E$14 -> Construction days per year - No Build - Weekends | F191: =F$14 -> 0 | G191: days
E192: ="Construction days per year - " & E$15 -> Construction days per year - ML/TL - Peak | F192: =F$15 -> 0 | G192: days
E193: ="Construction days per year - " & E$16 -> Construction days per year - ML/TL - Off-peak | F193: =F$16 -> 200 | G193: days
E194: ="Construction days per year - " & E$17 -> Construction days per year - ML/TL - Weekends | F194: =F$17 -> 50 | G194: days
E195: ="Construction days per year - " & E$18 -> Construction days per year - GPL - Peak | F195: =F$18 -> 0 | G195: days
E196: ="Construction days per year - " & E$19 -> Construction days per year - GPL - Off-peak | F196: =F$19 -> 200 | G196: days
E197: ="Construction days per year - " & E$20 -> Construction days per year - GPL - Weekends | F197: =F$20 -> 50 | G197: days
E198: ="O&M days per year - " & E$12 -> O&M days per year - No Build - Peak | F198: =G$12 -> 0 | G198: days
E199: ="O&M days per year - " & E$13 -> O&M days per year - No Build - Off-peak | F199: =G$13 -> 25 | G199: days
E200: ="O&M days per year - " & E$14 -> O&M days per year - No Build - Weekends | F200: =G$14 -> 20 | G200: days
E201: ="O&M days per year - " & E$15 -> O&M days per year - ML/TL - Peak | F201: =G$15 -> 0 | G201: days
E202: ="O&M days per year - " & E$16 -> O&M days per year - ML/TL - Off-peak | F202: =G$16 -> 25 | G202: days
E203: ="O&M days per year - " & E$17 -> O&M days per year - ML/TL - Weekends | F203: =G$17 -> 20 | G203: days
E204: ="O&M days per year - " & E$18 -> O&M days per year - GPL - Peak | F204: =G$18 -> 0 | G204: days
E205: ="O&M days per year - " & E$19 -> O&M days per year - GPL - Off-peak | F205: =G$19 -> 25 | G205: days
E206: ="O&M days per year - " & E$20 -> O&M days per year - GPL - Weekends | F206: =G$20 -> 20 | G206: days
E208: Affected segment length | F208: Constant | G208: Unit
E209: Average affected segment length - Construction delays adjustment | F209: =G$23 -> 4 | G209: miles
E210: Average affected segment length - O&M delays adjustment | F210: =G$24 -> 4 | G210: miles
E212: Speed adjustment factor for construction & O&M | F212: Constant | G212: Unit
E213: Speed adjustment factor - Construction delays adjustment | F213: =G$25 -> 0.45 | G213: %
E214: Speed adjustment factor - O&M delays adjustment | F214: =G$26 -> 0.45 | G214: %
E216: Accident costs | F216: Constant | G216: Unit
E217: Cost of fatal accidents | F217: =O$34 -> 9200000 | G217: USD/accident
E218: Cost of injury accidents | F218: =P$34 -> 500000 | G218: USD/accident
E219: Cost of property damage-only accidents | F219: =Q$34 -> 15000 | G219: USD/accident
E221: Accident frequency | F221: Constant | G221: Unit
E222: No Build - Fatal accidents | F222: =O$35 -> 0.0109 | G222: #/million VMT
E223: No Build - Injury accidents | F223: =P$35 -> 0.77 | G223: #/million VMT
E224: No Build - Property damage only accidents | F224: =Q$35 -> 1.9 | G224: #/million VMT
E225: Build - Fatal accidents | F225: =O$36 -> 0.0106 | G225: #/million VMT
... 319 more rows

Sheet Core Calc >>
A1: =RIGHT(CELL("FILENAME", $A$1), LEN(CELL("FILENAME", $A$1)) - SEARCH("]", CELL("FILENAME", $A$1))) -> Core Calc >>
B2: =A1 -> Core Calc >>
C5: 1. INTRODUCTION
E6: ="Model Flow Diagram This figure shows the Model Flow Diagram for the " & LEFT( A1, LEN( A1 ) - 3 ) & " module. It shows the following: Elements used in module: " & _xlfn.TEXTJOIN( ", ", TRUE, E17,E19,E21, E23, E25, E27, E29, E31, E33, E35, E37, E39, E41, E43, E45, E47, E49 ) & ". These elements lead to the following calculation sheets in this module: " & _xlfn.TEXTJOIN( ", ", TRUE, I17, I19, I21, I23, I25, I27, I29, I31, I33, I35, I37, I39, I41, I43, I45, I47, I49 ) & ". These calculation sheets lead to following impacted modules or output sheets: " & _xlfn.TEXTJOIN( ", ", TRUE, M17, M19, M21, M23, M25, M27, M29, M31, M33, M35, M37, M39, M41, M43, M45, M47, M49 ) & "." -> Model Flow Diagram This figure shows the Model Flow Diagram for the Core Calc module. It shows the following: Elements used in module: Project Inputs, Risk Matrix. These elements lead to the following calculation sheets in this module: Time&Esc, Traffic, Construction, O&M. These calculation sheets lead to following impacted modules or output sheets: Revenues VfM >>, Risk Assessment >>, PSC VfM >>, P3 VfM >>, VfM Outputs >>, Travel Cost Calc >>, Benefits >>, PDBCA Outputs >>.
C7: The Core Calculation Module contains the calculation of items which are used frequently throughout the model: flags, indexations, traffic and costs.
C11: 2. MODEL FLOW DIAGRAM
E13: ELEMENTS USED IN MODULE | I13: CALCULATION SHEETS IN THIS MODULE | M13: IMPACTED MODULES
E17: ='Project Inputs'!B$2 -> Project Inputs | I17: ='Time&Esc'!$A$1 -> Time&Esc | M17: ='Revenues VfM >>'!$A$1 -> Revenues VfM >>
E19: ='Risk Matrix'!$A$1 -> Risk Matrix | I19: =Traffic!$A$1 -> Traffic | M19: ='Risk Assessment >>'!$A$1 -> Risk Assessment >>
I21: =Construction!$A$1 -> Construction | M21: ='PSC VfM >>'!$A$1 -> PSC VfM >>
I23: ='O&M'!$A$1 -> O&M | M23: ='P3 VfM >>'!$A$1 -> P3 VfM >>
M25: ='VfM Outputs >>'!$A$1 -> VfM Outputs >>
M27: ='Travel Cost Calc >>'!$A$1 -> Travel Cost Calc >>
M29: ='Benefits >>'!$A$1 -> Benefits >>
M31: ='PDBCA Outputs >>'!$A$1 -> PDBCA Outputs >>

Sheet Time&Esc
A1: =RIGHT(CELL("FILENAME", $A$1), LEN(CELL("FILENAME", $A$1)) - SEARCH("]", CELL("FILENAME", $A$1))) -> Time&Esc | F1: ="Active Case - " & ACTIVE_CASE_NAME & " => " & VIEW_MODE -> Active Case - PSC: Tolled, P3: Toll concession => Detailed Level View
E2: =E$88 -> Financial year ending | G2: =Checks!$F$7 -> 0 | J2: =J$88 -> 2020 | K2: 2021 | L2: 2022 | M2: 2023 | N2: 2024 | O2: 2025 | P2: 2026 | Q2: 2027 | R2: 2028 | S2: 2029 | T2: 2030 | U2: 2031 | V2: 2032 | W2: 2033 | X2: 2034 | Y2: 2035 | Z2: 2036 | AA2: 2037 | AB2: 2038 | AC2: 2039 | AD2: 2040 | AE2: 2041 | AF2: 2042 | AG2: 2043 | AH2: 2044 | AI2: 2045 | AJ2: 2046 | AK2: 2047 | AL2: 2048 | AM2: 2049 | AN2: 2050 | AO2: 2051 | AP2: =AP$88 -> 2052 | AQ2: 2053 | AR2: 2054 | AS2: 2055 | AT2: 2056 | AU2: 2057 | AV2: 2058 | AW2: 2059 | AX2: 2060 | AY2: 2061 | AZ2: 2062 | BA2: 2063 | BB2: 2064 | BC2: 2065 | BD2: 2066 | BE2: 2067 | BF2: 2068 | BG2: 2069 | BH2: 2070 | BI2: 2071 | BJ2: 2072 | BK2: 2073 | BL2: 2074 | BM2: 2075 | BN2: 2076 | BO2: 2077 | BP2: 2078 | BQ2: 2079
E3: =E$164 -> PSC - Timeline label | G3: =Checks!$F$46 -> 2 | J3: =J$164 -> Pre-Constr. | K3: Pre-Constr. | L3: Construction | M3: Construction | N3: Construction | O3: Construction | P3: Operations | Q3: Operations | R3: Operations | S3: Operations | T3: Operations | U3: Operations | V3: Operations | W3: Operations | X3: Operations | Y3: Operations | Z3: Operations | AA3: Operations | AB3: Operations | AC3: Operations | AD3: Operations | AE3: Operations | AF3: Operations | AG3: Operations | AH3: Operations | AI3: Operations | AJ3: Operations | AK3: Operations | AL3: Operations | AM3: Operations | AN3: Operations | AO3: Operations | AP3: =AP$164 -> Operations | AQ3: Operations | AR3: Operations | AS3: Operations | AT3: Operations | AU3: Operations | AV3: Operations | AW3: Operations | AX3: Operations | AY3: Operations | AZ3: Operations | BA3: Operations | BB3: Operations | BC3: Operations | BD3: Post-Ops. | BE3: Post-Ops. | BF3: Post-Ops. | BG3: Post-Ops. | BH3: Post-Ops. | BI3: Post-Ops. | BJ3: Post-Ops. | BK3: Post-Ops. | BL3: Post-Ops. | BM3: Post-Ops. | BN3: Post-Ops. | BO3: Post-Ops. | BP3: Post-Ops. | BQ3: Post-Ops.
E4: =E$360 -> P3 - Timeline label | G4: =IF(G2 <> 0, "Please optimize model", "") ->  | J4: =J$360 -> Pre-Constr. | K4: Pre-Constr. | L4: Construction | M4: Construction | N4: Construction | O4: Operations | P4: Operations | Q4: Operations | R4: Operations | S4: Operations | T4: Operations | U4: Operations | V4: Operations | W4: Operations | X4: Operations | Y4: Operations | Z4: Operations | AA4: Operations | AB4: Operations | AC4: Operations | AD4: Operations | AE4: Operations | AF4: Operations | AG4: Operations | AH4: Operations | AI4: Operations | AJ4: Operations | AK4: Operations | AL4: Operations | AM4: Operations | AN4: Operations | AO4: Operations | AP4: =AP$360 -> Operations | AQ4: Operations | AR4: Operations | AS4: Operations | AT4: Operations | AU4: Operations | AV4: Operations | AW4: Operations | AX4: Operations | AY4: Operations | AZ4: Operations | BA4: Operations | BB4: Operations | BC4: Operations | BD4: Post-Ops. | BE4: Post-Ops. | BF4: Post-Ops. | BG4: Post-Ops. | BH4: Post-Ops. | BI4: Post-Ops. | BJ4: Post-Ops. | BK4: Post-Ops. | BL4: Post-Ops. | BM4: Post-Ops. | BN4: Post-Ops. | BO4: Post-Ops. | BP4: Post-Ops. | BQ4: Post-Ops.
E5: =E$258 -> Delayed PSC - Timeline label | J5: =J$258 -> Delayed | K5: Delayed | L5: Delayed | M5: Delayed | N5: Delayed | O5: Pre-Constr. | P5: Pre-Constr. | Q5: Construction | R5: Construction | S5: Construction | T5: Construction | U5: Operations | V5: Operations | W5: Operations | X5: Operations | Y5: Operations | Z5: Operations | AA5: Operations | AB5: Operations | AC5: Operations | AD5: Operations | AE5: Operations | AF5: Operations | AG5: Operations | AH5: Operations | AI5: Operations | AJ5: Operations | AK5: Operations | AL5: Operations | AM5: Operations | AN5: Operations | AO5: Operations | AP5: =AP$258 -> Operations | AQ5: Operations | AR5: Operations | AS5: Operations | AT5: Operations | AU5: Operations | AV5: Operations | AW5: Operations | AX5: Operations | AY5: Operations | AZ5: Operations | BA5: Operations | BB5: Operations | BC5: Operations | BD5: Post-Ops. | BE5: Post-Ops. | BF5: Post-Ops. | BG5: Post-Ops. | BH5: Post-Ops. | BI5: Post-Ops. | BJ5: Post-Ops. | BK5: Post-Ops. | BL5: Post-Ops. | BM5: Post-Ops. | BN5: Post-Ops. | BO5: Post-Ops. | BP5: Post-Ops. | BQ5: Post-Ops.
E6: =E$75 -> Model column counter | F6: Constant | G6: Unit | H6: Total | J6: =J$75 -> 1 | K6: 2 | L6: 3 | M6: 4 | N6: 5 | O6: 6 | P6: 7 | Q6: 8 | R6: 9 | S6: 10 | T6: 11 | U6: 12 | V6: 13 | W6: 14 | X6: 15 | Y6: 16 | Z6: 17 | AA6: 18 | AB6: 19 | AC6: 20 | AD6: 21 | AE6: 22 | AF6: 23 | AG6: 24 | AH6: 25 | AI6: 26 | AJ6: 27 | AK6: 28 | AL6: 29 | AM6: 30 | AN6: 31 | AO6: 32 | AP6: =AP$75 -> 33 | AQ6: 34 | AR6: 35 | AS6: 36 | AT6: 37 | AU6: 38 | AV6: 39 | AW6: 40 | AX6: 41 | AY6: 42 | AZ6: 43 | BA6: 44 | BB6: 45 | BC6: 46 | BD6: 47 | BE6: 48 | BF6: 49 | BG6: 50 | BH6: 51 | BI6: 52 | BJ6: 53 | BK6: 54 | BL6: 55 | BM6: 56 | BN6: 57 | BO6: 58 | BP6: 59 | BQ6: 60
A8: TIMING
A10: PROJECT DATES
B12: PSC - Project dates
E13: ='Project Inputs'!E$131 -> PSC - Project preparation duration | F13: ='Project Inputs'!F$131 -> 1 | G13: ='Project Inputs'!G$131 -> years
E14: ='Project Inputs'!E$132 -> PSC - Procurement duration | F14: ='Project Inputs'!F$132 -> 1 | G14: ='Project Inputs'!G$132 -> years
E15: PSC - Pre-construction duration | F15: =F13 + F14 -> 2 | G15: years
E17: ='Project Inputs'!E$130 -> PSC - Project preparation start year | F17: ='Project Inputs'!F$130 -> 2020 | G17: ='Project Inputs'!G$130 -> year #
E18: =E$15 -> PSC - Pre-construction duration | F18: =F$15 -> 2 | G18: =G$15 -> years
E19: PSC - Implementation start year | F19: =F17 + F18 -> 2022 | G19: year #
E21: ='Time&Esc'!E$19 -> PSC - Implementation start year | F21: ='Time&Esc'!F$19 -> 2022 | G21: ='Time&Esc'!G$19 -> year #
E22: ='Project Inputs'!E$133 -> PSC - Implementation duration | F22: ='Project Inputs'!F$133 -> 4 | G22: ='Project Inputs'!G$133 -> years
E23: PSC - Implementation end year | F23: =F21 + F22 - 1 -> 2025 | G23: year
E25: =E$19 -> PSC - Implementation start year | F25: =F$19 -> 2022 | G25: =G$19 -> year #
E26: ='Project Inputs'!E$133 -> PSC - Implementation duration | F26: ='Project Inputs'!F$133 -> 4 | G26: ='Project Inputs'!G$133 -> years
E27: PSC - Operations start year | F27: =F25 + F26 -> 2026 | G27: year #
E29: =E$27 -> PSC - Operations start year | F29: =F$27 -> 2026 | G29: =G$27 -> year #
E30: ='Project Inputs'!E$134 -> PSC - Operations duration | F30: ='Project Inputs'!F$134 -> 40 | G30: ='Project Inputs'!G$134 -> years
E31: PSC - Operations end year | F31: =F29 + F30 - 1 -> 2065 | G31: year #
B33: Delayed PSC - Project dates
E34: ='Project Inputs'!E$149 -> Delayed PSC - Project preparation duration | F34: ='Project Inputs'!F$149 -> 1 | G34: ='Project Inputs'!G$149 -> years
E35: ='Project Inputs'!E$150 -> Delayed PSC - Procurement duration | F35: ='Project Inputs'!F$150 -> 1 | G35: ='Project Inputs'!G$150 -> years
E36: Delayed PSC - Pre-construction duration | F36: =F34 + F35 -> 2 | G36: years
E38: ='Project Inputs'!E$148 -> Delayed PSC - Project preparation start year | F38: ='Project Inputs'!F$148 -> 2025 | G38: ='Project Inputs'!G$148 -> year #
E39: =E$36 -> Delayed PSC - Pre-construction duration | F39: =F$36 -> 2 | G39: =G$36 -> years
E40: Delayed PSC - Implementation start year | F40: =F38 + F39 -> 2027 | G40: year #
E42: ='Time&Esc'!E$40 -> Delayed PSC - Implementation start year | F42: ='Time&Esc'!F$40 -> 2027 | G42: ='Time&Esc'!G$40 -> year #
E43: ='Project Inputs'!E$151 -> Delayed PSC - Implementation duration | F43: ='Project Inputs'!F$151 -> 4 | G43: ='Project Inputs'!G$151 -> years
E44: Delayed PSC - Implementation end year | F44: =F42 + F43 - 1 -> 2030 | G44: year
E46: =E$40 -> Delayed PSC - Implementation start year | F46: =F$40 -> 2027 | G46: =G$40 -> year #
E47: ='Project Inputs'!E$151 -> Delayed PSC - Implementation duration | F47: ='Project Inputs'!F$151 -> 4 | G47: ='Project Inputs'!G$151 -> years
E48: Delayed PSC - Operations start year | F48: =F46 + F47 -> 2031 | G48: year #
E50: =E$48 -> Delayed PSC - Operations start year | F50: =F$48 -> 2031 | G50: =G$48 -> year #
E51: ='Project Inputs'!E$152 -> Delayed PSC - Operations duration | F51: ='Project Inputs'!F$152 -> 35 | G51: ='Project Inputs'!G$152 -> years
E52: Delayed PSC - Operations end year | F52: =F50 + F51 - 1 -> 2065 | G52: year #
B54: P3 - Project dates
E55: ='Project Inputs'!E$166 -> P3 - Project preparation duration | F55: ='Project Inputs'!F$166 -> 1 | G55: ='Project Inputs'!G$166 -> years
E56: ='Project Inputs'!E$167 -> P3 - Procurement duration | F56: ='Project Inputs'!F$167 -> 1 | G56: ='Project Inputs'!G$167 -> years
E57: P3 - Pre-construction duration | F57: =F55 + F56 -> 2 | G57: years
E59: ='Project Inputs'!E$165 -> P3 - Project preparation start year | F59: ='Project Inputs'!F$165 -> 2020 | G59: ='Project Inputs'!G$165 -> year #
E60: =E$57 -> P3 - Pre-construction duration | F60: =F$57 -> 2 | G60: =G$57 -> years
E61: P3 - Implementation start year | F61: =F59 + F60 -> 2022 | G61: year #
E63: =E$61 -> P3 - Implementation start year | F63: =F$61 -> 2022 | G63: =G$61 -> year #
E64: ='Project Inputs'!E$168 -> P3 - Implementation duration | F64: ='Project Inputs'!F$168 -> 3 | G64: ='Project Inputs'!G$168 -> years
E65: P3 - Operations start year | F65: =F63 + F64 -> 2025 | G65: year #
E67: =E$65 -> P3 - Operations start year | F67: =F$65 -> 2025 | G67: =G$65 -> year #
E68: ='Project Inputs'!E$169 -> P3 - Operations duration | F68: ='Project Inputs'!F$169 -> 41 | G68: ='Project Inputs'!G$169 -> years
E69: P3 - Operations end year | F69: =F67 + F68 - 1 -> 2065 | G69: year #
A72: MODEL PERIOD
B74: Model column counter
E75: Model column counter | G75: counter | J75: =I75 + 1 -> 1 | K75: 2 | L75: 3 | M75: 4 | N75: 5 | O75: 6 | P75: 7 | Q75: 8 | R75: 9 | S75: 10 | T75: 11 | U75: 12 | V75: 13 | W75: 14 | X75: 15 | Y75: 16 | Z75: 17 | AA75: 18 | AB75: 19 | AC75: 20 | AD75: 21 | AE75: 22 | AF75: 23 | AG75: 24 | AH75: 25 | AI75: 26 | AJ75: 27 | AK75: 28 | AL75: 29 | AM75: 30 | AN75: 31 | AO75: 32 | AP75: =AO75 + 1 -> 33 | AQ75: 34 | AR75: 35 | AS75: 36 | AT75: 37 | AU75: 38 | AV75: 39 | AW75: 40 | AX75: 41 | AY75: 42 | AZ75: 43 | BA75: 44 | BB75: 45 | BC75: 46 | BD75: 47 | BE75: 48 | BF75: 49 | BG75: 50 | BH75: 51 | BI75: 52 | BJ75: 53 | BK75: 54 | BL75: 55 | BM75: 56 | BN75: 57 | BO75: 58 | BP75: 59 | BQ75: 60
E76: Model column total | F76: =MAX(J75:BQ75) -> 60 | G76: columns
E78: =E$75 -> Model column counter | F78: 0 | G78: counter | H78: 0 | I78: 0 | J78: 1 | K78: 2 | L78: 3 | M78: 4 | N78: 5 | O78: 6 | P78: 7 | Q78: 8 | R78: 9 | S78: 10 | T78: 11 | U78: 12 | V78: 13 | W78: 14 | X78: 15 | Y78: 16 | Z78: 17 | AA78: 18 | AB78: 19 | AC78: 20 | AD78: 21 | AE78: 22 | AF78: 23 | AG78: 24 | AH78: 25 | AI78: 26 | AJ78: 27 | AK78: =AK$75 -> 28 | AL78: 29 | AM78: 30 | AN78: 31 | AO78: 32 | AP78: 33 | AQ78: 34 | AR78: 35 | AS78: 36 | AT78: 37 | AU78: 38 | AV78: 39 | AW78: 40 | AX78: 41 | AY78: 42 | AZ78: 43 | BA78: 44 | BB78: 45 | BC78: 46 | BD78: 47 | BE78: 48 | BF78: 49 | BG78: 50 | BH78: 51 | BI78: 52 | BJ78: 53 | BK78: 54 | BL78: 55 | BM78: 56 | BN78: 57 | BO78: 58 | BP78: 59 | BQ78: 60
E79: 1st model column flag | G79: flag | H79: =SUM(J79:BQ79) -> 1 | J79: =IF(J78 = 1, 1, 0) -> 1 | K79: 0 | L79: 0 | M79: 0 | N79: 0 | O79: 0 | P79: 0 | Q79: 0 | R79: 0 | S79: 0 | T79: 0 | U79: 0 | V79: 0 | W79: 0 | X79: 0 | Y79: 0 | Z79: 0 | AA79: 0 | AB79: 0 | AC79: 0 | AD79: 0 | AE79: 0 | AF79: 0 | AG79: 0 | AH79: 0 | AI79: 0 | AJ79: 0 | AK79: 0 | AL79: 0 | AM79: 0 | AN79: 0 | AO79: 0 | AP79: =IF(AP78 = 1, 1, 0) -> 0 | AQ79: 0 | AR79: 0 | AS79: 0 | AT79: 0 | AU79: 0 | AV79: 0 | AW79: 0 | AX79: 0 | AY79: 0 | AZ79: 0 | BA79: 0 | BB79: 0 | BC79: 0 | BD79: 0 | BE79: 0 | BF79: 0 | BG79: 0 | BH79: 0 | BI79: 0 | BJ79: 0 | BK79: 0 | BL79: 0 | BM79: 0 | BN79: 0 | BO79: 0 | BP79: 0 | BQ79: 0
E81: ='Project Inputs'!E$130 -> PSC - Project preparation start year | F81: ='Project Inputs'!F$130 -> 2020 | G81: ='Project Inputs'!G$130 -> year #
E82: ='Project Inputs'!E$148 -> Delayed PSC - Project preparation start year | F82: ='Project Inputs'!F$148 -> 2025 | G82: ='Project Inputs'!G$148 -> year #
E83: ='Project Inputs'!E$165 -> P3 - Project preparation start year | F83: ='Project Inputs'!F$165 -> 2020 | G83: ='Project Inputs'!G$165 -> year #
E84: Model start year | F84: =MIN(F81:F83) -> 2020 | G84: year #
E86: =E$84 -> Model start year | F86: =F$84 -> 2020 | G86: =G$84 -> year #
E87: =E$79 -> 1st model column flag | F87: 0 | G87: flag | H87: 1 | I87: 0 | J87: 1 | K87: 0 | L87: 0 | M87: 0 | N87: 0 | O87: 0 | P87: 0 | Q87: 0 | R87: 0 | S87: 0 | T87: 0 | U87: 0 | V87: 0 | W87: 0 | X87: 0 | Y87: 0 | Z87: 0 | AA87: 0 | AB87: 0 | AC87: 0 | AD87: 0 | AE87: 0 | AF87: 0 | AG87: 0 | AH87: 0 | AI87: 0 | AJ87: 0 | AK87: =AK$79 -> 0 | AL87: 0 | AM87: 0 | AN87: 0 | AO87: 0 | AP87: 0 | AQ87: 0 | AR87: 0 | AS87: 0 | AT87: 0 | AU87: 0 | AV87: 0 | AW87: 0 | AX87: 0 | AY87: 0 | AZ87: 0 | BA87: 0 | BB87: 0 | BC87: 0 | BD87: 0 | BE87: 0 | BF87: 0 | BG87: 0 | BH87: 0 | BI87: 0 | BJ87: 0 | BK87: 0 | BL87: 0 | BM87: 0 | BN87: 0 | BO87: 0 | BP87: 0 | BQ87: 0
E88: Financial year ending | G88: year # | J88: =IF(J87 = 1, $F86, I88 + 1) -> 2020 | K88: 2021 | L88: 2022 | M88: 2023 | N88: 2024 | O88: 2025 | P88: 2026 | Q88: 2027 | R88: 2028 | S88: 2029 | T88: 2030 | U88: 2031 | V88: 2032 | W88: 2033 | X88: 2034 | Y88: 2035 | Z88: 2036 | AA88: 2037 | AB88: 2038 | AC88: 2039 | AD88: 2040 | AE88: 2041 | AF88: 2042 | AG88: 2043 | AH88: 2044 | AI88: 2045 | AJ88: 2046 | AK88: 2047 | AL88: 2048 | AM88: 2049 | AN88: 2050 | AO88: 2051 | AP88: =IF(AP87 = 1, $F86, AO88 + 1) -> 2052 | AQ88: 2053 | AR88: 2054 | AS88: 2055 | AT88: 2056 | AU88: 2057 | AV88: 2058 | AW88: 2059 | AX88: 2060 | AY88: 2061 | AZ88: 2062 | BA88: 2063 | BB88: 2064 | BC88: 2065 | BD88: 2066 | BE88: 2067 | BF88: 2068 | BG88: 2069 | BH88: 2070 | BI88: 2071 | BJ88: 2072 | BK88: 2073 | BL88: 2074 | BM88: 2075 | BN88: 2076 | BO88: 2077 | BP88: 2078 | BQ88: 2079
A91: PSC - MODEL TIMELINE
B93: PSC - Pre-construction period timeline
E94: ='Project Inputs'!E$130 -> PSC - Project preparation start year | F94: ='Project Inputs'!F$130 -> 2020 | G94: ='Project Inputs'!G$130 -> year #
E95: =E$88 -> Financial year ending | F95: 0 | G95: year # | H95: 0 | I95: 0 | J95: 2020 | K95: 2021 | L95: 2022 | M95: 2023 | N95: 2024 | O95: 2025 | P95: 2026 | Q95: 2027 | R95: 2028 | S95: 2029 | T95: 2030 | U95: 2031 | V95: 2032 | W95: 2033 | X95: 2034 | Y95: 2035 | Z95: 2036 | AA95: 2037 | AB95: 2038 | AC95: 2039 | AD95: 2040 | AE95: 2041 | AF95: 2042 | AG95: 2043 | AH95: 2044 | AI95: 2045 | AJ95: 2046 | AK95: =AK$88 -> 2047 | AL95: 2048 | AM95: 2049 | AN95: 2050 | AO95: 2051 | AP95: 2052 | AQ95: 2053 | AR95: 2054 | AS95: 2055 | AT95: 2056 | AU95: 2057 | AV95: 2058 | AW95: 2059 | AX95: 2060 | AY95: 2061 | AZ95: 2062 | BA95: 2063 | BB95: 2064 | BC95: 2065 | BD95: 2066 | BE95: 2067 | BF95: 2068 | BG95: 2069 | BH95: 2070 | BI95: 2071 | BJ95: 2072 | BK95: 2073 | BL95: 2074 | BM95: 2075 | BN95: 2076 | BO95: 2077 | BP95: 2078 | BQ95: 2079
E96: PSC - Pre-construction period flag | G96: flag | H96: =SUM(J96:BQ96) -> 1 | J96: =IF(AND(I95 < $F94, J95 >= $F94), 1, 0) -> 1 | K96: 0 | L96: 0 | M96: 0 | N96: 0 | O96: 0 | P96: 0 | Q96: 0 | R96: 0 | S96: 0 | T96: 0 | U96: 0 | V96: 0 | W96: 0 | X96: 0 | Y96: 0 | Z96: 0 | AA96: 0 | AB96: 0 | AC96: 0 | AD96: 0 | AE96: 0 | AF96: 0 | AG96: 0 | AH96: 0 | AI96: 0 | AJ96: 0 | AK96: 0 | AL96: 0 | AM96: 0 | AN96: 0 | AO96: 0 | AP96: =IF(AND(AO95 < $F94, AP95 >= $F94), 1, 0) -> 0 | AQ96: 0 | AR96: 0 | AS96: 0 | AT96: 0 | AU96: 0 | AV96: 0 | AW96: 0 | AX96: 0 | AY96: 0 | AZ96: 0 | BA96: 0 | BB96: 0 | BC96: 0 | BD96: 0 | BE96: 0 | BF96: 0 | BG96: 0 | BH96: 0 | BI96: 0 | BJ96: 0 | BK96: 0 | BL96: 0 | BM96: 0 | BN96: 0 | BO96: 0 | BP96: 0 | BQ96: 0
E98: =E$96 -> PSC - Pre-construction period flag | F98: 0 | G98: flag | H98: 1 | I98: 0 | J98: 1 | K98: 0 | L98: 0 | M98: 0 | N98: 0 | O98: 0 | P98: 0 | Q98: 0 | R98: 0 | S98: 0 | T98: 0 | U98: 0 | V98: 0 | W98: 0 | X98: 0 | Y98: 0 | Z98: 0 | AA98: 0 | AB98: 0 | AC98: 0 | AD98: 0 | AE98: 0 | AF98: 0 | AG98: 0 | AH98: 0 | AI98: 0 | AJ98: 0 | AK98: =AK$96 -> 0 | AL98: 0 | AM98: 0 | AN98: 0 | AO98: 0 | AP98: 0 | AQ98: 0 | AR98: 0 | AS98: 0 | AT98: 0 | AU98: 0 | AV98: 0 | AW98: 0 | AX98: 0 | AY98: 0 | AZ98: 0 | BA98: 0 | BB98: 0 | BC98: 0 | BD98: 0 | BE98: 0 | BF98: 0 | BG98: 0 | BH98: 0 | BI98: 0 | BJ98: 0 | BK98: 0 | BL98: 0 | BM98: 0 | BN98: 0 | BO98: 0 | BP98: 0 | BQ98: 0
E99: =E$111 -> PSC - Implementation start period flag | F99: 0 | G99: flag | H99: 1 | I99: 0 | J99: 0 | K99: 0 | L99: 1 | M99: 0 | N99: 0 | O99: 0 | P99: 0 | Q99: 0 | R99: 0 | S99: 0 | T99: 0 | U99: 0 | V99: 0 | W99: 0 | X99: 0 | Y99: 0 | Z99: 0 | AA99: 0 | AB99: 0 | AC99: 0 | AD99: 0 | AE99: 0 | AF99: 0 | AG99: 0 | AH99: 0 | AI99: 0 | AJ99: 0 | AK99: =AK$111 -> 0 | AL99: 0 | AM99: 0 | AN99: 0 | AO99: 0 | AP99: 0 | AQ99: 0 | AR99: 0 | AS99: 0 | AT99: 0 | AU99: 0 | AV99: 0 | AW99: 0 | AX99: 0 | AY99: 0 | AZ99: 0 | BA99: 0 | BB99: 0 | BC99: 0 | BD99: 0 | BE99: 0 | BF99: 0 | BG99: 0 | BH99: 0 | BI99: 0 | BJ99: 0 | BK99: 0 | BL99: 0 | BM99: 0 | BN99: 0 | BO99: 0 | BP99: 0 | BQ99: 0
E100: PSC - Pre-construction period flag | G100: flag | H100: =SUM(J100:BQ100) -> 2 | J100: =J98 + I100 - J99 -> 1 | K100: 1 | L100: 0 | M100: 0 | N100: 0 | O100: 0 | P100: 0 | Q100: 0 | R100: 0 | S100: 0 | T100: 0 | U100: 0 | V100: 0 | W100: 0 | X100: 0 | Y100: 0 | Z100: 0 | AA100: 0 | AB100: 0 | AC100: 0 | AD100: 0 | AE100: 0 | AF100: 0 | AG100: 0 | AH100: 0 | AI100: 0 | AJ100: 0 | AK100: 0 | AL100: 0 | AM100: 0 | AN100: 0 | AO100: 0 | AP100: =AP98 + AO100 - AP99 -> 0 | AQ100: 0 | AR100: 0 | AS100: 0 | AT100: 0 | AU100: 0 | AV100: 0 | AW100: 0 | AX100: 0 | AY100: 0 | AZ100: 0 | BA100: 0 | BB100: 0 | BC100: 0 | BD100: 0 | BE100: 0 | BF100: 0 | BG100: 0 | BH100: 0 | BI100: 0 | BJ100: 0 | BK100: 0 | BL100: 0 | BM100: 0 | BN100: 0 | BO100: 0 | BP100: 0 | BQ100: 0
E101: PSC - Pre-construction period total | F101: =SUM(J100:BQ100) -> 2 | G101: years
E103: =E$79 -> 1st model column flag | F103: 0 | G103: flag | H103: 1 | I103: 0 | J103: 1 | K103: 0 | L103: 0 | M103: 0 | N103: 0 | O103: 0 | P103: 0 | Q103: 0 | R103: 0 | S103: 0 | T103: 0 | U103: 0 | V103: 0 | W103: 0 | X103: 0 | Y103: 0 | Z103: 0 | AA103: 0 | AB103: 0 | AC103: 0 | AD103: 0 | AE103: 0 | AF103: 0 | AG103: 0 | AH103: 0 | AI103: 0 | AJ103: 0 | AK103: =AK$79 -> 0 | AL103: 0 | AM103: 0 | AN103: 0 | AO103: 0 | AP103: 0 | AQ103: 0 | AR103: 0 | AS103: 0 | AT103: 0 | AU103: 0 | AV103: 0 | AW103: 0 | AX103: 0 | AY103: 0 | AZ103: 0 | BA103: 0 | BB103: 0 | BC103: 0 | BD103: 0 | BE103: 0 | BF103: 0 | BG103: 0 | BH103: 0 | BI103: 0 | BJ103: 0 | BK103: 0 | BL103: 0 | BM103: 0 | BN103: 0 | BO103: 0 | BP103: 0 | BQ103: 0
E104: =E$96 -> PSC - Pre-construction period flag | F104: 0 | G104: flag | H104: 1 | I104: 0 | J104: 1 | K104: 0 | L104: 0 | M104: 0 | N104: 0 | O104: 0 | P104: 0 | Q104: 0 | R104: 0 | S104: 0 | T104: 0 | U104: 0 | V104: 0 | W104: 0 | X104: 0 | Y104: 0 | Z104: 0 | AA104: 0 | AB104: 0 | AC104: 0 | AD104: 0 | AE104: 0 | AF104: 0 | AG104: 0 | AH104: 0 | AI104: 0 | AJ104: 0 | AK104: =AK$96 -> 0 | AL104: 0 | AM104: 0 | AN104: 0 | AO104: 0 | AP104: 0 | AQ104: 0 | AR104: 0 | AS104: 0 | AT104: 0 | AU104: 0 | AV104: 0 | AW104: 0 | AX104: 0 | AY104: 0 | AZ104: 0 | BA104: 0 | BB104: 0 | BC104: 0 | BD104: 0 | BE104: 0 | BF104: 0 | BG104: 0 | BH104: 0 | BI104: 0 | BJ104: 0 | BK104: 0 | BL104: 0 | BM104: 0 | BN104: 0 | BO104: 0 | BP104: 0 | BQ104: 0
E105: PSC - Project initiation period flag | G105: flag | H105: =SUM(J105:BQ105) -> 0 | J105: =J103 + I105 - J104 -> 0 | K105: 0 | L105: 0 | M105: 0 | N105: 0 | O105: 0 | P105: 0 | Q105: 0 | R105: 0 | S105: 0 | T105: 0 | U105: 0 | V105: 0 | W105: 0 | X105: 0 | Y105: 0 | Z105: 0 | AA105: 0 | AB105: 0 | AC105: 0 | AD105: 0 | AE105: 0 | AF105: 0 | AG105: 0 | AH105: 0 | AI105: 0 | AJ105: 0 | AK105: 0 | AL105: 0 | AM105: 0 | AN105: 0 | AO105: 0 | AP105: =AP103 + AO105 - AP104 -> 0 | AQ105: 0 | AR105: 0 | AS105: 0 | AT105: 0 | AU105: 0 | AV105: 0 | AW105: 0 | AX105: 0 | AY105: 0 | AZ105: 0 | BA105: 0 | BB105: 0 | BC105: 0 | BD105: 0 | BE105: 0 | BF105: 0 | BG105: 0 | BH105: 0 | BI105: 0 | BJ105: 0 | BK105: 0 | BL105: 0 | BM105: 0 | BN105: 0 | BO105: 0 | BP105: 0 | BQ105: 0
E106: PSC - Project initiation period total | F106: =SUM(J105:BQ105) -> 0 | G106: years
B108: PSC - Implementation period timeline
E109: =E$19 -> PSC - Implementation start year | F109: =F$19 -> 2022 | G109: =G$19 -> year #
E110: =E$88 -> Financial year ending | F110: 0 | G110: year # | H110: 0 | I110: 0 | J110: 2020 | K110: 2021 | L110: 2022 | M110: 2023 | N110: 2024 | O110: 2025 | P110: 2026 | Q110: 2027 | R110: 2028 | S110: 2029 | T110: 2030 | U110: 2031 | V110: 2032 | W110: 2033 | X110: 2034 | Y110: 2035 | Z110: 2036 | AA110: 2037 | AB110: 2038 | AC110: 2039 | AD110: 2040 | AE110: 2041 | AF110: 2042 | AG110: 2043 | AH110: 2044 | AI110: 2045 | AJ110: 2046 | AK110: =AK$88 -> 2047 | AL110: 2048 | AM110: 2049 | AN110: 2050 | AO110: 2051 | AP110: 2052 | AQ110: 2053 | AR110: 2054 | AS110: 2055 | AT110: 2056 | AU110: 2057 | AV110: 2058 | AW110: 2059 | AX110: 2060 | AY110: 2061 | AZ110: 2062 | BA110: 2063 | BB110: 2064 | BC110: 2065 | BD110: 2066 | BE110: 2067 | BF110: 2068 | BG110: 2069 | BH110: 2070 | BI110: 2071 | BJ110: 2072 | BK110: 2073 | BL110: 2074 | BM110: 2075 | BN110: 2076 | BO110: 2077 | BP110: 2078 | BQ110: 2079
E111: PSC - Implementation start period flag | G111: flag | H111: =SUM(J111:BQ111) -> 1 | J111: =IF(AND(I110 < $F109, J110 >= $F109), 1, 0) -> 0 | K111: 0 | L111: 1 | M111: 0 | N111: 0 | O111: 0 | P111: 0 | Q111: 0 | R111: 0 | S111: 0 | T111: 0 | U111: 0 | V111: 0 | W111: 0 | X111: 0 | Y111: 0 | Z111: 0 | AA111: 0 | AB111: 0 | AC111: 0 | AD111: 0 | AE111: 0 | AF111: 0 | AG111: 0 | AH111: 0 | AI111: 0 | AJ111: 0 | AK111: 0 | AL111: 0 | AM111: 0 | AN111: 0 | AO111: 0 | AP111: =IF(AND(AO110 < $F109, AP110 >= $F109), 1, 0) -> 0 | AQ111: 0 | AR111: 0 | AS111: 0 | AT111: 0 | AU111: 0 | AV111: 0 | AW111: 0 | AX111: 0 | AY111: 0 | AZ111: 0 | BA111: 0 | BB111: 0 | BC111: 0 | BD111: 0 | BE111: 0 | BF111: 0 | BG111: 0 | BH111: 0 | BI111: 0 | BJ111: 0 | BK111: 0 | BL111: 0 | BM111: 0 | BN111: 0 | BO111: 0 | BP111: 0 | BQ111: 0
E113: =E$23 -> PSC - Implementation end year | F113: =F$23 -> 2025 | G113: =G$23 -> year
E114: =E$88 -> Financial year ending | F114: 0 | G114: year # | H114: 0 | I114: 0 | J114: 2020 | K114: 2021 | L114: 2022 | M114: 2023 | N114: 2024 | O114: 2025 | P114: 2026 | Q114: 2027 | R114: 2028 | S114: 2029 | T114: 2030 | U114: 2031 | V114: 2032 | W114: 2033 | X114: 2034 | Y114: 2035 | Z114: 2036 | AA114: 2037 | AB114: 2038 | AC114: 2039 | AD114: 2040 | AE114: 2041 | AF114: 2042 | AG114: 2043 | AH114: 2044 | AI114: 2045 | AJ114: 2046 | AK114: =AK$88 -> 2047 | AL114: 2048 | AM114: 2049 | AN114: 2050 | AO114: 2051 | AP114: 2052 | AQ114: 2053 | AR114: 2054 | AS114: 2055 | AT114: 2056 | AU114: 2057 | AV114: 2058 | AW114: 2059 | AX114: 2060 | AY114: 2061 | AZ114: 2062 | BA114: 2063 | BB114: 2064 | BC114: 2065 | BD114: 2066 | BE114: 2067 | BF114: 2068 | BG114: 2069 | BH114: 2070 | BI114: 2071 | BJ114: 2072 | BK114: 2073 | BL114: 2074 | BM114: 2075 | BN114: 2076 | BO114: 2077 | BP114: 2078 | BQ114: 2079
E115: PSC - Implementation completion flag | G115: flag | H115: =SUM(J115:BQ115) -> 1 | J115: =IF(AND(I114 < $F113, J114 >= $F113), 1, 0) -> 0 | K115: 0 | L115: 0 | M115: 0 | N115: 0 | O115: 1 | P115: 0 | Q115: 0 | R115: 0 | S115: 0 | T115: 0 | U115: 0 | V115: 0 | W115: 0 | X115: 0 | Y115: 0 | Z115: 0 | AA115: 0 | AB115: 0 | AC115: 0 | AD115: 0 | AE115: 0 | AF115: 0 | AG115: 0 | AH115: 0 | AI115: 0 | AJ115: 0 | AK115: 0 | AL115: 0 | AM115: 0 | AN115: 0 | AO115: 0 | AP115: =IF(AND(AO114 < $F113, AP114 >= $F113), 1, 0) -> 0 | AQ115: 0 | AR115: 0 | AS115: 0 | AT115: 0 | AU115: 0 | AV115: 0 | AW115: 0 | AX115: 0 | AY115: 0 | AZ115: 0 | BA115: 0 | BB115: 0 | BC115: 0 | BD115: 0 | BE115: 0 | BF115: 0 | BG115: 0 | BH115: 0 | BI115: 0 | BJ115: 0 | BK115: 0 | BL115: 0 | BM115: 0 | BN115: 0 | BO115: 0 | BP115: 0 | BQ115: 0
E117: =E$111 -> PSC - Implementation start period flag | F117: 0 | G117: flag | H117: 1 | I117: 0 | J117: 0 | K117: 0 | L117: 1 | M117: 0 | N117: 0 | O117: 0 | P117: 0 | Q117: 0 | R117: 0 | S117: 0 | T117: 0 | U117: 0 | V117: 0 | W117: 0 | X117: 0 | Y117: 0 | Z117: 0 | AA117: 0 | AB117: 0 | AC117: 0 | AD117: 0 | AE117: 0 | AF117: 0 | AG117: 0 | AH117: 0 | AI117: 0 | AJ117: 0 | AK117: =AK$111 -> 0 | AL117: 0 | AM117: 0 | AN117: 0 | AO117: 0 | AP117: 0 | AQ117: 0 | AR117: 0 | AS117: 0 | AT117: 0 | AU117: 0 | AV117: 0 | AW117: 0 | AX117: 0 | AY117: 0 | AZ117: 0 | BA117: 0 | BB117: 0 | BC117: 0 | BD117: 0 | BE117: 0 | BF117: 0 | BG117: 0 | BH117: 0 | BI117: 0 | BJ117: 0 | BK117: 0 | BL117: 0 | BM117: 0 | BN117: 0 | BO117: 0 | BP117: 0 | BQ117: 0
E118: =E$115 -> PSC - Implementation completion flag | F118: 0 | G118: flag | H118: 1 | I118: 0 | J118: 0 | K118: 0 | L118: 0 | M118: 0 | N118: 0 | O118: 1 | P118: 0 | Q118: 0 | R118: 0 | S118: 0 | T118: 0 | U118: 0 | V118: 0 | W118: 0 | X118: 0 | Y118: 0 | Z118: 0 | AA118: 0 | AB118: 0 | AC118: 0 | AD118: 0 | AE118: 0 | AF118: 0 | AG118: 0 | AH118: 0 | AI118: 0 | AJ118: 0 | AK118: =AK$115 -> 0 | AL118: 0 | AM118: 0 | AN118: 0 | AO118: 0 | AP118: 0 | AQ118: 0 | AR118: 0 | AS118: 0 | AT118: 0 | AU118: 0 | AV118: 0 | AW118: 0 | AX118: 0 | AY118: 0 | AZ118: 0 | BA118: 0 | BB118: 0 | BC118: 0 | BD118: 0 | BE118: 0 | BF118: 0 | BG118: 0 | BH118: 0 | BI118: 0 | BJ118: 0 | BK118: 0 | BL118: 0 | BM118: 0 | BN118: 0 | BO118: 0 | BP118: 0 | BQ118: 0
E119: PSC - Implementation period flag | G119: flag | H119: =SUM(J119:BQ119) -> 4 | J119: =J117 + I119 - I118 -> 0 | K119: 0 | L119: 1 | M119: 1 | N119: 1 | O119: 1 | P119: 0 | Q119: 0 | R119: 0 | S119: 0 | T119: 0 | U119: 0 | V119: 0 | W119: 0 | X119: 0 | Y119: 0 | Z119: 0 | AA119: 0 | AB119: 0 | AC119: 0 | AD119: 0 | AE119: 0 | AF119: 0 | AG119: 0 | AH119: 0 | AI119: 0 | AJ119: 0 | AK119: 0 | AL119: 0 | AM119: 0 | AN119: 0 | AO119: 0 | AP119: =AP117 + AO119 - AO118 -> 0 | AQ119: 0 | AR119: 0 | AS119: 0 | AT119: 0 | AU119: 0 | AV119: 0 | AW119: 0 | AX119: 0 | AY119: 0 | AZ119: 0 | BA119: 0 | BB119: 0 | BC119: 0 | BD119: 0 | BE119: 0 | BF119: 0 | BG119: 0 | BH119: 0 | BI119: 0 | BJ119: 0 | BK119: 0 | BL119: 0 | BM119: 0 | BN119: 0 | BO119: 0 | BP119: 0 | BQ119: 0
E120: PSC - Implementation period total | F120: =SUM(J119:BQ119) -> 4 | G120: years
B122: PSC - Operations period timeline
E123: =E$27 -> PSC - Operations start year | F123: =F$27 -> 2026 | G123: year #
E124: =E$88 -> Financial year ending | F124: 0 | G124: year # | H124: 0 | I124: 0 | J124: 2020 | K124: 2021 | L124: 2022 | M124: 2023 | N124: 2024 | O124: 2025 | P124: 2026 | Q124: 2027 | R124: 2028 | S124: 2029 | T124: 2030 | U124: 2031 | V124: 2032 | W124: 2033 | X124: 2034 | Y124: 2035 | Z124: 2036 | AA124: 2037 | AB124: 2038 | AC124: 2039 | AD124: 2040 | AE124: 2041 | AF124: 2042 | AG124: 2043 | AH124: 2044 | AI124: 2045 | AJ124: 2046 | AK124: =AK$88 -> 2047 | AL124: 2048 | AM124: 2049 | AN124: 2050 | AO124: 2051 | AP124: 2052 | AQ124: 2053 | AR124: 2054 | AS124: 2055 | AT124: 2056 | AU124: 2057 | AV124: 2058 | AW124: 2059 | AX124: 2060 | AY124: 2061 | AZ124: 2062 | BA124: 2063 | BB124: 2064 | BC124: 2065 | BD124: 2066 | BE124: 2067 | BF124: 2068 | BG124: 2069 | BH124: 2070 | BI124: 2071 | BJ124: 2072 | BK124: 2073 | BL124: 2074 | BM124: 2075 | BN124: 2076 | BO124: 2077 | BP124: 2078 | BQ124: 2079
E125: PSC - Operations period start flag | G125: flag | H125: =SUM(J125:BQ125) -> 1 | J125: =IF(AND($F123 > I124, $F123 <= J124), 1, 0) -> 0 | K125: 0 | L125: 0 | M125: 0 | N125: 0 | O125: 0 | P125: 1 | Q125: 0 | R125: 0 | S125: 0 | T125: 0 | U125: 0 | V125: 0 | W125: 0 | X125: 0 | Y125: 0 | Z125: 0 | AA125: 0 | AB125: 0 | AC125: 0 | AD125: 0 | AE125: 0 | AF125: 0 | AG125: 0 | AH125: 0 | AI125: 0 | AJ125: 0 | AK125: 0 | AL125: 0 | AM125: 0 | AN125: 0 | AO125: 0 | AP125: =IF(AND($F123 > AO124, $F123 <= AP124), 1, 0) -> 0 | AQ125: 0 | AR125: 0 | AS125: 0 | AT125: 0 | AU125: 0 | AV125: 0 | AW125: 0 | AX125: 0 | AY125: 0 | AZ125: 0 | BA125: 0 | BB125: 0 | BC125: 0 | BD125: 0 | BE125: 0 | BF125: 0 | BG125: 0 | BH125: 0 | BI125: 0 | BJ125: 0 | BK125: 0 | BL125: 0 | BM125: 0 | BN125: 0 | BO125: 0 | BP125: 0 | BQ125: 0
E127: =E$31 -> PSC - Operations end year | F127: =F$31 -> 2065 | G127: =G$31 -> year #
E128: =E$88 -> Financial year ending | F128: 0 | G128: year # | H128: 0 | I128: 0 | J128: 2020 | K128: 2021 | L128: 2022 | M128: 2023 | N128: 2024 | O128: 2025 | P128: 2026 | Q128: 2027 | R128: 2028 | S128: 2029 | T128: 2030 | U128: 2031 | V128: 2032 | W128: 2033 | X128: 2034 | Y128: 2035 | Z128: 2036 | AA128: 2037 | AB128: 2038 | AC128: 2039 | AD128: 2040 | AE128: 2041 | AF128: 2042 | AG128: 2043 | AH128: 2044 | AI128: 2045 | AJ128: 2046 | AK128: =AK$88 -> 2047 | AL128: 2048 | AM128: 2049 | AN128: 2050 | AO128: 2051 | AP128: 2052 | AQ128: 2053 | AR128: 2054 | AS128: 2055 | AT128: 2056 | AU128: 2057 | AV128: 2058 | AW128: 2059 | AX128: 2060 | AY128: 2061 | AZ128: 2062 | BA128: 2063 | BB128: 2064 | BC128: 2065 | BD128: 2066 | BE128: 2067 | BF128: 2068 | BG128: 2069 | BH128: 2070 | BI128: 2071 | BJ128: 2072 | BK128: 2073 | BL128: 2074 | BM128: 2075 | BN128: 2076 | BO128: 2077 | BP128: 2078 | BQ128: 2079
E129: PSC - Operations period end flag | G129: flag | H129: =SUM(J129:BQ129) -> 1 | J129: =IF(AND($F127 > I128, $F127 <= J128), 1, 0) -> 0 | K129: 0 | L129: 0 | M129: 0 | N129: 0 | O129: 0 | P129: 0 | Q129: 0 | R129: 0 | S129: 0 | T129: 0 | U129: 0 | V129: 0 | W129: 0 | X129: 0 | Y129: 0 | Z129: 0 | AA129: 0 | AB129: 0 | AC129: 0 | AD129: 0 | AE129: 0 | AF129: 0 | AG129: 0 | AH129: 0 | AI129: 0 | AJ129: 0 | AK129: 0 | AL129: 0 | AM129: 0 | AN129: 0 | AO129: 0 | AP129: =IF(AND($F127 > AO128, $F127 <= AP128), 1, 0) -> 0 | AQ129: 0 | AR129: 0 | AS129: 0 | AT129: 0 | AU129: 0 | AV129: 0 | AW129: 0 | AX129: 0 | AY129: 0 | AZ129: 0 | BA129: 0 | BB129: 0 | BC129: 1 | BD129: 0 | BE129: 0 | BF129: 0 | BG129: 0 | BH129: 0 | BI129: 0 | BJ129: 0 | BK129: 0 | BL129: 0 | BM129: 0 | BN129: 0 | BO129: 0 | BP129: 0 | BQ129: 0
E131: =E$125 -> PSC - Operations period start flag | F131: 0 | G131: flag | H131: 1 | I131: 0 | J131: 0 | K131: 0 | L131: 0 | M131: 0 | N131: 0 | O131: 0 | P131: 1 | Q131: 0 | R131: 0 | S131: 0 | T131: 0 | U131: 0 | V131: 0 | W131: 0 | X131: 0 | Y131: 0 | Z131: 0 | AA131: 0 | AB131: 0 | AC131: 0 | AD131: 0 | AE131: 0 | AF131: 0 | AG131: 0 | AH131: 0 | AI131: 0 | AJ131: 0 | AK131: =AK$125 -> 0 | AL131: 0 | AM131: 0 | AN131: 0 | AO131: 0 | AP131: 0 | AQ131: 0 | AR131: 0 | AS131: 0 | AT131: 0 | AU131: 0 | AV131: 0 | AW131: 0 | AX131: 0 | AY131: 0 | AZ131: 0 | BA131: 0 | BB131: 0 | BC131: 0 | BD131: 0 | BE131: 0 | BF131: 0 | BG131: 0 | BH131: 0 | BI131: 0 | BJ131: 0 | BK131: 0 | BL131: 0 | BM131: 0 | BN131: 0 | BO131: 0 | BP131: 0 | BQ131: 0
E132: =E$129 -> PSC - Operations period end flag | F132: 0 | G132: flag | H132: 1 | I132: 0 | J132: 0 | K132: 0 | L132: 0 | M132: 0 | N132: 0 | O132: 0 | P132: 0 | Q132: 0 | R132: 0 | S132: 0 | T132: 0 | U132: 0 | V132: 0 | W132: 0 | X132: 0 | Y132: 0 | Z132: 0 | AA132: 0 | AB132: 0 | AC132: 0 | AD132: 0 | AE132: 0 | AF132: 0 | AG132: 0 | AH132: 0 | AI132: 0 | AJ132: 0 | AK132: =AK$129 -> 0 | AL132: 0 | AM132: 0 | AN132: 0 | AO132: 0 | AP132: 0 | AQ132: 0 | AR132: 0 | AS132: 0 | AT132: 0 | AU132: 0 | AV132: 0 | AW132: 0 | AX132: 0 | AY132: 0 | AZ132: 0 | BA132: 0 | BB132: 0 | BC132: 1 | BD132: 0 | BE132: 0 | BF132: 0 | BG132: 0 | BH132: 0 | BI132: 0 | BJ132: 0 | BK132: 0 | BL132: 0 | BM132: 0 | BN132: 0 | BO132: 0 | BP132: 0 | BQ132: 0
E133: PSC - Operations period flag | G133: flag | H133: =SUM(J133:BQ133) -> 40 | J133: =I133 + J131 - I132 -> 0 | K133: 0 | L133: 0 | M133: 0 | N133: 0 | O133: 0 | P133: 1 | Q133: 1 | R133: 1 | S133: 1 | T133: 1 | U133: 1 | V133: 1 | W133: 1 | X133: 1 | Y133: 1 | Z133: 1 | AA133: 1 | AB133: 1 | AC133: 1 | AD133: 1 | AE133: 1 | AF133: 1 | AG133: 1 | AH133: 1 | AI133: 1 | AJ133: 1 | AK133: 1 | AL133: 1 | AM133: 1 | AN133: 1 | AO133: 1 | AP133: =AO133 + AP131 - AO132 -> 1 | AQ133: 1 | AR133: 1 | AS133: 1 | AT133: 1 | AU133: 1 | AV133: 1 | AW133: 1 | AX133: 1 | AY133: 1 | AZ133: 1 | BA133: 1 | BB133: 1 | BC133: 1 | BD133: 0 | BE133: 0 | BF133: 0 | BG133: 0 | BH133: 0 | BI133: 0 | BJ133: 0 | BK133: 0 | BL133: 0 | BM133: 0 | BN133: 0 | BO133: 0 | BP133: 0 | BQ133: 0
E134: PSC - Operations period total | F134: =SUM(J133:BQ133) -> 40 | G134: years
E136: =E$133 -> PSC - Operations period flag | F136: 0 | G136: flag | H136: 40 | I136: 0 | J136: 0 | K136: 0 | L136: 0 | M136: 0 | N136: 0 | O136: 0 | P136: 1 | Q136: 1 | R136: 1 | S136: 1 | T136: 1 | U136: 1 | V136: 1 | W136: 1 | X136: 1 | Y136: 1 | Z136: 1 | AA136: 1 | AB136: 1 | AC136: 1 | AD136: 1 | AE136: 1 | AF136: 1 | AG136: 1 | AH136: 1 | AI136: 1 | AJ136: 1 | AK136: =AK$133 -> 1 | AL136: 1 | AM136: 1 | AN136: 1 | AO136: 1 | AP136: 1 | AQ136: 1 | AR136: 1 | AS136: 1 | AT136: 1 | AU136: 1 | AV136: 1 | AW136: 1 | AX136: 1 | AY136: 1 | AZ136: 1 | BA136: 1 | BB136: 1 | BC136: 1 | BD136: 0 | BE136: 0 | BF136: 0 | BG136: 0 | BH136: 0 | BI136: 0 | BJ136: 0 | BK136: 0 | BL136: 0 | BM136: 0 | BN136: 0 | BO136: 0 | BP136: 0 | BQ136: 0
E137: PSC - Operations period counter | G137: counter | J137: =J136 * ( I137 + J136 ) -> 0 | K137: 0 | L137: 0 | M137: 0 | N137: 0 | O137: 0 | P137: 1 | Q137: 2 | R137: 3 | S137: 4 | T137: 5 | U137: 6 | V137: 7 | W137: 8 | X137: 9 | Y137: 10 | Z137: 11 | AA137: 12 | AB137: 13 | AC137: 14 | AD137: 15 | AE137: 16 | AF137: 17 | AG137: 18 | AH137: 19 | AI137: 20 | AJ137: 21 | AK137: 22 | AL137: 23 | AM137: 24 | AN137: 25 | AO137: 26 | AP137: =AP136 * ( AO137 + AP136 ) -> 27 | AQ137: 28 | AR137: 29 | AS137: 30 | AT137: 31 | AU137: 32 | AV137: 33 | AW137: 34 | AX137: 35 | AY137: 36 | AZ137: 37 | BA137: 38 | BB137: 39 | BC137: 40 | BD137: 0 | BE137: 0 | BF137: 0 | BG137: 0 | BH137: 0 | BI137: 0 | BJ137: 0 | BK137: 0 | BL137: 0 | BM137: 0 | BN137: 0 | BO137: 0 | BP137: 0 | BQ137: 0
E139: =E$79 -> 1st model column flag | F139: 0 | G139: flag | H139: 1 | I139: 0 | J139: 1 | K139: 0 | L139: 0 | M139: 0 | N139: 0 | O139: 0 | P139: 0 | Q139: 0 | R139: 0 | S139: 0 | T139: 0 | U139: 0 | V139: 0 | W139: 0 | X139: 0 | Y139: 0 | Z139: 0 | AA139: 0 | AB139: 0 | AC139: 0 | AD139: 0 | AE139: 0 | AF139: 0 | AG139: 0 | AH139: 0 | AI139: 0 | AJ139: 0 | AK139: =AK$79 -> 0 | AL139: 0 | AM139: 0 | AN139: 0 | AO139: 0 | AP139: 0 | AQ139: 0 | AR139: 0 | AS139: 0 | AT139: 0 | AU139: 0 | AV139: 0 | AW139: 0 | AX139: 0 | AY139: 0 | AZ139: 0 | BA139: 0 | BB139: 0 | BC139: 0 | BD139: 0 | BE139: 0 | BF139: 0 | BG139: 0 | BH139: 0 | BI139: 0 | BJ139: 0 | BK139: 0 | BL139: 0 | BM139: 0 | BN139: 0 | BO139: 0 | BP139: 0 | BQ139: 0
E140: =E$125 -> PSC - Operations period start flag | F140: 0 | G140: flag | H140: 1 | I140: 0 | J140: 0 | K140: 0 | L140: 0 | M140: 0 | N140: 0 | O140: 0 | P140: 1 | Q140: 0 | R140: 0 | S140: 0 | T140: 0 | U140: 0 | V140: 0 | W140: 0 | X140: 0 | Y140: 0 | Z140: 0 | AA140: 0 | AB140: 0 | AC140: 0 | AD140: 0 | AE140: 0 | AF140: 0 | AG140: 0 | AH140: 0 | AI140: 0 | AJ140: 0 | AK140: =AK$125 -> 0 | AL140: 0 | AM140: 0 | AN140: 0 | AO140: 0 | AP140: 0 | AQ140: 0 | AR140: 0 | AS140: 0 | AT140: 0 | AU140: 0 | AV140: 0 | AW140: 0 | AX140: 0 | AY140: 0 | AZ140: 0 | BA140: 0 | BB140: 0 | BC140: 0 | BD140: 0 | BE140: 0 | BF140: 0 | BG140: 0 | BH140: 0 | BI140: 0 | BJ140: 0 | BK140: 0 | BL140: 0 | BM140: 0 | BN140: 0 | BO140: 0 | BP140: 0 | BQ140: 0
E141: PSC - Pre-operations period flag | G141: flag | H141: =SUM(J141:BQ141) -> 6 | J141: =J139 + I141 - J140 -> 1 | K141: 1 | L141: 1 | M141: 1 | N141: 1 | O141: 1 | P141: 0 | Q141: 0 | R141: 0 | S141: 0 | T141: 0 | U141: 0 | V141: 0 | W141: 0 | X141: 0 | Y141: 0 | Z141: 0 | AA141: 0 | AB141: 0 | AC141: 0 | AD141: 0 | AE141: 0 | AF141: 0 | AG141: 0 | AH141: 0 | AI141: 0 | AJ141: 0 | AK141: 0 | AL141: 0 | AM141: 0 | AN141: 0 | AO141: 0 | AP141: =AP139 + AO141 - AP140 -> 0 | AQ141: 0 | AR141: 0 | AS141: 0 | AT141: 0 | AU141: 0 | AV141: 0 | AW141: 0 | AX141: 0 | AY141: 0 | AZ141: 0 | BA141: 0 | BB141: 0 | BC141: 0 | BD141: 0 | BE141: 0 | BF141: 0 | BG141: 0 | BH141: 0 | BI141: 0 | BJ141: 0 | BK141: 0 | BL141: 0 | BM141: 0 | BN141: 0 | BO141: 0 | BP141: 0 | BQ141: 0
E143: =E$129 -> PSC - Operations period end flag | F143: 0 | G143: flag | H143: 1 | I143: 0 | J143: 0 | K143: 0 | L143: 0 | M143: 0 | N143: 0 | O143: 0 | P143: 0 | Q143: 0 | R143: 0 | S143: 0 | T143: 0 | U143: 0 | V143: 0 | W143: 0 | X143: 0 | Y143: 0 | Z143: 0 | AA143: 0 | AB143: 0 | AC143: 0 | AD143: 0 | AE143: 0 | AF143: 0 | AG143: 0 | AH143: 0 | AI143: 0 | AJ143: 0 | AK143: =AK$129 -> 0 | AL143: 0 | AM143: 0 | AN143: 0 | AO143: 0 | AP143: 0 | AQ143: 0 | AR143: 0 | AS143: 0 | AT143: 0 | AU143: 0 | AV143: 0 | AW143: 0 | AX143: 0 | AY143: 0 | AZ143: 0 | BA143: 0 | BB143: 0 | BC143: 1 | BD143: 0 | BE143: 0 | BF143: 0 | BG143: 0 | BH143: 0 | BI143: 0 | BJ143: 0 | BK143: 0 | BL143: 0 | BM143: 0 | BN143: 0 | BO143: 0 | BP143: 0 | BQ143: 0
E144: PSC - 1st post-operations period flag | G144: flag | H144: =SUM(J144:BQ144) -> 1 | J144: =I143 -> 0 | K144: 0 | L144: 0 | M144: 0 | N144: 0 | O144: 0 | P144: 0 | Q144: 0 | R144: 0 | S144: 0 | T144: 0 | U144: 0 | V144: 0 | W144: 0 | X144: 0 | Y144: 0 | Z144: 0 | AA144: 0 | AB144: 0 | AC144: 0 | AD144: 0 | AE144: 0 | AF144: 0 | AG144: 0 | AH144: 0 | AI144: 0 | AJ144: 0 | AK144: 0 | AL144: 0 | AM144: 0 | AN144: 0 | AO144: 0 | AP144: =AO143 -> 0 | AQ144: 0 | AR144: 0 | AS144: 0 | AT144: 0 | AU144: 0 | AV144: 0 | AW144: 0 | AX144: 0 | AY144: 0 | AZ144: 0 | BA144: 0 | BB144: 0 | BC144: 0 | BD144: 1 | BE144: 0 | BF144: 0 | BG144: 0 | BH144: 0 | BI144: 0 | BJ144: 0 | BK144: 0 | BL144: 0 | BM144: 0 | BN144: 0 | BO144: 0 | BP144: 0 | BQ144: 0
E146: =E$129 -> PSC - Operations period end flag | F146: 0 | G146: flag | H146: 1 | I146: 0 | J146: 0 | K146: 0 | L146: 0 | M146: 0 | N146: 0 | O146: 0 | P146: 0 | Q146: 0 | R146: 0 | S146: 0 | T146: 0 | U146: 0 | V146: 0 | W146: 0 | X146: 0 | Y146: 0 | Z146: 0 | AA146: 0 | AB146: 0 | AC146: 0 | AD146: 0 | AE146: 0 | AF146: 0 | AG146: 0 | AH146: 0 | AI146: 0 | AJ146: 0 | AK146: =AK$129 -> 0 | AL146: 0 | AM146: 0 | AN146: 0 | AO146: 0 | AP146: 0 | AQ146: 0 | AR146: 0 | AS146: 0 | AT146: 0 | AU146: 0 | AV146: 0 | AW146: 0 | AX146: 0 | AY146: 0 | AZ146: 0 | BA146: 0 | BB146: 0 | BC146: 1 | BD146: 0 | BE146: 0 | BF146: 0 | BG146: 0 | BH146: 0 | BI146: 0 | BJ146: 0 | BK146: 0 | BL146: 0 | BM146: 0 | BN146: 0 | BO146: 0 | BP146: 0 | BQ146: 0
E147: PSC - Post-operations period flag | G147: flag | H147: =SUM(J147:BQ147) -> 14 | J147: =I147 + I146 -> 0 | K147: 0 | L147: 0 | M147: 0 | N147: 0 | O147: 0 | P147: 0 | Q147: 0 | R147: 0 | S147: 0 | T147: 0 | U147: 0 | V147: 0 | W147: 0 | X147: 0 | Y147: 0 | Z147: 0 | AA147: 0 | AB147: 0 | AC147: 0 | AD147: 0 | AE147: 0 | AF147: 0 | AG147: 0 | AH147: 0 | AI147: 0 | AJ147: 0 | AK147: 0 | AL147: 0 | AM147: 0 | AN147: 0 | AO147: 0 | AP147: =AO147 + AO146 -> 0 | AQ147: 0 | AR147: 0 | AS147: 0 | AT147: 0 | AU147: 0 | AV147: 0 | AW147: 0 | AX147: 0 | AY147: 0 | AZ147: 0 | BA147: 0 | BB147: 0 | BC147: 0 | BD147: 1 | BE147: 1 | BF147: 1 | BG147: 1 | BH147: 1 | BI147: 1 | BJ147: 1 | BK147: 1 | BL147: 1 | BM147: 1 | BN147: 1 | BO147: 1 | BP147: 1 | BQ147: 1
E148: PSC - Post-operations period total | F148: =SUM(J147:BQ147) -> 14 | G148: years
B150: PSC - Model timeline label
E151: =E$79 -> 1st model column flag | F151: 0 | G151: flag | H151: 1 | I151: 0 | J151: 1 | K151: 0 | L151: 0 | M151: 0 | N151: 0 | O151: 0 | P151: 0 | Q151: 0 | R151: 0 | S151: 0 | T151: 0 | U151: 0 | V151: 0 | W151: 0 | X151: 0 | Y151: 0 | Z151: 0 | AA151: 0 | AB151: 0 | AC151: 0 | AD151: 0 | AE151: 0 | AF151: 0 | AG151: 0 | AH151: 0 | AI151: 0 | AJ151: 0 | AK151: =AK$79 -> 0 | AL151: 0 | AM151: 0 | AN151: 0 | AO151: 0 | AP151: 0 | AQ151: 0 | AR151: 0 | AS151: 0 | AT151: 0 | AU151: 0 | AV151: 0 | AW151: 0 | AX151: 0 | AY151: 0 | AZ151: 0 | BA151: 0 | BB151: 0 | BC151: 0 | BD151: 0 | BE151: 0 | BF151: 0 | BG151: 0 | BH151: 0 | BI151: 0 | BJ151: 0 | BK151: 0 | BL151: 0 | BM151: 0 | BN151: 0 | BO151: 0 | BP151: 0 | BQ151: 0
E152: =E$96 -> PSC - Pre-construction period flag | F152: 0 | G152: flag | H152: 1 | I152: 0 | J152: 1 | K152: 0 | L152: 0 | M152: 0 | N152: 0 | O152: 0 | P152: 0 | Q152: 0 | R152: 0 | S152: 0 | T152: 0 | U152: 0 | V152: 0 | W152: 0 | X152: 0 | Y152: 0 | Z152: 0 | AA152: 0 | AB152: 0 | AC152: 0 | AD152: 0 | AE152: 0 | AF152: 0 | AG152: 0 | AH152: 0 | AI152: 0 | AJ152: 0 | AK152: =AK$96 -> 0 | AL152: 0 | AM152: 0 | AN152: 0 | AO152: 0 | AP152: 0 | AQ152: 0 | AR152: 0 | AS152: 0 | AT152: 0 | AU152: 0 | AV152: 0 | AW152: 0 | AX152: 0 | AY152: 0 | AZ152: 0 | BA152: 0 | BB152: 0 | BC152: 0 | BD152: 0 | BE152: 0 | BF152: 0 | BG152: 0 | BH152: 0 | BI152: 0 | BJ152: 0 | BK152: 0 | BL152: 0 | BM152: 0 | BN152: 0 | BO152: 0 | BP152: 0 | BQ152: 0
E153: =E$111 -> PSC - Implementation start period flag | F153: 0 | G153: flag | H153: 1 | I153: 0 | J153: 0 | K153: 0 | L153: 1 | M153: 0 | N153: 0 | O153: 0 | P153: 0 | Q153: 0 | R153: 0 | S153: 0 | T153: 0 | U153: 0 | V153: 0 | W153: 0 | X153: 0 | Y153: 0 | Z153: 0 | AA153: 0 | AB153: 0 | AC153: 0 | AD153: 0 | AE153: 0 | AF153: 0 | AG153: 0 | AH153: 0 | AI153: 0 | AJ153: 0 | AK153: =AK$111 -> 0 | AL153: 0 | AM153: 0 | AN153: 0 | AO153: 0 | AP153: 0 | AQ153: 0 | AR153: 0 | AS153: 0 | AT153: 0 | AU153: 0 | AV153: 0 | AW153: 0 | AX153: 0 | AY153: 0 | AZ153: 0 | BA153: 0 | BB153: 0 | BC153: 0 | BD153: 0 | BE153: 0 | BF153: 0 | BG153: 0 | BH153: 0 | BI153: 0 | BJ153: 0 | BK153: 0 | BL153: 0 | BM153: 0 | BN153: 0 | BO153: 0 | BP153: 0 | BQ153: 0
E154: =E$125 -> PSC - Operations period start flag | F154: 0 | G154: flag | H154: 1 | I154: 0 | J154: 0 | K154: 0 | L154: 0 | M154: 0 | N154: 0 | O154: 0 | P154: 1 | Q154: 0 | R154: 0 | S154: 0 | T154: 0 | U154: 0 | V154: 0 | W154: 0 | X154: 0 | Y154: 0 | Z154: 0 | AA154: 0 | AB154: 0 | AC154: 0 | AD154: 0 | AE154: 0 | AF154: 0 | AG154: 0 | AH154: 0 | AI154: 0 | AJ154: 0 | AK154: =AK$125 -> 0 | AL154: 0 | AM154: 0 | AN154: 0 | AO154: 0 | AP154: 0 | AQ154: 0 | AR154: 0 | AS154: 0 | AT154: 0 | AU154: 0 | AV154: 0 | AW154: 0 | AX154: 0 | AY154: 0 | AZ154: 0 | BA154: 0 | BB154: 0 | BC154: 0 | BD154: 0 | BE154: 0 | BF154: 0 | BG154: 0 | BH154: 0 | BI154: 0 | BJ154: 0 | BK154: 0 | BL154: 0 | BM154: 0 | BN154: 0 | BO154: 0 | BP154: 0 | BQ154: 0
E155: =E$144 -> PSC - 1st post-operations period flag | F155: 0 | G155: flag | H155: 1 | I155: 0 | J155: 0 | K155: 0 | L155: 0 | M155: 0 | N155: 0 | O155: 0 | P155: 0 | Q155: 0 | R155: 0 | S155: 0 | T155: 0 | U155: 0 | V155: 0 | W155: 0 | X155: 0 | Y155: 0 | Z155: 0 | AA155: 0 | AB155: 0 | AC155: 0 | AD155: 0 | AE155: 0 | AF155: 0 | AG155: 0 | AH155: 0 | AI155: 0 | AJ155: 0 | AK155: =AK$144 -> 0 | AL155: 0 | AM155: 0 | AN155: 0 | AO155: 0 | AP155: 0 | AQ155: 0 | AR155: 0 | AS155: 0 | AT155: 0 | AU155: 0 | AV155: 0 | AW155: 0 | AX155: 0 | AY155: 0 | AZ155: 0 | BA155: 0 | BB155: 0 | BC155: 0 | BD155: 1 | BE155: 0 | BF155: 0 | BG155: 0 | BH155: 0 | BI155: 0 | BJ155: 0 | BK155: 0 | BL155: 0 | BM155: 0 | BN155: 0 | BO155: 0 | BP155: 0 | BQ155: 0
E156: PSC - Timeline label counter | G156: counter | J156: =I156 + SUM(J151:J155) -> 2 | K156: 2 | L156: 3 | M156: 3 | N156: 3 | O156: 3 | P156: 4 | Q156: 4 | R156: 4 | S156: 4 | T156: 4 | U156: 4 | V156: 4 | W156: 4 | X156: 4 | Y156: 4 | Z156: 4 | AA156: 4 | AB156: 4 | AC156: 4 | AD156: 4 | AE156: 4 | AF156: 4 | AG156: 4 | AH156: 4 | AI156: 4 | AJ156: 4 | AK156: 4 | AL156: 4 | AM156: 4 | AN156: 4 | AO156: 4 | AP156: =AO156 + SUM(AP151:AP155) -> 4 | AQ156: 4 | AR156: 4 | AS156: 4 | AT156: 4 | AU156: 4 | AV156: 4 | AW156: 4 | AX156: 4 | AY156: 4 | AZ156: 4 | BA156: 4 | BB156: 4 | BC156: 4 | BD156: 5 | BE156: 5 | BF156: 5 | BG156: 5 | BH156: 5 | BI156: 5 | BJ156: 5 | BK156: 5 | BL156: 5 | BM156: 5 | BN156: 5 | BO156: 5 | BP156: 5 | BQ156: 5
E158: ='Project Inputs'!E$75 -> Project initiation period | F158: ='Project Inputs'!F$75 ->  | G158: ='Project Inputs'!G$75 -> label
E159: ='Project Inputs'!E$76 -> Pre-construction period | F159: ='Project Inputs'!F$76 -> Pre-Constr. | G159: ='Project Inputs'!G$76 -> label
E160: ='Project Inputs'!E$77 -> Implementation period | F160: ='Project Inputs'!F$77 -> Construction | G160: ='Project Inputs'!G$77 -> label
E161: ='Project Inputs'!E$78 -> Operations period | F161: ='Project Inputs'!F$78 -> Operations | G161: ='Project Inputs'!G$78 -> label
E162: ='Project Inputs'!E$79 -> Post-operations period | F162: ='Project Inputs'!F$79 -> Post-Ops. | G162: ='Project Inputs'!G$79 -> label
E163: =E$156 -> PSC - Timeline label counter | F163: 0 | G163: counter | H163: 0 | I163: 0 | J163: 2 | K163: 2 | L163: 3 | M163: 3 | N163: 3 | O163: 3 | P163: 4 | Q163: 4 | R163: 4 | S163: 4 | T163: 4 | U163: 4 | V163: 4 | W163: 4 | X163: 4 | Y163: 4 | Z163: 4 | AA163: 4 | AB163: 4 | AC163: 4 | AD163: 4 | AE163: 4 | AF163: 4 | AG163: 4 | AH163: 4 | AI163: 4 | AJ163: 4 | AK163: =AK$156 -> 4 | AL163: 4 | AM163: 4 | AN163: 4 | AO163: 4 | AP163: 4 | AQ163: 4 | AR163: 4 | AS163: 4 | AT163: 4 | AU163: 4 | AV163: 4 | AW163: 4 | AX163: 4 | AY163: 4 | AZ163: 4 | BA163: 4 | BB163: 4 | BC163: 4 | BD163: 5 | BE163: 5 | BF163: 5 | BG163: 5 | BH163: 5 | BI163: 5 | BJ163: 5 | BK163: 5 | BL163: 5 | BM163: 5 | BN163: 5 | BO163: 5 | BP163: 5 | BQ163: 5
E164: PSC - Timeline label | G164: label | J164: =INDEX($F158:$F162, J163) -> Pre-Constr. | K164: Pre-Constr. | L164: Construction | M164: Construction | N164: Construction | O164: Construction | P164: Operations | Q164: Operations | R164: Operations | S164: Operations | T164: Operations | U164: Operations | V164: Operations | W164: Operations | X164: Operations | Y164: Operations | Z164: Operations | AA164: Operations | AB164: Operations | AC164: Operations | AD164: Operations | AE164: Operations | AF164: Operations | AG164: Operations | AH164: Operations | AI164: Operations | AJ164: Operations | AK164: Operations | AL164: Operations | AM164: Operations | AN164: Operations | AO164: Operations | AP164: =INDEX($F158:$F162, AP163) -> Operations | AQ164: Operations | AR164: Operations | AS164: Operations | AT164: Operations | AU164: Operations | AV164: Operations | AW164: Operations | AX164: Operations | AY164: Operations | AZ164: Operations | BA164: Operations | BB164: Operations | BC164: Operations | BD164: Post-Ops. | BE164: Post-Ops. | BF164: Post-Ops. | BG164: Post-Ops. | BH164: Post-Ops. | BI164: Post-Ops. | BJ164: Post-Ops. | BK164: Post-Ops. | BL164: Post-Ops. | BM164: Post-Ops. | BN164: Post-Ops. | BO164: Post-Ops. | BP164: Post-Ops. | BQ164: Post-Ops.
B166: PSC - Modeling period check
E167: =E$105 -> PSC - Project initiation period flag | F167: 0 | G167: flag | H167: 0 | I167: 0 | J167: 0 | K167: 0 | L167: 0 | M167: 0 | N167: 0 | O167: 0 | P167: 0 | Q167: 0 | R167: 0 | S167: 0 | T167: 0 | U167: 0 | V167: 0 | W167: 0 | X167: 0 | Y167: 0 | Z167: 0 | AA167: 0 | AB167: 0 | AC167: 0 | AD167: 0 | AE167: 0 | AF167: 0 | AG167: 0 | AH167: 0 | AI167: 0 | AJ167: 0 | AK167: =AK$105 -> 0 | AL167: 0 | AM167: 0 | AN167: 0 | AO167: 0 | AP167: 0 | AQ167: 0 | AR167: 0 | AS167: 0 | AT167: 0 | AU167: 0 | AV167: 0 | AW167: 0 | AX167: 0 | AY167: 0 | AZ167: 0 | BA167: 0 | BB167: 0 | BC167: 0 | BD167: 0 | BE167: 0 | BF167: 0 | BG167: 0 | BH167: 0 | BI167: 0 | BJ167: 0 | BK167: 0 | BL167: 0 | BM167: 0 | BN167: 0 | BO167: 0 | BP167: 0 | BQ167: 0
E168: =E$100 -> PSC - Pre-construction period flag | F168: 0 | G168: flag | H168: 2 | I168: 0 | J168: 1 | K168: 1 | L168: 0 | M168: 0 | N168: 0 | O168: 0 | P168: 0 | Q168: 0 | R168: 0 | S168: 0 | T168: 0 | U168: 0 | V168: 0 | W168: 0 | X168: 0 | Y168: 0 | Z168: 0 | AA168: 0 | AB168: 0 | AC168: 0 | AD168: 0 | AE168: 0 | AF168: 0 | AG168: 0 | AH168: 0 | AI168: 0 | AJ168: 0 | AK168: =AK$100 -> 0 | AL168: 0 | AM168: 0 | AN168: 0 | AO168: 0 | AP168: 0 | AQ168: 0 | AR168: 0 | AS168: 0 | AT168: 0 | AU168: 0 | AV168: 0 | AW168: 0 | AX168: 0 | AY168: 0 | AZ168: 0 | BA168: 0 | BB168: 0 | BC168: 0 | BD168: 0 | BE168: 0 | BF168: 0 | BG168: 0 | BH168: 0 | BI168: 0 | BJ168: 0 | BK168: 0 | BL168: 0 | BM168: 0 | BN168: 0 | BO168: 0 | BP168: 0 | BQ168: 0
E169: =E$119 -> PSC - Implementation period flag | F169: 0 | G169: flag | H169: 4 | I169: 0 | J169: 0 | K169: 0 | L169: 1 | M169: 1 | N169: 1 | O169: 1 | P169: 0 | Q169: 0 | R169: 0 | S169: 0 | T169: 0 | U169: 0 | V169: 0 | W169: 0 | X169: 0 | Y169: 0 | Z169: 0 | AA169: 0 | AB169: 0 | AC169: 0 | AD169: 0 | AE169: 0 | AF169: 0 | AG169: 0 | AH169: 0 | AI169: 0 | AJ169: 0 | AK169: =AK$119 -> 0 | AL169: 0 | AM169: 0 | AN169: 0 | AO169: 0 | AP169: 0 | AQ169: 0 | AR169: 0 | AS169: 0 | AT169: 0 | AU169: 0 | AV169: 0 | AW169: 0 | AX169: 0 | AY169: 0 | AZ169: 0 | BA169: 0 | BB169: 0 | BC169: 0 | BD169: 0 | BE169: 0 | BF169: 0 | BG169: 0 | BH169: 0 | BI169: 0 | BJ169: 0 | BK169: 0 | BL169: 0 | BM169: 0 | BN169: 0 | BO169: 0 | BP169: 0 | BQ169: 0
E170: =E$133 -> PSC - Operations period flag | F170: 0 | G170: flag | H170: 40 | I170: 0 | J170: 0 | K170: 0 | L170: 0 | M170: 0 | N170: 0 | O170: 0 | P170: 1 | Q170: 1 | R170: 1 | S170: 1 | T170: 1 | U170: 1 | V170: 1 | W170: 1 | X170: 1 | Y170: 1 | Z170: 1 | AA170: 1 | AB170: 1 | AC170: 1 | AD170: 1 | AE170: 1 | AF170: 1 | AG170: 1 | AH170: 1 | AI170: 1 | AJ170: 1 | AK170: =AK$133 -> 1 | AL170: 1 | AM170: 1 | AN170: 1 | AO170: 1 | AP170: 1 | AQ170: 1 | AR170: 1 | AS170: 1 | AT170: 1 | AU170: 1 | AV170: 1 | AW170: 1 | AX170: 1 | AY170: 1 | AZ170: 1 | BA170: 1 | BB170: 1 | BC170: 1 | BD170: 0 | BE170: 0 | BF170: 0 | BG170: 0 | BH170: 0 | BI170: 0 | BJ170: 0 | BK170: 0 | BL170: 0 | BM170: 0 | BN170: 0 | BO170: 0 | BP170: 0 | BQ170: 0
E171: =E$147 -> PSC - Post-operations period flag | F171: 0 | G171: flag | H171: 14 | I171: 0 | J171: 0 | K171: 0 | L171: 0 | M171: 0 | N171: 0 | O171: 0 | P171: 0 | Q171: 0 | R171: 0 | S171: 0 | T171: 0 | U171: 0 | V171: 0 | W171: 0 | X171: 0 | Y171: 0 | Z171: 0 | AA171: 0 | AB171: 0 | AC171: 0 | AD171: 0 | AE171: 0 | AF171: 0 | AG171: 0 | AH171: 0 | AI171: 0 | AJ171: 0 | AK171: =AK$147 -> 0 | AL171: 0 | AM171: 0 | AN171: 0 | AO171: 0 | AP171: 0 | AQ171: 0 | AR171: 0 | AS171: 0 | AT171: 0 | AU171: 0 | AV171: 0 | AW171: 0 | AX171: 0 | AY171: 0 | AZ171: 0 | BA171: 0 | BB171: 0 | BC171: 0 | BD171: 1 | BE171: 1 | BF171: 1 | BG171: 1 | BH171: 1 | BI171: 1 | BJ171: 1 | BK171: 1 | BL171: 1 | BM171: 1 | BN171: 1 | BO171: 1 | BP171: 1 | BQ171: 1
E172: No. of overlapping in flags | G172: # | H172: =SUM(J172:BQ172) -> 0 | J172: =MAX(0, SUM(J167:J171) - 1) -> 0 | K172: 0 | L172: 0 | M172: 0 | N172: 0 | O172: 0 | P172: 0 | Q172: 0 | R172: 0 | S172: 0 | T172: 0 | U172: 0 | V172: 0 | W172: 0 | X172: 0 | Y172: 0 | Z172: 0 | AA172: 0 | AB172: 0 | AC172: 0 | AD172: 0 | AE172: 0 | AF172: 0 | AG172: 0 | AH172: 0 | AI172: 0 | AJ172: 0 | AK172: 0 | AL172: 0 | AM172: 0 | AN172: 0 | AO172: 0 | AP172: =MAX(0, SUM(AP167:AP171) - 1) -> 0 | AQ172: 0 | AR172: 0 | AS172: 0 | AT172: 0 | AU172: 0 | AV172: 0 | AW172: 0 | AX172: 0 | AY172: 0 | AZ172: 0 | BA172: 0 | BB172: 0 | BC172: 0 | BD172: 0 | BE172: 0 | BF172: 0 | BG172: 0 | BH172: 0 | BI172: 0 | BJ172: 0 | BK172: 0 | BL172: 0 | BM172: 0 | BN172: 0 | BO172: 0 | BP172: 0 | BQ172: 0
E173: PSC - Overlapping in flags total | F173: =SUM(J172:BQ172) -> 0 | G173: years
E175: =E$76 -> Model column total | F175: =F$76 -> 60 | G175: =G$76 -> columns
E176: =E$173 -> PSC - Overlapping in flags total | F176: =F$173 -> 0 | G176: =G$173 -> years
E177: =E$106 -> PSC - Project initiation period total | F177: =F$106 -> 0 | G177: =G$106 -> years
E178: =E$101 -> PSC - Pre-construction period total | F178: =F$101 -> 2 | G178: =G$101 -> years
E179: =E$120 -> PSC - Implementation period total | F179: =F$120 -> 4 | G179: =G$120 -> years
E180: =E$134 -> PSC - Operations period total | F180: =F$134 -> 40 | G180: =G$134 -> years
E181: =E$148 -> PSC - Post-operations period total | F181: =F$148 -> 14 | G181: =G$148 -> years
E182: PSC - Modeling period check | F182: =IF(SUM(F175:F176) - SUM(F177:F181) <> 0, 1, 0) -> 0 | G182: check
A185: DELAYED PSC - MODEL TIMELINE
B187: Delayed PSC - Pre-construction period timeline
E188: ='Project Inputs'!E$148 -> Delayed PSC - Project preparation start year | F188: ='Project Inputs'!F$148 -> 2025 | G188: ='Project Inputs'!G$148 -> year #
E189: =E$88 -> Financial year ending | F189: 0 | G189: year # | H189: 0 | I189: 0 | J189: 2020 | K189: 2021 | L189: 2022 | M189: 2023 | N189: 2024 | O189: 2025 | P189: 2026 | Q189: 2027 | R189: 2028 | S189: 2029 | T189: 2030 | U189: 2031 | V189: 2032 | W189: 2033 | X189: 2034 | Y189: 2035 | Z189: 2036 | AA189: 2037 | AB189: 2038 | AC189: 2039 | AD189: 2040 | AE189: 2041 | AF189: 2042 | AG189: 2043 | AH189: 2044 | AI189: 2045 | AJ189: 2046 | AK189: =AK$88 -> 2047 | AL189: 2048 | AM189: 2049 | AN189: 2050 | AO189: 2051 | AP189: 2052 | AQ189: 2053 | AR189: 2054 | AS189: 2055 | AT189: 2056 | AU189: 2057 | AV189: 2058 | AW189: 2059 | AX189: 2060 | AY189: 2061 | AZ189: 2062 | BA189: 2063 | BB189: 2064 | BC189: 2065 | BD189: 2066 | BE189: 2067 | BF189: 2068 | BG189: 2069 | BH189: 2070 | BI189: 2071 | BJ189: 2072 | BK189: 2073 | BL189: 2074 | BM189: 2075 | BN189: 2076 | BO189: 2077 | BP189: 2078 | BQ189: 2079
E190: Delayed PSC - Pre-construction start period flag | G190: flag | H190: =SUM(J190:BQ190) -> 1 | J190: =IF(AND(I189 < $F188, J189 >= $F188), 1, 0) -> 0 | K190: 0 | L190: 0 | M190: 0 | N190: 0 | O190: 1 | P190: 0 | Q190: 0 | R190: 0 | S190: 0 | T190: 0 | U190: 0 | V190: 0 | W190: 0 | X190: 0 | Y190: 0 | Z190: 0 | AA190: 0 | AB190: 0 | AC190: 0 | AD190: 0 | AE190: 0 | AF190: 0 | AG190: 0 | AH190: 0 | AI190: 0 | AJ190: 0 | AK190: 0 | AL190: 0 | AM190: 0 | AN190: 0 | AO190: 0 | AP190: =IF(AND(AO189 < $F188, AP189 >= $F188), 1, 0) -> 0 | AQ190: 0 | AR190: 0 | AS190: 0 | AT190: 0 | AU190: 0 | AV190: 0 | AW190: 0 | AX190: 0 | AY190: 0 | AZ190: 0 | BA190: 0 | BB190: 0 | BC190: 0 | BD190: 0 | BE190: 0 | BF190: 0 | BG190: 0 | BH190: 0 | BI190: 0 | BJ190: 0 | BK190: 0 | BL190: 0 | BM190: 0 | BN190: 0 | BO190: 0 | BP190: 0 | BQ190: 0
E192: =E$190 -> Delayed PSC - Pre-construction start period flag | F192: 0 | G192: flag | H192: 1 | I192: 0 | J192: 0 | K192: 0 | L192: 0 | M192: 0 | N192: 0 | O192: 1 | P192: 0 | Q192: 0 | R192: 0 | S192: 0 | T192: 0 | U192: 0 | V192: 0 | W192: 0 | X192: 0 | Y192: 0 | Z192: 0 | AA192: 0 | AB192: 0 | AC192: 0 | AD192: 0 | AE192: 0 | AF192: 0 | AG192: 0 | AH192: 0 | AI192: 0 | AJ192: 0 | AK192: =AK$190 -> 0 | AL192: 0 | AM192: 0 | AN192: 0 | AO192: 0 | AP192: 0 | AQ192: 0 | AR192: 0 | AS192: 0 | AT192: 0 | AU192: 0 | AV192: 0 | AW192: 0 | AX192: 0 | AY192: 0 | AZ192: 0 | BA192: 0 | BB192: 0 | BC192: 0 | BD192: 0 | BE192: 0 | BF192: 0 | BG192: 0 | BH192: 0 | BI192: 0 | BJ192: 0 | BK192: 0 | BL192: 0 | BM192: 0 | BN192: 0 | BO192: 0 | BP192: 0 | BQ192: 0
E193: =E$205 -> Delayed PSC - Implementation start period flag | F193: 0 | G193: flag | H193: 1 | I193: 0 | J193: 0 | K193: 0 | L193: 0 | M193: 0 | N193: 0 | O193: 0 | P193: 0 | Q193: 1 | R193: 0 | S193: 0 | T193: 0 | U193: 0 | V193: 0 | W193: 0 | X193: 0 | Y193: 0 | Z193: 0 | AA193: 0 | AB193: 0 | AC193: 0 | AD193: 0 | AE193: 0 | AF193: 0 | AG193: 0 | AH193: 0 | AI193: 0 | AJ193: 0 | AK193: =AK$205 -> 0 | AL193: 0 | AM193: 0 | AN193: 0 | AO193: 0 | AP193: 0 | AQ193: 0 | AR193: 0 | AS193: 0 | AT193: 0 | AU193: 0 | AV193: 0 | AW193: 0 | AX193: 0 | AY193: 0 | AZ193: 0 | BA193: 0 | BB193: 0 | BC193: 0 | BD193: 0 | BE193: 0 | BF193: 0 | BG193: 0 | BH193: 0 | BI193: 0 | BJ193: 0 | BK193: 0 | BL193: 0 | BM193: 0 | BN193: 0 | BO193: 0 | BP193: 0 | BQ193: 0
E194: Delayed PSC - Pre-construction period flag | G194: flag | H194: =SUM(J194:BQ194) -> 2 | J194: =J192 + I194 - J193 -> 0 | K194: 0 | L194: 0 | M194: 0 | N194: 0 | O194: 1 | P194: 1 | Q194: 0 | R194: 0 | S194: 0 | T194: 0 | U194: 0 | V194: 0 | W194: 0 | X194: 0 | Y194: 0 | Z194: 0 | AA194: 0 | AB194: 0 | AC194: 0 | AD194: 0 | AE194: 0 | AF194: 0 | AG194: 0 | AH194: 0 | AI194: 0 | AJ194: 0 | AK194: 0 | AL194: 0 | AM194: 0 | AN194: 0 | AO194: 0 | AP194: =AP192 + AO194 - AP193 -> 0 | AQ194: 0 | AR194: 0 | AS194: 0 | AT194: 0 | AU194: 0 | AV194: 0 | AW194: 0 | AX194: 0 | AY194: 0 | AZ194: 0 | BA194: 0 | BB194: 0 | BC194: 0 | BD194: 0 | BE194: 0 | BF194: 0 | BG194: 0 | BH194: 0 | BI194: 0 | BJ194: 0 | BK194: 0 | BL194: 0 | BM194: 0 | BN194: 0 | BO194: 0 | BP194: 0 | BQ194: 0
E195: Delayed PSC - Pre-construction period total | F195: =SUM(J194:BQ194) -> 2 | G195: years
E197: =E$79 -> 1st model column flag | F197: 0 | G197: flag | H197: 1 | I197: 0 | J197: 1 | K197: 0 | L197: 0 | M197: 0 | N197: 0 | O197: 0 | P197: 0 | Q197: 0 | R197: 0 | S197: 0 | T197: 0 | U197: 0 | V197: 0 | W197: 0 | X197: 0 | Y197: 0 | Z197: 0 | AA197: 0 | AB197: 0 | AC197: 0 | AD197: 0 | AE197: 0 | AF197: 0 | AG197: 0 | AH197: 0 | AI197: 0 | AJ197: 0 | AK197: =AK$79 -> 0 | AL197: 0 | AM197: 0 | AN197: 0 | AO197: 0 | AP197: 0 | AQ197: 0 | AR197: 0 | AS197: 0 | AT197: 0 | AU197: 0 | AV197: 0 | AW197: 0 | AX197: 0 | AY197: 0 | AZ197: 0 | BA197: 0 | BB197: 0 | BC197: 0 | BD197: 0 | BE197: 0 | BF197: 0 | BG197: 0 | BH197: 0 | BI197: 0 | BJ197: 0 | BK197: 0 | BL197: 0 | BM197: 0 | BN197: 0 | BO197: 0 | BP197: 0 | BQ197: 0
E198: =E$190 -> Delayed PSC - Pre-construction start period flag | F198: 0 | G198: flag | H198: 1 | I198: 0 | J198: 0 | K198: 0 | L198: 0 | M198: 0 | N198: 0 | O198: 1 | P198: 0 | Q198: 0 | R198: 0 | S198: 0 | T198: 0 | U198: 0 | V198: 0 | W198: 0 | X198: 0 | Y198: 0 | Z198: 0 | AA198: 0 | AB198: 0 | AC198: 0 | AD198: 0 | AE198: 0 | AF198: 0 | AG198: 0 | AH198: 0 | AI198: 0 | AJ198: 0 | AK198: =AK$190 -> 0 | AL198: 0 | AM198: 0 | AN198: 0 | AO198: 0 | AP198: 0 | AQ198: 0 | AR198: 0 | AS198: 0 | AT198: 0 | AU198: 0 | AV198: 0 | AW198: 0 | AX198: 0 | AY198: 0 | AZ198: 0 | BA198: 0 | BB198: 0 | BC198: 0 | BD198: 0 | BE198: 0 | BF198: 0 | BG198: 0 | BH198: 0 | BI198: 0 | BJ198: 0 | BK198: 0 | BL198: 0 | BM198: 0 | BN198: 0 | BO198: 0 | BP198: 0 | BQ198: 0
E199: Delayed PSC - Project initiation period flag | G199: flag | H199: =SUM(J199:BQ199) -> 5 | J199: =J197 + I199 - J198 -> 1 | K199: 1 | L199: 1 | M199: 1 | N199: 1 | O199: 0 | P199: 0 | Q199: 0 | R199: 0 | S199: 0 | T199: 0 | U199: 0 | V199: 0 | W199: 0 | X199: 0 | Y199: 0 | Z199: 0 | AA199: 0 | AB199: 0 | AC199: 0 | AD199: 0 | AE199: 0 | AF199: 0 | AG199: 0 | AH199: 0 | AI199: 0 | AJ199: 0 | AK199: 0 | AL199: 0 | AM199: 0 | AN199: 0 | AO199: 0 | AP199: =AP197 + AO199 - AP198 -> 0 | AQ199: 0 | AR199: 0 | AS199: 0 | AT199: 0 | AU199: 0 | AV199: 0 | AW199: 0 | AX199: 0 | AY199: 0 | AZ199: 0 | BA199: 0 | BB199: 0 | BC199: 0 | BD199: 0 | BE199: 0 | BF199: 0 | BG199: 0 | BH199: 0 | BI199: 0 | BJ199: 0 | BK199: 0 | BL199: 0 | BM199: 0 | BN199: 0 | BO199: 0 | BP199: 0 | BQ199: 0
E200: Delayed PSC - Project initiation period total | F200: =SUM(J199:BQ199) -> 5 | G200: years
B202: Delayed PSC - Implementation period timeline
E203: =E$40 -> Delayed PSC - Implementation start year | F203: =F$40 -> 2027 | G203: =G$40 -> year #
E204: =E$88 -> Financial year ending | F204: 0 | G204: year # | H204: 0 | I204: 0 | J204: 2020 | K204: 2021 | L204: 2022 | M204: 2023 | N204: 2024 | O204: 2025 | P204: 2026 | Q204: 2027 | R204: 2028 | S204: 2029 | T204: 2030 | U204: 2031 | V204: 2032 | W204: 2033 | X204: 2034 | Y204: 2035 | Z204: 2036 | AA204: 2037 | AB204: 2038 | AC204: 2039 | AD204: 2040 | AE204: 2041 | AF204: 2042 | AG204: 2043 | AH204: 2044 | AI204: 2045 | AJ204: 2046 | AK204: =AK$88 -> 2047 | AL204: 2048 | AM204: 2049 | AN204: 2050 | AO204: 2051 | AP204: 2052 | AQ204: 2053 | AR204: 2054 | AS204: 2055 | AT204: 2056 | AU204: 2057 | AV204: 2058 | AW204: 2059 | AX204: 2060 | AY204: 2061 | AZ204: 2062 | BA204: 2063 | BB204: 2064 | BC204: 2065 | BD204: 2066 | BE204: 2067 | BF204: 2068 | BG204: 2069 | BH204: 2070 | BI204: 2071 | BJ204: 2072 | BK204: 2073 | BL204: 2074 | BM204: 2075 | BN204: 2076 | BO204: 2077 | BP204: 2078 | BQ204: 2079
E205: Delayed PSC - Implementation start period flag | G205: flag | H205: =SUM(J205:BQ205) -> 1 | J205: =IF(AND(I204 < $F203, J204 >= $F203), 1, 0) -> 0 | K205: 0 | L205: 0 | M205: 0 | N205: 0 | O205: 0 | P205: 0 | Q205: 1 | R205: 0 | S205: 0 | T205: 0 | U205: 0 | V205: 0 | W205: 0 | X205: 0 | Y205: 0 | Z205: 0 | AA205: 0 | AB205: 0 | AC205: 0 | AD205: 0 | AE205: 0 | AF205: 0 | AG205: 0 | AH205: 0 | AI205: 0 | AJ205: 0 | AK205: 0 | AL205: 0 | AM205: 0 | AN205: 0 | AO205: 0 | AP205: =IF(AND(AO204 < $F203, AP204 >= $F203), 1, 0) -> 0 | AQ205: 0 | AR205: 0 | AS205: 0 | AT205: 0 | AU205: 0 | AV205: 0 | AW205: 0 | AX205: 0 | AY205: 0 | AZ205: 0 | BA205: 0 | BB205: 0 | BC205: 0 | BD205: 0 | BE205: 0 | BF205: 0 | BG205: 0 | BH205: 0 | BI205: 0 | BJ205: 0 | BK205: 0 | BL205: 0 | BM205: 0 | BN205: 0 | BO205: 0 | BP205: 0 | BQ205: 0
E207: =E$44 -> Delayed PSC - Implementation end year | F207: =F$44 -> 2030 | G207: =G$44 -> year
E208: =E$88 -> Financial year ending | F208: 0 | G208: year # | H208: 0 | I208: 0 | J208: 2020 | K208: 2021 | L208: 2022 | M208: 2023 | N208: 2024 | O208: 2025 | P208: 2026 | Q208: 2027 | R208: 2028 | S208: 2029 | T208: 2030 | U208: 2031 | V208: 2032 | W208: 2033 | X208: 2034 | Y208: 2035 | Z208: 2036 | AA208: 2037 | AB208: 2038 | AC208: 2039 | AD208: 2040 | AE208: 2041 | AF208: 2042 | AG208: 2043 | AH208: 2044 | AI208: 2045 | AJ208: 2046 | AK208: =AK$88 -> 2047 | AL208: 2048 | AM208: 2049 | AN208: 2050 | AO208: 2051 | AP208: 2052 | AQ208: 2053 | AR208: 2054 | AS208: 2055 | AT208: 2056 | AU208: 2057 | AV208: 2058 | AW208: 2059 | AX208: 2060 | AY208: 2061 | AZ208: 2062 | BA208: 2063 | BB208: 2064 | BC208: 2065 | BD208: 2066 | BE208: 2067 | BF208: 2068 | BG208: 2069 | BH208: 2070 | BI208: 2071 | BJ208: 2072 | BK208: 2073 | BL208: 2074 | BM208: 2075 | BN208: 2076 | BO208: 2077 | BP208: 2078 | BQ208: 2079
E209: Delayed PSC - Implementation completion flag | G209: flag | H209: =SUM(J209:BQ209) -> 1 | J209: =IF(AND(I208 < $F207, J208 >= $F207), 1, 0) -> 0 | K209: 0 | L209: 0 | M209: 0 | N209: 0 | O209: 0 | P209: 0 | Q209: 0 | R209: 0 | S209: 0 | T209: 1 | U209: 0 | V209: 0 | W209: 0 | X209: 0 | Y209: 0 | Z209: 0 | AA209: 0 | AB209: 0 | AC209: 0 | AD209: 0 | AE209: 0 | AF209: 0 | AG209: 0 | AH209: 0 | AI209: 0 | AJ209: 0 | AK209: 0 | AL209: 0 | AM209: 0 | AN209: 0 | AO209: 0 | AP209: =IF(AND(AO208 < $F207, AP208 >= $F207), 1, 0) -> 0 | AQ209: 0 | AR209: 0 | AS209: 0 | AT209: 0 | AU209: 0 | AV209: 0 | AW209: 0 | AX209: 0 | AY209: 0 | AZ209: 0 | BA209: 0 | BB209: 0 | BC209: 0 | BD209: 0 | BE209: 0 | BF209: 0 | BG209: 0 | BH209: 0 | BI209: 0 | BJ209: 0 | BK209: 0 | BL209: 0 | BM209: 0 | BN209: 0 | BO209: 0 | BP209: 0 | BQ209: 0
E211: =E$205 -> Delayed PSC - Implementation start period flag | F211: 0 | G211: flag | H211: 1 | I211: 0 | J211: 0 | K211: 0 | L211: 0 | M211: 0 | N211: 0 | O211: 0 | P211: 0 | Q211: 1 | R211: 0 | S211: 0 | T211: 0 | U211: 0 | V211: 0 | W211: 0 | X211: 0 | Y211: 0 | Z211: 0 | AA211: 0 | AB211: 0 | AC211: 0 | AD211: 0 | AE211: 0 | AF211: 0 | AG211: 0 | AH211: 0 | AI211: 0 | AJ211: 0 | AK211: =AK$205 -> 0 | AL211: 0 | AM211: 0 | AN211: 0 | AO211: 0 | AP211: 0 | AQ211: 0 | AR211: 0 | AS211: 0 | AT211: 0 | AU211: 0 | AV211: 0 | AW211: 0 | AX211: 0 | AY211: 0 | AZ211: 0 | BA211: 0 | BB211: 0 | BC211: 0 | BD211: 0 | BE211: 0 | BF211: 0 | BG211: 0 | BH211: 0 | BI211: 0 | BJ211: 0 | BK211: 0 | BL211: 0 | BM211: 0 | BN211: 0 | BO211: 0 | BP211: 0 | BQ211: 0
E212: =E$209 -> Delayed PSC - Implementation completion flag | F212: 0 | G212: flag | H212: 1 | I212: 0 | J212: 0 | K212: 0 | L212: 0 | M212: 0 | N212: 0 | O212: 0 | P212: 0 | Q212: 0 | R212: 0 | S212: 0 | T212: 1 | U212: 0 | V212: 0 | W212: 0 | X212: 0 | Y212: 0 | Z212: 0 | AA212: 0 | AB212: 0 | AC212: 0 | AD212: 0 | AE212: 0 | AF212: 0 | AG212: 0 | AH212: 0 | AI212: 0 | AJ212: 0 | AK212: =AK$209 -> 0 | AL212: 0 | AM212: 0 | AN212: 0 | AO212: 0 | AP212: 0 | AQ212: 0 | AR212: 0 | AS212: 0 | AT212: 0 | AU212: 0 | AV212: 0 | AW212: 0 | AX212: 0 | AY212: 0 | AZ212: 0 | BA212: 0 | BB212: 0 | BC212: 0 | BD212: 0 | BE212: 0 | BF212: 0 | BG212: 0 | BH212: 0 | BI212: 0 | BJ212: 0 | BK212: 0 | BL212: 0 | BM212: 0 | BN212: 0 | BO212: 0 | BP212: 0 | BQ212: 0
E213: Delayed PSC - Implementation period flag | G213: flag | H213: =SUM(J213:BQ213) -> 4 | J213: =J211 + I213 - I212 -> 0 | K213: 0 | L213: 0 | M213: 0 | N213: 0 | O213: 0 | P213: 0 | Q213: 1 | R213: 1 | S213: 1 | T213: 1 | U213: 0 | V213: 0 | W213: 0 | X213: 0 | Y213: 0 | Z213: 0 | AA213: 0 | AB213: 0 | AC213: 0 | AD213: 0 | AE213: 0 | AF213: 0 | AG213: 0 | AH213: 0 | AI213: 0 | AJ213: 0 | AK213: 0 | AL213: 0 | AM213: 0 | AN213: 0 | AO213: 0 | AP213: =AP211 + AO213 - AO212 -> 0 | AQ213: 0 | AR213: 0 | AS213: 0 | AT213: 0 | AU213: 0 | AV213: 0 | AW213: 0 | AX213: 0 | AY213: 0 | AZ213: 0 | BA213: 0 | BB213: 0 | BC213: 0 | BD213: 0 | BE213: 0 | BF213: 0 | BG213: 0 | BH213: 0 | BI213: 0 | BJ213: 0 | BK213: 0 | BL213: 0 | BM213: 0 | BN213: 0 | BO213: 0 | BP213: 0 | BQ213: 0
E214: Delayed PSC - Implementation period total | F214: =SUM(J213:BQ213) -> 4 | G214: years
B216: Delayed PSC - Operations period timeline
E217: =E$48 -> Delayed PSC - Operations start year | F217: =F$48 -> 2031 | G217: =G$48 -> year #
E218: =E$88 -> Financial year ending | F218: 0 | G218: year # | H218: 0 | I218: 0 | J218: 2020 | K218: 2021 | L218: 2022 | M218: 2023 | N218: 2024 | O218: 2025 | P218: 2026 | Q218: 2027 | R218: 2028 | S218: 2029 | T218: 2030 | U218: 2031 | V218: 2032 | W218: 2033 | X218: 2034 | Y218: 2035 | Z218: 2036 | AA218: 2037 | AB218: 2038 | AC218: 2039 | AD218: 2040 | AE218: 2041 | AF218: 2042 | AG218: 2043 | AH218: 2044 | AI218: 2045 | AJ218: 2046 | AK218: =AK$88 -> 2047 | AL218: 2048 | AM218: 2049 | AN218: 2050 | AO218: 2051 | AP218: 2052 | AQ218: 2053 | AR218: 2054 | AS218: 2055 | AT218: 2056 | AU218: 2057 | AV218: 2058 | AW218: 2059 | AX218: 2060 | AY218: 2061 | AZ218: 2062 | BA218: 2063 | BB218: 2064 | BC218: 2065 | BD218: 2066 | BE218: 2067 | BF218: 2068 | BG218: 2069 | BH218: 2070 | BI218: 2071 | BJ218: 2072 | BK218: 2073 | BL218: 2074 | BM218: 2075 | BN218: 2076 | BO218: 2077 | BP218: 2078 | BQ218: 2079
E219: Delayed PSC - Operations period start flag | G219: flag | H219: =SUM(J219:BQ219) -> 1 | J219: =IF(AND($F217 > I218, $F217 <= J218), 1, 0) -> 0 | K219: 0 | L219: 0 | M219: 0 | N219: 0 | O219: 0 | P219: 0 | Q219: 0 | R219: 0 | S219: 0 | T219: 0 | U219: 1 | V219: 0 | W219: 0 | X219: 0 | Y219: 0 | Z219: 0 | AA219: 0 | AB219: 0 | AC219: 0 | AD219: 0 | AE219: 0 | AF219: 0 | AG219: 0 | AH219: 0 | AI219: 0 | AJ219: 0 | AK219: 0 | AL219: 0 | AM219: 0 | AN219: 0 | AO219: 0 | AP219: =IF(AND($F217 > AO218, $F217 <= AP218), 1, 0) -> 0 | AQ219: 0 | AR219: 0 | AS219: 0 | AT219: 0 | AU219: 0 | AV219: 0 | AW219: 0 | AX219: 0 | AY219: 0 | AZ219: 0 | BA219: 0 | BB219: 0 | BC219: 0 | BD219: 0 | BE219: 0 | BF219: 0 | BG219: 0 | BH219: 0 | BI219: 0 | BJ219: 0 | BK219: 0 | BL219: 0 | BM219: 0 | BN219: 0 | BO219: 0 | BP219: 0 | BQ219: 0
E221: =E$52 -> Delayed PSC - Operations end year | F221: =F$52 -> 2065 | G221: =G$52 -> year #
E222: =E$88 -> Financial year ending | F222: 0 | G222: year # | H222: 0 | I222: 0 | J222: 2020 | K222: 2021 | L222: 2022 | M222: 2023 | N222: 2024 | O222: 2025 | P222: 2026 | Q222: 2027 | R222: 2028 | S222: 2029 | T222: 2030 | U222: 2031 | V222: 2032 | W222: 2033 | X222: 2034 | Y222: 2035 | Z222: 2036 | AA222: 2037 | AB222: 2038 | AC222: 2039 | AD222: 2040 | AE222: 2041 | AF222: 2042 | AG222: 2043 | AH222: 2044 | AI222: 2045 | AJ222: 2046 | AK222: =AK$88 -> 2047 | AL222: 2048 | AM222: 2049 | AN222: 2050 | AO222: 2051 | AP222: 2052 | AQ222: 2053 | AR222: 2054 | AS222: 2055 | AT222: 2056 | AU222: 2057 | AV222: 2058 | AW222: 2059 | AX222: 2060 | AY222: 2061 | AZ222: 2062 | BA222: 2063 | BB222: 2064 | BC222: 2065 | BD222: 2066 | BE222: 2067 | BF222: 2068 | BG222: 2069 | BH222: 2070 | BI222: 2071 | BJ222: 2072 | BK222: 2073 | BL222: 2074 | BM222: 2075 | BN222: 2076 | BO222: 2077 | BP222: 2078 | BQ222: 2079
E223: Delayed PSC - Operations period end flag | G223: flag | H223: =SUM(J223:BQ223) -> 1 | J223: =IF(AND($F221 > I222, $F221 <= J222), 1, 0) -> 0 | K223: 0 | L223: 0 | M223: 0 | N223: 0 | O223: 0 | P223: 0 | Q223: 0 | R223: 0 | S223: 0 | T223: 0 | U223: 0 | V223: 0 | W223: 0 | X223: 0 | Y223: 0 | Z223: 0 | AA223: 0 | AB223: 0 | AC223: 0 | AD223: 0 | AE223: 0 | AF223: 0 | AG223: 0 | AH223: 0 | AI223: 0 | AJ223: 0 | AK223: 0 | AL223: 0 | AM223: 0 | AN223: 0 | AO223: 0 | AP223: =IF(AND($F221 > AO222, $F221 <= AP222), 1, 0) -> 0 | AQ223: 0 | AR223: 0 | AS223: 0 | AT223: 0 | AU223: 0 | AV223: 0 | AW223: 0 | AX223: 0 | AY223: 0 | AZ223: 0 | BA223: 0 | BB223: 0 | BC223: 1 | BD223: 0 | BE223: 0 | BF223: 0 | BG223: 0 | BH223: 0 | BI223: 0 | BJ223: 0 | BK223: 0 | BL223: 0 | BM223: 0 | BN223: 0 | BO223: 0 | BP223: 0 | BQ223: 0
E225: =E$219 -> Delayed PSC - Operations period start flag | F225: 0 | G225: flag | H225: 1 | I225: 0 | J225: 0 | K225: 0 | L225: 0 | M225: 0 | N225: 0 | O225: 0 | P225: 0 | Q225: 0 | R225: 0 | S225: 0 | T225: 0 | U225: 1 | V225: 0 | W225: 0 | X225: 0 | Y225: 0 | Z225: 0 | AA225: 0 | AB225: 0 | AC225: 0 | AD225: 0 | AE225: 0 | AF225: 0 | AG225: 0 | AH225: 0 | AI225: 0 | AJ225: 0 | AK225: =AK$219 -> 0 | AL225: 0 | AM225: 0 | AN225: 0 | AO225: 0 | AP225: 0 | AQ225: 0 | AR225: 0 | AS225: 0 | AT225: 0 | AU225: 0 | AV225: 0 | AW225: 0 | AX225: 0 | AY225: 0 | AZ225: 0 | BA225: 0 | BB225: 0 | BC225: 0 | BD225: 0 | BE225: 0 | BF225: 0 | BG225: 0 | BH225: 0 | BI225: 0 | BJ225: 0 | BK225: 0 | BL225: 0 | BM225: 0 | BN225: 0 | BO225: 0 | BP225: 0 | BQ225: 0
E226: =E$223 -> Delayed PSC - Operations period end flag | F226: 0 | G226: flag | H226: 1 | I226: 0 | J226: 0 | K226: 0 | L226: 0 | M226: 0 | N226: 0 | O226: 0 | P226: 0 | Q226: 0 | R226: 0 | S226: 0 | T226: 0 | U226: 0 | V226: 0 | W226: 0 | X226: 0 | Y226: 0 | Z226: 0 | AA226: 0 | AB226: 0 | AC226: 0 | AD226: 0 | AE226: 0 | AF226: 0 | AG226: 0 | AH226: 0 | AI226: 0 | AJ226: 0 | AK226: =AK$223 -> 0 | AL226: 0 | AM226: 0 | AN226: 0 | AO226: 0 | AP226: 0 | AQ226: 0 | AR226: 0 | AS226: 0 | AT226: 0 | AU226: 0 | AV226: 0 | AW226: 0 | AX226: 0 | AY226: 0 | AZ226: 0 | BA226: 0 | BB226: 0 | BC226: 1 | BD226: 0 | BE226: 0 | BF226: 0 | BG226: 0 | BH226: 0 | BI226: 0 | BJ226: 0 | BK226: 0 | BL226: 0 | BM226: 0 | BN226: 0 | BO226: 0 | BP226: 0 | BQ226: 0
E227: Delayed PSC - Operations period flag | G227: flag | H227: =SUM(J227:BQ227) -> 35 | J227: =I227 + J225 - I226 -> 0 | K227: 0 | L227: 0 | M227: 0 | N227: 0 | O227: 0 | P227: 0 | Q227: 0 | R227: 0 | S227: 0 | T227: 0 | U227: 1 | V227: 1 | W227: 1 | X227: 1 | Y227: 1 | Z227: 1 | AA227: 1 | AB227: 1 | AC227: 1 | AD227: 1 | AE227: 1 | AF227: 1 | AG227: 1 | AH227: 1 | AI227: 1 | AJ227: 1 | AK227: 1 | AL227: 1 | AM227: 1 | AN227: 1 | AO227: 1 | AP227: =AO227 + AP225 - AO226 -> 1 | AQ227: 1 | AR227: 1 | AS227: 1 | AT227: 1 | AU227: 1 | AV227: 1 | AW227: 1 | AX227: 1 | AY227: 1 | AZ227: 1 | BA227: 1 | BB227: 1 | BC227: 1 | BD227: 0 | BE227: 0 | BF227: 0 | BG227: 0 | BH227: 0 | BI227: 0 | BJ227: 0 | BK227: 0 | BL227: 0 | BM227: 0 | BN227: 0 | BO227: 0 | BP227: 0 | BQ227: 0
E228: Delayed PSC - Operations period total | F228: =SUM(J227:BQ227) -> 35 | G228: years
E230: =E$227 -> Delayed PSC - Operations period flag | F230: 0 | G230: flag | H230: 35 | I230: 0 | J230: 0 | K230: 0 | L230: 0 | M230: 0 | N230: 0 | O230: 0 | P230: 0 | Q230: 0 | R230: 0 | S230: 0 | T230: 0 | U230: 1 | V230: 1 | W230: 1 | X230: 1 | Y230: 1 | Z230: 1 | AA230: 1 | AB230: 1 | AC230: 1 | AD230: 1 | AE230: 1 | AF230: 1 | AG230: 1 | AH230: 1 | AI230: 1 | AJ230: 1 | AK230: =AK$227 -> 1 | AL230: 1 | AM230: 1 | AN230: 1 | AO230: 1 | AP230: 1 | AQ230: 1 | AR230: 1 | AS230: 1 | AT230: 1 | AU230: 1 | AV230: 1 | AW230: 1 | AX230: 1 | AY230: 1 | AZ230: 1 | BA230: 1 | BB230: 1 | BC230: 1 | BD230: 0 | BE230: 0 | BF230: 0 | BG230: 0 | BH230: 0 | BI230: 0 | BJ230: 0 | BK230: 0 | BL230: 0 | BM230: 0 | BN230: 0 | BO230: 0 | BP230: 0 | BQ230: 0
E231: Delayed PSC - Operations period counter | G231: counter | J231: =J230 * ( I231 + J230 ) -> 0 | K231: 0 | L231: 0 | M231: 0 | N231: 0 | O231: 0 | P231: 0 | Q231: 0 | R231: 0 | S231: 0 | T231: 0 | U231: 1 | V231: 2 | W231: 3 | X231: 4 | Y231: 5 | Z231: 6 | AA231: 7 | AB231: 8 | AC231: 9 | AD231: 10 | AE231: 11 | AF231: 12 | AG231: 13 | AH231: 14 | AI231: 15 | AJ231: 16 | AK231: 17 | AL231: 18 | AM231: 19 | AN231: 20 | AO231: 21 | AP231: =AP230 * ( AO231 + AP230 ) -> 22 | AQ231: 23 | AR231: 24 | AS231: 25 | AT231: 26 | AU231: 27 | AV231: 28 | AW231: 29 | AX231: 30 | AY231: 31 | AZ231: 32 | BA231: 33 | BB231: 34 | BC231: 35 | BD231: 0 | BE231: 0 | BF231: 0 | BG231: 0 | BH231: 0 | BI231: 0 | BJ231: 0 | BK231: 0 | BL231: 0 | BM231: 0 | BN231: 0 | BO231: 0 | BP231: 0 | BQ231: 0
E233: =E$79 -> 1st model column flag | F233: 0 | G233: flag | H233: 1 | I233: 0 | J233: 1 | K233: 0 | L233: 0 | M233: 0 | N233: 0 | O233: 0 | P233: 0 | Q233: 0 | R233: 0 | S233: 0 | T233: 0 | U233: 0 | V233: 0 | W233: 0 | X233: 0 | Y233: 0 | Z233: 0 | AA233: 0 | AB233: 0 | AC233: 0 | AD233: 0 | AE233: 0 | AF233: 0 | AG233: 0 | AH233: 0 | AI233: 0 | AJ233: 0 | AK233: =AK$79 -> 0 | AL233: 0 | AM233: 0 | AN233: 0 | AO233: 0 | AP233: 0 | AQ233: 0 | AR233: 0 | AS233: 0 | AT233: 0 | AU233: 0 | AV233: 0 | AW233: 0 | AX233: 0 | AY233: 0 | AZ233: 0 | BA233: 0 | BB233: 0 | BC233: 0 | BD233: 0 | BE233: 0 | BF233: 0 | BG233: 0 | BH233: 0 | BI233: 0 | BJ233: 0 | BK233: 0 | BL233: 0 | BM233: 0 | BN233: 0 | BO233: 0 | BP233: 0 | BQ233: 0
E234: =E$219 -> Delayed PSC - Operations period start flag | F234: 0 | G234: flag | H234: 1 | I234: 0 | J234: 0 | K234: 0 | L234: 0 | M234: 0 | N234: 0 | O234: 0 | P234: 0 | Q234: 0 | R234: 0 | S234: 0 | T234: 0 | U234: 1 | V234: 0 | W234: 0 | X234: 0 | Y234: 0 | Z234: 0 | AA234: 0 | AB234: 0 | AC234: 0 | AD234: 0 | AE234: 0 | AF234: 0 | AG234: 0 | AH234: 0 | AI234: 0 | AJ234: 0 | AK234: =AK$219 -> 0 | AL234: 0 | AM234: 0 | AN234: 0 | AO234: 0 | AP234: 0 | AQ234: 0 | AR234: 0 | AS234: 0 | AT234: 0 | AU234: 0 | AV234: 0 | AW234: 0 | AX234: 0 | AY234: 0 | AZ234: 0 | BA234: 0 | BB234: 0 | BC234: 0 | BD234: 0 | BE234: 0 | BF234: 0 | BG234: 0 | BH234: 0 | BI234: 0 | BJ234: 0 | BK234: 0 | BL234: 0 | BM234: 0 | BN234: 0 | BO234: 0 | BP234: 0 | BQ234: 0
E235: Delayed PSC - Pre-operations period flag | G235: flag | H235: =H$147 -> 14 | J235: =J233 + I235 - J234 -> 1 | K235: 1 | L235: 1 | M235: 1 | N235: 1 | O235: 1 | P235: 1 | Q235: 1 | R235: 1 | S235: 1 | T235: 1 | U235: 0 | V235: 0 | W235: 0 | X235: 0 | Y235: 0 | Z235: 0 | AA235: 0 | AB235: 0 | AC235: 0 | AD235: 0 | AE235: 0 | AF235: 0 | AG235: 0 | AH235: 0 | AI235: 0 | AJ235: 0 | AK235: 0 | AL235: 0 | AM235: 0 | AN235: 0 | AO235: 0 | AP235: =AP233 + AO235 - AP234 -> 0 | AQ235: 0 | AR235: 0 | AS235: 0 | AT235: 0 | AU235: 0 | AV235: 0 | AW235: 0 | AX235: 0 | AY235: 0 | AZ235: 0 | BA235: 0 | BB235: 0 | BC235: 0 | BD235: 0 | BE235: 0 | BF235: 0 | BG235: 0 | BH235: 0 | BI235: 0 | BJ235: 0 | BK235: 0 | BL235: 0 | BM235: 0 | BN235: 0 | BO235: 0 | BP235: 0 | BQ235: 0
E237: =E$223 -> Delayed PSC - Operations period end flag | F237: 0 | G237: flag | H237: 1 | I237: 0 | J237: 0 | K237: 0 | L237: 0 | M237: 0 | N237: 0 | O237: 0 | P237: 0 | Q237: 0 | R237: 0 | S237: 0 | T237: 0 | U237: 0 | V237: 0 | W237: 0 | X237: 0 | Y237: 0 | Z237: 0 | AA237: 0 | AB237: 0 | AC237: 0 | AD237: 0 | AE237: 0 | AF237: 0 | AG237: 0 | AH237: 0 | AI237: 0 | AJ237: 0 | AK237: =AK$223 -> 0 | AL237: 0 | AM237: 0 | AN237: 0 | AO237: 0 | AP237: 0 | AQ237: 0 | AR237: 0 | AS237: 0 | AT237: 0 | AU237: 0 | AV237: 0 | AW237: 0 | AX237: 0 | AY237: 0 | AZ237: 0 | BA237: 0 | BB237: 0 | BC237: 1 | BD237: 0 | BE237: 0 | BF237: 0 | BG237: 0 | BH237: 0 | BI237: 0 | BJ237: 0 | BK237: 0 | BL237: 0 | BM237: 0 | BN237: 0 | BO237: 0 | BP237: 0 | BQ237: 0
E238: Delayed PSC - 1st post-operations period flag | G238: flag | H238: =SUM(J238:BQ238) -> 1 | J238: =I237 -> 0 | K238: 0 | L238: 0 | M238: 0 | N238: 0 | O238: 0 | P238: 0 | Q238: 0 | R238: 0 | S238: 0 | T238: 0 | U238: 0 | V238: 0 | W238: 0 | X238: 0 | Y238: 0 | Z238: 0 | AA238: 0 | AB238: 0 | AC238: 0 | AD238: 0 | AE238: 0 | AF238: 0 | AG238: 0 | AH238: 0 | AI238: 0 | AJ238: 0 | AK238: 0 | AL238: 0 | AM238: 0 | AN238: 0 | AO238: 0 | AP238: =AO237 -> 0 | AQ238: 0 | AR238: 0 | AS238: 0 | AT238: 0 | AU238: 0 | AV238: 0 | AW238: 0 | AX238: 0 | AY238: 0 | AZ238: 0 | BA238: 0 | BB238: 0 | BC238: 0 | BD238: 1 | BE238: 0 | BF238: 0 | BG238: 0 | BH238: 0 | BI238: 0 | BJ238: 0 | BK238: 0 | BL238: 0 | BM238: 0 | BN238: 0 | BO238: 0 | BP238: 0 | BQ238: 0
E240: =E$223 -> Delayed PSC - Operations period end flag | F240: 0 | G240: flag | H240: 1 | I240: 0 | J240: 0 | K240: 0 | L240: 0 | M240: 0 | N240: 0 | O240: 0 | P240: 0 | Q240: 0 | R240: 0 | S240: 0 | T240: 0 | U240: 0 | V240: 0 | W240: 0 | X240: 0 | Y240: 0 | Z240: 0 | AA240: 0 | AB240: 0 | AC240: 0 | AD240: 0 | AE240: 0 | AF240: 0 | AG240: 0 | AH240: 0 | AI240: 0 | AJ240: 0 | AK240: =AK$223 -> 0 | AL240: 0 | AM240: 0 | AN240: 0 | AO240: 0 | AP240: 0 | AQ240: 0 | AR240: 0 | AS240: 0 | AT240: 0 | AU240: 0 | AV240: 0 | AW240: 0 | AX240: 0 | AY240: 0 | AZ240: 0 | BA240: 0 | BB240: 0 | BC240: 1 | BD240: 0 | BE240: 0 | BF240: 0 | BG240: 0 | BH240: 0 | BI240: 0 | BJ240: 0 | BK240: 0 | BL240: 0 | BM240: 0 | BN240: 0 | BO240: 0 | BP240: 0 | BQ240: 0
E241: Delayed PSC - Post-operations period flag | G241: flag | H241: =SUM(J241:BQ241) -> 14 | J241: =I241 + I240 -> 0 | K241: 0 | L241: 0 | M241: 0 | N241: 0 | O241: 0 | P241: 0 | Q241: 0 | R241: 0 | S241: 0 | T241: 0 | U241: 0 | V241: 0 | W241: 0 | X241: 0 | Y241: 0 | Z241: 0 | AA241: 0 | AB241: 0 | AC241: 0 | AD241: 0 | AE241: 0 | AF241: 0 | AG241: 0 | AH241: 0 | AI241: 0 | AJ241: 0 | AK241: 0 | AL241: 0 | AM241: 0 | AN241: 0 | AO241: 0 | AP241: =AO241 + AO240 -> 0 | AQ241: 0 | AR241: 0 | AS241: 0 | AT241: 0 | AU241: 0 | AV241: 0 | AW241: 0 | AX241: 0 | AY241: 0 | AZ241: 0 | BA241: 0 | BB241: 0 | BC241: 0 | BD241: 1 | BE241: 1 | BF241: 1 | BG241: 1 | BH241: 1 | BI241: 1 | BJ241: 1 | BK241: 1 | BL241: 1 | BM241: 1 | BN241: 1 | BO241: 1 | BP241: 1 | BQ241: 1
E242: Delayed PSC - Post-operations period total | F242: =SUM(J241:BQ241) -> 14 | G242: years
B244: Delayed PSC - Model timeline label
E245: =E$79 -> 1st model column flag | F245: 0 | G245: flag | H245: 1 | I245: 0 | J245: 1 | K245: 0 | L245: 0 | M245: 0 | N245: 0 | O245: 0 | P245: 0 | Q245: 0 | R245: 0 | S245: 0 | T245: 0 | U245: 0 | V245: 0 | W245: 0 | X245: 0 | Y245: 0 | Z245: 0 | AA245: 0 | AB245: 0 | AC245: 0 | AD245: 0 | AE245: 0 | AF245: 0 | AG245: 0 | AH245: 0 | AI245: 0 | AJ245: 0 | AK245: =AK$79 -> 0 | AL245: 0 | AM245: 0 | AN245: 0 | AO245: 0 | AP245: 0 | AQ245: 0 | AR245: 0 | AS245: 0 | AT245: 0 | AU245: 0 | AV245: 0 | AW245: 0 | AX245: 0 | AY245: 0 | AZ245: 0 | BA245: 0 | BB245: 0 | BC245: 0 | BD245: 0 | BE245: 0 | BF245: 0 | BG245: 0 | BH245: 0 | BI245: 0 | BJ245: 0 | BK245: 0 | BL245: 0 | BM245: 0 | BN245: 0 | BO245: 0 | BP245: 0 | BQ245: 0
E246: =E$190 -> Delayed PSC - Pre-construction start period flag | F246: 0 | G246: flag | H246: 1 | I246: 0 | J246: 0 | K246: 0 | L246: 0 | M246: 0 | N246: 0 | O246: 1 | P246: 0 | Q246: 0 | R246: 0 | S246: 0 | T246: 0 | U246: 0 | V246: 0 | W246: 0 | X246: 0 | Y246: 0 | Z246: 0 | AA246: 0 | AB246: 0 | AC246: 0 | AD246: 0 | AE246: 0 | AF246: 0 | AG246: 0 | AH246: 0 | AI246: 0 | AJ246: 0 | AK246: =AK$190 -> 0 | AL246: 0 | AM246: 0 | AN246: 0 | AO246: 0 | AP246: 0 | AQ246: 0 | AR246: 0 | AS246: 0 | AT246: 0 | AU246: 0 | AV246: 0 | AW246: 0 | AX246: 0 | AY246: 0 | AZ246: 0 | BA246: 0 | BB246: 0 | BC246: 0 | BD246: 0 | BE246: 0 | BF246: 0 | BG246: 0 | BH246: 0 | BI246: 0 | BJ246: 0 | BK246: 0 | BL246: 0 | BM246: 0 | BN246: 0 | BO246: 0 | BP246: 0 | BQ246: 0
E247: =E$205 -> Delayed PSC - Implementation start period flag | F247: 0 | G247: flag | H247: 1 | I247: 0 | J247: 0 | K247: 0 | L247: 0 | M247: 0 | N247: 0 | O247: 0 | P247: 0 | Q247: 1 | R247: 0 | S247: 0 | T247: 0 | U247: 0 | V247: 0 | W247: 0 | X247: 0 | Y247: 0 | Z247: 0 | AA247: 0 | AB247: 0 | AC247: 0 | AD247: 0 | AE247: 0 | AF247: 0 | AG247: 0 | AH247: 0 | AI247: 0 | AJ247: 0 | AK247: =AK$205 -> 0 | AL247: 0 | AM247: 0 | AN247: 0 | AO247: 0 | AP247: 0 | AQ247: 0 | AR247: 0 | AS247: 0 | AT247: 0 | AU247: 0 | AV247: 0 | AW247: 0 | AX247: 0 | AY247: 0 | AZ247: 0 | BA247: 0 | BB247: 0 | BC247: 0 | BD247: 0 | BE247: 0 | BF247: 0 | BG247: 0 | BH247: 0 | BI247: 0 | BJ247: 0 | BK247: 0 | BL247: 0 | BM247: 0 | BN247: 0 | BO247: 0 | BP247: 0 | BQ247: 0
E248: =E$219 -> Delayed PSC - Operations period start flag | F248: 0 | G248: flag | H248: 1 | I248: 0 | J248: 0 | K248: 0 | L248: 0 | M248: 0 | N248: 0 | O248: 0 | P248: 0 | Q248: 0 | R248: 0 | S248: 0 | T248: 0 | U248: 1 | V248: 0 | W248: 0 | X248: 0 | Y248: 0 | Z248: 0 | AA248: 0 | AB248: 0 | AC248: 0 | AD248: 0 | AE248: 0 | AF248: 0 | AG248: 0 | AH248: 0 | AI248: 0 | AJ248: 0 | AK248: =AK$219 -> 0 | AL248: 0 | AM248: 0 | AN248: 0 | AO248: 0 | AP248: 0 | AQ248: 0 | AR248: 0 | AS248: 0 | AT248: 0 | AU248: 0 | AV248: 0 | AW248: 0 | AX248: 0 | AY248: 0 | AZ248: 0 | BA248: 0 | BB248: 0 | BC248: 0 | BD248: 0 | BE248: 0 | BF248: 0 | BG248: 0 | BH248: 0 | BI248: 0 | BJ248: 0 | BK248: 0 | BL248: 0 | BM248: 0 | BN248: 0 | BO248: 0 | BP248: 0 | BQ248: 0
E249: =E$238 -> Delayed PSC - 1st post-operations period flag | F249: 0 | G249: flag | H249: 1 | I249: 0 | J249: 0 | K249: 0 | L249: 0 | M249: 0 | N249: 0 | O249: 0 | P249: 0 | Q249: 0 | R249: 0 | S249: 0 | T249: 0 | U249: 0 | V249: 0 | W249: 0 | X249: 0 | Y249: 0 | Z249: 0 | AA249: 0 | AB249: 0 | AC249: 0 | AD249: 0 | AE249: 0 | AF249: 0 | AG249: 0 | AH249: 0 | AI249: 0 | AJ249: 0 | AK249: =AK$238 -> 0 | AL249: 0 | AM249: 0 | AN249: 0 | AO249: 0 | AP249: 0 | AQ249: 0 | AR249: 0 | AS249: 0 | AT249: 0 | AU249: 0 | AV249: 0 | AW249: 0 | AX249: 0 | AY249: 0 | AZ249: 0 | BA249: 0 | BB249: 0 | BC249: 0 | BD249: 1 | BE249: 0 | BF249: 0 | BG249: 0 | BH249: 0 | BI249: 0 | BJ249: 0 | BK249: 0 | BL249: 0 | BM249: 0 | BN249: 0 | BO249: 0 | BP249: 0 | BQ249: 0
E250: Delayed PSC - Timeline label counter | G250: counter | J250: =I250 + SUM(J245:J249) -> 1 | K250: 1 | L250: 1 | M250: 1 | N250: 1 | O250: 2 | P250: 2 | Q250: 3 | R250: 3 | S250: 3 | T250: 3 | U250: 4 | V250: 4 | W250: 4 | X250: 4 | Y250: 4 | Z250: 4 | AA250: 4 | AB250: 4 | AC250: 4 | AD250: 4 | AE250: 4 | AF250: 4 | AG250: 4 | AH250: 4 | AI250: 4 | AJ250: 4 | AK250: 4 | AL250: 4 | AM250: 4 | AN250: 4 | AO250: 4 | AP250: =AO250 + SUM(AP245:AP249) -> 4 | AQ250: 4 | AR250: 4 | AS250: 4 | AT250: 4 | AU250: 4 | AV250: 4 | AW250: 4 | AX250: 4 | AY250: 4 | AZ250: 4 | BA250: 4 | BB250: 4 | BC250: 4 | BD250: 5 | BE250: 5 | BF250: 5 | BG250: 5 | BH250: 5 | BI250: 5 | BJ250: 5 | BK250: 5 | BL250: 5 | BM250: 5 | BN250: 5 | BO250: 5 | BP250: 5 | BQ250: 5
... 237 more rows

Sheet Construction
A1: =RIGHT(CELL("FILENAME", $A$1), LEN(CELL("FILENAME", $A$1)) - SEARCH("]", CELL("FILENAME", $A$1))) -> Construction | F1: ="Active Case - " & ACTIVE_CASE_NAME & " => " & VIEW_MODE -> Active Case - PSC: Tolled, P3: Toll concession => Detailed Level View
E2: ='Time&Esc'!E$88 -> Financial year ending | G2: =Checks!$F$7 -> 0 | J2: ='Time&Esc'!J$88 -> 2020 | K2: ='Time&Esc'!K$88 -> 2021 | L2: ='Time&Esc'!L$88 -> 2022 | M2: ='Time&Esc'!M$88 -> 2023 | N2: ='Time&Esc'!N$88 -> 2024 | O2: ='Time&Esc'!O$88 -> 2025 | P2: ='Time&Esc'!P$88 -> 2026 | Q2: ='Time&Esc'!Q$88 -> 2027 | R2: ='Time&Esc'!R$88 -> 2028 | S2: ='Time&Esc'!S$88 -> 2029 | T2: ='Time&Esc'!T$88 -> 2030 | U2: ='Time&Esc'!U$88 -> 2031 | V2: ='Time&Esc'!V$88 -> 2032 | W2: ='Time&Esc'!W$88 -> 2033 | X2: ='Time&Esc'!X$88 -> 2034 | Y2: ='Time&Esc'!Y$88 -> 2035 | Z2: ='Time&Esc'!Z$88 -> 2036 | AA2: ='Time&Esc'!AA$88 -> 2037 | AB2: ='Time&Esc'!AB$88 -> 2038 | AC2: ='Time&Esc'!AC$88 -> 2039 | AD2: ='Time&Esc'!AD$88 -> 2040 | AE2: ='Time&Esc'!AE$88 -> 2041 | AF2: ='Time&Esc'!AF$88 -> 2042 | AG2: ='Time&Esc'!AG$88 -> 2043 | AH2: ='Time&Esc'!AH$88 -> 2044 | AI2: ='Time&Esc'!AI$88 -> 2045 | AJ2: ='Time&Esc'!AJ$88 -> 2046 | AK2: ='Time&Esc'!AK$88 -> 2047 | AL2: ='Time&Esc'!AL$88 -> 2048 | AM2: ='Time&Esc'!AM$88 -> 2049 | AN2: ='Time&Esc'!AN$88 -> 2050 | AO2: ='Time&Esc'!AO$88 -> 2051 | AP2: ='Time&Esc'!AP$88 -> 2052 | AQ2: ='Time&Esc'!AQ$88 -> 2053 | AR2: ='Time&Esc'!AR$88 -> 2054 | AS2: ='Time&Esc'!AS$88 -> 2055 | AT2: ='Time&Esc'!AT$88 -> 2056 | AU2: ='Time&Esc'!AU$88 -> 2057 | AV2: ='Time&Esc'!AV$88 -> 2058 | AW2: ='Time&Esc'!AW$88 -> 2059 | AX2: ='Time&Esc'!AX$88 -> 2060 | AY2: ='Time&Esc'!AY$88 -> 2061 | AZ2: ='Time&Esc'!AZ$88 -> 2062 | BA2: ='Time&Esc'!BA$88 -> 2063 | BB2: ='Time&Esc'!BB$88 -> 2064 | BC2: ='Time&Esc'!BC$88 -> 2065 | BD2: ='Time&Esc'!BD$88 -> 2066 | BE2: ='Time&Esc'!BE$88 -> 2067 | BF2: ='Time&Esc'!BF$88 -> 2068 | BG2: ='Time&Esc'!BG$88 -> 2069 | BH2: ='Time&Esc'!BH$88 -> 2070 | BI2: ='Time&Esc'!BI$88 -> 2071 | BJ2: ='Time&Esc'!BJ$88 -> 2072 | BK2: ='Time&Esc'!BK$88 -> 2073 | BL2: ='Time&Esc'!BL$88 -> 2074 | BM2: ='Time&Esc'!BM$88 -> 2075 | BN2: ='Time&Esc'!BN$88 -> 2076 | BO2: ='Time&Esc'!BO$88 -> 2077 | BP2: ='Time&Esc'!BP$88 -> 2078 | BQ2: ='Time&Esc'!BQ$88 -> 2079
E3: ='Time&Esc'!E$164 -> PSC - Timeline label | G3: =Checks!$F$46 -> 2 | J3: ='Time&Esc'!J$164 -> Pre-Constr. | K3: ='Time&Esc'!K$164 -> Pre-Constr. | L3: ='Time&Esc'!L$164 -> Construction | M3: ='Time&Esc'!M$164 -> Construction | N3: ='Time&Esc'!N$164 -> Construction | O3: ='Time&Esc'!O$164 -> Construction | P3: ='Time&Esc'!P$164 -> Operations | Q3: ='Time&Esc'!Q$164 -> Operations | R3: ='Time&Esc'!R$164 -> Operations | S3: ='Time&Esc'!S$164 -> Operations | T3: ='Time&Esc'!T$164 -> Operations | U3: ='Time&Esc'!U$164 -> Operations | V3: ='Time&Esc'!V$164 -> Operations | W3: ='Time&Esc'!W$164 -> Operations | X3: ='Time&Esc'!X$164 -> Operations | Y3: ='Time&Esc'!Y$164 -> Operations | Z3: ='Time&Esc'!Z$164 -> Operations | AA3: ='Time&Esc'!AA$164 -> Operations | AB3: ='Time&Esc'!AB$164 -> Operations | AC3: ='Time&Esc'!AC$164 -> Operations | AD3: ='Time&Esc'!AD$164 -> Operations | AE3: ='Time&Esc'!AE$164 -> Operations | AF3: ='Time&Esc'!AF$164 -> Operations | AG3: ='Time&Esc'!AG$164 -> Operations | AH3: ='Time&Esc'!AH$164 -> Operations | AI3: ='Time&Esc'!AI$164 -> Operations | AJ3: ='Time&Esc'!AJ$164 -> Operations | AK3: ='Time&Esc'!AK$164 -> Operations | AL3: ='Time&Esc'!AL$164 -> Operations | AM3: ='Time&Esc'!AM$164 -> Operations | AN3: ='Time&Esc'!AN$164 -> Operations | AO3: ='Time&Esc'!AO$164 -> Operations | AP3: ='Time&Esc'!AP$164 -> Operations | AQ3: ='Time&Esc'!AQ$164 -> Operations | AR3: ='Time&Esc'!AR$164 -> Operations | AS3: ='Time&Esc'!AS$164 -> Operations | AT3: ='Time&Esc'!AT$164 -> Operations | AU3: ='Time&Esc'!AU$164 -> Operations | AV3: ='Time&Esc'!AV$164 -> Operations | AW3: ='Time&Esc'!AW$164 -> Operations | AX3: ='Time&Esc'!AX$164 -> Operations | AY3: ='Time&Esc'!AY$164 -> Operations | AZ3: ='Time&Esc'!AZ$164 -> Operations | BA3: ='Time&Esc'!BA$164 -> Operations | BB3: ='Time&Esc'!BB$164 -> Operations | BC3: ='Time&Esc'!BC$164 -> Operations | BD3: ='Time&Esc'!BD$164 -> Post-Ops. | BE3: ='Time&Esc'!BE$164 -> Post-Ops. | BF3: ='Time&Esc'!BF$164 -> Post-Ops. | BG3: ='Time&Esc'!BG$164 -> Post-Ops. | BH3: ='Time&Esc'!BH$164 -> Post-Ops. | BI3: ='Time&Esc'!BI$164 -> Post-Ops. | BJ3: ='Time&Esc'!BJ$164 -> Post-Ops. | BK3: ='Time&Esc'!BK$164 -> Post-Ops. | BL3: ='Time&Esc'!BL$164 -> Post-Ops. | BM3: ='Time&Esc'!BM$164 -> Post-Ops. | BN3: ='Time&Esc'!BN$164 -> Post-Ops. | BO3: ='Time&Esc'!BO$164 -> Post-Ops. | BP3: ='Time&Esc'!BP$164 -> Post-Ops. | BQ3: ='Time&Esc'!BQ$164 -> Post-Ops.
E4: ='Time&Esc'!E$360 -> P3 - Timeline label | G4: =IF(G2 <> 0, "Please optimize model", "") ->  | J4: ='Time&Esc'!J$360 -> Pre-Constr. | K4: ='Time&Esc'!K$360 -> Pre-Constr. | L4: ='Time&Esc'!L$360 -> Construction | M4: ='Time&Esc'!M$360 -> Construction | N4: ='Time&Esc'!N$360 -> Construction | O4: ='Time&Esc'!O$360 -> Operations | P4: ='Time&Esc'!P$360 -> Operations | Q4: ='Time&Esc'!Q$360 -> Operations | R4: ='Time&Esc'!R$360 -> Operations | S4: ='Time&Esc'!S$360 -> Operations | T4: ='Time&Esc'!T$360 -> Operations | U4: ='Time&Esc'!U$360 -> Operations | V4: ='Time&Esc'!V$360 -> Operations | W4: ='Time&Esc'!W$360 -> Operations | X4: ='Time&Esc'!X$360 -> Operations | Y4: ='Time&Esc'!Y$360 -> Operations | Z4: ='Time&Esc'!Z$360 -> Operations | AA4: ='Time&Esc'!AA$360 -> Operations | AB4: ='Time&Esc'!AB$360 -> Operations | AC4: ='Time&Esc'!AC$360 -> Operations | AD4: ='Time&Esc'!AD$360 -> Operations | AE4: ='Time&Esc'!AE$360 -> Operations | AF4: ='Time&Esc'!AF$360 -> Operations | AG4: ='Time&Esc'!AG$360 -> Operations | AH4: ='Time&Esc'!AH$360 -> Operations | AI4: ='Time&Esc'!AI$360 -> Operations | AJ4: ='Time&Esc'!AJ$360 -> Operations | AK4: ='Time&Esc'!AK$360 -> Operations | AL4: ='Time&Esc'!AL$360 -> Operations | AM4: ='Time&Esc'!AM$360 -> Operations | AN4: ='Time&Esc'!AN$360 -> Operations | AO4: ='Time&Esc'!AO$360 -> Operations | AP4: ='Time&Esc'!AP$360 -> Operations | AQ4: ='Time&Esc'!AQ$360 -> Operations | AR4: ='Time&Esc'!AR$360 -> Operations | AS4: ='Time&Esc'!AS$360 -> Operations | AT4: ='Time&Esc'!AT$360 -> Operations | AU4: ='Time&Esc'!AU$360 -> Operations | AV4: ='Time&Esc'!AV$360 -> Operations | AW4: ='Time&Esc'!AW$360 -> Operations | AX4: ='Time&Esc'!AX$360 -> Operations | AY4: ='Time&Esc'!AY$360 -> Operations | AZ4: ='Time&Esc'!AZ$360 -> Operations | BA4: ='Time&Esc'!BA$360 -> Operations | BB4: ='Time&Esc'!BB$360 -> Operations | BC4: ='Time&Esc'!BC$360 -> Operations | BD4: ='Time&Esc'!BD$360 -> Post-Ops. | BE4: ='Time&Esc'!BE$360 -> Post-Ops. | BF4: ='Time&Esc'!BF$360 -> Post-Ops. | BG4: ='Time&Esc'!BG$360 -> Post-Ops. | BH4: ='Time&Esc'!BH$360 -> Post-Ops. | BI4: ='Time&Esc'!BI$360 -> Post-Ops. | BJ4: ='Time&Esc'!BJ$360 -> Post-Ops. | BK4: ='Time&Esc'!BK$360 -> Post-Ops. | BL4: ='Time&Esc'!BL$360 -> Post-Ops. | BM4: ='Time&Esc'!BM$360 -> Post-Ops. | BN4: ='Time&Esc'!BN$360 -> Post-Ops. | BO4: ='Time&Esc'!BO$360 -> Post-Ops. | BP4: ='Time&Esc'!BP$360 -> Post-Ops. | BQ4: ='Time&Esc'!BQ$360 -> Post-Ops.
E5: ='Time&Esc'!E$258 -> Delayed PSC - Timeline label | J5: ='Time&Esc'!J$258 -> Delayed | K5: ='Time&Esc'!K$258 -> Delayed | L5: ='Time&Esc'!L$258 -> Delayed | M5: ='Time&Esc'!M$258 -> Delayed | N5: ='Time&Esc'!N$258 -> Delayed | O5: ='Time&Esc'!O$258 -> Pre-Constr. | P5: ='Time&Esc'!P$258 -> Pre-Constr. | Q5: ='Time&Esc'!Q$258 -> Construction | R5: ='Time&Esc'!R$258 -> Construction | S5: ='Time&Esc'!S$258 -> Construction | T5: ='Time&Esc'!T$258 -> Construction | U5: ='Time&Esc'!U$258 -> Operations | V5: ='Time&Esc'!V$258 -> Operations | W5: ='Time&Esc'!W$258 -> Operations | X5: ='Time&Esc'!X$258 -> Operations | Y5: ='Time&Esc'!Y$258 -> Operations | Z5: ='Time&Esc'!Z$258 -> Operations | AA5: ='Time&Esc'!AA$258 -> Operations | AB5: ='Time&Esc'!AB$258 -> Operations | AC5: ='Time&Esc'!AC$258 -> Operations | AD5: ='Time&Esc'!AD$258 -> Operations | AE5: ='Time&Esc'!AE$258 -> Operations | AF5: ='Time&Esc'!AF$258 -> Operations | AG5: ='Time&Esc'!AG$258 -> Operations | AH5: ='Time&Esc'!AH$258 -> Operations | AI5: ='Time&Esc'!AI$258 -> Operations | AJ5: ='Time&Esc'!AJ$258 -> Operations | AK5: ='Time&Esc'!AK$258 -> Operations | AL5: ='Time&Esc'!AL$258 -> Operations | AM5: ='Time&Esc'!AM$258 -> Operations | AN5: ='Time&Esc'!AN$258 -> Operations | AO5: ='Time&Esc'!AO$258 -> Operations | AP5: ='Time&Esc'!AP$258 -> Operations | AQ5: ='Time&Esc'!AQ$258 -> Operations | AR5: ='Time&Esc'!AR$258 -> Operations | AS5: ='Time&Esc'!AS$258 -> Operations | AT5: ='Time&Esc'!AT$258 -> Operations | AU5: ='Time&Esc'!AU$258 -> Operations | AV5: ='Time&Esc'!AV$258 -> Operations | AW5: ='Time&Esc'!AW$258 -> Operations | AX5: ='Time&Esc'!AX$258 -> Operations | AY5: ='Time&Esc'!AY$258 -> Operations | AZ5: ='Time&Esc'!AZ$258 -> Operations | BA5: ='Time&Esc'!BA$258 -> Operations | BB5: ='Time&Esc'!BB$258 -> Operations | BC5: ='Time&Esc'!BC$258 -> Operations | BD5: ='Time&Esc'!BD$258 -> Post-Ops. | BE5: ='Time&Esc'!BE$258 -> Post-Ops. | BF5: ='Time&Esc'!BF$258 -> Post-Ops. | BG5: ='Time&Esc'!BG$258 -> Post-Ops. | BH5: ='Time&Esc'!BH$258 -> Post-Ops. | BI5: ='Time&Esc'!BI$258 -> Post-Ops. | BJ5: ='Time&Esc'!BJ$258 -> Post-Ops. | BK5: ='Time&Esc'!BK$258 -> Post-Ops. | BL5: ='Time&Esc'!BL$258 -> Post-Ops. | BM5: ='Time&Esc'!BM$258 -> Post-Ops. | BN5: ='Time&Esc'!BN$258 -> Post-Ops. | BO5: ='Time&Esc'!BO$258 -> Post-Ops. | BP5: ='Time&Esc'!BP$258 -> Post-Ops. | BQ5: ='Time&Esc'!BQ$258 -> Post-Ops.
E6: ='Time&Esc'!E$75 -> Model column counter | F6: Constant | G6: Unit | H6: Total | J6: ='Time&Esc'!J$75 -> 1 | K6: ='Time&Esc'!K$75 -> 2 | L6: ='Time&Esc'!L$75 -> 3 | M6: ='Time&Esc'!M$75 -> 4 | N6: ='Time&Esc'!N$75 -> 5 | O6: ='Time&Esc'!O$75 -> 6 | P6: ='Time&Esc'!P$75 -> 7 | Q6: ='Time&Esc'!Q$75 -> 8 | R6: ='Time&Esc'!R$75 -> 9 | S6: ='Time&Esc'!S$75 -> 10 | T6: ='Time&Esc'!T$75 -> 11 | U6: ='Time&Esc'!U$75 -> 12 | V6: ='Time&Esc'!V$75 -> 13 | W6: ='Time&Esc'!W$75 -> 14 | X6: ='Time&Esc'!X$75 -> 15 | Y6: ='Time&Esc'!Y$75 -> 16 | Z6: ='Time&Esc'!Z$75 -> 17 | AA6: ='Time&Esc'!AA$75 -> 18 | AB6: ='Time&Esc'!AB$75 -> 19 | AC6: ='Time&Esc'!AC$75 -> 20 | AD6: ='Time&Esc'!AD$75 -> 21 | AE6: ='Time&Esc'!AE$75 -> 22 | AF6: ='Time&Esc'!AF$75 -> 23 | AG6: ='Time&Esc'!AG$75 -> 24 | AH6: ='Time&Esc'!AH$75 -> 25 | AI6: ='Time&Esc'!AI$75 -> 26 | AJ6: ='Time&Esc'!AJ$75 -> 27 | AK6: ='Time&Esc'!AK$75 -> 28 | AL6: ='Time&Esc'!AL$75 -> 29 | AM6: ='Time&Esc'!AM$75 -> 30 | AN6: ='Time&Esc'!AN$75 -> 31 | AO6: ='Time&Esc'!AO$75 -> 32 | AP6: ='Time&Esc'!AP$75 -> 33 | AQ6: ='Time&Esc'!AQ$75 -> 34 | AR6: ='Time&Esc'!AR$75 -> 35 | AS6: ='Time&Esc'!AS$75 -> 36 | AT6: ='Time&Esc'!AT$75 -> 37 | AU6: ='Time&Esc'!AU$75 -> 38 | AV6: ='Time&Esc'!AV$75 -> 39 | AW6: ='Time&Esc'!AW$75 -> 40 | AX6: ='Time&Esc'!AX$75 -> 41 | AY6: ='Time&Esc'!AY$75 -> 42 | AZ6: ='Time&Esc'!AZ$75 -> 43 | BA6: ='Time&Esc'!BA$75 -> 44 | BB6: ='Time&Esc'!BB$75 -> 45 | BC6: ='Time&Esc'!BC$75 -> 46 | BD6: ='Time&Esc'!BD$75 -> 47 | BE6: ='Time&Esc'!BE$75 -> 48 | BF6: ='Time&Esc'!BF$75 -> 49 | BG6: ='Time&Esc'!BG$75 -> 50 | BH6: ='Time&Esc'!BH$75 -> 51 | BI6: ='Time&Esc'!BI$75 -> 52 | BJ6: ='Time&Esc'!BJ$75 -> 53 | BK6: ='Time&Esc'!BK$75 -> 54 | BL6: ='Time&Esc'!BL$75 -> 55 | BM6: ='Time&Esc'!BM$75 -> 56 | BN6: ='Time&Esc'!BN$75 -> 57 | BO6: ='Time&Esc'!BO$75 -> 58 | BP6: ='Time&Esc'!BP$75 -> 59 | BQ6: ='Time&Esc'!BQ$75 -> 60
A8: PSC - PRE-CONSTRUCTION & IMPLEMENTATION COSTS
A10: PRE-CONSTRUCTION COSTS
B12: Pre-construction costs
E13: ='Project Inputs'!E$137 -> PSC - Project preparation cost | F13: ='Project Inputs'!F$137 -> 25000 | G13: ='Project Inputs'!G$137 -> USD k
E14: ='Project Inputs'!E$138 -> PSC - Public procurement cost (including compensation of losing bids) | F14: ='Project Inputs'!F$138 -> 5000 | G14: ='Project Inputs'!G$138 -> USD k
E15: ='Project Inputs'!E$139 -> PSC - Private procurement cost (costs of winning bid) | F15: ='Project Inputs'!F$139 -> 5000 | G15: ='Project Inputs'!G$139 -> USD k
E17: ='Time&Esc'!E$15 -> PSC - Pre-construction duration | F17: ='Time&Esc'!F$15 -> 2 | G17: ='Time&Esc'!G$15 -> years
E19: ='Time&Esc'!E$100 -> PSC - Pre-construction period flag | F19: ='Time&Esc'!F$100 -> 0 | G19: ='Time&Esc'!G$100 -> flag | H19: ='Time&Esc'!H$100 -> 2 | I19: ='Time&Esc'!I$100 -> 0 | J19: ='Time&Esc'!J$100 -> 1 | K19: ='Time&Esc'!K$100 -> 1 | L19: ='Time&Esc'!L$100 -> 0 | M19: ='Time&Esc'!M$100 -> 0 | N19: ='Time&Esc'!N$100 -> 0 | O19: ='Time&Esc'!O$100 -> 0 | P19: ='Time&Esc'!P$100 -> 0 | Q19: ='Time&Esc'!Q$100 -> 0 | R19: ='Time&Esc'!R$100 -> 0 | S19: ='Time&Esc'!S$100 -> 0 | T19: ='Time&Esc'!T$100 -> 0 | U19: ='Time&Esc'!U$100 -> 0 | V19: ='Time&Esc'!V$100 -> 0 | W19: ='Time&Esc'!W$100 -> 0 | X19: ='Time&Esc'!X$100 -> 0 | Y19: ='Time&Esc'!Y$100 -> 0 | Z19: ='Time&Esc'!Z$100 -> 0 | AA19: ='Time&Esc'!AA$100 -> 0 | AB19: ='Time&Esc'!AB$100 -> 0 | AC19: ='Time&Esc'!AC$100 -> 0 | AD19: ='Time&Esc'!AD$100 -> 0 | AE19: ='Time&Esc'!AE$100 -> 0 | AF19: ='Time&Esc'!AF$100 -> 0 | AG19: ='Time&Esc'!AG$100 -> 0 | AH19: ='Time&Esc'!AH$100 -> 0 | AI19: ='Time&Esc'!AI$100 -> 0 | AJ19: ='Time&Esc'!AJ$100 -> 0 | AK19: ='Time&Esc'!AK$100 -> 0 | AL19: ='Time&Esc'!AL$100 -> 0 | AM19: ='Time&Esc'!AM$100 -> 0 | AN19: ='Time&Esc'!AN$100 -> 0 | AO19: ='Time&Esc'!AO$100 -> 0 | AP19: ='Time&Esc'!AP$100 -> 0 | AQ19: ='Time&Esc'!AQ$100 -> 0 | AR19: ='Time&Esc'!AR$100 -> 0 | AS19: ='Time&Esc'!AS$100 -> 0 | AT19: ='Time&Esc'!AT$100 -> 0 | AU19: ='Time&Esc'!AU$100 -> 0 | AV19: ='Time&Esc'!AV$100 -> 0 | AW19: ='Time&Esc'!AW$100 -> 0 | AX19: ='Time&Esc'!AX$100 -> 0 | AY19: ='Time&Esc'!AY$100 -> 0 | AZ19: ='Time&Esc'!AZ$100 -> 0 | BA19: ='Time&Esc'!BA$100 -> 0 | BB19: ='Time&Esc'!BB$100 -> 0 | BC19: ='Time&Esc'!BC$100 -> 0 | BD19: ='Time&Esc'!BD$100 -> 0 | BE19: ='Time&Esc'!BE$100 -> 0 | BF19: ='Time&Esc'!BF$100 -> 0 | BG19: ='Time&Esc'!BG$100 -> 0 | BH19: ='Time&Esc'!BH$100 -> 0 | BI19: ='Time&Esc'!BI$100 -> 0 | BJ19: ='Time&Esc'!BJ$100 -> 0 | BK19: ='Time&Esc'!BK$100 -> 0 | BL19: ='Time&Esc'!BL$100 -> 0 | BM19: ='Time&Esc'!BM$100 -> 0 | BN19: ='Time&Esc'!BN$100 -> 0 | BO19: ='Time&Esc'!BO$100 -> 0 | BP19: ='Time&Esc'!BP$100 -> 0 | BQ19: ='Time&Esc'!BQ$100 -> 0
E21: ='Time&Esc'!E$675 -> Indexation factor - Implementation | F21: ='Time&Esc'!F$675 -> 0 | G21: ='Time&Esc'!G$675 -> index factor | H21: ='Time&Esc'!H$675 -> 0 | I21: ='Time&Esc'!I$675 -> 0 | J21: ='Time&Esc'!J$675 -> 1 | K21: ='Time&Esc'!K$675 -> 1.02 | L21: ='Time&Esc'!L$675 -> 1.0404 | M21: ='Time&Esc'!M$675 -> 1.061208 | N21: ='Time&Esc'!N$675 -> 1.08243216 | O21: ='Time&Esc'!O$675 -> 1.104080803 | P21: ='Time&Esc'!P$675 -> 1.126162419 | Q21: ='Time&Esc'!Q$675 -> 1.148685668 | R21: ='Time&Esc'!R$675 -> 1.171659381 | S21: ='Time&Esc'!S$675 -> 1.195092569 | T21: ='Time&Esc'!T$675 -> 1.21899442 | U21: ='Time&Esc'!U$675 -> 1.243374308 | V21: ='Time&Esc'!V$675 -> 1.268241795 | W21: ='Time&Esc'!W$675 -> 1.29360663 | X21: ='Time&Esc'!X$675 -> 1.319478763 | Y21: ='Time&Esc'!Y$675 -> 1.345868338 | Z21: ='Time&Esc'!Z$675 -> 1.372785705 | AA21: ='Time&Esc'!AA$675 -> 1.400241419 | AB21: ='Time&Esc'!AB$675 -> 1.428246248 | AC21: ='Time&Esc'!AC$675 -> 1.456811173 | AD21: ='Time&Esc'!AD$675 -> 1.485947396 | AE21: ='Time&Esc'!AE$675 -> 1.515666344 | AF21: ='Time&Esc'!AF$675 -> 1.545979671 | AG21: ='Time&Esc'!AG$675 -> 1.576899264 | AH21: ='Time&Esc'!AH$675 -> 1.608437249 | AI21: ='Time&Esc'!AI$675 -> 1.640605994 | AJ21: ='Time&Esc'!AJ$675 -> 1.673418114 | AK21: ='Time&Esc'!AK$675 -> 1.706886477 | AL21: ='Time&Esc'!AL$675 -> 1.741024206 | AM21: ='Time&Esc'!AM$675 -> 1.77584469 | AN21: ='Time&Esc'!AN$675 -> 1.811361584 | AO21: ='Time&Esc'!AO$675 -> 1.847588816 | AP21: ='Time&Esc'!AP$675 -> 1.884540592 | AQ21: ='Time&Esc'!AQ$675 -> 1.922231404 | AR21: ='Time&Esc'!AR$675 -> 1.960676032 | AS21: ='Time&Esc'!AS$675 -> 1.999889553 | AT21: ='Time&Esc'!AT$675 -> 2.039887344 | AU21: ='Time&Esc'!AU$675 -> 2.080685091 | AV21: ='Time&Esc'!AV$675 -> 2.122298792 | AW21: ='Time&Esc'!AW$675 -> 2.164744768 | AX21: ='Time&Esc'!AX$675 -> 2.208039664 | AY21: ='Time&Esc'!AY$675 -> 2.252200457 | AZ21: ='Time&Esc'!AZ$675 -> 2.297244466 | BA21: ='Time&Esc'!BA$675 -> 2.343189355 | BB21: ='Time&Esc'!BB$675 -> 2.390053142 | BC21: ='Time&Esc'!BC$675 -> 2.437854205 | BD21: ='Time&Esc'!BD$675 -> 2.486611289 | BE21: ='Time&Esc'!BE$675 -> 2.536343515 | BF21: ='Time&Esc'!BF$675 -> 2.587070385 | BG21: ='Time&Esc'!BG$675 -> 2.638811793 | BH21: ='Time&Esc'!BH$675 -> 2.691588029 | BI21: ='Time&Esc'!BI$675 -> 2.74541979 | BJ21: ='Time&Esc'!BJ$675 -> 2.800328185 | BK21: ='Time&Esc'!BK$675 -> 2.856334749 | BL21: ='Time&Esc'!BL$675 -> 2.913461444 | BM21: ='Time&Esc'!BM$675 -> 2.971730673 | BN21: ='Time&Esc'!BN$675 -> 3.031165286 | BO21: ='Time&Esc'!BO$675 -> 3.091788592 | BP21: ='Time&Esc'!BP$675 -> 3.153624364 | BQ21: ='Time&Esc'!BQ$675 -> 3.216696851
E23: =E13 -> PSC - Project preparation cost | G23: USD k | H23: =SUM(J23:BQ23) -> 25250 | J23: =$F13 / $F$17 * J$19 * J$21 -> 12500 | K23: 12750 | L23: 0 | M23: 0 | N23: 0 | O23: 0 | P23: 0 | Q23: 0 | R23: 0 | S23: 0 | T23: 0 | U23: 0 | V23: 0 | W23: 0 | X23: 0 | Y23: 0 | Z23: 0 | AA23: 0 | AB23: 0 | AC23: 0 | AD23: 0 | AE23: 0 | AF23: 0 | AG23: 0 | AH23: 0 | AI23: 0 | AJ23: 0 | AK23: 0 | AL23: 0 | AM23: 0 | AN23: 0 | AO23: 0 | AP23: =$F13 / $F$17 * AP$19 * AP$21 -> 0 | AQ23: 0 | AR23: 0 | AS23: 0 | AT23: 0 | AU23: 0 | AV23: 0 | AW23: 0 | AX23: 0 | AY23: 0 | AZ23: 0 | BA23: 0 | BB23: 0 | BC23: 0 | BD23: 0 | BE23: 0 | BF23: 0 | BG23: 0 | BH23: 0 | BI23: 0 | BJ23: 0 | BK23: 0 | BL23: 0 | BM23: 0 | BN23: 0 | BO23: 0 | BP23: 0 | BQ23: 0
E24: =E14 -> PSC - Public procurement cost (including compensation of losing bids) | G24: USD k | H24: =SUM(J24:BQ24) -> 5050 | J24: =$F14 / $F$17 * J$19 * J$21 -> 2500 | K24: 2550 | L24: 0 | M24: 0 | N24: 0 | O24: 0 | P24: 0 | Q24: 0 | R24: 0 | S24: 0 | T24: 0 | U24: 0 | V24: 0 | W24: 0 | X24: 0 | Y24: 0 | Z24: 0 | AA24: 0 | AB24: 0 | AC24: 0 | AD24: 0 | AE24: 0 | AF24: 0 | AG24: 0 | AH24: 0 | AI24: 0 | AJ24: 0 | AK24: 0 | AL24: 0 | AM24: 0 | AN24: 0 | AO24: 0 | AP24: =$F14 / $F$17 * AP$19 * AP$21 -> 0 | AQ24: 0 | AR24: 0 | AS24: 0 | AT24: 0 | AU24: 0 | AV24: 0 | AW24: 0 | AX24: 0 | AY24: 0 | AZ24: 0 | BA24: 0 | BB24: 0 | BC24: 0 | BD24: 0 | BE24: 0 | BF24: 0 | BG24: 0 | BH24: 0 | BI24: 0 | BJ24: 0 | BK24: 0 | BL24: 0 | BM24: 0 | BN24: 0 | BO24: 0 | BP24: 0 | BQ24: 0
E25: =E15 -> PSC - Private procurement cost (costs of winning bid) | G25: USD k | H25: =SUM(J25:BQ25) -> 5050 | J25: =$F15 / $F$17 * J$19 * J$21 -> 2500 | K25: 2550 | L25: 0 | M25: 0 | N25: 0 | O25: 0 | P25: 0 | Q25: 0 | R25: 0 | S25: 0 | T25: 0 | U25: 0 | V25: 0 | W25: 0 | X25: 0 | Y25: 0 | Z25: 0 | AA25: 0 | AB25: 0 | AC25: 0 | AD25: 0 | AE25: 0 | AF25: 0 | AG25: 0 | AH25: 0 | AI25: 0 | AJ25: 0 | AK25: 0 | AL25: 0 | AM25: 0 | AN25: 0 | AO25: 0 | AP25: =$F15 / $F$17 * AP$19 * AP$21 -> 0 | AQ25: 0 | AR25: 0 | AS25: 0 | AT25: 0 | AU25: 0 | AV25: 0 | AW25: 0 | AX25: 0 | AY25: 0 | AZ25: 0 | BA25: 0 | BB25: 0 | BC25: 0 | BD25: 0 | BE25: 0 | BF25: 0 | BG25: 0 | BH25: 0 | BI25: 0 | BJ25: 0 | BK25: 0 | BL25: 0 | BM25: 0 | BN25: 0 | BO25: 0 | BP25: 0 | BQ25: 0
E27: PSC - Total pre-construction cost | G27: USD k | H27: =SUM(J27:BQ27) -> 35350 | J27: =SUM(J23:J25) -> 17500 | K27: 17850 | L27: 0 | M27: 0 | N27: 0 | O27: 0 | P27: 0 | Q27: 0 | R27: 0 | S27: 0 | T27: 0 | U27: 0 | V27: 0 | W27: 0 | X27: 0 | Y27: 0 | Z27: 0 | AA27: 0 | AB27: 0 | AC27: 0 | AD27: 0 | AE27: 0 | AF27: 0 | AG27: 0 | AH27: 0 | AI27: 0 | AJ27: 0 | AK27: 0 | AL27: 0 | AM27: 0 | AN27: 0 | AO27: 0 | AP27: =SUM(AP23:AP25) -> 0 | AQ27: 0 | AR27: 0 | AS27: 0 | AT27: 0 | AU27: 0 | AV27: 0 | AW27: 0 | AX27: 0 | AY27: 0 | AZ27: 0 | BA27: 0 | BB27: 0 | BC27: 0 | BD27: 0 | BE27: 0 | BF27: 0 | BG27: 0 | BH27: 0 | BI27: 0 | BJ27: 0 | BK27: 0 | BL27: 0 | BM27: 0 | BN27: 0 | BO27: 0 | BP27: 0 | BQ27: 0
E29: =E$27 -> PSC - Total pre-construction cost | F29: =F$27 -> 0 | G29: USD k | H29: 35350 | I29: 0 | J29: 17500 | K29: 17850 | L29: 0 | M29: 0 | N29: 0 | O29: 0 | P29: 0 | Q29: 0 | R29: 0 | S29: 0 | T29: 0 | U29: 0 | V29: 0 | W29: 0 | X29: 0 | Y29: 0 | Z29: 0 | AA29: 0 | AB29: 0 | AC29: 0 | AD29: 0 | AE29: 0 | AF29: 0 | AG29: 0 | AH29: 0 | AI29: 0 | AJ29: 0 | AK29: 0 | AL29: 0 | AM29: 0 | AN29: 0 | AO29: 0 | AP29: 0 | AQ29: 0 | AR29: 0 | AS29: 0 | AT29: 0 | AU29: 0 | AV29: 0 | AW29: 0 | AX29: 0 | AY29: 0 | AZ29: 0 | BA29: 0 | BB29: 0 | BC29: 0 | BD29: 0 | BE29: 0 | BF29: 0 | BG29: 0 | BH29: 0 | BI29: 0 | BJ29: 0 | BK29: 0 | BL29: 0 | BM29: 0 | BN29: 0 | BO29: 0 | BP29: 0 | BQ29: 0
E30: ='Time&Esc'!E$111 -> PSC - Implementation start period flag | F30: ='Time&Esc'!F$111 -> 0 | G30: ='Time&Esc'!G$111 -> flag | H30: ='Time&Esc'!H$111 -> 1 | I30: ='Time&Esc'!I$111 -> 0 | J30: ='Time&Esc'!J$111 -> 0 | K30: ='Time&Esc'!K$111 -> 0 | L30: ='Time&Esc'!L$111 -> 1 | M30: ='Time&Esc'!M$111 -> 0 | N30: ='Time&Esc'!N$111 -> 0 | O30: ='Time&Esc'!O$111 -> 0 | P30: ='Time&Esc'!P$111 -> 0 | Q30: ='Time&Esc'!Q$111 -> 0 | R30: ='Time&Esc'!R$111 -> 0 | S30: ='Time&Esc'!S$111 -> 0 | T30: ='Time&Esc'!T$111 -> 0 | U30: ='Time&Esc'!U$111 -> 0 | V30: ='Time&Esc'!V$111 -> 0 | W30: ='Time&Esc'!W$111 -> 0 | X30: ='Time&Esc'!X$111 -> 0 | Y30: ='Time&Esc'!Y$111 -> 0 | Z30: ='Time&Esc'!Z$111 -> 0 | AA30: ='Time&Esc'!AA$111 -> 0 | AB30: ='Time&Esc'!AB$111 -> 0 | AC30: ='Time&Esc'!AC$111 -> 0 | AD30: ='Time&Esc'!AD$111 -> 0 | AE30: ='Time&Esc'!AE$111 -> 0 | AF30: ='Time&Esc'!AF$111 -> 0 | AG30: ='Time&Esc'!AG$111 -> 0 | AH30: ='Time&Esc'!AH$111 -> 0 | AI30: ='Time&Esc'!AI$111 -> 0 | AJ30: ='Time&Esc'!AJ$111 -> 0 | AK30: ='Time&Esc'!AK$111 -> 0 | AL30: ='Time&Esc'!AL$111 -> 0 | AM30: ='Time&Esc'!AM$111 -> 0 | AN30: ='Time&Esc'!AN$111 -> 0 | AO30: ='Time&Esc'!AO$111 -> 0 | AP30: ='Time&Esc'!AP$111 -> 0 | AQ30: ='Time&Esc'!AQ$111 -> 0 | AR30: ='Time&Esc'!AR$111 -> 0 | AS30: ='Time&Esc'!AS$111 -> 0 | AT30: ='Time&Esc'!AT$111 -> 0 | AU30: ='Time&Esc'!AU$111 -> 0 | AV30: ='Time&Esc'!AV$111 -> 0 | AW30: ='Time&Esc'!AW$111 -> 0 | AX30: ='Time&Esc'!AX$111 -> 0 | AY30: ='Time&Esc'!AY$111 -> 0 | AZ30: ='Time&Esc'!AZ$111 -> 0 | BA30: ='Time&Esc'!BA$111 -> 0 | BB30: ='Time&Esc'!BB$111 -> 0 | BC30: ='Time&Esc'!BC$111 -> 0 | BD30: ='Time&Esc'!BD$111 -> 0 | BE30: ='Time&Esc'!BE$111 -> 0 | BF30: ='Time&Esc'!BF$111 -> 0 | BG30: ='Time&Esc'!BG$111 -> 0 | BH30: ='Time&Esc'!BH$111 -> 0 | BI30: ='Time&Esc'!BI$111 -> 0 | BJ30: ='Time&Esc'!BJ$111 -> 0 | BK30: ='Time&Esc'!BK$111 -> 0 | BL30: ='Time&Esc'!BL$111 -> 0 | BM30: ='Time&Esc'!BM$111 -> 0 | BN30: ='Time&Esc'!BN$111 -> 0 | BO30: ='Time&Esc'!BO$111 -> 0 | BP30: ='Time&Esc'!BP$111 -> 0 | BQ30: ='Time&Esc'!BQ$111 -> 0
E31: PSC - Total pre-construction cost (rolled over to start construction) POS | G31: USD k | H31: =SUM(J31:BQ31) -> 35350 | J31: =SUM($J29:J29) * J30 -> 0 | K31: =SUM($J29:K29) * K30 -> 0 | L31: =SUM($J29:L29) * L30 -> 35350 | M31: =SUM($J29:M29) * M30 -> 0 | N31: =SUM($J29:N29) * N30 -> 0 | O31: =SUM($J29:O29) * O30 -> 0 | P31: =SUM($J29:P29) * P30 -> 0 | Q31: =SUM($J29:Q29) * Q30 -> 0 | R31: =SUM($J29:R29) * R30 -> 0 | S31: =SUM($J29:S29) * S30 -> 0 | T31: =SUM($J29:T29) * T30 -> 0 | U31: =SUM($J29:U29) * U30 -> 0 | V31: =SUM($J29:V29) * V30 -> 0 | W31: =SUM($J29:W29) * W30 -> 0 | X31: =SUM($J29:X29) * X30 -> 0 | Y31: =SUM($J29:Y29) * Y30 -> 0 | Z31: =SUM($J29:Z29) * Z30 -> 0 | AA31: =SUM($J29:AA29) * AA30 -> 0 | AB31: =SUM($J29:AB29) * AB30 -> 0 | AC31: =SUM($J29:AC29) * AC30 -> 0 | AD31: =SUM($J29:AD29) * AD30 -> 0 | AE31: =SUM($J29:AE29) * AE30 -> 0 | AF31: =SUM($J29:AF29) * AF30 -> 0 | AG31: =SUM($J29:AG29) * AG30 -> 0 | AH31: =SUM($J29:AH29) * AH30 -> 0 | AI31: =SUM($J29:AI29) * AI30 -> 0 | AJ31: =SUM($J29:AJ29) * AJ30 -> 0 | AK31: =SUM($J29:AK29) * AK30 -> 0 | AL31: =SUM($J29:AL29) * AL30 -> 0 | AM31: =SUM($J29:AM29) * AM30 -> 0 | AN31: =SUM($J29:AN29) * AN30 -> 0 | AO31: =SUM($J29:AO29) * AO30 -> 0 | AP31: =SUM($J29:AP29) * AP30 -> 0 | AQ31: =SUM($J29:AQ29) * AQ30 -> 0 | AR31: =SUM($J29:AR29) * AR30 -> 0 | AS31: =SUM($J29:AS29) * AS30 -> 0 | AT31: =SUM($J29:AT29) * AT30 -> 0 | AU31: =SUM($J29:AU29) * AU30 -> 0 | AV31: =SUM($J29:AV29) * AV30 -> 0 | AW31: =SUM($J29:AW29) * AW30 -> 0 | AX31: =SUM($J29:AX29) * AX30 -> 0 | AY31: =SUM($J29:AY29) * AY30 -> 0 | AZ31: =SUM($J29:AZ29) * AZ30 -> 0 | BA31: =SUM($J29:BA29) * BA30 -> 0 | BB31: =SUM($J29:BB29) * BB30 -> 0 | BC31: =SUM($J29:BC29) * BC30 -> 0 | BD31: =SUM($J29:BD29) * BD30 -> 0 | BE31: =SUM($J29:BE29) * BE30 -> 0 | BF31: =SUM($J29:BF29) * BF30 -> 0 | BG31: =SUM($J29:BG29) * BG30 -> 0 | BH31: =SUM($J29:BH29) * BH30 -> 0 | BI31: =SUM($J29:BI29) * BI30 -> 0 | BJ31: =SUM($J29:BJ29) * BJ30 -> 0 | BK31: =SUM($J29:BK29) * BK30 -> 0 | BL31: =SUM($J29:BL29) * BL30 -> 0 | BM31: =SUM($J29:BM29) * BM30 -> 0 | BN31: =SUM($J29:BN29) * BN30 -> 0 | BO31: =SUM($J29:BO29) * BO30 -> 0 | BP31: =SUM($J29:BP29) * BP30 -> 0 | BQ31: =SUM($J29:BQ29) * BQ30 -> 0
E32: =LEFT(E31, LEN(E31) - 4) -> PSC - Total pre-construction cost (rolled over to start construction) | F32: CF | G32: USD k | H32: =SUM(J32:BQ32) -> -35350 | J32: =-1 * J31 -> 0 | K32: 0 | L32: -35350 | M32: 0 | N32: 0 | O32: 0 | P32: 0 | Q32: 0 | R32: 0 | S32: 0 | T32: 0 | U32: 0 | V32: 0 | W32: 0 | X32: 0 | Y32: 0 | Z32: 0 | AA32: 0 | AB32: 0 | AC32: 0 | AD32: 0 | AE32: 0 | AF32: 0 | AG32: 0 | AH32: 0 | AI32: 0 | AJ32: 0 | AK32: 0 | AL32: 0 | AM32: =-1 * AM31 -> 0 | AN32: 0 | AO32: 0 | AP32: 0 | AQ32: 0 | AR32: 0 | AS32: 0 | AT32: 0 | AU32: 0 | AV32: 0 | AW32: 0 | AX32: 0 | AY32: 0 | AZ32: 0 | BA32: 0 | BB32: 0 | BC32: 0 | BD32: 0 | BE32: 0 | BF32: 0 | BG32: 0 | BH32: 0 | BI32: 0 | BJ32: 0 | BK32: 0 | BL32: 0 | BM32: 0 | BN32: 0 | BO32: 0 | BP32: 0 | BQ32: 0
B34: Pre-construction costs considered for lifecycle performance risk
E35: ='Project Inputs'!E$182 -> P3 - Project preparation cost - Transferred cost | F35: ='Project Inputs'!F$182 -> 0 | G35: ='Project Inputs'!G$182 -> %
E36: ='Project Inputs'!E$183 -> P3 - Public procurement cost (including compensation of losing bids) - Transferred cost | F36: ='Project Inputs'!F$183 -> 0 | G36: ='Project Inputs'!G$183 -> %
E37: ='Project Inputs'!E$184 -> P3 - Private procurement cost (costs of winning bid) - Transferred cost | F37: ='Project Inputs'!F$184 -> 1 | G37: ='Project Inputs'!G$184 -> %
E39: =E$23 -> PSC - Project preparation cost | F39: 0 | G39: USD k | H39: 25250 | I39: 0 | J39: 12500 | K39: 12750 | L39: 0 | M39: 0 | N39: 0 | O39: 0 | P39: 0 | Q39: 0 | R39: 0 | S39: 0 | T39: 0 | U39: 0 | V39: 0 | W39: 0 | X39: 0 | Y39: 0 | Z39: 0 | AA39: 0 | AB39: 0 | AC39: 0 | AD39: 0 | AE39: 0 | AF39: 0 | AG39: 0 | AH39: 0 | AI39: 0 | AJ39: 0 | AK39: =AK$23 -> 0 | AL39: 0 | AM39: 0 | AN39: 0 | AO39: 0 | AP39: 0 | AQ39: 0 | AR39: 0 | AS39: 0 | AT39: 0 | AU39: 0 | AV39: 0 | AW39: 0 | AX39: 0 | AY39: 0 | AZ39: 0 | BA39: 0 | BB39: 0 | BC39: 0 | BD39: 0 | BE39: 0 | BF39: 0 | BG39: 0 | BH39: 0 | BI39: 0 | BJ39: 0 | BK39: 0 | BL39: 0 | BM39: 0 | BN39: 0 | BO39: 0 | BP39: 0 | BQ39: 0
E40: =E$24 -> PSC - Public procurement cost (including compensation of losing bids) | F40: =F$24 -> 0 | G40: USD k | H40: 5050 | I40: 0 | J40: 2500 | K40: 2550 | L40: 0 | M40: 0 | N40: 0 | O40: 0 | P40: 0 | Q40: 0 | R40: 0 | S40: 0 | T40: 0 | U40: 0 | V40: 0 | W40: 0 | X40: 0 | Y40: 0 | Z40: 0 | AA40: 0 | AB40: 0 | AC40: 0 | AD40: 0 | AE40: 0 | AF40: 0 | AG40: 0 | AH40: 0 | AI40: 0 | AJ40: 0 | AK40: 0 | AL40: 0 | AM40: 0 | AN40: 0 | AO40: 0 | AP40: 0 | AQ40: 0 | AR40: 0 | AS40: 0 | AT40: 0 | AU40: 0 | AV40: 0 | AW40: 0 | AX40: 0 | AY40: 0 | AZ40: 0 | BA40: 0 | BB40: 0 | BC40: 0 | BD40: 0 | BE40: 0 | BF40: 0 | BG40: 0 | BH40: 0 | BI40: 0 | BJ40: 0 | BK40: 0 | BL40: 0 | BM40: 0 | BN40: 0 | BO40: 0 | BP40: 0 | BQ40: 0
E41: =E$25 -> PSC - Private procurement cost (costs of winning bid) | F41: =F$25 -> 0 | G41: USD k | H41: 5050 | I41: 0 | J41: 2500 | K41: 2550 | L41: 0 | M41: 0 | N41: 0 | O41: 0 | P41: 0 | Q41: 0 | R41: 0 | S41: 0 | T41: 0 | U41: 0 | V41: 0 | W41: 0 | X41: 0 | Y41: 0 | Z41: 0 | AA41: 0 | AB41: 0 | AC41: 0 | AD41: 0 | AE41: 0 | AF41: 0 | AG41: 0 | AH41: 0 | AI41: 0 | AJ41: 0 | AK41: 0 | AL41: 0 | AM41: 0 | AN41: 0 | AO41: 0 | AP41: 0 | AQ41: 0 | AR41: 0 | AS41: 0 | AT41: 0 | AU41: 0 | AV41: 0 | AW41: 0 | AX41: 0 | AY41: 0 | AZ41: 0 | BA41: 0 | BB41: 0 | BC41: 0 | BD41: 0 | BE41: 0 | BF41: 0 | BG41: 0 | BH41: 0 | BI41: 0 | BJ41: 0 | BK41: 0 | BL41: 0 | BM41: 0 | BN41: 0 | BO41: 0 | BP41: 0 | BQ41: 0
E43: =E39 & " - Transferred cost*" -> PSC - Project preparation cost - Transferred cost* | G43: USD k | H43: =SUM(J43:BQ43) -> 0 | J43: =$F35 * J39 -> 0 | K43: 0 | L43: 0 | M43: 0 | N43: 0 | O43: 0 | P43: 0 | Q43: 0 | R43: 0 | S43: 0 | T43: 0 | U43: 0 | V43: 0 | W43: 0 | X43: 0 | Y43: 0 | Z43: 0 | AA43: 0 | AB43: 0 | AC43: 0 | AD43: 0 | AE43: 0 | AF43: 0 | AG43: 0 | AH43: 0 | AI43: 0 | AJ43: 0 | AK43: 0 | AL43: 0 | AM43: 0 | AN43: 0 | AO43: 0 | AP43: =$F35 * AP39 -> 0 | AQ43: 0 | AR43: 0 | AS43: 0 | AT43: 0 | AU43: 0 | AV43: 0 | AW43: 0 | AX43: 0 | AY43: 0 | AZ43: 0 | BA43: 0 | BB43: 0 | BC43: 0 | BD43: 0 | BE43: 0 | BF43: 0 | BG43: 0 | BH43: 0 | BI43: 0 | BJ43: 0 | BK43: 0 | BL43: 0 | BM43: 0 | BN43: 0 | BO43: 0 | BP43: 0 | BQ43: 0
E44: =E40 & " - Transferred cost*" -> PSC - Public procurement cost (including compensation of losing bids) - Transferred cost* | G44: USD k | H44: =SUM(J44:BQ44) -> 0 | J44: =$F36 * J40 -> 0 | K44: 0 | L44: 0 | M44: 0 | N44: 0 | O44: 0 | P44: 0 | Q44: 0 | R44: 0 | S44: 0 | T44: 0 | U44: 0 | V44: 0 | W44: 0 | X44: 0 | Y44: 0 | Z44: 0 | AA44: 0 | AB44: 0 | AC44: 0 | AD44: 0 | AE44: 0 | AF44: 0 | AG44: 0 | AH44: 0 | AI44: 0 | AJ44: 0 | AK44: 0 | AL44: 0 | AM44: 0 | AN44: 0 | AO44: 0 | AP44: =$F36 * AP40 -> 0 | AQ44: 0 | AR44: 0 | AS44: 0 | AT44: 0 | AU44: 0 | AV44: 0 | AW44: 0 | AX44: 0 | AY44: 0 | AZ44: 0 | BA44: 0 | BB44: 0 | BC44: 0 | BD44: 0 | BE44: 0 | BF44: 0 | BG44: 0 | BH44: 0 | BI44: 0 | BJ44: 0 | BK44: 0 | BL44: 0 | BM44: 0 | BN44: 0 | BO44: 0 | BP44: 0 | BQ44: 0
E45: =E41 & " - Transferred cost*" -> PSC - Private procurement cost (costs of winning bid) - Transferred cost* | G45: USD k | H45: =SUM(J45:BQ45) -> 5050 | J45: =$F37 * J41 -> 2500 | K45: 2550 | L45: 0 | M45: 0 | N45: 0 | O45: 0 | P45: 0 | Q45: 0 | R45: 0 | S45: 0 | T45: 0 | U45: 0 | V45: 0 | W45: 0 | X45: 0 | Y45: 0 | Z45: 0 | AA45: 0 | AB45: 0 | AC45: 0 | AD45: 0 | AE45: 0 | AF45: 0 | AG45: 0 | AH45: 0 | AI45: 0 | AJ45: 0 | AK45: 0 | AL45: 0 | AM45: 0 | AN45: 0 | AO45: 0 | AP45: =$F37 * AP41 -> 0 | AQ45: 0 | AR45: 0 | AS45: 0 | AT45: 0 | AU45: 0 | AV45: 0 | AW45: 0 | AX45: 0 | AY45: 0 | AZ45: 0 | BA45: 0 | BB45: 0 | BC45: 0 | BD45: 0 | BE45: 0 | BF45: 0 | BG45: 0 | BH45: 0 | BI45: 0 | BJ45: 0 | BK45: 0 | BL45: 0 | BM45: 0 | BN45: 0 | BO45: 0 | BP45: 0 | BQ45: 0
E47: PSC - Total pre-construction cost considered for lifecycle performance risk | G47: USD k | H47: =SUM(J47:BQ47) -> 5050 | J47: =SUM(J43:J45) -> 2500 | K47: 2550 | L47: 0 | M47: 0 | N47: 0 | O47: 0 | P47: 0 | Q47: 0 | R47: 0 | S47: 0 | T47: 0 | U47: 0 | V47: 0 | W47: 0 | X47: 0 | Y47: 0 | Z47: 0 | AA47: 0 | AB47: 0 | AC47: 0 | AD47: 0 | AE47: 0 | AF47: 0 | AG47: 0 | AH47: 0 | AI47: 0 | AJ47: 0 | AK47: 0 | AL47: 0 | AM47: 0 | AN47: 0 | AO47: 0 | AP47: =SUM(AP43:AP45) -> 0 | AQ47: 0 | AR47: 0 | AS47: 0 | AT47: 0 | AU47: 0 | AV47: 0 | AW47: 0 | AX47: 0 | AY47: 0 | AZ47: 0 | BA47: 0 | BB47: 0 | BC47: 0 | BD47: 0 | BE47: 0 | BF47: 0 | BG47: 0 | BH47: 0 | BI47: 0 | BJ47: 0 | BK47: 0 | BL47: 0 | BM47: 0 | BN47: 0 | BO47: 0 | BP47: 0 | BQ47: 0
E49: =E$47 -> PSC - Total pre-construction cost considered for lifecycle performance risk | F49: =F$47 -> 0 | G49: USD k | H49: 5050 | I49: 0 | J49: 2500 | K49: 2550 | L49: 0 | M49: 0 | N49: 0 | O49: 0 | P49: 0 | Q49: 0 | R49: 0 | S49: 0 | T49: 0 | U49: 0 | V49: 0 | W49: 0 | X49: 0 | Y49: 0 | Z49: 0 | AA49: 0 | AB49: 0 | AC49: 0 | AD49: 0 | AE49: 0 | AF49: 0 | AG49: 0 | AH49: 0 | AI49: 0 | AJ49: 0 | AK49: 0 | AL49: 0 | AM49: 0 | AN49: 0 | AO49: 0 | AP49: 0 | AQ49: 0 | AR49: 0 | AS49: 0 | AT49: 0 | AU49: 0 | AV49: 0 | AW49: 0 | AX49: 0 | AY49: 0 | AZ49: 0 | BA49: 0 | BB49: 0 | BC49: 0 | BD49: 0 | BE49: 0 | BF49: 0 | BG49: 0 | BH49: 0 | BI49: 0 | BJ49: 0 | BK49: 0 | BL49: 0 | BM49: 0 | BN49: 0 | BO49: 0 | BP49: 0 | BQ49: 0
E50: ='Time&Esc'!E$111 -> PSC - Implementation start period flag | F50: ='Time&Esc'!F$111 -> 0 | G50: ='Time&Esc'!G$111 -> flag | H50: ='Time&Esc'!H$111 -> 1 | I50: ='Time&Esc'!I$111 -> 0 | J50: ='Time&Esc'!J$111 -> 0 | K50: ='Time&Esc'!K$111 -> 0 | L50: ='Time&Esc'!L$111 -> 1 | M50: ='Time&Esc'!M$111 -> 0 | N50: ='Time&Esc'!N$111 -> 0 | O50: ='Time&Esc'!O$111 -> 0 | P50: ='Time&Esc'!P$111 -> 0 | Q50: ='Time&Esc'!Q$111 -> 0 | R50: ='Time&Esc'!R$111 -> 0 | S50: ='Time&Esc'!S$111 -> 0 | T50: ='Time&Esc'!T$111 -> 0 | U50: ='Time&Esc'!U$111 -> 0 | V50: ='Time&Esc'!V$111 -> 0 | W50: ='Time&Esc'!W$111 -> 0 | X50: ='Time&Esc'!X$111 -> 0 | Y50: ='Time&Esc'!Y$111 -> 0 | Z50: ='Time&Esc'!Z$111 -> 0 | AA50: ='Time&Esc'!AA$111 -> 0 | AB50: ='Time&Esc'!AB$111 -> 0 | AC50: ='Time&Esc'!AC$111 -> 0 | AD50: ='Time&Esc'!AD$111 -> 0 | AE50: ='Time&Esc'!AE$111 -> 0 | AF50: ='Time&Esc'!AF$111 -> 0 | AG50: ='Time&Esc'!AG$111 -> 0 | AH50: ='Time&Esc'!AH$111 -> 0 | AI50: ='Time&Esc'!AI$111 -> 0 | AJ50: ='Time&Esc'!AJ$111 -> 0 | AK50: ='Time&Esc'!AK$111 -> 0 | AL50: ='Time&Esc'!AL$111 -> 0 | AM50: ='Time&Esc'!AM$111 -> 0 | AN50: ='Time&Esc'!AN$111 -> 0 | AO50: ='Time&Esc'!AO$111 -> 0 | AP50: ='Time&Esc'!AP$111 -> 0 | AQ50: ='Time&Esc'!AQ$111 -> 0 | AR50: ='Time&Esc'!AR$111 -> 0 | AS50: ='Time&Esc'!AS$111 -> 0 | AT50: ='Time&Esc'!AT$111 -> 0 | AU50: ='Time&Esc'!AU$111 -> 0 | AV50: ='Time&Esc'!AV$111 -> 0 | AW50: ='Time&Esc'!AW$111 -> 0 | AX50: ='Time&Esc'!AX$111 -> 0 | AY50: ='Time&Esc'!AY$111 -> 0 | AZ50: ='Time&Esc'!AZ$111 -> 0 | BA50: ='Time&Esc'!BA$111 -> 0 | BB50: ='Time&Esc'!BB$111 -> 0 | BC50: ='Time&Esc'!BC$111 -> 0 | BD50: ='Time&Esc'!BD$111 -> 0 | BE50: ='Time&Esc'!BE$111 -> 0 | BF50: ='Time&Esc'!BF$111 -> 0 | BG50: ='Time&Esc'!BG$111 -> 0 | BH50: ='Time&Esc'!BH$111 -> 0 | BI50: ='Time&Esc'!BI$111 -> 0 | BJ50: ='Time&Esc'!BJ$111 -> 0 | BK50: ='Time&Esc'!BK$111 -> 0 | BL50: ='Time&Esc'!BL$111 -> 0 | BM50: ='Time&Esc'!BM$111 -> 0 | BN50: ='Time&Esc'!BN$111 -> 0 | BO50: ='Time&Esc'!BO$111 -> 0 | BP50: ='Time&Esc'!BP$111 -> 0 | BQ50: ='Time&Esc'!BQ$111 -> 0
E51: PSC - Total pre-construction cost considered for lifecycle performance risk (rolled over to start construction) | G51: USD k | H51: =SUM(J51:BQ51) -> 5050 | J51: =SUM($J49:J49) * J50 -> 0 | K51: =SUM($J49:K49) * K50 -> 0 | L51: =SUM($J49:L49) * L50 -> 5050 | M51: =SUM($J49:M49) * M50 -> 0 | N51: =SUM($J49:N49) * N50 -> 0 | O51: =SUM($J49:O49) * O50 -> 0 | P51: =SUM($J49:P49) * P50 -> 0 | Q51: =SUM($J49:Q49) * Q50 -> 0 | R51: =SUM($J49:R49) * R50 -> 0 | S51: =SUM($J49:S49) * S50 -> 0 | T51: =SUM($J49:T49) * T50 -> 0 | U51: =SUM($J49:U49) * U50 -> 0 | V51: =SUM($J49:V49) * V50 -> 0 | W51: =SUM($J49:W49) * W50 -> 0 | X51: =SUM($J49:X49) * X50 -> 0 | Y51: =SUM($J49:Y49) * Y50 -> 0 | Z51: =SUM($J49:Z49) * Z50 -> 0 | AA51: =SUM($J49:AA49) * AA50 -> 0 | AB51: =SUM($J49:AB49) * AB50 -> 0 | AC51: =SUM($J49:AC49) * AC50 -> 0 | AD51: =SUM($J49:AD49) * AD50 -> 0 | AE51: =SUM($J49:AE49) * AE50 -> 0 | AF51: =SUM($J49:AF49) * AF50 -> 0 | AG51: =SUM($J49:AG49) * AG50 -> 0 | AH51: =SUM($J49:AH49) * AH50 -> 0 | AI51: =SUM($J49:AI49) * AI50 -> 0 | AJ51: =SUM($J49:AJ49) * AJ50 -> 0 | AK51: =SUM($J49:AK49) * AK50 -> 0 | AL51: =SUM($J49:AL49) * AL50 -> 0 | AM51: =SUM($J49:AM49) * AM50 -> 0 | AN51: =SUM($J49:AN49) * AN50 -> 0 | AO51: =SUM($J49:AO49) * AO50 -> 0 | AP51: =SUM($J49:AP49) * AP50 -> 0 | AQ51: =SUM($J49:AQ49) * AQ50 -> 0 | AR51: =SUM($J49:AR49) * AR50 -> 0 | AS51: =SUM($J49:AS49) * AS50 -> 0 | AT51: =SUM($J49:AT49) * AT50 -> 0 | AU51: =SUM($J49:AU49) * AU50 -> 0 | AV51: =SUM($J49:AV49) * AV50 -> 0 | AW51: =SUM($J49:AW49) * AW50 -> 0 | AX51: =SUM($J49:AX49) * AX50 -> 0 | AY51: =SUM($J49:AY49) * AY50 -> 0 | AZ51: =SUM($J49:AZ49) * AZ50 -> 0 | BA51: =SUM($J49:BA49) * BA50 -> 0 | BB51: =SUM($J49:BB49) * BB50 -> 0 | BC51: =SUM($J49:BC49) * BC50 -> 0 | BD51: =SUM($J49:BD49) * BD50 -> 0 | BE51: =SUM($J49:BE49) * BE50 -> 0 | BF51: =SUM($J49:BF49) * BF50 -> 0 | BG51: =SUM($J49:BG49) * BG50 -> 0 | BH51: =SUM($J49:BH49) * BH50 -> 0 | BI51: =SUM($J49:BI49) * BI50 -> 0 | BJ51: =SUM($J49:BJ49) * BJ50 -> 0 | BK51: =SUM($J49:BK49) * BK50 -> 0 | BL51: =SUM($J49:BL49) * BL50 -> 0 | BM51: =SUM($J49:BM49) * BM50 -> 0 | BN51: =SUM($J49:BN49) * BN50 -> 0 | BO51: =SUM($J49:BO49) * BO50 -> 0 | BP51: =SUM($J49:BP49) * BP50 -> 0 | BQ51: =SUM($J49:BQ49) * BQ50 -> 0
B53: Real pre-construction cost
E54: =E$27 -> PSC - Total pre-construction cost | F54: =F$27 -> 0 | G54: USD k | H54: 35350 | I54: 0 | J54: 17500 | K54: 17850 | L54: 0 | M54: 0 | N54: 0 | O54: 0 | P54: 0 | Q54: 0 | R54: 0 | S54: 0 | T54: 0 | U54: 0 | V54: 0 | W54: 0 | X54: 0 | Y54: 0 | Z54: 0 | AA54: 0 | AB54: 0 | AC54: 0 | AD54: 0 | AE54: 0 | AF54: 0 | AG54: 0 | AH54: 0 | AI54: 0 | AJ54: 0 | AK54: 0 | AL54: 0 | AM54: 0 | AN54: 0 | AO54: 0 | AP54: 0 | AQ54: 0 | AR54: 0 | AS54: 0 | AT54: 0 | AU54: 0 | AV54: 0 | AW54: 0 | AX54: 0 | AY54: 0 | AZ54: 0 | BA54: 0 | BB54: 0 | BC54: 0 | BD54: 0 | BE54: 0 | BF54: 0 | BG54: 0 | BH54: 0 | BI54: 0 | BJ54: 0 | BK54: 0 | BL54: 0 | BM54: 0 | BN54: 0 | BO54: 0 | BP54: 0 | BQ54: 0
E55: ='Time&Esc'!E$675 -> Indexation factor - Implementation | F55: ='Time&Esc'!F$675 -> 0 | G55: ='Time&Esc'!G$675 -> index factor | H55: ='Time&Esc'!H$675 -> 0 | I55: ='Time&Esc'!I$675 -> 0 | J55: ='Time&Esc'!J$675 -> 1 | K55: ='Time&Esc'!K$675 -> 1.02 | L55: ='Time&Esc'!L$675 -> 1.0404 | M55: ='Time&Esc'!M$675 -> 1.061208 | N55: ='Time&Esc'!N$675 -> 1.08243216 | O55: ='Time&Esc'!O$675 -> 1.104080803 | P55: ='Time&Esc'!P$675 -> 1.126162419 | Q55: ='Time&Esc'!Q$675 -> 1.148685668 | R55: ='Time&Esc'!R$675 -> 1.171659381 | S55: ='Time&Esc'!S$675 -> 1.195092569 | T55: ='Time&Esc'!T$675 -> 1.21899442 | U55: ='Time&Esc'!U$675 -> 1.243374308 | V55: ='Time&Esc'!V$675 -> 1.268241795 | W55: ='Time&Esc'!W$675 -> 1.29360663 | X55: ='Time&Esc'!X$675 -> 1.319478763 | Y55: ='Time&Esc'!Y$675 -> 1.345868338 | Z55: ='Time&Esc'!Z$675 -> 1.372785705 | AA55: ='Time&Esc'!AA$675 -> 1.400241419 | AB55: ='Time&Esc'!AB$675 -> 1.428246248 | AC55: ='Time&Esc'!AC$675 -> 1.456811173 | AD55: ='Time&Esc'!AD$675 -> 1.485947396 | AE55: ='Time&Esc'!AE$675 -> 1.515666344 | AF55: ='Time&Esc'!AF$675 -> 1.545979671 | AG55: ='Time&Esc'!AG$675 -> 1.576899264 | AH55: ='Time&Esc'!AH$675 -> 1.608437249 | AI55: ='Time&Esc'!AI$675 -> 1.640605994 | AJ55: ='Time&Esc'!AJ$675 -> 1.673418114 | AK55: ='Time&Esc'!AK$675 -> 1.706886477 | AL55: ='Time&Esc'!AL$675 -> 1.741024206 | AM55: ='Time&Esc'!AM$675 -> 1.77584469 | AN55: ='Time&Esc'!AN$675 -> 1.811361584 | AO55: ='Time&Esc'!AO$675 -> 1.847588816 | AP55: ='Time&Esc'!AP$675 -> 1.884540592 | AQ55: ='Time&Esc'!AQ$675 -> 1.922231404 | AR55: ='Time&Esc'!AR$675 -> 1.960676032 | AS55: ='Time&Esc'!AS$675 -> 1.999889553 | AT55: ='Time&Esc'!AT$675 -> 2.039887344 | AU55: ='Time&Esc'!AU$675 -> 2.080685091 | AV55: ='Time&Esc'!AV$675 -> 2.122298792 | AW55: ='Time&Esc'!AW$675 -> 2.164744768 | AX55: ='Time&Esc'!AX$675 -> 2.208039664 | AY55: ='Time&Esc'!AY$675 -> 2.252200457 | AZ55: ='Time&Esc'!AZ$675 -> 2.297244466 | BA55: ='Time&Esc'!BA$675 -> 2.343189355 | BB55: ='Time&Esc'!BB$675 -> 2.390053142 | BC55: ='Time&Esc'!BC$675 -> 2.437854205 | BD55: ='Time&Esc'!BD$675 -> 2.486611289 | BE55: ='Time&Esc'!BE$675 -> 2.536343515 | BF55: ='Time&Esc'!BF$675 -> 2.587070385 | BG55: ='Time&Esc'!BG$675 -> 2.638811793 | BH55: ='Time&Esc'!BH$675 -> 2.691588029 | BI55: ='Time&Esc'!BI$675 -> 2.74541979 | BJ55: ='Time&Esc'!BJ$675 -> 2.800328185 | BK55: ='Time&Esc'!BK$675 -> 2.856334749 | BL55: ='Time&Esc'!BL$675 -> 2.913461444 | BM55: ='Time&Esc'!BM$675 -> 2.971730673 | BN55: ='Time&Esc'!BN$675 -> 3.031165286 | BO55: ='Time&Esc'!BO$675 -> 3.091788592 | BP55: ='Time&Esc'!BP$675 -> 3.153624364 | BQ55: ='Time&Esc'!BQ$675 -> 3.216696851
E56: =E54 & " - real" -> PSC - Total pre-construction cost - real | G56: USD k | H56: =SUM(J56:BQ56) -> 35000 | J56: =IF(J55 = 0, 0, J54 / J55) -> 17500 | K56: =IF(K55 = 0, 0, K54 / K55) -> 17500 | L56: 0 | M56: 0 | N56: 0 | O56: 0 | P56: 0 | Q56: 0 | R56: 0 | S56: 0 | T56: 0 | U56: 0 | V56: 0 | W56: 0 | X56: 0 | Y56: 0 | Z56: 0 | AA56: 0 | AB56: 0 | AC56: 0 | AD56: 0 | AE56: 0 | AF56: 0 | AG56: 0 | AH56: 0 | AI56: 0 | AJ56: 0 | AK56: 0 | AL56: 0 | AM56: 0 | AN56: 0 | AO56: 0 | AP56: 0 | AQ56: 0 | AR56: 0 | AS56: 0 | AT56: 0 | AU56: 0 | AV56: 0 | AW56: 0 | AX56: 0 | AY56: 0 | AZ56: 0 | BA56: 0 | BB56: 0 | BC56: 0 | BD56: 0 | BE56: 0 | BF56: 0 | BG56: 0 | BH56: 0 | BI56: 0 | BJ56: 0 | BK56: 0 | BL56: 0 | BM56: 0 | BN56: 0 | BO56: 0 | BP56: 0 | BQ56: 0
A59: IMPLEMENTATION COSTS
B61: Implementation costs
E62: ='Project Inputs'!E$140 -> PSC - Implementation cost | F62: ='Project Inputs'!F$140 -> 400000 | G62: ='Project Inputs'!G$140 -> USD k
E63: ='Project Inputs'!E$133 -> PSC - Implementation duration | F63: ='Project Inputs'!F$133 -> 4 | G63: ='Project Inputs'!G$133 -> years
E64: ='Time&Esc'!E$119 -> PSC - Implementation period flag | F64: ='Time&Esc'!F$119 -> 0 | G64: ='Time&Esc'!G$119 -> flag | H64: ='Time&Esc'!H$119 -> 4 | I64: ='Time&Esc'!I$119 -> 0 | J64: ='Time&Esc'!J$119 -> 0 | K64: ='Time&Esc'!K$119 -> 0 | L64: ='Time&Esc'!L$119 -> 1 | M64: ='Time&Esc'!M$119 -> 1 | N64: ='Time&Esc'!N$119 -> 1 | O64: ='Time&Esc'!O$119 -> 1 | P64: ='Time&Esc'!P$119 -> 0 | Q64: ='Time&Esc'!Q$119 -> 0 | R64: ='Time&Esc'!R$119 -> 0 | S64: ='Time&Esc'!S$119 -> 0 | T64: ='Time&Esc'!T$119 -> 0 | U64: ='Time&Esc'!U$119 -> 0 | V64: ='Time&Esc'!V$119 -> 0 | W64: ='Time&Esc'!W$119 -> 0 | X64: ='Time&Esc'!X$119 -> 0 | Y64: ='Time&Esc'!Y$119 -> 0 | Z64: ='Time&Esc'!Z$119 -> 0 | AA64: ='Time&Esc'!AA$119 -> 0 | AB64: ='Time&Esc'!AB$119 -> 0 | AC64: ='Time&Esc'!AC$119 -> 0 | AD64: ='Time&Esc'!AD$119 -> 0 | AE64: ='Time&Esc'!AE$119 -> 0 | AF64: ='Time&Esc'!AF$119 -> 0 | AG64: ='Time&Esc'!AG$119 -> 0 | AH64: ='Time&Esc'!AH$119 -> 0 | AI64: ='Time&Esc'!AI$119 -> 0 | AJ64: ='Time&Esc'!AJ$119 -> 0 | AK64: ='Time&Esc'!AK$119 -> 0 | AL64: ='Time&Esc'!AL$119 -> 0 | AM64: ='Time&Esc'!AM$119 -> 0 | AN64: ='Time&Esc'!AN$119 -> 0 | AO64: ='Time&Esc'!AO$119 -> 0 | AP64: ='Time&Esc'!AP$119 -> 0 | AQ64: ='Time&Esc'!AQ$119 -> 0 | AR64: ='Time&Esc'!AR$119 -> 0 | AS64: ='Time&Esc'!AS$119 -> 0 | AT64: ='Time&Esc'!AT$119 -> 0 | AU64: ='Time&Esc'!AU$119 -> 0 | AV64: ='Time&Esc'!AV$119 -> 0 | AW64: ='Time&Esc'!AW$119 -> 0 | AX64: ='Time&Esc'!AX$119 -> 0 | AY64: ='Time&Esc'!AY$119 -> 0 | AZ64: ='Time&Esc'!AZ$119 -> 0 | BA64: ='Time&Esc'!BA$119 -> 0 | BB64: ='Time&Esc'!BB$119 -> 0 | BC64: ='Time&Esc'!BC$119 -> 0 | BD64: ='Time&Esc'!BD$119 -> 0 | BE64: ='Time&Esc'!BE$119 -> 0 | BF64: ='Time&Esc'!BF$119 -> 0 | BG64: ='Time&Esc'!BG$119 -> 0 | BH64: ='Time&Esc'!BH$119 -> 0 | BI64: ='Time&Esc'!BI$119 -> 0 | BJ64: ='Time&Esc'!BJ$119 -> 0 | BK64: ='Time&Esc'!BK$119 -> 0 | BL64: ='Time&Esc'!BL$119 -> 0 | BM64: ='Time&Esc'!BM$119 -> 0 | BN64: ='Time&Esc'!BN$119 -> 0 | BO64: ='Time&Esc'!BO$119 -> 0 | BP64: ='Time&Esc'!BP$119 -> 0 | BQ64: ='Time&Esc'!BQ$119 -> 0
E65: ='Time&Esc'!E$675 -> Indexation factor - Implementation | F65: ='Time&Esc'!F$675 -> 0 | G65: ='Time&Esc'!G$675 -> index factor | H65: ='Time&Esc'!H$675 -> 0 | I65: ='Time&Esc'!I$675 -> 0 | J65: ='Time&Esc'!J$675 -> 1 | K65: ='Time&Esc'!K$675 -> 1.02 | L65: ='Time&Esc'!L$675 -> 1.0404 | M65: ='Time&Esc'!M$675 -> 1.061208 | N65: ='Time&Esc'!N$675 -> 1.08243216 | O65: ='Time&Esc'!O$675 -> 1.104080803 | P65: ='Time&Esc'!P$675 -> 1.126162419 | Q65: ='Time&Esc'!Q$675 -> 1.148685668 | R65: ='Time&Esc'!R$675 -> 1.171659381 | S65: ='Time&Esc'!S$675 -> 1.195092569 | T65: ='Time&Esc'!T$675 -> 1.21899442 | U65: ='Time&Esc'!U$675 -> 1.243374308 | V65: ='Time&Esc'!V$675 -> 1.268241795 | W65: ='Time&Esc'!W$675 -> 1.29360663 | X65: ='Time&Esc'!X$675 -> 1.319478763 | Y65: ='Time&Esc'!Y$675 -> 1.345868338 | Z65: ='Time&Esc'!Z$675 -> 1.372785705 | AA65: ='Time&Esc'!AA$675 -> 1.400241419 | AB65: ='Time&Esc'!AB$675 -> 1.428246248 | AC65: ='Time&Esc'!AC$675 -> 1.456811173 | AD65: ='Time&Esc'!AD$675 -> 1.485947396 | AE65: ='Time&Esc'!AE$675 -> 1.515666344 | AF65: ='Time&Esc'!AF$675 -> 1.545979671 | AG65: ='Time&Esc'!AG$675 -> 1.576899264 | AH65: ='Time&Esc'!AH$675 -> 1.608437249 | AI65: ='Time&Esc'!AI$675 -> 1.640605994 | AJ65: ='Time&Esc'!AJ$675 -> 1.673418114 | AK65: ='Time&Esc'!AK$675 -> 1.706886477 | AL65: ='Time&Esc'!AL$675 -> 1.741024206 | AM65: ='Time&Esc'!AM$675 -> 1.77584469 | AN65: ='Time&Esc'!AN$675 -> 1.811361584 | AO65: ='Time&Esc'!AO$675 -> 1.847588816 | AP65: ='Time&Esc'!AP$675 -> 1.884540592 | AQ65: ='Time&Esc'!AQ$675 -> 1.922231404 | AR65: ='Time&Esc'!AR$675 -> 1.960676032 | AS65: ='Time&Esc'!AS$675 -> 1.999889553 | AT65: ='Time&Esc'!AT$675 -> 2.039887344 | AU65: ='Time&Esc'!AU$675 -> 2.080685091 | AV65: ='Time&Esc'!AV$675 -> 2.122298792 | AW65: ='Time&Esc'!AW$675 -> 2.164744768 | AX65: ='Time&Esc'!AX$675 -> 2.208039664 | AY65: ='Time&Esc'!AY$675 -> 2.252200457 | AZ65: ='Time&Esc'!AZ$675 -> 2.297244466 | BA65: ='Time&Esc'!BA$675 -> 2.343189355 | BB65: ='Time&Esc'!BB$675 -> 2.390053142 | BC65: ='Time&Esc'!BC$675 -> 2.437854205 | BD65: ='Time&Esc'!BD$675 -> 2.486611289 | BE65: ='Time&Esc'!BE$675 -> 2.536343515 | BF65: ='Time&Esc'!BF$675 -> 2.587070385 | BG65: ='Time&Esc'!BG$675 -> 2.638811793 | BH65: ='Time&Esc'!BH$675 -> 2.691588029 | BI65: ='Time&Esc'!BI$675 -> 2.74541979 | BJ65: ='Time&Esc'!BJ$675 -> 2.800328185 | BK65: ='Time&Esc'!BK$675 -> 2.856334749 | BL65: ='Time&Esc'!BL$675 -> 2.913461444 | BM65: ='Time&Esc'!BM$675 -> 2.971730673 | BN65: ='Time&Esc'!BN$675 -> 3.031165286 | BO65: ='Time&Esc'!BO$675 -> 3.091788592 | BP65: ='Time&Esc'!BP$675 -> 3.153624364 | BQ65: ='Time&Esc'!BQ$675 -> 3.216696851
E66: PSC - Implementation cost POS | G66: USD k | H66: =SUM(J66:BQ66) -> 428812.0963 | J66: =$F62 / $F63 * J64 * J65 -> 0 | K66: 0 | L66: 104040 | M66: 106120.8 | N66: 108243.216 | O66: 110408.0803 | P66: 0 | Q66: 0 | R66: 0 | S66: 0 | T66: 0 | U66: 0 | V66: 0 | W66: 0 | X66: 0 | Y66: 0 | Z66: 0 | AA66: 0 | AB66: 0 | AC66: 0 | AD66: 0 | AE66: 0 | AF66: 0 | AG66: 0 | AH66: 0 | AI66: 0 | AJ66: 0 | AK66: 0 | AL66: 0 | AM66: 0 | AN66: 0 | AO66: 0 | AP66: =$F62 / $F63 * AP64 * AP65 -> 0 | AQ66: 0 | AR66: 0 | AS66: 0 | AT66: 0 | AU66: 0 | AV66: 0 | AW66: 0 | AX66: 0 | AY66: 0 | AZ66: 0 | BA66: 0 | BB66: 0 | BC66: 0 | BD66: 0 | BE66: 0 | BF66: 0 | BG66: 0 | BH66: 0 | BI66: 0 | BJ66: 0 | BK66: 0 | BL66: 0 | BM66: 0 | BN66: 0 | BO66: 0 | BP66: 0 | BQ66: 0
E67: =LEFT(E66, LEN(E66) - 4) -> PSC - Implementation cost | F67: CF | G67: USD k | H67: =SUM(J67:BQ67) -> -428812.0963 | J67: =-1 * J66 -> 0 | K67: =-1 * K66 -> 0 | L67: -104040 | M67: -106120.8 | N67: -108243.216 | O67: -110408.0803 | P67: 0 | Q67: 0 | R67: 0 | S67: 0 | T67: 0 | U67: 0 | V67: 0 | W67: 0 | X67: 0 | Y67: 0 | Z67: 0 | AA67: 0 | AB67: 0 | AC67: 0 | AD67: 0 | AE67: 0 | AF67: 0 | AG67: 0 | AH67: 0 | AI67: 0 | AJ67: 0 | AK67: 0 | AL67: 0 | AM67: =-1 * AM66 -> 0 | AN67: 0 | AO67: 0 | AP67: 0 | AQ67: 0 | AR67: 0 | AS67: 0 | AT67: 0 | AU67: 0 | AV67: 0 | AW67: 0 | AX67: 0 | AY67: 0 | AZ67: 0 | BA67: 0 | BB67: 0 | BC67: 0 | BD67: 0 | BE67: 0 | BF67: 0 | BG67: 0 | BH67: 0 | BI67: 0 | BJ67: 0 | BK67: 0 | BL67: 0 | BM67: 0 | BN67: 0 | BO67: 0 | BP67: 0 | BQ67: 0
B69: Implementation costs considered for lifecycle performance risk
E70: ='Project Inputs'!E$185 -> P3 - Implementation cost - Transferred cost | F70: ='Project Inputs'!F$185 -> 1 | G70: ='Project Inputs'!G$185 -> %
E71: =E$66 -> PSC - Implementation cost POS | F71: =F$66 -> 0 | G71: USD k | H71: 428812.0963 | I71: 0 | J71: 0 | K71: 0 | L71: 104040 | M71: 106120.8 | N71: 108243.216 | O71: 110408.0803 | P71: 0 | Q71: 0 | R71: 0 | S71: 0 | T71: 0 | U71: 0 | V71: 0 | W71: 0 | X71: 0 | Y71: 0 | Z71: 0 | AA71: 0 | AB71: 0 | AC71: 0 | AD71: 0 | AE71: 0 | AF71: 0 | AG71: 0 | AH71: 0 | AI71: 0 | AJ71: 0 | AK71: 0 | AL71: 0 | AM71: 0 | AN71: 0 | AO71: 0 | AP71: 0 | AQ71: 0 | AR71: 0 | AS71: 0 | AT71: 0 | AU71: 0 | AV71: 0 | AW71: 0 | AX71: 0 | AY71: 0 | AZ71: 0 | BA71: 0 | BB71: 0 | BC71: 0 | BD71: 0 | BE71: 0 | BF71: 0 | BG71: 0 | BH71: 0 | BI71: 0 | BJ71: 0 | BK71: 0 | BL71: 0 | BM71: 0 | BN71: 0 | BO71: 0 | BP71: 0 | BQ71: 0
E72: PSC - Implementation cost considered for lifecycle performance risk | G72: USD k | H72: =SUM(J72:BQ72) -> 428812.0963 | J72: =$F70 * J71 -> 0 | K72: =$F70 * K71 -> 0 | L72: 104040 | M72: 106120.8 | N72: 108243.216 | O72: 110408.0803 | P72: 0 | Q72: 0 | R72: 0 | S72: 0 | T72: 0 | U72: 0 | V72: 0 | W72: 0 | X72: 0 | Y72: 0 | Z72: 0 | AA72: 0 | AB72: 0 | AC72: 0 | AD72: 0 | AE72: 0 | AF72: 0 | AG72: 0 | AH72: 0 | AI72: 0 | AJ72: 0 | AK72: 0 | AL72: 0 | AM72: 0 | AN72: 0 | AO72: 0 | AP72: 0 | AQ72: 0 | AR72: 0 | AS72: 0 | AT72: 0 | AU72: 0 | AV72: 0 | AW72: 0 | AX72: 0 | AY72: 0 | AZ72: 0 | BA72: 0 | BB72: 0 | BC72: 0 | BD72: 0 | BE72: 0 | BF72: 0 | BG72: 0 | BH72: 0 | BI72: 0 | BJ72: 0 | BK72: 0 | BL72: 0 | BM72: 0 | BN72: 0 | BO72: 0 | BP72: 0 | BQ72: 0
B74: Real implementation costs
E75: =E$66 -> PSC - Implementation cost POS | F75: =F$66 -> 0 | G75: USD k | H75: 428812.0963 | I75: 0 | J75: 0 | K75: 0 | L75: 104040 | M75: 106120.8 | N75: 108243.216 | O75: 110408.0803 | P75: 0 | Q75: 0 | R75: 0 | S75: 0 | T75: 0 | U75: 0 | V75: 0 | W75: 0 | X75: 0 | Y75: 0 | Z75: 0 | AA75: 0 | AB75: 0 | AC75: 0 | AD75: 0 | AE75: 0 | AF75: 0 | AG75: 0 | AH75: 0 | AI75: 0 | AJ75: 0 | AK75: 0 | AL75: 0 | AM75: 0 | AN75: 0 | AO75: 0 | AP75: 0 | AQ75: 0 | AR75: 0 | AS75: 0 | AT75: 0 | AU75: 0 | AV75: 0 | AW75: 0 | AX75: 0 | AY75: 0 | AZ75: 0 | BA75: 0 | BB75: 0 | BC75: 0 | BD75: 0 | BE75: 0 | BF75: 0 | BG75: 0 | BH75: 0 | BI75: 0 | BJ75: 0 | BK75: 0 | BL75: 0 | BM75: 0 | BN75: 0 | BO75: 0 | BP75: 0 | BQ75: 0
E76: ='Time&Esc'!E$675 -> Indexation factor - Implementation | F76: ='Time&Esc'!F$675 -> 0 | G76: ='Time&Esc'!G$675 -> index factor | H76: ='Time&Esc'!H$675 -> 0 | I76: ='Time&Esc'!I$675 -> 0 | J76: ='Time&Esc'!J$675 -> 1 | K76: ='Time&Esc'!K$675 -> 1.02 | L76: ='Time&Esc'!L$675 -> 1.0404 | M76: ='Time&Esc'!M$675 -> 1.061208 | N76: ='Time&Esc'!N$675 -> 1.08243216 | O76: ='Time&Esc'!O$675 -> 1.104080803 | P76: ='Time&Esc'!P$675 -> 1.126162419 | Q76: ='Time&Esc'!Q$675 -> 1.148685668 | R76: ='Time&Esc'!R$675 -> 1.171659381 | S76: ='Time&Esc'!S$675 -> 1.195092569 | T76: ='Time&Esc'!T$675 -> 1.21899442 | U76: ='Time&Esc'!U$675 -> 1.243374308 | V76: ='Time&Esc'!V$675 -> 1.268241795 | W76: ='Time&Esc'!W$675 -> 1.29360663 | X76: ='Time&Esc'!X$675 -> 1.319478763 | Y76: ='Time&Esc'!Y$675 -> 1.345868338 | Z76: ='Time&Esc'!Z$675 -> 1.372785705 | AA76: ='Time&Esc'!AA$675 -> 1.400241419 | AB76: ='Time&Esc'!AB$675 -> 1.428246248 | AC76: ='Time&Esc'!AC$675 -> 1.456811173 | AD76: ='Time&Esc'!AD$675 -> 1.485947396 | AE76: ='Time&Esc'!AE$675 -> 1.515666344 | AF76: ='Time&Esc'!AF$675 -> 1.545979671 | AG76: ='Time&Esc'!AG$675 -> 1.576899264 | AH76: ='Time&Esc'!AH$675 -> 1.608437249 | AI76: ='Time&Esc'!AI$675 -> 1.640605994 | AJ76: ='Time&Esc'!AJ$675 -> 1.673418114 | AK76: ='Time&Esc'!AK$675 -> 1.706886477 | AL76: ='Time&Esc'!AL$675 -> 1.741024206 | AM76: ='Time&Esc'!AM$675 -> 1.77584469 | AN76: ='Time&Esc'!AN$675 -> 1.811361584 | AO76: ='Time&Esc'!AO$675 -> 1.847588816 | AP76: ='Time&Esc'!AP$675 -> 1.884540592 | AQ76: ='Time&Esc'!AQ$675 -> 1.922231404 | AR76: ='Time&Esc'!AR$675 -> 1.960676032 | AS76: ='Time&Esc'!AS$675 -> 1.999889553 | AT76: ='Time&Esc'!AT$675 -> 2.039887344 | AU76: ='Time&Esc'!AU$675 -> 2.080685091 | AV76: ='Time&Esc'!AV$675 -> 2.122298792 | AW76: ='Time&Esc'!AW$675 -> 2.164744768 | AX76: ='Time&Esc'!AX$675 -> 2.208039664 | AY76: ='Time&Esc'!AY$675 -> 2.252200457 | AZ76: ='Time&Esc'!AZ$675 -> 2.297244466 | BA76: ='Time&Esc'!BA$675 -> 2.343189355 | BB76: ='Time&Esc'!BB$675 -> 2.390053142 | BC76: ='Time&Esc'!BC$675 -> 2.437854205 | BD76: ='Time&Esc'!BD$675 -> 2.486611289 | BE76: ='Time&Esc'!BE$675 -> 2.536343515 | BF76: ='Time&Esc'!BF$675 -> 2.587070385 | BG76: ='Time&Esc'!BG$675 -> 2.638811793 | BH76: ='Time&Esc'!BH$675 -> 2.691588029 | BI76: ='Time&Esc'!BI$675 -> 2.74541979 | BJ76: ='Time&Esc'!BJ$675 -> 2.800328185 | BK76: ='Time&Esc'!BK$675 -> 2.856334749 | BL76: ='Time&Esc'!BL$675 -> 2.913461444 | BM76: ='Time&Esc'!BM$675 -> 2.971730673 | BN76: ='Time&Esc'!BN$675 -> 3.031165286 | BO76: ='Time&Esc'!BO$675 -> 3.091788592 | BP76: ='Time&Esc'!BP$675 -> 3.153624364 | BQ76: ='Time&Esc'!BQ$675 -> 3.216696851
E77: =LEFT(E75, LEN(E75) - 4) & " - real" -> PSC - Implementation cost - real | G77: USD k | H77: =SUM(J77:BQ77) -> 400000 | J77: =IF(J$76 = 0, 0, J75 / J$76) -> 0 | K77: 0 | L77: 100000 | M77: 100000 | N77: 100000 | O77: 100000 | P77: 0 | Q77: 0 | R77: 0 | S77: 0 | T77: 0 | U77: 0 | V77: 0 | W77: 0 | X77: 0 | Y77: 0 | Z77: 0 | AA77: 0 | AB77: 0 | AC77: 0 | AD77: 0 | AE77: 0 | AF77: 0 | AG77: 0 | AH77: 0 | AI77: 0 | AJ77: 0 | AK77: 0 | AL77: 0 | AM77: 0 | AN77: 0 | AO77: 0 | AP77: =IF(AP$76 = 0, 0, AP75 / AP$76) -> 0 | AQ77: 0 | AR77: 0 | AS77: 0 | AT77: 0 | AU77: 0 | AV77: 0 | AW77: 0 | AX77: 0 | AY77: 0 | AZ77: 0 | BA77: 0 | BB77: 0 | BC77: 0 | BD77: 0 | BE77: 0 | BF77: 0 | BG77: 0 | BH77: 0 | BI77: 0 | BJ77: 0 | BK77: 0 | BL77: 0 | BM77: 0 | BN77: 0 | BO77: 0 | BP77: 0 | BQ77: 0
A80: DELAYED PSC - PRE-CONSTRUCTION & IMPLEMENTATION COSTS
A82: PRE-CONSTRUCTION COSTS
B84: Pre-construction costs
E85: ='Project Inputs'!E$155 -> Delayed PSC - Project preparation cost | F85: ='Project Inputs'!F$155 -> 25000 | G85: ='Project Inputs'!G$155 -> USD k
E86: ='Project Inputs'!E$156 -> Delayed PSC - Public procurement cost (including compensation of losing bids) | F86: ='Project Inputs'!F$156 -> 5000 | G86: ='Project Inputs'!G$156 -> USD k
E87: ='Project Inputs'!E$157 -> Delayed PSC - Private procurement cost (costs of winning bid) | F87: ='Project Inputs'!F$157 -> 5000 | G87: ='Project Inputs'!G$157 -> USD k
E89: ='Time&Esc'!E$36 -> Delayed PSC - Pre-construction duration | F89: ='Time&Esc'!F$36 -> 2 | G89: ='Time&Esc'!G$36 -> years
E91: ='Time&Esc'!E$194 -> Delayed PSC - Pre-construction period flag | F91: ='Time&Esc'!F$194 -> 0 | G91: ='Time&Esc'!G$194 -> flag | H91: ='Time&Esc'!H$194 -> 2 | I91: ='Time&Esc'!I$194 -> 0 | J91: ='Time&Esc'!J$194 -> 0 | K91: ='Time&Esc'!K$194 -> 0 | L91: ='Time&Esc'!L$194 -> 0 | M91: ='Time&Esc'!M$194 -> 0 | N91: ='Time&Esc'!N$194 -> 0 | O91: ='Time&Esc'!O$194 -> 1 | P91: ='Time&Esc'!P$194 -> 1 | Q91: ='Time&Esc'!Q$194 -> 0 | R91: ='Time&Esc'!R$194 -> 0 | S91: ='Time&Esc'!S$194 -> 0 | T91: ='Time&Esc'!T$194 -> 0 | U91: ='Time&Esc'!U$194 -> 0 | V91: ='Time&Esc'!V$194 -> 0 | W91: ='Time&Esc'!W$194 -> 0 | X91: ='Time&Esc'!X$194 -> 0 | Y91: ='Time&Esc'!Y$194 -> 0 | Z91: ='Time&Esc'!Z$194 -> 0 | AA91: ='Time&Esc'!AA$194 -> 0 | AB91: ='Time&Esc'!AB$194 -> 0 | AC91: ='Time&Esc'!AC$194 -> 0 | AD91: ='Time&Esc'!AD$194 -> 0 | AE91: ='Time&Esc'!AE$194 -> 0 | AF91: ='Time&Esc'!AF$194 -> 0 | AG91: ='Time&Esc'!AG$194 -> 0 | AH91: ='Time&Esc'!AH$194 -> 0 | AI91: ='Time&Esc'!AI$194 -> 0 | AJ91: ='Time&Esc'!AJ$194 -> 0 | AK91: ='Time&Esc'!AK$194 -> 0 | AL91: ='Time&Esc'!AL$194 -> 0 | AM91: ='Time&Esc'!AM$194 -> 0 | AN91: ='Time&Esc'!AN$194 -> 0 | AO91: ='Time&Esc'!AO$194 -> 0 | AP91: ='Time&Esc'!AP$194 -> 0 | AQ91: ='Time&Esc'!AQ$194 -> 0 | AR91: ='Time&Esc'!AR$194 -> 0 | AS91: ='Time&Esc'!AS$194 -> 0 | AT91: ='Time&Esc'!AT$194 -> 0 | AU91: ='Time&Esc'!AU$194 -> 0 | AV91: ='Time&Esc'!AV$194 -> 0 | AW91: ='Time&Esc'!AW$194 -> 0 | AX91: ='Time&Esc'!AX$194 -> 0 | AY91: ='Time&Esc'!AY$194 -> 0 | AZ91: ='Time&Esc'!AZ$194 -> 0 | BA91: ='Time&Esc'!BA$194 -> 0 | BB91: ='Time&Esc'!BB$194 -> 0 | BC91: ='Time&Esc'!BC$194 -> 0 | BD91: ='Time&Esc'!BD$194 -> 0 | BE91: ='Time&Esc'!BE$194 -> 0 | BF91: ='Time&Esc'!BF$194 -> 0 | BG91: ='Time&Esc'!BG$194 -> 0 | BH91: ='Time&Esc'!BH$194 -> 0 | BI91: ='Time&Esc'!BI$194 -> 0 | BJ91: ='Time&Esc'!BJ$194 -> 0 | BK91: ='Time&Esc'!BK$194 -> 0 | BL91: ='Time&Esc'!BL$194 -> 0 | BM91: ='Time&Esc'!BM$194 -> 0 | BN91: ='Time&Esc'!BN$194 -> 0 | BO91: ='Time&Esc'!BO$194 -> 0 | BP91: ='Time&Esc'!BP$194 -> 0 | BQ91: ='Time&Esc'!BQ$194 -> 0
E93: ='Time&Esc'!E$675 -> Indexation factor - Implementation | F93: ='Time&Esc'!F$675 -> 0 | G93: ='Time&Esc'!G$675 -> index factor | H93: ='Time&Esc'!H$675 -> 0 | I93: ='Time&Esc'!I$675 -> 0 | J93: ='Time&Esc'!J$675 -> 1 | K93: ='Time&Esc'!K$675 -> 1.02 | L93: ='Time&Esc'!L$675 -> 1.0404 | M93: ='Time&Esc'!M$675 -> 1.061208 | N93: ='Time&Esc'!N$675 -> 1.08243216 | O93: ='Time&Esc'!O$675 -> 1.104080803 | P93: ='Time&Esc'!P$675 -> 1.126162419 | Q93: ='Time&Esc'!Q$675 -> 1.148685668 | R93: ='Time&Esc'!R$675 -> 1.171659381 | S93: ='Time&Esc'!S$675 -> 1.195092569 | T93: ='Time&Esc'!T$675 -> 1.21899442 | U93: ='Time&Esc'!U$675 -> 1.243374308 | V93: ='Time&Esc'!V$675 -> 1.268241795 | W93: ='Time&Esc'!W$675 -> 1.29360663 | X93: ='Time&Esc'!X$675 -> 1.319478763 | Y93: ='Time&Esc'!Y$675 -> 1.345868338 | Z93: ='Time&Esc'!Z$675 -> 1.372785705 | AA93: ='Time&Esc'!AA$675 -> 1.400241419 | AB93: ='Time&Esc'!AB$675 -> 1.428246248 | AC93: ='Time&Esc'!AC$675 -> 1.456811173 | AD93: ='Time&Esc'!AD$675 -> 1.485947396 | AE93: ='Time&Esc'!AE$675 -> 1.515666344 | AF93: ='Time&Esc'!AF$675 -> 1.545979671 | AG93: ='Time&Esc'!AG$675 -> 1.576899264 | AH93: ='Time&Esc'!AH$675 -> 1.608437249 | AI93: ='Time&Esc'!AI$675 -> 1.640605994 | AJ93: ='Time&Esc'!AJ$675 -> 1.673418114 | AK93: ='Time&Esc'!AK$675 -> 1.706886477 | AL93: ='Time&Esc'!AL$675 -> 1.741024206 | AM93: ='Time&Esc'!AM$675 -> 1.77584469 | AN93: ='Time&Esc'!AN$675 -> 1.811361584 | AO93: ='Time&Esc'!AO$675 -> 1.847588816 | AP93: ='Time&Esc'!AP$675 -> 1.884540592 | AQ93: ='Time&Esc'!AQ$675 -> 1.922231404 | AR93: ='Time&Esc'!AR$675 -> 1.960676032 | AS93: ='Time&Esc'!AS$675 -> 1.999889553 | AT93: ='Time&Esc'!AT$675 -> 2.039887344 | AU93: ='Time&Esc'!AU$675 -> 2.080685091 | AV93: ='Time&Esc'!AV$675 -> 2.122298792 | AW93: ='Time&Esc'!AW$675 -> 2.164744768 | AX93: ='Time&Esc'!AX$675 -> 2.208039664 | AY93: ='Time&Esc'!AY$675 -> 2.252200457 | AZ93: ='Time&Esc'!AZ$675 -> 2.297244466 | BA93: ='Time&Esc'!BA$675 -> 2.343189355 | BB93: ='Time&Esc'!BB$675 -> 2.390053142 | BC93: ='Time&Esc'!BC$675 -> 2.437854205 | BD93: ='Time&Esc'!BD$675 -> 2.486611289 | BE93: ='Time&Esc'!BE$675 -> 2.536343515 | BF93: ='Time&Esc'!BF$675 -> 2.587070385 | BG93: ='Time&Esc'!BG$675 -> 2.638811793 | BH93: ='Time&Esc'!BH$675 -> 2.691588029 | BI93: ='Time&Esc'!BI$675 -> 2.74541979 | BJ93: ='Time&Esc'!BJ$675 -> 2.800328185 | BK93: ='Time&Esc'!BK$675 -> 2.856334749 | BL93: ='Time&Esc'!BL$675 -> 2.913461444 | BM93: ='Time&Esc'!BM$675 -> 2.971730673 | BN93: ='Time&Esc'!BN$675 -> 3.031165286 | BO93: ='Time&Esc'!BO$675 -> 3.091788592 | BP93: ='Time&Esc'!BP$675 -> 3.153624364 | BQ93: ='Time&Esc'!BQ$675 -> 3.216696851
E95: =E85 -> Delayed PSC - Project preparation cost | G95: USD k | H95: =SUM(J95:BQ95) -> 27878.04028 | J95: =$F85 / $F$89 * J$91 * J$93 -> 0 | K95: 0 | L95: 0 | M95: 0 | N95: 0 | O95: 13801.01004 | P95: 14077.03024 | Q95: 0 | R95: 0 | S95: 0 | T95: 0 | U95: 0 | V95: 0 | W95: 0 | X95: 0 | Y95: 0 | Z95: 0 | AA95: 0 | AB95: 0 | AC95: 0 | AD95: 0 | AE95: 0 | AF95: 0 | AG95: 0 | AH95: 0 | AI95: 0 | AJ95: 0 | AK95: 0 | AL95: 0 | AM95: 0 | AN95: 0 | AO95: 0 | AP95: =$F85 / $F$89 * AP$91 * AP$93 -> 0 | AQ95: 0 | AR95: 0 | AS95: 0 | AT95: 0 | AU95: 0 | AV95: 0 | AW95: 0 | AX95: 0 | AY95: 0 | AZ95: 0 | BA95: 0 | BB95: 0 | BC95: 0 | BD95: 0 | BE95: 0 | BF95: 0 | BG95: 0 | BH95: 0 | BI95: 0 | BJ95: 0 | BK95: 0 | BL95: 0 | BM95: 0 | BN95: 0 | BO95: 0 | BP95: 0 | BQ95: 0
E96: =E86 -> Delayed PSC - Public procurement cost (including compensation of losing bids) | G96: USD k | H96: =SUM(J96:BQ96) -> 5575.608056 | J96: =$F86 / $F$89 * J$91 * J$93 -> 0 | K96: 0 | L96: 0 | M96: 0 | N96: 0 | O96: 2760.202008 | P96: 2815.406048 | Q96: 0 | R96: 0 | S96: 0 | T96: 0 | U96: 0 | V96: 0 | W96: 0 | X96: 0 | Y96: 0 | Z96: 0 | AA96: 0 | AB96: 0 | AC96: 0 | AD96: 0 | AE96: 0 | AF96: 0 | AG96: 0 | AH96: 0 | AI96: 0 | AJ96: 0 | AK96: 0 | AL96: 0 | AM96: 0 | AN96: 0 | AO96: 0 | AP96: =$F86 / $F$89 * AP$91 * AP$93 -> 0 | AQ96: 0 | AR96: 0 | AS96: 0 | AT96: 0 | AU96: 0 | AV96: 0 | AW96: 0 | AX96: 0 | AY96: 0 | AZ96: 0 | BA96: 0 | BB96: 0 | BC96: 0 | BD96: 0 | BE96: 0 | BF96: 0 | BG96: 0 | BH96: 0 | BI96: 0 | BJ96: 0 | BK96: 0 | BL96: 0 | BM96: 0 | BN96: 0 | BO96: 0 | BP96: 0 | BQ96: 0
E97: =E87 -> Delayed PSC - Private procurement cost (costs of winning bid) | G97: USD k | H97: =SUM(J97:BQ97) -> 5575.608056 | J97: =$F87 / $F$89 * J$91 * J$93 -> 0 | K97: 0 | L97: 0 | M97: 0 | N97: 0 | O97: 2760.202008 | P97: 2815.406048 | Q97: 0 | R97: 0 | S97: 0 | T97: 0 | U97: 0 | V97: 0 | W97: 0 | X97: 0 | Y97: 0 | Z97: 0 | AA97: 0 | AB97: 0 | AC97: 0 | AD97: 0 | AE97: 0 | AF97: 0 | AG97: 0 | AH97: 0 | AI97: 0 | AJ97: 0 | AK97: 0 | AL97: 0 | AM97: 0 | AN97: 0 | AO97: 0 | AP97: =$F87 / $F$89 * AP$91 * AP$93 -> 0 | AQ97: 0 | AR97: 0 | AS97: 0 | AT97: 0 | AU97: 0 | AV97: 0 | AW97: 0 | AX97: 0 | AY97: 0 | AZ97: 0 | BA97: 0 | BB97: 0 | BC97: 0 | BD97: 0 | BE97: 0 | BF97: 0 | BG97: 0 | BH97: 0 | BI97: 0 | BJ97: 0 | BK97: 0 | BL97: 0 | BM97: 0 | BN97: 0 | BO97: 0 | BP97: 0 | BQ97: 0
E99: Delayed PSC - Total pre-construction cost | G99: USD k | H99: =SUM(J99:BQ99) -> 39029.25639 | J99: =SUM(J95:J97) -> 0 | K99: 0 | L99: 0 | M99: 0 | N99: 0 | O99: 19321.41406 | P99: 19707.84234 | Q99: 0 | R99: 0 | S99: 0 | T99: 0 | U99: 0 | V99: 0 | W99: 0 | X99: 0 | Y99: 0 | Z99: 0 | AA99: 0 | AB99: 0 | AC99: 0 | AD99: 0 | AE99: 0 | AF99: 0 | AG99: 0 | AH99: 0 | AI99: 0 | AJ99: 0 | AK99: 0 | AL99: 0 | AM99: 0 | AN99: 0 | AO99: 0 | AP99: =SUM(AP95:AP97) -> 0 | AQ99: 0 | AR99: 0 | AS99: 0 | AT99: 0 | AU99: 0 | AV99: 0 | AW99: 0 | AX99: 0 | AY99: 0 | AZ99: 0 | BA99: 0 | BB99: 0 | BC99: 0 | BD99: 0 | BE99: 0 | BF99: 0 | BG99: 0 | BH99: 0 | BI99: 0 | BJ99: 0 | BK99: 0 | BL99: 0 | BM99: 0 | BN99: 0 | BO99: 0 | BP99: 0 | BQ99: 0
E101: =E$99 -> Delayed PSC - Total pre-construction cost | F101: 0 | G101: USD k | H101: 39029.25639 | I101: 0 | J101: 0 | K101: 0 | L101: 0 | M101: 0 | N101: 0 | O101: 19321.41406 | P101: 19707.84234 | Q101: 0 | R101: 0 | S101: 0 | T101: 0 | U101: 0 | V101: 0 | W101: 0 | X101: 0 | Y101: 0 | Z101: 0 | AA101: 0 | AB101: 0 | AC101: 0 | AD101: 0 | AE101: 0 | AF101: 0 | AG101: 0 | AH101: 0 | AI101: 0 | AJ101: 0 | AK101: =AK$99 -> 0 | AL101: 0 | AM101: 0 | AN101: 0 | AO101: 0 | AP101: 0 | AQ101: 0 | AR101: 0 | AS101: 0 | AT101: 0 | AU101: 0 | AV101: 0 | AW101: 0 | AX101: 0 | AY101: 0 | AZ101: 0 | BA101: 0 | BB101: 0 | BC101: 0 | BD101: 0 | BE101: 0 | BF101: 0 | BG101: 0 | BH101: 0 | BI101: 0 | BJ101: 0 | BK101: 0 | BL101: 0 | BM101: 0 | BN101: 0 | BO101: 0 | BP101: 0 | BQ101: 0
E102: ='Time&Esc'!E$205 -> Delayed PSC - Implementation start period flag | F102: ='Time&Esc'!F$205 -> 0 | G102: ='Time&Esc'!G$205 -> flag | H102: ='Time&Esc'!H$205 -> 1 | I102: ='Time&Esc'!I$205 -> 0 | J102: ='Time&Esc'!J$205 -> 0 | K102: ='Time&Esc'!K$205 -> 0 | L102: ='Time&Esc'!L$205 -> 0 | M102: ='Time&Esc'!M$205 -> 0 | N102: ='Time&Esc'!N$205 -> 0 | O102: ='Time&Esc'!O$205 -> 0 | P102: ='Time&Esc'!P$205 -> 0 | Q102: ='Time&Esc'!Q$205 -> 1 | R102: ='Time&Esc'!R$205 -> 0 | S102: ='Time&Esc'!S$205 -> 0 | T102: ='Time&Esc'!T$205 -> 0 | U102: ='Time&Esc'!U$205 -> 0 | V102: ='Time&Esc'!V$205 -> 0 | W102: ='Time&Esc'!W$205 -> 0 | X102: ='Time&Esc'!X$205 -> 0 | Y102: ='Time&Esc'!Y$205 -> 0 | Z102: ='Time&Esc'!Z$205 -> 0 | AA102: ='Time&Esc'!AA$205 -> 0 | AB102: ='Time&Esc'!AB$205 -> 0 | AC102: ='Time&Esc'!AC$205 -> 0 | AD102: ='Time&Esc'!AD$205 -> 0 | AE102: ='Time&Esc'!AE$205 -> 0 | AF102: ='Time&Esc'!AF$205 -> 0 | AG102: ='Time&Esc'!AG$205 -> 0 | AH102: ='Time&Esc'!AH$205 -> 0 | AI102: ='Time&Esc'!AI$205 -> 0 | AJ102: ='Time&Esc'!AJ$205 -> 0 | AK102: ='Time&Esc'!AK$205 -> 0 | AL102: ='Time&Esc'!AL$205 -> 0 | AM102: ='Time&Esc'!AM$205 -> 0 | AN102: ='Time&Esc'!AN$205 -> 0 | AO102: ='Time&Esc'!AO$205 -> 0 | AP102: ='Time&Esc'!AP$205 -> 0 | AQ102: ='Time&Esc'!AQ$205 -> 0 | AR102: ='Time&Esc'!AR$205 -> 0 | AS102: ='Time&Esc'!AS$205 -> 0 | AT102: ='Time&Esc'!AT$205 -> 0 | AU102: ='Time&Esc'!AU$205 -> 0 | AV102: ='Time&Esc'!AV$205 -> 0 | AW102: ='Time&Esc'!AW$205 -> 0 | AX102: ='Time&Esc'!AX$205 -> 0 | AY102: ='Time&Esc'!AY$205 -> 0 | AZ102: ='Time&Esc'!AZ$205 -> 0 | BA102: ='Time&Esc'!BA$205 -> 0 | BB102: ='Time&Esc'!BB$205 -> 0 | BC102: ='Time&Esc'!BC$205 -> 0 | BD102: ='Time&Esc'!BD$205 -> 0 | BE102: ='Time&Esc'!BE$205 -> 0 | BF102: ='Time&Esc'!BF$205 -> 0 | BG102: ='Time&Esc'!BG$205 -> 0 | BH102: ='Time&Esc'!BH$205 -> 0 | BI102: ='Time&Esc'!BI$205 -> 0 | BJ102: ='Time&Esc'!BJ$205 -> 0 | BK102: ='Time&Esc'!BK$205 -> 0 | BL102: ='Time&Esc'!BL$205 -> 0 | BM102: ='Time&Esc'!BM$205 -> 0 | BN102: ='Time&Esc'!BN$205 -> 0 | BO102: ='Time&Esc'!BO$205 -> 0 | BP102: ='Time&Esc'!BP$205 -> 0 | BQ102: ='Time&Esc'!BQ$205 -> 0
E103: Delayed PSC - Total pre-construction cost (rolled over to start construction) | G103: USD k | H103: =SUM(J103:BQ103) -> 39029.25639 | J103: =SUM($J101:J101) * J102 -> 0 | K103: =SUM($J101:K101) * K102 -> 0 | L103: =SUM($J101:L101) * L102 -> 0 | M103: =SUM($J101:M101) * M102 -> 0 | N103: =SUM($J101:N101) * N102 -> 0 | O103: =SUM($J101:O101) * O102 -> 0 | P103: =SUM($J101:P101) * P102 -> 0 | Q103: =SUM($J101:Q101) * Q102 -> 39029.25639 | R103: =SUM($J101:R101) * R102 -> 0 | S103: =SUM($J101:S101) * S102 -> 0 | T103: =SUM($J101:T101) * T102 -> 0 | U103: =SUM($J101:U101) * U102 -> 0 | V103: =SUM($J101:V101) * V102 -> 0 | W103: =SUM($J101:W101) * W102 -> 0 | X103: =SUM($J101:X101) * X102 -> 0 | Y103: =SUM($J101:Y101) * Y102 -> 0 | Z103: =SUM($J101:Z101) * Z102 -> 0 | AA103: =SUM($J101:AA101) * AA102 -> 0 | AB103: =SUM($J101:AB101) * AB102 -> 0 | AC103: =SUM($J101:AC101) * AC102 -> 0 | AD103: =SUM($J101:AD101) * AD102 -> 0 | AE103: =SUM($J101:AE101) * AE102 -> 0 | AF103: =SUM($J101:AF101) * AF102 -> 0 | AG103: =SUM($J101:AG101) * AG102 -> 0 | AH103: =SUM($J101:AH101) * AH102 -> 0 | AI103: =SUM($J101:AI101) * AI102 -> 0 | AJ103: =SUM($J101:AJ101) * AJ102 -> 0 | AK103: =SUM($J101:AK101) * AK102 -> 0 | AL103: =SUM($J101:AL101) * AL102 -> 0 | AM103: =SUM($J101:AM101) * AM102 -> 0 | AN103: =SUM($J101:AN101) * AN102 -> 0 | AO103: =SUM($J101:AO101) * AO102 -> 0 | AP103: =SUM($J101:AP101) * AP102 -> 0 | AQ103: =SUM($J101:AQ101) * AQ102 -> 0 | AR103: =SUM($J101:AR101) * AR102 -> 0 | AS103: =SUM($J101:AS101) * AS102 -> 0 | AT103: =SUM($J101:AT101) * AT102 -> 0 | AU103: =SUM($J101:AU101) * AU102 -> 0 | AV103: =SUM($J101:AV101) * AV102 -> 0 | AW103: =SUM($J101:AW101) * AW102 -> 0 | AX103: =SUM($J101:AX101) * AX102 -> 0 | AY103: =SUM($J101:AY101) * AY102 -> 0 | AZ103: =SUM($J101:AZ101) * AZ102 -> 0 | BA103: =SUM($J101:BA101) * BA102 -> 0 | BB103: =SUM($J101:BB101) * BB102 -> 0 | BC103: =SUM($J101:BC101) * BC102 -> 0 | BD103: =SUM($J101:BD101) * BD102 -> 0 | BE103: =SUM($J101:BE101) * BE102 -> 0 | BF103: =SUM($J101:BF101) * BF102 -> 0 | BG103: =SUM($J101:BG101) * BG102 -> 0 | BH103: =SUM($J101:BH101) * BH102 -> 0 | BI103: =SUM($J101:BI101) * BI102 -> 0 | BJ103: =SUM($J101:BJ101) * BJ102 -> 0 | BK103: =SUM($J101:BK101) * BK102 -> 0 | BL103: =SUM($J101:BL101) * BL102 -> 0 | BM103: =SUM($J101:BM101) * BM102 -> 0 | BN103: =SUM($J101:BN101) * BN102 -> 0 | BO103: =SUM($J101:BO101) * BO102 -> 0 | BP103: =SUM($J101:BP101) * BP102 -> 0 | BQ103: =SUM($J101:BQ101) * BQ102 -> 0
B105: Real pre-construction cost
E106: =E$99 -> Delayed PSC - Total pre-construction cost | F106: =F$99 -> 0 | G106: USD k | H106: 39029.25639 | I106: 0 | J106: 0 | K106: 0 | L106: 0 | M106: 0 | N106: 0 | O106: 19321.41406 | P106: 19707.84234 | Q106: 0 | R106: 0 | S106: 0 | T106: 0 | U106: 0 | V106: 0 | W106: 0 | X106: 0 | Y106: 0 | Z106: 0 | AA106: 0 | AB106: 0 | AC106: 0 | AD106: 0 | AE106: 0 | AF106: 0 | AG106: 0 | AH106: 0 | AI106: 0 | AJ106: 0 | AK106: 0 | AL106: 0 | AM106: 0 | AN106: 0 | AO106: 0 | AP106: 0 | AQ106: 0 | AR106: 0 | AS106: 0 | AT106: 0 | AU106: 0 | AV106: 0 | AW106: 0 | AX106: 0 | AY106: 0 | AZ106: 0 | BA106: 0 | BB106: 0 | BC106: 0 | BD106: 0 | BE106: 0 | BF106: 0 | BG106: 0 | BH106: 0 | BI106: 0 | BJ106: 0 | BK106: 0 | BL106: 0 | BM106: 0 | BN106: 0 | BO106: 0 | BP106: 0 | BQ106: 0
E107: ='Time&Esc'!E$675 -> Indexation factor - Implementation | F107: ='Time&Esc'!F$675 -> 0 | G107: ='Time&Esc'!G$675 -> index factor | H107: ='Time&Esc'!H$675 -> 0 | I107: ='Time&Esc'!I$675 -> 0 | J107: ='Time&Esc'!J$675 -> 1 | K107: ='Time&Esc'!K$675 -> 1.02 | L107: ='Time&Esc'!L$675 -> 1.0404 | M107: ='Time&Esc'!M$675 -> 1.061208 | N107: ='Time&Esc'!N$675 -> 1.08243216 | O107: ='Time&Esc'!O$675 -> 1.104080803 | P107: ='Time&Esc'!P$675 -> 1.126162419 | Q107: ='Time&Esc'!Q$675 -> 1.148685668 | R107: ='Time&Esc'!R$675 -> 1.171659381 | S107: ='Time&Esc'!S$675 -> 1.195092569 | T107: ='Time&Esc'!T$675 -> 1.21899442 | U107: ='Time&Esc'!U$675 -> 1.243374308 | V107: ='Time&Esc'!V$675 -> 1.268241795 | W107: ='Time&Esc'!W$675 -> 1.29360663 | X107: ='Time&Esc'!X$675 -> 1.319478763 | Y107: ='Time&Esc'!Y$675 -> 1.345868338 | Z107: ='Time&Esc'!Z$675 -> 1.372785705 | AA107: ='Time&Esc'!AA$675 -> 1.400241419 | AB107: ='Time&Esc'!AB$675 -> 1.428246248 | AC107: ='Time&Esc'!AC$675 -> 1.456811173 | AD107: ='Time&Esc'!AD$675 -> 1.485947396 | AE107: ='Time&Esc'!AE$675 -> 1.515666344 | AF107: ='Time&Esc'!AF$675 -> 1.545979671 | AG107: ='Time&Esc'!AG$675 -> 1.576899264 | AH107: ='Time&Esc'!AH$675 -> 1.608437249 | AI107: ='Time&Esc'!AI$675 -> 1.640605994 | AJ107: ='Time&Esc'!AJ$675 -> 1.673418114 | AK107: ='Time&Esc'!AK$675 -> 1.706886477 | AL107: ='Time&Esc'!AL$675 -> 1.741024206 | AM107: ='Time&Esc'!AM$675 -> 1.77584469 | AN107: ='Time&Esc'!AN$675 -> 1.811361584 | AO107: ='Time&Esc'!AO$675 -> 1.847588816 | AP107: ='Time&Esc'!AP$675 -> 1.884540592 | AQ107: ='Time&Esc'!AQ$675 -> 1.922231404 | AR107: ='Time&Esc'!AR$675 -> 1.960676032 | AS107: ='Time&Esc'!AS$675 -> 1.999889553 | AT107: ='Time&Esc'!AT$675 -> 2.039887344 | AU107: ='Time&Esc'!AU$675 -> 2.080685091 | AV107: ='Time&Esc'!AV$675 -> 2.122298792 | AW107: ='Time&Esc'!AW$675 -> 2.164744768 | AX107: ='Time&Esc'!AX$675 -> 2.208039664 | AY107: ='Time&Esc'!AY$675 -> 2.252200457 | AZ107: ='Time&Esc'!AZ$675 -> 2.297244466 | BA107: ='Time&Esc'!BA$675 -> 2.343189355 | BB107: ='Time&Esc'!BB$675 -> 2.390053142 | BC107: ='Time&Esc'!BC$675 -> 2.437854205 | BD107: ='Time&Esc'!BD$675 -> 2.486611289 | BE107: ='Time&Esc'!BE$675 -> 2.536343515 | BF107: ='Time&Esc'!BF$675 -> 2.587070385 | BG107: ='Time&Esc'!BG$675 -> 2.638811793 | BH107: ='Time&Esc'!BH$675 -> 2.691588029 | BI107: ='Time&Esc'!BI$675 -> 2.74541979 | BJ107: ='Time&Esc'!BJ$675 -> 2.800328185 | BK107: ='Time&Esc'!BK$675 -> 2.856334749 | BL107: ='Time&Esc'!BL$675 -> 2.913461444 | BM107: ='Time&Esc'!BM$675 -> 2.971730673 | BN107: ='Time&Esc'!BN$675 -> 3.031165286 | BO107: ='Time&Esc'!BO$675 -> 3.091788592 | BP107: ='Time&Esc'!BP$675 -> 3.153624364 | BQ107: ='Time&Esc'!BQ$675 -> 3.216696851
E108: =E106 & " - real" -> Delayed PSC - Total pre-construction cost - real | G108: USD k | H108: =SUM(J108:BQ108) -> 35000 | J108: =IF(J107 = 0, 0, J106 / J107) -> 0 | K108: =IF(K107 = 0, 0, K106 / K107) -> 0 | L108: 0 | M108: 0 | N108: 0 | O108: 17500 | P108: 17500 | Q108: 0 | R108: 0 | S108: 0 | T108: 0 | U108: 0 | V108: 0 | W108: 0 | X108: 0 | Y108: 0 | Z108: 0 | AA108: 0 | AB108: 0 | AC108: 0 | AD108: 0 | AE108: 0 | AF108: 0 | AG108: 0 | AH108: 0 | AI108: 0 | AJ108: 0 | AK108: 0 | AL108: 0 | AM108: 0 | AN108: 0 | AO108: 0 | AP108: 0 | AQ108: 0 | AR108: 0 | AS108: 0 | AT108: 0 | AU108: 0 | AV108: 0 | AW108: 0 | AX108: 0 | AY108: 0 | AZ108: 0 | BA108: 0 | BB108: 0 | BC108: 0 | BD108: 0 | BE108: 0 | BF108: 0 | BG108: 0 | BH108: 0 | BI108: 0 | BJ108: 0 | BK108: 0 | BL108: 0 | BM108: 0 | BN108: 0 | BO108: 0 | BP108: 0 | BQ108: 0
A111: IMPLEMENTATION COSTS
B113: Implementation costs
E114: ='Project Inputs'!E$158 -> Delayed PSC - Implementation cost | F114: ='Project Inputs'!F$158 -> 400000 | G114: ='Project Inputs'!G$158 -> USD k
E115: ='Project Inputs'!E$151 -> Delayed PSC - Implementation duration | F115: ='Project Inputs'!F$151 -> 4 | G115: ='Project Inputs'!G$151 -> years
E116: ='Time&Esc'!E$213 -> Delayed PSC - Implementation period flag | F116: ='Time&Esc'!F$213 -> 0 | G116: ='Time&Esc'!G$213 -> flag | H116: ='Time&Esc'!H$213 -> 4 | I116: ='Time&Esc'!I$213 -> 0 | J116: ='Time&Esc'!J$213 -> 0 | K116: ='Time&Esc'!K$213 -> 0 | L116: ='Time&Esc'!L$213 -> 0 | M116: ='Time&Esc'!M$213 -> 0 | N116: ='Time&Esc'!N$213 -> 0 | O116: ='Time&Esc'!O$213 -> 0 | P116: ='Time&Esc'!P$213 -> 0 | Q116: ='Time&Esc'!Q$213 -> 1 | R116: ='Time&Esc'!R$213 -> 1 | S116: ='Time&Esc'!S$213 -> 1 | T116: ='Time&Esc'!T$213 -> 1 | U116: ='Time&Esc'!U$213 -> 0 | V116: ='Time&Esc'!V$213 -> 0 | W116: ='Time&Esc'!W$213 -> 0 | X116: ='Time&Esc'!X$213 -> 0 | Y116: ='Time&Esc'!Y$213 -> 0 | Z116: ='Time&Esc'!Z$213 -> 0 | AA116: ='Time&Esc'!AA$213 -> 0 | AB116: ='Time&Esc'!AB$213 -> 0 | AC116: ='Time&Esc'!AC$213 -> 0 | AD116: ='Time&Esc'!AD$213 -> 0 | AE116: ='Time&Esc'!AE$213 -> 0 | AF116: ='Time&Esc'!AF$213 -> 0 | AG116: ='Time&Esc'!AG$213 -> 0 | AH116: ='Time&Esc'!AH$213 -> 0 | AI116: ='Time&Esc'!AI$213 -> 0 | AJ116: ='Time&Esc'!AJ$213 -> 0 | AK116: ='Time&Esc'!AK$213 -> 0 | AL116: ='Time&Esc'!AL$213 -> 0 | AM116: ='Time&Esc'!AM$213 -> 0 | AN116: ='Time&Esc'!AN$213 -> 0 | AO116: ='Time&Esc'!AO$213 -> 0 | AP116: ='Time&Esc'!AP$213 -> 0 | AQ116: ='Time&Esc'!AQ$213 -> 0 | AR116: ='Time&Esc'!AR$213 -> 0 | AS116: ='Time&Esc'!AS$213 -> 0 | AT116: ='Time&Esc'!AT$213 -> 0 | AU116: ='Time&Esc'!AU$213 -> 0 | AV116: ='Time&Esc'!AV$213 -> 0 | AW116: ='Time&Esc'!AW$213 -> 0 | AX116: ='Time&Esc'!AX$213 -> 0 | AY116: ='Time&Esc'!AY$213 -> 0 | AZ116: ='Time&Esc'!AZ$213 -> 0 | BA116: ='Time&Esc'!BA$213 -> 0 | BB116: ='Time&Esc'!BB$213 -> 0 | BC116: ='Time&Esc'!BC$213 -> 0 | BD116: ='Time&Esc'!BD$213 -> 0 | BE116: ='Time&Esc'!BE$213 -> 0 | BF116: ='Time&Esc'!BF$213 -> 0 | BG116: ='Time&Esc'!BG$213 -> 0 | BH116: ='Time&Esc'!BH$213 -> 0 | BI116: ='Time&Esc'!BI$213 -> 0 | BJ116: ='Time&Esc'!BJ$213 -> 0 | BK116: ='Time&Esc'!BK$213 -> 0 | BL116: ='Time&Esc'!BL$213 -> 0 | BM116: ='Time&Esc'!BM$213 -> 0 | BN116: ='Time&Esc'!BN$213 -> 0 | BO116: ='Time&Esc'!BO$213 -> 0 | BP116: ='Time&Esc'!BP$213 -> 0 | BQ116: ='Time&Esc'!BQ$213 -> 0
E117: ='Time&Esc'!E$675 -> Indexation factor - Implementation | F117: ='Time&Esc'!F$675 -> 0 | G117: ='Time&Esc'!G$675 -> index factor | H117: ='Time&Esc'!H$675 -> 0 | I117: ='Time&Esc'!I$675 -> 0 | J117: ='Time&Esc'!J$675 -> 1 | K117: ='Time&Esc'!K$675 -> 1.02 | L117: ='Time&Esc'!L$675 -> 1.0404 | M117: ='Time&Esc'!M$675 -> 1.061208 | N117: ='Time&Esc'!N$675 -> 1.08243216 | O117: ='Time&Esc'!O$675 -> 1.104080803 | P117: ='Time&Esc'!P$675 -> 1.126162419 | Q117: ='Time&Esc'!Q$675 -> 1.148685668 | R117: ='Time&Esc'!R$675 -> 1.171659381 | S117: ='Time&Esc'!S$675 -> 1.195092569 | T117: ='Time&Esc'!T$675 -> 1.21899442 | U117: ='Time&Esc'!U$675 -> 1.243374308 | V117: ='Time&Esc'!V$675 -> 1.268241795 | W117: ='Time&Esc'!W$675 -> 1.29360663 | X117: ='Time&Esc'!X$675 -> 1.319478763 | Y117: ='Time&Esc'!Y$675 -> 1.345868338 | Z117: ='Time&Esc'!Z$675 -> 1.372785705 | AA117: ='Time&Esc'!AA$675 -> 1.400241419 | AB117: ='Time&Esc'!AB$675 -> 1.428246248 | AC117: ='Time&Esc'!AC$675 -> 1.456811173 | AD117: ='Time&Esc'!AD$675 -> 1.485947396 | AE117: ='Time&Esc'!AE$675 -> 1.515666344 | AF117: ='Time&Esc'!AF$675 -> 1.545979671 | AG117: ='Time&Esc'!AG$675 -> 1.576899264 | AH117: ='Time&Esc'!AH$675 -> 1.608437249 | AI117: ='Time&Esc'!AI$675 -> 1.640605994 | AJ117: ='Time&Esc'!AJ$675 -> 1.673418114 | AK117: ='Time&Esc'!AK$675 -> 1.706886477 | AL117: ='Time&Esc'!AL$675 -> 1.741024206 | AM117: ='Time&Esc'!AM$675 -> 1.77584469 | AN117: ='Time&Esc'!AN$675 -> 1.811361584 | AO117: ='Time&Esc'!AO$675 -> 1.847588816 | AP117: ='Time&Esc'!AP$675 -> 1.884540592 | AQ117: ='Time&Esc'!AQ$675 -> 1.922231404 | AR117: ='Time&Esc'!AR$675 -> 1.960676032 | AS117: ='Time&Esc'!AS$675 -> 1.999889553 | AT117: ='Time&Esc'!AT$675 -> 2.039887344 | AU117: ='Time&Esc'!AU$675 -> 2.080685091 | AV117: ='Time&Esc'!AV$675 -> 2.122298792 | AW117: ='Time&Esc'!AW$675 -> 2.164744768 | AX117: ='Time&Esc'!AX$675 -> 2.208039664 | AY117: ='Time&Esc'!AY$675 -> 2.252200457 | AZ117: ='Time&Esc'!AZ$675 -> 2.297244466 | BA117: ='Time&Esc'!BA$675 -> 2.343189355 | BB117: ='Time&Esc'!BB$675 -> 2.390053142 | BC117: ='Time&Esc'!BC$675 -> 2.437854205 | BD117: ='Time&Esc'!BD$675 -> 2.486611289 | BE117: ='Time&Esc'!BE$675 -> 2.536343515 | BF117: ='Time&Esc'!BF$675 -> 2.587070385 | BG117: ='Time&Esc'!BG$675 -> 2.638811793 | BH117: ='Time&Esc'!BH$675 -> 2.691588029 | BI117: ='Time&Esc'!BI$675 -> 2.74541979 | BJ117: ='Time&Esc'!BJ$675 -> 2.800328185 | BK117: ='Time&Esc'!BK$675 -> 2.856334749 | BL117: ='Time&Esc'!BL$675 -> 2.913461444 | BM117: ='Time&Esc'!BM$675 -> 2.971730673 | BN117: ='Time&Esc'!BN$675 -> 3.031165286 | BO117: ='Time&Esc'!BO$675 -> 3.091788592 | BP117: ='Time&Esc'!BP$675 -> 3.153624364 | BQ117: ='Time&Esc'!BQ$675 -> 3.216696851
E118: Delayed PSC - Implementation cost | G118: USD k | H118: =SUM(J118:BQ118) -> 473443.2037 | J118: =$F114 / $F115 * J116 * J117 -> 0 | K118: =$F114 / $F115 * K116 * K117 -> 0 | L118: 0 | M118: 0 | N118: 0 | O118: 0 | P118: 0 | Q118: 114868.5668 | R118: 117165.9381 | S118: 119509.2569 | T118: 121899.442 | U118: 0 | V118: 0 | W118: 0 | X118: 0 | Y118: 0 | Z118: 0 | AA118: 0 | AB118: 0 | AC118: 0 | AD118: 0 | AE118: 0 | AF118: 0 | AG118: 0 | AH118: 0 | AI118: 0 | AJ118: 0 | AK118: 0 | AL118: 0 | AM118: 0 | AN118: 0 | AO118: 0 | AP118: 0 | AQ118: 0 | AR118: 0 | AS118: 0 | AT118: 0 | AU118: 0 | AV118: 0 | AW118: 0 | AX118: 0 | AY118: 0 | AZ118: 0 | BA118: 0 | BB118: 0 | BC118: 0 | BD118: 0 | BE118: 0 | BF118: 0 | BG118: 0 | BH118: 0 | BI118: 0 | BJ118: 0 | BK118: 0 | BL118: 0 | BM118: 0 | BN118: 0 | BO118: 0 | BP118: 0 | BQ118: 0
B120: Real implementation costs
E121: =E$118 -> Delayed PSC - Implementation cost | F121: =F$118 -> 0 | G121: USD k | H121: 473443.2037 | I121: 0 | J121: 0 | K121: 0 | L121: 0 | M121: 0 | N121: 0 | O121: 0 | P121: 0 | Q121: 114868.5668 | R121: 117165.9381 | S121: 119509.2569 | T121: 121899.442 | U121: 0 | V121: 0 | W121: 0 | X121: 0 | Y121: 0 | Z121: 0 | AA121: 0 | AB121: 0 | AC121: 0 | AD121: 0 | AE121: 0 | AF121: 0 | AG121: 0 | AH121: 0 | AI121: 0 | AJ121: 0 | AK121: 0 | AL121: 0 | AM121: 0 | AN121: 0 | AO121: 0 | AP121: 0 | AQ121: 0 | AR121: 0 | AS121: 0 | AT121: 0 | AU121: 0 | AV121: 0 | AW121: 0 | AX121: 0 | AY121: 0 | AZ121: 0 | BA121: 0 | BB121: 0 | BC121: 0 | BD121: 0 | BE121: 0 | BF121: 0 | BG121: 0 | BH121: 0 | BI121: 0 | BJ121: 0 | BK121: 0 | BL121: 0 | BM121: 0 | BN121: 0 | BO121: 0 | BP121: 0 | BQ121: 0
E122: ='Time&Esc'!E$675 -> Indexation factor - Implementation | F122: ='Time&Esc'!F$675 -> 0 | G122: ='Time&Esc'!G$675 -> index factor | H122: ='Time&Esc'!H$675 -> 0 | I122: ='Time&Esc'!I$675 -> 0 | J122: ='Time&Esc'!J$675 -> 1 | K122: ='Time&Esc'!K$675 -> 1.02 | L122: ='Time&Esc'!L$675 -> 1.0404 | M122: ='Time&Esc'!M$675 -> 1.061208 | N122: ='Time&Esc'!N$675 -> 1.08243216 | O122: ='Time&Esc'!O$675 -> 1.104080803 | P122: ='Time&Esc'!P$675 -> 1.126162419 | Q122: ='Time&Esc'!Q$675 -> 1.148685668 | R122: ='Time&Esc'!R$675 -> 1.171659381 | S122: ='Time&Esc'!S$675 -> 1.195092569 | T122: ='Time&Esc'!T$675 -> 1.21899442 | U122: ='Time&Esc'!U$675 -> 1.243374308 | V122: ='Time&Esc'!V$675 -> 1.268241795 | W122: ='Time&Esc'!W$675 -> 1.29360663 | X122: ='Time&Esc'!X$675 -> 1.319478763 | Y122: ='Time&Esc'!Y$675 -> 1.345868338 | Z122: ='Time&Esc'!Z$675 -> 1.372785705 | AA122: ='Time&Esc'!AA$675 -> 1.400241419 | AB122: ='Time&Esc'!AB$675 -> 1.428246248 | AC122: ='Time&Esc'!AC$675 -> 1.456811173 | AD122: ='Time&Esc'!AD$675 -> 1.485947396 | AE122: ='Time&Esc'!AE$675 -> 1.515666344 | AF122: ='Time&Esc'!AF$675 -> 1.545979671 | AG122: ='Time&Esc'!AG$675 -> 1.576899264 | AH122: ='Time&Esc'!AH$675 -> 1.608437249 | AI122: ='Time&Esc'!AI$675 -> 1.640605994 | AJ122: ='Time&Esc'!AJ$675 -> 1.673418114 | AK122: ='Time&Esc'!AK$675 -> 1.706886477 | AL122: ='Time&Esc'!AL$675 -> 1.741024206 | AM122: ='Time&Esc'!AM$675 -> 1.77584469 | AN122: ='Time&Esc'!AN$675 -> 1.811361584 | AO122: ='Time&Esc'!AO$675 -> 1.847588816 | AP122: ='Time&Esc'!AP$675 -> 1.884540592 | AQ122: ='Time&Esc'!AQ$675 -> 1.922231404 | AR122: ='Time&Esc'!AR$675 -> 1.960676032 | AS122: ='Time&Esc'!AS$675 -> 1.999889553 | AT122: ='Time&Esc'!AT$675 -> 2.039887344 | AU122: ='Time&Esc'!AU$675 -> 2.080685091 | AV122: ='Time&Esc'!AV$675 -> 2.122298792 | AW122: ='Time&Esc'!AW$675 -> 2.164744768 | AX122: ='Time&Esc'!AX$675 -> 2.208039664 | AY122: ='Time&Esc'!AY$675 -> 2.252200457 | AZ122: ='Time&Esc'!AZ$675 -> 2.297244466 | BA122: ='Time&Esc'!BA$675 -> 2.343189355 | BB122: ='Time&Esc'!BB$675 -> 2.390053142 | BC122: ='Time&Esc'!BC$675 -> 2.437854205 | BD122: ='Time&Esc'!BD$675 -> 2.486611289 | BE122: ='Time&Esc'!BE$675 -> 2.536343515 | BF122: ='Time&Esc'!BF$675 -> 2.587070385 | BG122: ='Time&Esc'!BG$675 -> 2.638811793 | BH122: ='Time&Esc'!BH$675 -> 2.691588029 | BI122: ='Time&Esc'!BI$675 -> 2.74541979 | BJ122: ='Time&Esc'!BJ$675 -> 2.800328185 | BK122: ='Time&Esc'!BK$675 -> 2.856334749 | BL122: ='Time&Esc'!BL$675 -> 2.913461444 | BM122: ='Time&Esc'!BM$675 -> 2.971730673 | BN122: ='Time&Esc'!BN$675 -> 3.031165286 | BO122: ='Time&Esc'!BO$675 -> 3.091788592 | BP122: ='Time&Esc'!BP$675 -> 3.153624364 | BQ122: ='Time&Esc'!BQ$675 -> 3.216696851
E123: =E121 & " - real" -> Delayed PSC - Implementation cost - real | G123: USD k | H123: =SUM(J123:BQ123) -> 400000 | J123: =IF(J$122 = 0, 0, J121 / J122) -> 0 | K123: =IF(K$122 = 0, 0, K121 / K122) -> 0 | L123: 0 | M123: 0 | N123: 0 | O123: 0 | P123: 0 | Q123: 100000 | R123: 100000 | S123: 100000 | T123: 100000 | U123: 0 | V123: 0 | W123: 0 | X123: 0 | Y123: 0 | Z123: 0 | AA123: 0 | AB123: 0 | AC123: 0 | AD123: 0 | AE123: 0 | AF123: 0 | AG123: 0 | AH123: 0 | AI123: 0 | AJ123: 0 | AK123: 0 | AL123: 0 | AM123: 0 | AN123: 0 | AO123: 0 | AP123: 0 | AQ123: 0 | AR123: 0 | AS123: 0 | AT123: 0 | AU123: 0 | AV123: 0 | AW123: 0 | AX123: 0 | AY123: 0 | AZ123: 0 | BA123: 0 | BB123: 0 | BC123: 0 | BD123: 0 | BE123: 0 | BF123: 0 | BG123: 0 | BH123: 0 | BI123: 0 | BJ123: 0 | BK123: 0 | BL123: 0 | BM123: 0 | BN123: 0 | BO123: 0 | BP123: 0 | BQ123: 0
A125: P3 - PRE-CONSTRUCTION & IMPLEMENTATION COSTS
A127: PRE-CONSTRUCTION COSTS
B129: Pre-construction costs
E130: ='Project Inputs'!E$172 -> P3 - Project preparation cost | F130: ='Project Inputs'!F$172 -> 22500 | G130: ='Project Inputs'!G$172 -> USD k
E131: ='Project Inputs'!E$173 -> P3 - Public procurement cost (including compensation of losing bids) | F131: ='Project Inputs'!F$173 -> 10000 | G131: ='Project Inputs'!G$173 -> USD k
E132: ='Project Inputs'!E$174 -> P3 - Private procurement cost (costs of winning bid) | F132: ='Project Inputs'!F$174 -> 10000 | G132: ='Project Inputs'!G$174 -> USD k
E134: ='Time&Esc'!E$57 -> P3 - Pre-construction duration | F134: ='Time&Esc'!F$57 -> 2 | G134: ='Time&Esc'!G$57 -> years
E136: ='Time&Esc'!E$288 -> P3 - Pre-construction period flag | F136: ='Time&Esc'!F$288 -> 0 | G136: ='Time&Esc'!G$288 -> flag | H136: ='Time&Esc'!H$288 -> 2 | I136: ='Time&Esc'!I$288 -> 0 | J136: ='Time&Esc'!J$288 -> 1 | K136: ='Time&Esc'!K$288 -> 1 | L136: ='Time&Esc'!L$288 -> 0 | M136: ='Time&Esc'!M$288 -> 0 | N136: ='Time&Esc'!N$288 -> 0 | O136: ='Time&Esc'!O$288 -> 0 | P136: ='Time&Esc'!P$288 -> 0 | Q136: ='Time&Esc'!Q$288 -> 0 | R136: ='Time&Esc'!R$288 -> 0 | S136: ='Time&Esc'!S$288 -> 0 | T136: ='Time&Esc'!T$288 -> 0 | U136: ='Time&Esc'!U$288 -> 0 | V136: ='Time&Esc'!V$288 -> 0 | W136: ='Time&Esc'!W$288 -> 0 | X136: ='Time&Esc'!X$288 -> 0 | Y136: ='Time&Esc'!Y$288 -> 0 | Z136: ='Time&Esc'!Z$288 -> 0 | AA136: ='Time&Esc'!AA$288 -> 0 | AB136: ='Time&Esc'!AB$288 -> 0 | AC136: ='Time&Esc'!AC$288 -> 0 | AD136: ='Time&Esc'!AD$288 -> 0 | AE136: ='Time&Esc'!AE$288 -> 0 | AF136: ='Time&Esc'!AF$288 -> 0 | AG136: ='Time&Esc'!AG$288 -> 0 | AH136: ='Time&Esc'!AH$288 -> 0 | AI136: ='Time&Esc'!AI$288 -> 0 | AJ136: ='Time&Esc'!AJ$288 -> 0 | AK136: ='Time&Esc'!AK$288 -> 0 | AL136: ='Time&Esc'!AL$288 -> 0 | AM136: ='Time&Esc'!AM$288 -> 0 | AN136: ='Time&Esc'!AN$288 -> 0 | AO136: ='Time&Esc'!AO$288 -> 0 | AP136: ='Time&Esc'!AP$288 -> 0 | AQ136: ='Time&Esc'!AQ$288 -> 0 | AR136: ='Time&Esc'!AR$288 -> 0 | AS136: ='Time&Esc'!AS$288 -> 0 | AT136: ='Time&Esc'!AT$288 -> 0 | AU136: ='Time&Esc'!AU$288 -> 0 | AV136: ='Time&Esc'!AV$288 -> 0 | AW136: ='Time&Esc'!AW$288 -> 0 | AX136: ='Time&Esc'!AX$288 -> 0 | AY136: ='Time&Esc'!AY$288 -> 0 | AZ136: ='Time&Esc'!AZ$288 -> 0 | BA136: ='Time&Esc'!BA$288 -> 0 | BB136: ='Time&Esc'!BB$288 -> 0 | BC136: ='Time&Esc'!BC$288 -> 0 | BD136: ='Time&Esc'!BD$288 -> 0 | BE136: ='Time&Esc'!BE$288 -> 0 | BF136: ='Time&Esc'!BF$288 -> 0 | BG136: ='Time&Esc'!BG$288 -> 0 | BH136: ='Time&Esc'!BH$288 -> 0 | BI136: ='Time&Esc'!BI$288 -> 0 | BJ136: ='Time&Esc'!BJ$288 -> 0 | BK136: ='Time&Esc'!BK$288 -> 0 | BL136: ='Time&Esc'!BL$288 -> 0 | BM136: ='Time&Esc'!BM$288 -> 0 | BN136: ='Time&Esc'!BN$288 -> 0 | BO136: ='Time&Esc'!BO$288 -> 0 | BP136: ='Time&Esc'!BP$288 -> 0 | BQ136: ='Time&Esc'!BQ$288 -> 0
E138: ='Time&Esc'!E$675 -> Indexation factor - Implementation | F138: ='Time&Esc'!F$675 -> 0 | G138: ='Time&Esc'!G$675 -> index factor | H138: ='Time&Esc'!H$675 -> 0 | I138: ='Time&Esc'!I$675 -> 0 | J138: ='Time&Esc'!J$675 -> 1 | K138: ='Time&Esc'!K$675 -> 1.02 | L138: ='Time&Esc'!L$675 -> 1.0404 | M138: ='Time&Esc'!M$675 -> 1.061208 | N138: ='Time&Esc'!N$675 -> 1.08243216 | O138: ='Time&Esc'!O$675 -> 1.104080803 | P138: ='Time&Esc'!P$675 -> 1.126162419 | Q138: ='Time&Esc'!Q$675 -> 1.148685668 | R138: ='Time&Esc'!R$675 -> 1.171659381 | S138: ='Time&Esc'!S$675 -> 1.195092569 | T138: ='Time&Esc'!T$675 -> 1.21899442 | U138: ='Time&Esc'!U$675 -> 1.243374308 | V138: ='Time&Esc'!V$675 -> 1.268241795 | W138: ='Time&Esc'!W$675 -> 1.29360663 | X138: ='Time&Esc'!X$675 -> 1.319478763 | Y138: ='Time&Esc'!Y$675 -> 1.345868338 | Z138: ='Time&Esc'!Z$675 -> 1.372785705 | AA138: ='Time&Esc'!AA$675 -> 1.400241419 | AB138: ='Time&Esc'!AB$675 -> 1.428246248 | AC138: ='Time&Esc'!AC$675 -> 1.456811173 | AD138: ='Time&Esc'!AD$675 -> 1.485947396 | AE138: ='Time&Esc'!AE$675 -> 1.515666344 | AF138: ='Time&Esc'!AF$675 -> 1.545979671 | AG138: ='Time&Esc'!AG$675 -> 1.576899264 | AH138: ='Time&Esc'!AH$675 -> 1.608437249 | AI138: ='Time&Esc'!AI$675 -> 1.640605994 | AJ138: ='Time&Esc'!AJ$675 -> 1.673418114 | AK138: ='Time&Esc'!AK$675 -> 1.706886477 | AL138: ='Time&Esc'!AL$675 -> 1.741024206 | AM138: ='Time&Esc'!AM$675 -> 1.77584469 | AN138: ='Time&Esc'!AN$675 -> 1.811361584 | AO138: ='Time&Esc'!AO$675 -> 1.847588816 | AP138: ='Time&Esc'!AP$675 -> 1.884540592 | AQ138: ='Time&Esc'!AQ$675 -> 1.922231404 | AR138: ='Time&Esc'!AR$675 -> 1.960676032 | AS138: ='Time&Esc'!AS$675 -> 1.999889553 | AT138: ='Time&Esc'!AT$675 -> 2.039887344 | AU138: ='Time&Esc'!AU$675 -> 2.080685091 | AV138: ='Time&Esc'!AV$675 -> 2.122298792 | AW138: ='Time&Esc'!AW$675 -> 2.164744768 | AX138: ='Time&Esc'!AX$675 -> 2.208039664 | AY138: ='Time&Esc'!AY$675 -> 2.252200457 | AZ138: ='Time&Esc'!AZ$675 -> 2.297244466 | BA138: ='Time&Esc'!BA$675 -> 2.343189355 | BB138: ='Time&Esc'!BB$675 -> 2.390053142 | BC138: ='Time&Esc'!BC$675 -> 2.437854205 | BD138: ='Time&Esc'!BD$675 -> 2.486611289 | BE138: ='Time&Esc'!BE$675 -> 2.536343515 | BF138: ='Time&Esc'!BF$675 -> 2.587070385 | BG138: ='Time&Esc'!BG$675 -> 2.638811793 | BH138: ='Time&Esc'!BH$675 -> 2.691588029 | BI138: ='Time&Esc'!BI$675 -> 2.74541979 | BJ138: ='Time&Esc'!BJ$675 -> 2.800328185 | BK138: ='Time&Esc'!BK$675 -> 2.856334749 | BL138: ='Time&Esc'!BL$675 -> 2.913461444 | BM138: ='Time&Esc'!BM$675 -> 2.971730673 | BN138: ='Time&Esc'!BN$675 -> 3.031165286 | BO138: ='Time&Esc'!BO$675 -> 3.091788592 | BP138: ='Time&Esc'!BP$675 -> 3.153624364 | BQ138: ='Time&Esc'!BQ$675 -> 3.216696851
E140: =E130 -> P3 - Project preparation cost | G140: USD k | H140: =SUM(J140:BQ140) -> 22725 | J140: =$F130 / $F$134 * J$136 * J$138 -> 11250 | K140: 11475 | L140: 0 | M140: 0 | N140: 0 | O140: 0 | P140: 0 | Q140: 0 | R140: 0 | S140: 0 | T140: 0 | U140: 0 | V140: 0 | W140: 0 | X140: 0 | Y140: 0 | Z140: 0 | AA140: 0 | AB140: 0 | AC140: 0 | AD140: 0 | AE140: 0 | AF140: 0 | AG140: 0 | AH140: 0 | AI140: 0 | AJ140: 0 | AK140: 0 | AL140: 0 | AM140: 0 | AN140: 0 | AO140: 0 | AP140: =$F130 / $F$134 * AP$136 * AP$138 -> 0 | AQ140: 0 | AR140: 0 | AS140: 0 | AT140: 0 | AU140: 0 | AV140: 0 | AW140: 0 | AX140: 0 | AY140: 0 | AZ140: 0 | BA140: 0 | BB140: 0 | BC140: 0 | BD140: 0 | BE140: 0 | BF140: 0 | BG140: 0 | BH140: 0 | BI140: 0 | BJ140: 0 | BK140: 0 | BL140: 0 | BM140: 0 | BN140: 0 | BO140: 0 | BP140: 0 | BQ140: 0
E141: =E131 -> P3 - Public procurement cost (including compensation of losing bids) | G141: USD k | H141: =SUM(J141:BQ141) -> 10100 | J141: =$F131 / $F$134 * J$136 * J$138 -> 5000 | K141: 5100 | L141: 0 | M141: 0 | N141: 0 | O141: 0 | P141: 0 | Q141: 0 | R141: 0 | S141: 0 | T141: 0 | U141: 0 | V141: 0 | W141: 0 | X141: 0 | Y141: 0 | Z141: 0 | AA141: 0 | AB141: 0 | AC141: 0 | AD141: 0 | AE141: 0 | AF141: 0 | AG141: 0 | AH141: 0 | AI141: 0 | AJ141: 0 | AK141: 0 | AL141: 0 | AM141: 0 | AN141: 0 | AO141: 0 | AP141: =$F131 / $F$134 * AP$136 * AP$138 -> 0 | AQ141: 0 | AR141: 0 | AS141: 0 | AT141: 0 | AU141: 0 | AV141: 0 | AW141: 0 | AX141: 0 | AY141: 0 | AZ141: 0 | BA141: 0 | BB141: 0 | BC141: 0 | BD141: 0 | BE141: 0 | BF141: 0 | BG141: 0 | BH141: 0 | BI141: 0 | BJ141: 0 | BK141: 0 | BL141: 0 | BM141: 0 | BN141: 0 | BO141: 0 | BP141: 0 | BQ141: 0
E142: =E132 -> P3 - Private procurement cost (costs of winning bid) | G142: USD k | H142: =SUM(J142:BQ142) -> 10100 | J142: =$F132 / $F$134 * J$136 * J$138 -> 5000 | K142: 5100 | L142: 0 | M142: 0 | N142: 0 | O142: 0 | P142: 0 | Q142: 0 | R142: 0 | S142: 0 | T142: 0 | U142: 0 | V142: 0 | W142: 0 | X142: 0 | Y142: 0 | Z142: 0 | AA142: 0 | AB142: 0 | AC142: 0 | AD142: 0 | AE142: 0 | AF142: 0 | AG142: 0 | AH142: 0 | AI142: 0 | AJ142: 0 | AK142: 0 | AL142: 0 | AM142: 0 | AN142: 0 | AO142: 0 | AP142: =$F132 / $F$134 * AP$136 * AP$138 -> 0 | AQ142: 0 | AR142: 0 | AS142: 0 | AT142: 0 | AU142: 0 | AV142: 0 | AW142: 0 | AX142: 0 | AY142: 0 | AZ142: 0 | BA142: 0 | BB142: 0 | BC142: 0 | BD142: 0 | BE142: 0 | BF142: 0 | BG142: 0 | BH142: 0 | BI142: 0 | BJ142: 0 | BK142: 0 | BL142: 0 | BM142: 0 | BN142: 0 | BO142: 0 | BP142: 0 | BQ142: 0
E144: P3 - Total pre-construction cost | G144: USD k | H144: =SUM(J144:BQ144) -> 42925 | J144: =SUM(J140:J142) -> 21250 | K144: 21675 | L144: 0 | M144: 0 | N144: 0 | O144: 0 | P144: 0 | Q144: 0 | R144: 0 | S144: 0 | T144: 0 | U144: 0 | V144: 0 | W144: 0 | X144: 0 | Y144: 0 | Z144: 0 | AA144: 0 | AB144: 0 | AC144: 0 | AD144: 0 | AE144: 0 | AF144: 0 | AG144: 0 | AH144: 0 | AI144: 0 | AJ144: 0 | AK144: 0 | AL144: 0 | AM144: 0 | AN144: 0 | AO144: 0 | AP144: =SUM(AP140:AP142) -> 0 | AQ144: 0 | AR144: 0 | AS144: 0 | AT144: 0 | AU144: 0 | AV144: 0 | AW144: 0 | AX144: 0 | AY144: 0 | AZ144: 0 | BA144: 0 | BB144: 0 | BC144: 0 | BD144: 0 | BE144: 0 | BF144: 0 | BG144: 0 | BH144: 0 | BI144: 0 | BJ144: 0 | BK144: 0 | BL144: 0 | BM144: 0 | BN144: 0 | BO144: 0 | BP144: 0 | BQ144: 0
E146: =E$144 -> P3 - Total pre-construction cost | F146: 0 | G146: USD k | H146: 42925 | I146: 0 | J146: 21250 | K146: 21675 | L146: 0 | M146: 0 | N146: 0 | O146: 0 | P146: 0 | Q146: 0 | R146: 0 | S146: 0 | T146: 0 | U146: 0 | V146: 0 | W146: 0 | X146: 0 | Y146: 0 | Z146: 0 | AA146: 0 | AB146: 0 | AC146: 0 | AD146: 0 | AE146: 0 | AF146: 0 | AG146: 0 | AH146: 0 | AI146: 0 | AJ146: 0 | AK146: =AK$144 -> 0 | AL146: 0 | AM146: 0 | AN146: 0 | AO146: 0 | AP146: 0 | AQ146: 0 | AR146: 0 | AS146: 0 | AT146: 0 | AU146: 0 | AV146: 0 | AW146: 0 | AX146: 0 | AY146: 0 | AZ146: 0 | BA146: 0 | BB146: 0 | BC146: 0 | BD146: 0 | BE146: 0 | BF146: 0 | BG146: 0 | BH146: 0 | BI146: 0 | BJ146: 0 | BK146: 0 | BL146: 0 | BM146: 0 | BN146: 0 | BO146: 0 | BP146: 0 | BQ146: 0
E147: ='Time&Esc'!E$299 -> P3 - Implementation start period flag | F147: ='Time&Esc'!F$299 -> 0 | G147: ='Time&Esc'!G$299 -> flag | H147: ='Time&Esc'!H$299 -> 1 | I147: ='Time&Esc'!I$299 -> 0 | J147: ='Time&Esc'!J$299 -> 0 | K147: ='Time&Esc'!K$299 -> 0 | L147: ='Time&Esc'!L$299 -> 1 | M147: ='Time&Esc'!M$299 -> 0 | N147: ='Time&Esc'!N$299 -> 0 | O147: ='Time&Esc'!O$299 -> 0 | P147: ='Time&Esc'!P$299 -> 0 | Q147: ='Time&Esc'!Q$299 -> 0 | R147: ='Time&Esc'!R$299 -> 0 | S147: ='Time&Esc'!S$299 -> 0 | T147: ='Time&Esc'!T$299 -> 0 | U147: ='Time&Esc'!U$299 -> 0 | V147: ='Time&Esc'!V$299 -> 0 | W147: ='Time&Esc'!W$299 -> 0 | X147: ='Time&Esc'!X$299 -> 0 | Y147: ='Time&Esc'!Y$299 -> 0 | Z147: ='Time&Esc'!Z$299 -> 0 | AA147: ='Time&Esc'!AA$299 -> 0 | AB147: ='Time&Esc'!AB$299 -> 0 | AC147: ='Time&Esc'!AC$299 -> 0 | AD147: ='Time&Esc'!AD$299 -> 0 | AE147: ='Time&Esc'!AE$299 -> 0 | AF147: ='Time&Esc'!AF$299 -> 0 | AG147: ='Time&Esc'!AG$299 -> 0 | AH147: ='Time&Esc'!AH$299 -> 0 | AI147: ='Time&Esc'!AI$299 -> 0 | AJ147: ='Time&Esc'!AJ$299 -> 0 | AK147: ='Time&Esc'!AK$299 -> 0 | AL147: ='Time&Esc'!AL$299 -> 0 | AM147: ='Time&Esc'!AM$299 -> 0 | AN147: ='Time&Esc'!AN$299 -> 0 | AO147: ='Time&Esc'!AO$299 -> 0 | AP147: ='Time&Esc'!AP$299 -> 0 | AQ147: ='Time&Esc'!AQ$299 -> 0 | AR147: ='Time&Esc'!AR$299 -> 0 | AS147: ='Time&Esc'!AS$299 -> 0 | AT147: ='Time&Esc'!AT$299 -> 0 | AU147: ='Time&Esc'!AU$299 -> 0 | AV147: ='Time&Esc'!AV$299 -> 0 | AW147: ='Time&Esc'!AW$299 -> 0 | AX147: ='Time&Esc'!AX$299 -> 0 | AY147: ='Time&Esc'!AY$299 -> 0 | AZ147: ='Time&Esc'!AZ$299 -> 0 | BA147: ='Time&Esc'!BA$299 -> 0 | BB147: ='Time&Esc'!BB$299 -> 0 | BC147: ='Time&Esc'!BC$299 -> 0 | BD147: ='Time&Esc'!BD$299 -> 0 | BE147: ='Time&Esc'!BE$299 -> 0 | BF147: ='Time&Esc'!BF$299 -> 0 | BG147: ='Time&Esc'!BG$299 -> 0 | BH147: ='Time&Esc'!BH$299 -> 0 | BI147: ='Time&Esc'!BI$299 -> 0 | BJ147: ='Time&Esc'!BJ$299 -> 0 | BK147: ='Time&Esc'!BK$299 -> 0 | BL147: ='Time&Esc'!BL$299 -> 0 | BM147: ='Time&Esc'!BM$299 -> 0 | BN147: ='Time&Esc'!BN$299 -> 0 | BO147: ='Time&Esc'!BO$299 -> 0 | BP147: ='Time&Esc'!BP$299 -> 0 | BQ147: ='Time&Esc'!BQ$299 -> 0
E148: P3 - Total pre-construction cost (rolled over to start construction) | G148: USD k | H148: =SUM(J148:BQ148) -> 42925 | J148: =SUM($J146:J146) * J147 -> 0 | K148: =SUM($J146:K146) * K147 -> 0 | L148: =SUM($J146:L146) * L147 -> 42925 | M148: =SUM($J146:M146) * M147 -> 0 | N148: =SUM($J146:N146) * N147 -> 0 | O148: =SUM($J146:O146) * O147 -> 0 | P148: =SUM($J146:P146) * P147 -> 0 | Q148: =SUM($J146:Q146) * Q147 -> 0 | R148: =SUM($J146:R146) * R147 -> 0 | S148: =SUM($J146:S146) * S147 -> 0 | T148: =SUM($J146:T146) * T147 -> 0 | U148: =SUM($J146:U146) * U147 -> 0 | V148: =SUM($J146:V146) * V147 -> 0 | W148: =SUM($J146:W146) * W147 -> 0 | X148: =SUM($J146:X146) * X147 -> 0 | Y148: =SUM($J146:Y146) * Y147 -> 0 | Z148: =SUM($J146:Z146) * Z147 -> 0 | AA148: =SUM($J146:AA146) * AA147 -> 0 | AB148: =SUM($J146:AB146) * AB147 -> 0 | AC148: =SUM($J146:AC146) * AC147 -> 0 | AD148: =SUM($J146:AD146) * AD147 -> 0 | AE148: =SUM($J146:AE146) * AE147 -> 0 | AF148: =SUM($J146:AF146) * AF147 -> 0 | AG148: =SUM($J146:AG146) * AG147 -> 0 | AH148: =SUM($J146:AH146) * AH147 -> 0 | AI148: =SUM($J146:AI146) * AI147 -> 0 | AJ148: =SUM($J146:AJ146) * AJ147 -> 0 | AK148: =SUM($J146:AK146) * AK147 -> 0 | AL148: =SUM($J146:AL146) * AL147 -> 0 | AM148: =SUM($J146:AM146) * AM147 -> 0 | AN148: =SUM($J146:AN146) * AN147 -> 0 | AO148: =SUM($J146:AO146) * AO147 -> 0 | AP148: =SUM($J146:AP146) * AP147 -> 0 | AQ148: =SUM($J146:AQ146) * AQ147 -> 0 | AR148: =SUM($J146:AR146) * AR147 -> 0 | AS148: =SUM($J146:AS146) * AS147 -> 0 | AT148: =SUM($J146:AT146) * AT147 -> 0 | AU148: =SUM($J146:AU146) * AU147 -> 0 | AV148: =SUM($J146:AV146) * AV147 -> 0 | AW148: =SUM($J146:AW146) * AW147 -> 0 | AX148: =SUM($J146:AX146) * AX147 -> 0 | AY148: =SUM($J146:AY146) * AY147 -> 0 | AZ148: =SUM($J146:AZ146) * AZ147 -> 0 | BA148: =SUM($J146:BA146) * BA147 -> 0 | BB148: =SUM($J146:BB146) * BB147 -> 0 | BC148: =SUM($J146:BC146) * BC147 -> 0 | BD148: =SUM($J146:BD146) * BD147 -> 0 | BE148: =SUM($J146:BE146) * BE147 -> 0 | BF148: =SUM($J146:BF146) * BF147 -> 0 | BG148: =SUM($J146:BG146) * BG147 -> 0 | BH148: =SUM($J146:BH146) * BH147 -> 0 | BI148: =SUM($J146:BI146) * BI147 -> 0 | BJ148: =SUM($J146:BJ146) * BJ147 -> 0 | BK148: =SUM($J146:BK146) * BK147 -> 0 | BL148: =SUM($J146:BL146) * BL147 -> 0 | BM148: =SUM($J146:BM146) * BM147 -> 0 | BN148: =SUM($J146:BN146) * BN147 -> 0 | BO148: =SUM($J146:BO146) * BO147 -> 0 | BP148: =SUM($J146:BP146) * BP147 -> 0 | BQ148: =SUM($J146:BQ146) * BQ147 -> 0
B150: Pre-construction cost allocation
E151: ='Project Inputs'!E$182 -> P3 - Project preparation cost - Transferred cost | F151: ='Project Inputs'!F$182 -> 0 | G151: ='Project Inputs'!G$182 -> %
E152: ='Project Inputs'!E$183 -> P3 - Public procurement cost (including compensation of losing bids) - Transferred cost | F152: ='Project Inputs'!F$183 -> 0 | G152: ='Project Inputs'!G$183 -> %
E153: ='Project Inputs'!E$184 -> P3 - Private procurement cost (costs of winning bid) - Transferred cost | F153: ='Project Inputs'!F$184 -> 1 | G153: ='Project Inputs'!G$184 -> %
E155: =E$140 -> P3 - Project preparation cost | F155: 0 | G155: USD k | H155: 22725 | I155: 0 | J155: 11250 | K155: 11475 | L155: 0 | M155: 0 | N155: 0 | O155: 0 | P155: 0 | Q155: 0 | R155: 0 | S155: 0 | T155: 0 | U155: 0 | V155: 0 | W155: 0 | X155: 0 | Y155: 0 | Z155: 0 | AA155: 0 | AB155: 0 | AC155: 0 | AD155: 0 | AE155: 0 | AF155: 0 | AG155: 0 | AH155: 0 | AI155: 0 | AJ155: 0 | AK155: =AK$140 -> 0 | AL155: 0 | AM155: 0 | AN155: 0 | AO155: 0 | AP155: 0 | AQ155: 0 | AR155: 0 | AS155: 0 | AT155: 0 | AU155: 0 | AV155: 0 | AW155: 0 | AX155: 0 | AY155: 0 | AZ155: 0 | BA155: 0 | BB155: 0 | BC155: 0 | BD155: 0 | BE155: 0 | BF155: 0 | BG155: 0 | BH155: 0 | BI155: 0 | BJ155: 0 | BK155: 0 | BL155: 0 | BM155: 0 | BN155: 0 | BO155: 0 | BP155: 0 | BQ155: 0
E156: =E$141 -> P3 - Public procurement cost (including compensation of losing bids) | F156: 0 | G156: USD k | H156: 10100 | I156: 0 | J156: 5000 | K156: 5100 | L156: 0 | M156: 0 | N156: 0 | O156: 0 | P156: 0 | Q156: 0 | R156: 0 | S156: 0 | T156: 0 | U156: 0 | V156: 0 | W156: 0 | X156: 0 | Y156: 0 | Z156: 0 | AA156: 0 | AB156: 0 | AC156: 0 | AD156: 0 | AE156: 0 | AF156: 0 | AG156: 0 | AH156: 0 | AI156: 0 | AJ156: 0 | AK156: =AK$141 -> 0 | AL156: 0 | AM156: 0 | AN156: 0 | AO156: 0 | AP156: 0 | AQ156: 0 | AR156: 0 | AS156: 0 | AT156: 0 | AU156: 0 | AV156: 0 | AW156: 0 | AX156: 0 | AY156: 0 | AZ156: 0 | BA156: 0 | BB156: 0 | BC156: 0 | BD156: 0 | BE156: 0 | BF156: 0 | BG156: 0 | BH156: 0 | BI156: 0 | BJ156: 0 | BK156: 0 | BL156: 0 | BM156: 0 | BN156: 0 | BO156: 0 | BP156: 0 | BQ156: 0
E157: =E$142 -> P3 - Private procurement cost (costs of winning bid) | F157: 0 | G157: USD k | H157: 10100 | I157: 0 | J157: 5000 | K157: 5100 | L157: 0 | M157: 0 | N157: 0 | O157: 0 | P157: 0 | Q157: 0 | R157: 0 | S157: 0 | T157: 0 | U157: 0 | V157: 0 | W157: 0 | X157: 0 | Y157: 0 | Z157: 0 | AA157: 0 | AB157: 0 | AC157: 0 | AD157: 0 | AE157: 0 | AF157: 0 | AG157: 0 | AH157: 0 | AI157: 0 | AJ157: 0 | AK157: =AK$142 -> 0 | AL157: 0 | AM157: 0 | AN157: 0 | AO157: 0 | AP157: 0 | AQ157: 0 | AR157: 0 | AS157: 0 | AT157: 0 | AU157: 0 | AV157: 0 | AW157: 0 | AX157: 0 | AY157: 0 | AZ157: 0 | BA157: 0 | BB157: 0 | BC157: 0 | BD157: 0 | BE157: 0 | BF157: 0 | BG157: 0 | BH157: 0 | BI157: 0 | BJ157: 0 | BK157: 0 | BL157: 0 | BM157: 0 | BN157: 0 | BO157: 0 | BP157: 0 | BQ157: 0
E159: =E151 -> P3 - Project preparation cost - Transferred cost | G159: USD k | H159: =SUM(J159:BQ159) -> 0 | J159: =$F151 * J155 -> 0 | K159: 0 | L159: 0 | M159: 0 | N159: 0 | O159: 0 | P159: 0 | Q159: 0 | R159: 0 | S159: 0 | T159: 0 | U159: 0 | V159: 0 | W159: 0 | X159: 0 | Y159: 0 | Z159: 0 | AA159: 0 | AB159: 0 | AC159: 0 | AD159: 0 | AE159: 0 | AF159: 0 | AG159: 0 | AH159: 0 | AI159: 0 | AJ159: 0 | AK159: 0 | AL159: 0 | AM159: 0 | AN159: 0 | AO159: 0 | AP159: =$F151 * AP155 -> 0 | AQ159: 0 | AR159: 0 | AS159: 0 | AT159: 0 | AU159: 0 | AV159: 0 | AW159: 0 | AX159: 0 | AY159: 0 | AZ159: 0 | BA159: 0 | BB159: 0 | BC159: 0 | BD159: 0 | BE159: 0 | BF159: 0 | BG159: 0 | BH159: 0 | BI159: 0 | BJ159: 0 | BK159: 0 | BL159: 0 | BM159: 0 | BN159: 0 | BO159: 0 | BP159: 0 | BQ159: 0
E160: =E152 -> P3 - Public procurement cost (including compensation of losing bids) - Transferred cost | G160: USD k | H160: =SUM(J160:BQ160) -> 0 | J160: =$F152 * J156 -> 0 | K160: 0 | L160: 0 | M160: 0 | N160: 0 | O160: 0 | P160: 0 | Q160: 0 | R160: 0 | S160: 0 | T160: 0 | U160: 0 | V160: 0 | W160: 0 | X160: 0 | Y160: 0 | Z160: 0 | AA160: 0 | AB160: 0 | AC160: 0 | AD160: 0 | AE160: 0 | AF160: 0 | AG160: 0 | AH160: 0 | AI160: 0 | AJ160: 0 | AK160: 0 | AL160: 0 | AM160: 0 | AN160: 0 | AO160: 0 | AP160: =$F152 * AP156 -> 0 | AQ160: 0 | AR160: 0 | AS160: 0 | AT160: 0 | AU160: 0 | AV160: 0 | AW160: 0 | AX160: 0 | AY160: 0 | AZ160: 0 | BA160: 0 | BB160: 0 | BC160: 0 | BD160: 0 | BE160: 0 | BF160: 0 | BG160: 0 | BH160: 0 | BI160: 0 | BJ160: 0 | BK160: 0 | BL160: 0 | BM160: 0 | BN160: 0 | BO160: 0 | BP160: 0 | BQ160: 0
E161: =E153 -> P3 - Private procurement cost (costs of winning bid) - Transferred cost | G161: USD k | H161: =SUM(J161:BQ161) -> 10100 | J161: =$F153 * J157 -> 5000 | K161: 5100 | L161: 0 | M161: 0 | N161: 0 | O161: 0 | P161: 0 | Q161: 0 | R161: 0 | S161: 0 | T161: 0 | U161: 0 | V161: 0 | W161: 0 | X161: 0 | Y161: 0 | Z161: 0 | AA161: 0 | AB161: 0 | AC161: 0 | AD161: 0 | AE161: 0 | AF161: 0 | AG161: 0 | AH161: 0 | AI161: 0 | AJ161: 0 | AK161: 0 | AL161: 0 | AM161: 0 | AN161: 0 | AO161: 0 | AP161: =$F153 * AP157 -> 0 | AQ161: 0 | AR161: 0 | AS161: 0 | AT161: 0 | AU161: 0 | AV161: 0 | AW161: 0 | AX161: 0 | AY161: 0 | AZ161: 0 | BA161: 0 | BB161: 0 | BC161: 0 | BD161: 0 | BE161: 0 | BF161: 0 | BG161: 0 | BH161: 0 | BI161: 0 | BJ161: 0 | BK161: 0 | BL161: 0 | BM161: 0 | BN161: 0 | BO161: 0 | BP161: 0 | BQ161: 0
E163: P3 - Total pre-construction cost transferred | G163: USD k | H163: =SUM(J163:BQ163) -> 10100 | J163: =SUM(J159:J161) -> 5000 | K163: 5100 | L163: 0 | M163: 0 | N163: 0 | O163: 0 | P163: 0 | Q163: 0 | R163: 0 | S163: 0 | T163: 0 | U163: 0 | V163: 0 | W163: 0 | X163: 0 | Y163: 0 | Z163: 0 | AA163: 0 | AB163: 0 | AC163: 0 | AD163: 0 | AE163: 0 | AF163: 0 | AG163: 0 | AH163: 0 | AI163: 0 | AJ163: 0 | AK163: 0 | AL163: 0 | AM163: 0 | AN163: 0 | AO163: 0 | AP163: =SUM(AP159:AP161) -> 0 | AQ163: 0 | AR163: 0 | AS163: 0 | AT163: 0 | AU163: 0 | AV163: 0 | AW163: 0 | AX163: 0 | AY163: 0 | AZ163: 0 | BA163: 0 | BB163: 0 | BC163: 0 | BD163: 0 | BE163: 0 | BF163: 0 | BG163: 0 | BH163: 0 | BI163: 0 | BJ163: 0 | BK163: 0 | BL163: 0 | BM163: 0 | BN163: 0 | BO163: 0 | BP163: 0 | BQ163: 0
E165: =E$163 -> P3 - Total pre-construction cost transferred | F165: =F$163 -> 0 | G165: USD k | H165: 10100 | I165: 0 | J165: 5000 | K165: 5100 | L165: 0 | M165: 0 | N165: 0 | O165: 0 | P165: 0 | Q165: 0 | R165: 0 | S165: 0 | T165: 0 | U165: 0 | V165: 0 | W165: 0 | X165: 0 | Y165: 0 | Z165: 0 | AA165: 0 | AB165: 0 | AC165: 0 | AD165: 0 | AE165: 0 | AF165: 0 | AG165: 0 | AH165: 0 | AI165: 0 | AJ165: 0 | AK165: 0 | AL165: 0 | AM165: 0 | AN165: 0 | AO165: 0 | AP165: 0 | AQ165: 0 | AR165: 0 | AS165: 0 | AT165: 0 | AU165: 0 | AV165: 0 | AW165: 0 | AX165: 0 | AY165: 0 | AZ165: 0 | BA165: 0 | BB165: 0 | BC165: 0 | BD165: 0 | BE165: 0 | BF165: 0 | BG165: 0 | BH165: 0 | BI165: 0 | BJ165: 0 | BK165: 0 | BL165: 0 | BM165: 0 | BN165: 0 | BO165: 0 | BP165: 0 | BQ165: 0
E166: ='Time&Esc'!E$299 -> P3 - Implementation start period flag | F166: ='Time&Esc'!F$299 -> 0 | G166: ='Time&Esc'!G$299 -> flag | H166: ='Time&Esc'!H$299 -> 1 | I166: ='Time&Esc'!I$299 -> 0 | J166: ='Time&Esc'!J$299 -> 0 | K166: ='Time&Esc'!K$299 -> 0 | L166: ='Time&Esc'!L$299 -> 1 | M166: ='Time&Esc'!M$299 -> 0 | N166: ='Time&Esc'!N$299 -> 0 | O166: ='Time&Esc'!O$299 -> 0 | P166: ='Time&Esc'!P$299 -> 0 | Q166: ='Time&Esc'!Q$299 -> 0 | R166: ='Time&Esc'!R$299 -> 0 | S166: ='Time&Esc'!S$299 -> 0 | T166: ='Time&Esc'!T$299 -> 0 | U166: ='Time&Esc'!U$299 -> 0 | V166: ='Time&Esc'!V$299 -> 0 | W166: ='Time&Esc'!W$299 -> 0 | X166: ='Time&Esc'!X$299 -> 0 | Y166: ='Time&Esc'!Y$299 -> 0 | Z166: ='Time&Esc'!Z$299 -> 0 | AA166: ='Time&Esc'!AA$299 -> 0 | AB166: ='Time&Esc'!AB$299 -> 0 | AC166: ='Time&Esc'!AC$299 -> 0 | AD166: ='Time&Esc'!AD$299 -> 0 | AE166: ='Time&Esc'!AE$299 -> 0 | AF166: ='Time&Esc'!AF$299 -> 0 | AG166: ='Time&Esc'!AG$299 -> 0 | AH166: ='Time&Esc'!AH$299 -> 0 | AI166: ='Time&Esc'!AI$299 -> 0 | AJ166: ='Time&Esc'!AJ$299 -> 0 | AK166: ='Time&Esc'!AK$299 -> 0 | AL166: ='Time&Esc'!AL$299 -> 0 | AM166: ='Time&Esc'!AM$299 -> 0 | AN166: ='Time&Esc'!AN$299 -> 0 | AO166: ='Time&Esc'!AO$299 -> 0 | AP166: ='Time&Esc'!AP$299 -> 0 | AQ166: ='Time&Esc'!AQ$299 -> 0 | AR166: ='Time&Esc'!AR$299 -> 0 | AS166: ='Time&Esc'!AS$299 -> 0 | AT166: ='Time&Esc'!AT$299 -> 0 | AU166: ='Time&Esc'!AU$299 -> 0 | AV166: ='Time&Esc'!AV$299 -> 0 | AW166: ='Time&Esc'!AW$299 -> 0 | AX166: ='Time&Esc'!AX$299 -> 0 | AY166: ='Time&Esc'!AY$299 -> 0 | AZ166: ='Time&Esc'!AZ$299 -> 0 | BA166: ='Time&Esc'!BA$299 -> 0 | BB166: ='Time&Esc'!BB$299 -> 0 | BC166: ='Time&Esc'!BC$299 -> 0 | BD166: ='Time&Esc'!BD$299 -> 0 | BE166: ='Time&Esc'!BE$299 -> 0 | BF166: ='Time&Esc'!BF$299 -> 0 | BG166: ='Time&Esc'!BG$299 -> 0 | BH166: ='Time&Esc'!BH$299 -> 0 | BI166: ='Time&Esc'!BI$299 -> 0 | BJ166: ='Time&Esc'!BJ$299 -> 0 | BK166: ='Time&Esc'!BK$299 -> 0 | BL166: ='Time&Esc'!BL$299 -> 0 | BM166: ='Time&Esc'!BM$299 -> 0 | BN166: ='Time&Esc'!BN$299 -> 0 | BO166: ='Time&Esc'!BO$299 -> 0 | BP166: ='Time&Esc'!BP$299 -> 0 | BQ166: ='Time&Esc'!BQ$299 -> 0
E167: P3 - Total pre-construction cost transferred (rolled over to start construction) POS | G167: USD k | H167: =SUM(J167:BQ167) -> 10100 | J167: =SUM($J165:J165) * J166 -> 0 | K167: =SUM($J165:K165) * K166 -> 0 | L167: =SUM($J165:L165) * L166 -> 10100 | M167: =SUM($J165:M165) * M166 -> 0 | N167: =SUM($J165:N165) * N166 -> 0 | O167: =SUM($J165:O165) * O166 -> 0 | P167: =SUM($J165:P165) * P166 -> 0 | Q167: =SUM($J165:Q165) * Q166 -> 0 | R167: =SUM($J165:R165) * R166 -> 0 | S167: =SUM($J165:S165) * S166 -> 0 | T167: =SUM($J165:T165) * T166 -> 0 | U167: =SUM($J165:U165) * U166 -> 0 | V167: =SUM($J165:V165) * V166 -> 0 | W167: =SUM($J165:W165) * W166 -> 0 | X167: =SUM($J165:X165) * X166 -> 0 | Y167: =SUM($J165:Y165) * Y166 -> 0 | Z167: =SUM($J165:Z165) * Z166 -> 0 | AA167: =SUM($J165:AA165) * AA166 -> 0 | AB167: =SUM($J165:AB165) * AB166 -> 0 | AC167: =SUM($J165:AC165) * AC166 -> 0 | AD167: =SUM($J165:AD165) * AD166 -> 0 | AE167: =SUM($J165:AE165) * AE166 -> 0 | AF167: =SUM($J165:AF165) * AF166 -> 0 | AG167: =SUM($J165:AG165) * AG166 -> 0 | AH167: =SUM($J165:AH165) * AH166 -> 0 | AI167: =SUM($J165:AI165) * AI166 -> 0 | AJ167: =SUM($J165:AJ165) * AJ166 -> 0 | AK167: =SUM($J165:AK165) * AK166 -> 0 | AL167: =SUM($J165:AL165) * AL166 -> 0 | AM167: =SUM($J165:AM165) * AM166 -> 0 | AN167: =SUM($J165:AN165) * AN166 -> 0 | AO167: =SUM($J165:AO165) * AO166 -> 0 | AP167: =SUM($J165:AP165) * AP166 -> 0 | AQ167: =SUM($J165:AQ165) * AQ166 -> 0 | AR167: =SUM($J165:AR165) * AR166 -> 0 | AS167: =SUM($J165:AS165) * AS166 -> 0 | AT167: =SUM($J165:AT165) * AT166 -> 0 | AU167: =SUM($J165:AU165) * AU166 -> 0 | AV167: =SUM($J165:AV165) * AV166 -> 0 | AW167: =SUM($J165:AW165) * AW166 -> 0 | AX167: =SUM($J165:AX165) * AX166 -> 0 | AY167: =SUM($J165:AY165) * AY166 -> 0 | AZ167: =SUM($J165:AZ165) * AZ166 -> 0 | BA167: =SUM($J165:BA165) * BA166 -> 0 | BB167: =SUM($J165:BB165) * BB166 -> 0 | BC167: =SUM($J165:BC165) * BC166 -> 0 | BD167: =SUM($J165:BD165) * BD166 -> 0 | BE167: =SUM($J165:BE165) * BE166 -> 0 | BF167: =SUM($J165:BF165) * BF166 -> 0 | BG167: =SUM($J165:BG165) * BG166 -> 0 | BH167: =SUM($J165:BH165) * BH166 -> 0 | BI167: =SUM($J165:BI165) * BI166 -> 0 | BJ167: =SUM($J165:BJ165) * BJ166 -> 0 | BK167: =SUM($J165:BK165) * BK166 -> 0 | BL167: =SUM($J165:BL165) * BL166 -> 0 | BM167: =SUM($J165:BM165) * BM166 -> 0 | BN167: =SUM($J165:BN165) * BN166 -> 0 | BO167: =SUM($J165:BO165) * BO166 -> 0 | BP167: =SUM($J165:BP165) * BP166 -> 0 | BQ167: =SUM($J165:BQ165) * BQ166 -> 0
E168: =LEFT(E167, LEN(E167) - 4) -> P3 - Total pre-construction cost transferred (rolled over to start construction) | F168: CF | G168: USD k | H168: =SUM(J168:BQ168) -> -10100 | J168: =-1 * J167 -> 0 | K168: 0 | L168: -10100 | M168: 0 | N168: 0 | O168: 0 | P168: 0 | Q168: 0 | R168: 0 | S168: 0 | T168: 0 | U168: 0 | V168: 0 | W168: 0 | X168: 0 | Y168: 0 | Z168: 0 | AA168: 0 | AB168: 0 | AC168: 0 | AD168: 0 | AE168: 0 | AF168: 0 | AG168: 0 | AH168: 0 | AI168: 0 | AJ168: 0 | AK168: 0 | AL168: 0 | AM168: =-1 * AM167 -> 0 | AN168: 0 | AO168: 0 | AP168: 0 | AQ168: 0 | AR168: 0 | AS168: 0 | AT168: 0 | AU168: 0 | AV168: 0 | AW168: 0 | AX168: 0 | AY168: 0 | AZ168: 0 | BA168: 0 | BB168: 0 | BC168: 0 | BD168: 0 | BE168: 0 | BF168: 0 | BG168: 0 | BH168: 0 | BI168: 0 | BJ168: 0 | BK168: 0 | BL168: 0 | BM168: 0 | BN168: 0 | BO168: 0 | BP168: 0 | BQ168: 0
E170: =E$167 -> P3 - Total pre-construction cost transferred (rolled over to start construction) POS | F170: =F$167 -> 0 | G170: USD k | H170: 10100 | I170: 0 | J170: 0 | K170: 0 | L170: 10100 | M170: 0 | N170: 0 | O170: 0 | P170: 0 | Q170: 0 | R170: 0 | S170: 0 | T170: 0 | U170: 0 | V170: 0 | W170: 0 | X170: 0 | Y170: 0 | Z170: 0 | AA170: 0 | AB170: 0 | AC170: 0 | AD170: 0 | AE170: 0 | AF170: 0 | AG170: 0 | AH170: 0 | AI170: 0 | AJ170: 0 | AK170: 0 | AL170: 0 | AM170: 0 | AN170: 0 | AO170: 0 | AP170: 0 | AQ170: 0 | AR170: 0 | AS170: 0 | AT170: 0 | AU170: 0 | AV170: 0 | AW170: 0 | AX170: 0 | AY170: 0 | AZ170: 0 | BA170: 0 | BB170: 0 | BC170: 0 | BD170: 0 | BE170: 0 | BF170: 0 | BG170: 0 | BH170: 0 | BI170: 0 | BJ170: 0 | BK170: 0 | BL170: 0 | BM170: 0 | BN170: 0 | BO170: 0 | BP170: 0 | BQ170: 0
E171: =E$148 -> P3 - Total pre-construction cost (rolled over to start construction) | F171: =F$148 -> 0 | G171: USD k | H171: 42925 | I171: 0 | J171: 0 | K171: 0 | L171: 42925 | M171: 0 | N171: 0 | O171: 0 | P171: 0 | Q171: 0 | R171: 0 | S171: 0 | T171: 0 | U171: 0 | V171: 0 | W171: 0 | X171: 0 | Y171: 0 | Z171: 0 | AA171: 0 | AB171: 0 | AC171: 0 | AD171: 0 | AE171: 0 | AF171: 0 | AG171: 0 | AH171: 0 | AI171: 0 | AJ171: 0 | AK171: 0 | AL171: 0 | AM171: 0 | AN171: 0 | AO171: 0 | AP171: 0 | AQ171: 0 | AR171: 0 | AS171: 0 | AT171: 0 | AU171: 0 | AV171: 0 | AW171: 0 | AX171: 0 | AY171: 0 | AZ171: 0 | BA171: 0 | BB171: 0 | BC171: 0 | BD171: 0 | BE171: 0 | BF171: 0 | BG171: 0 | BH171: 0 | BI171: 0 | BJ171: 0 | BK171: 0 | BL171: 0 | BM171: 0 | BN171: 0 | BO171: 0 | BP171: 0 | BQ171: 0
E172: P3 - % of total pre-construction cost transferred | G172: USD k | J172: =IF(J171 = 0, 0, J170 / J171) -> 0 | K172: 0 | L172: 0.2352941176 | M172: 0 | N172: 0 | O172: 0 | P172: 0 | Q172: 0 | R172: 0 | S172: 0 | T172: 0 | U172: 0 | V172: 0 | W172: 0 | X172: 0 | Y172: 0 | Z172: 0 | AA172: 0 | AB172: 0 | AC172: 0 | AD172: 0 | AE172: 0 | AF172: 0 | AG172: 0 | AH172: 0 | AI172: 0 | AJ172: 0 | AK172: 0 | AL172: 0 | AM172: =IF(AM171 = 0, 0, AM170 / AM171) -> 0 | AN172: 0 | AO172: 0 | AP172: 0 | AQ172: 0 | AR172: 0 | AS172: 0 | AT172: 0 | AU172: 0 | AV172: 0 | AW172: 0 | AX172: 0 | AY172: 0 | AZ172: 0 | BA172: 0 | BB172: 0 | BC172: 0 | BD172: 0 | BE172: 0 | BF172: 0 | BG172: 0 | BH172: 0 | BI172: 0 | BJ172: 0 | BK172: 0 | BL172: 0 | BM172: 0 | BN172: 0 | BO172: 0 | BP172: 0 | BQ172: 0
E174: =E$148 -> P3 - Total pre-construction cost (rolled over to start construction) | F174: =F$148 -> 0 | G174: USD k | H174: 42925 | I174: 0 | J174: 0 | K174: 0 | L174: 42925 | M174: 0 | N174: 0 | O174: 0 | P174: 0 | Q174: 0 | R174: 0 | S174: 0 | T174: 0 | U174: 0 | V174: 0 | W174: 0 | X174: 0 | Y174: 0 | Z174: 0 | AA174: 0 | AB174: 0 | AC174: 0 | AD174: 0 | AE174: 0 | AF174: 0 | AG174: 0 | AH174: 0 | AI174: 0 | AJ174: 0 | AK174: 0 | AL174: 0 | AM174: 0 | AN174: 0 | AO174: 0 | AP174: 0 | AQ174: 0 | AR174: 0 | AS174: 0 | AT174: 0 | AU174: 0 | AV174: 0 | AW174: 0 | AX174: 0 | AY174: 0 | AZ174: 0 | BA174: 0 | BB174: 0 | BC174: 0 | BD174: 0 | BE174: 0 | BF174: 0 | BG174: 0 | BH174: 0 | BI174: 0 | BJ174: 0 | BK174: 0 | BL174: 0 | BM174: 0 | BN174: 0 | BO174: 0 | BP174: 0 | BQ174: 0
E175: =E$167 -> P3 - Total pre-construction cost transferred (rolled over to start construction) POS | F175: =F$167 -> 0 | G175: USD k | H175: 10100 | I175: 0 | J175: 0 | K175: 0 | L175: 10100 | M175: 0 | N175: 0 | O175: 0 | P175: 0 | Q175: 0 | R175: 0 | S175: 0 | T175: 0 | U175: 0 | V175: 0 | W175: 0 | X175: 0 | Y175: 0 | Z175: 0 | AA175: 0 | AB175: 0 | AC175: 0 | AD175: 0 | AE175: 0 | AF175: 0 | AG175: 0 | AH175: 0 | AI175: 0 | AJ175: 0 | AK175: 0 | AL175: 0 | AM175: 0 | AN175: 0 | AO175: 0 | AP175: 0 | AQ175: 0 | AR175: 0 | AS175: 0 | AT175: 0 | AU175: 0 | AV175: 0 | AW175: 0 | AX175: 0 | AY175: 0 | AZ175: 0 | BA175: 0 | BB175: 0 | BC175: 0 | BD175: 0 | BE175: 0 | BF175: 0 | BG175: 0 | BH175: 0 | BI175: 0 | BJ175: 0 | BK175: 0 | BL175: 0 | BM175: 0 | BN175: 0 | BO175: 0 | BP175: 0 | BQ175: 0
E176: P3 - Total pre-construction cost retained POS | G176: USD k | H176: =SUM(J176:BQ176) -> 32825 | J176: =J174 - J175 -> 0 | K176: =K174 - K175 -> 0 | L176: 32825 | M176: 0 | N176: 0 | O176: 0 | P176: 0 | Q176: 0 | R176: 0 | S176: 0 | T176: 0 | U176: 0 | V176: 0 | W176: 0 | X176: 0 | Y176: 0 | Z176: 0 | AA176: 0 | AB176: 0 | AC176: 0 | AD176: 0 | AE176: 0 | AF176: 0 | AG176: 0 | AH176: 0 | AI176: 0 | AJ176: 0 | AK176: 0 | AL176: 0 | AM176: =AM174 - AM175 -> 0 | AN176: 0 | AO176: 0 | AP176: 0 | AQ176: 0 | AR176: 0 | AS176: 0 | AT176: 0 | AU176: 0 | AV176: 0 | AW176: 0 | AX176: 0 | AY176: 0 | AZ176: 0 | BA176: 0 | BB176: 0 | BC176: 0 | BD176: 0 | BE176: 0 | BF176: 0 | BG176: 0 | BH176: 0 | BI176: 0 | BJ176: 0 | BK176: 0 | BL176: 0 | BM176: 0 | BN176: 0 | BO176: 0 | BP176: 0 | BQ176: 0
E177: =LEFT(E176, LEN(E176) - 4) -> P3 - Total pre-construction cost retained | F177: CF | G177: =G176 -> USD k | H177: =SUM(J177:BQ177) -> -32825 | J177: =-1 * J176 -> 0 | K177: 0 | L177: -32825 | M177: 0 | N177: 0 | O177: 0 | P177: 0 | Q177: 0 | R177: 0 | S177: 0 | T177: 0 | U177: 0 | V177: 0 | W177: 0 | X177: 0 | Y177: 0 | Z177: 0 | AA177: 0 | AB177: 0 | AC177: 0 | AD177: 0 | AE177: 0 | AF177: 0 | AG177: 0 | AH177: 0 | AI177: 0 | AJ177: 0 | AK177: 0 | AL177: 0 | AM177: =-1 * AM176 -> 0 | AN177: 0 | AO177: 0 | AP177: 0 | AQ177: 0 | AR177: 0 | AS177: 0 | AT177: 0 | AU177: 0 | AV177: 0 | AW177: 0 | AX177: 0 | AY177: 0 | AZ177: 0 | BA177: 0 | BB177: 0 | BC177: 0 | BD177: 0 | BE177: 0 | BF177: 0 | BG177: 0 | BH177: 0 | BI177: 0 | BJ177: 0 | BK177: 0 | BL177: 0 | BM177: 0 | BN177: 0 | BO177: 0 | BP177: 0 | BQ177: 0
B179: Real pre-construction cost
E180: =E$144 -> P3 - Total pre-construction cost | F180: =F$144 -> 0 | G180: USD k | H180: 42925 | I180: 0 | J180: 21250 | K180: 21675 | L180: 0 | M180: 0 | N180: 0 | O180: 0 | P180: 0 | Q180: 0 | R180: 0 | S180: 0 | T180: 0 | U180: 0 | V180: 0 | W180: 0 | X180: 0 | Y180: 0 | Z180: 0 | AA180: 0 | AB180: 0 | AC180: 0 | AD180: 0 | AE180: 0 | AF180: 0 | AG180: 0 | AH180: 0 | AI180: 0 | AJ180: 0 | AK180: 0 | AL180: 0 | AM180: 0 | AN180: 0 | AO180: 0 | AP180: 0 | AQ180: 0 | AR180: 0 | AS180: 0 | AT180: 0 | AU180: 0 | AV180: 0 | AW180: 0 | AX180: 0 | AY180: 0 | AZ180: 0 | BA180: 0 | BB180: 0 | BC180: 0 | BD180: 0 | BE180: 0 | BF180: 0 | BG180: 0 | BH180: 0 | BI180: 0 | BJ180: 0 | BK180: 0 | BL180: 0 | BM180: 0 | BN180: 0 | BO180: 0 | BP180: 0 | BQ180: 0
E181: ='Time&Esc'!E$675 -> Indexation factor - Implementation | F181: ='Time&Esc'!F$675 -> 0 | G181: ='Time&Esc'!G$675 -> index factor | H181: ='Time&Esc'!H$675 -> 0 | I181: ='Time&Esc'!I$675 -> 0 | J181: ='Time&Esc'!J$675 -> 1 | K181: ='Time&Esc'!K$675 -> 1.02 | L181: ='Time&Esc'!L$675 -> 1.0404 | M181: ='Time&Esc'!M$675 -> 1.061208 | N181: ='Time&Esc'!N$675 -> 1.08243216 | O181: ='Time&Esc'!O$675 -> 1.104080803 | P181: ='Time&Esc'!P$675 -> 1.126162419 | Q181: ='Time&Esc'!Q$675 -> 1.148685668 | R181: ='Time&Esc'!R$675 -> 1.171659381 | S181: ='Time&Esc'!S$675 -> 1.195092569 | T181: ='Time&Esc'!T$675 -> 1.21899442 | U181: ='Time&Esc'!U$675 -> 1.243374308 | V181: ='Time&Esc'!V$675 -> 1.268241795 | W181: ='Time&Esc'!W$675 -> 1.29360663 | X181: ='Time&Esc'!X$675 -> 1.319478763 | Y181: ='Time&Esc'!Y$675 -> 1.345868338 | Z181: ='Time&Esc'!Z$675 -> 1.372785705 | AA181: ='Time&Esc'!AA$675 -> 1.400241419 | AB181: ='Time&Esc'!AB$675 -> 1.428246248 | AC181: ='Time&Esc'!AC$675 -> 1.456811173 | AD181: ='Time&Esc'!AD$675 -> 1.485947396 | AE181: ='Time&Esc'!AE$675 -> 1.515666344 | AF181: ='Time&Esc'!AF$675 -> 1.545979671 | AG181: ='Time&Esc'!AG$675 -> 1.576899264 | AH181: ='Time&Esc'!AH$675 -> 1.608437249 | AI181: ='Time&Esc'!AI$675 -> 1.640605994 | AJ181: ='Time&Esc'!AJ$675 -> 1.673418114 | AK181: ='Time&Esc'!AK$675 -> 1.706886477 | AL181: ='Time&Esc'!AL$675 -> 1.741024206 | AM181: ='Time&Esc'!AM$675 -> 1.77584469 | AN181: ='Time&Esc'!AN$675 -> 1.811361584 | AO181: ='Time&Esc'!AO$675 -> 1.847588816 | AP181: ='Time&Esc'!AP$675 -> 1.884540592 | AQ181: ='Time&Esc'!AQ$675 -> 1.922231404 | AR181: ='Time&Esc'!AR$675 -> 1.960676032 | AS181: ='Time&Esc'!AS$675 -> 1.999889553 | AT181: ='Time&Esc'!AT$675 -> 2.039887344 | AU181: ='Time&Esc'!AU$675 -> 2.080685091 | AV181: ='Time&Esc'!AV$675 -> 2.122298792 | AW181: ='Time&Esc'!AW$675 -> 2.164744768 | AX181: ='Time&Esc'!AX$675 -> 2.208039664 | AY181: ='Time&Esc'!AY$675 -> 2.252200457 | AZ181: ='Time&Esc'!AZ$675 -> 2.297244466 | BA181: ='Time&Esc'!BA$675 -> 2.343189355 | BB181: ='Time&Esc'!BB$675 -> 2.390053142 | BC181: ='Time&Esc'!BC$675 -> 2.437854205 | BD181: ='Time&Esc'!BD$675 -> 2.486611289 | BE181: ='Time&Esc'!BE$675 -> 2.536343515 | BF181: ='Time&Esc'!BF$675 -> 2.587070385 | BG181: ='Time&Esc'!BG$675 -> 2.638811793 | BH181: ='Time&Esc'!BH$675 -> 2.691588029 | BI181: ='Time&Esc'!BI$675 -> 2.74541979 | BJ181: ='Time&Esc'!BJ$675 -> 2.800328185 | BK181: ='Time&Esc'!BK$675 -> 2.856334749 | BL181: ='Time&Esc'!BL$675 -> 2.913461444 | BM181: ='Time&Esc'!BM$675 -> 2.971730673 | BN181: ='Time&Esc'!BN$675 -> 3.031165286 | BO181: ='Time&Esc'!BO$675 -> 3.091788592 | BP181: ='Time&Esc'!BP$675 -> 3.153624364 | BQ181: ='Time&Esc'!BQ$675 -> 3.216696851
E182: =E180 & " - real" -> P3 - Total pre-construction cost - real | G182: USD k | H182: =SUM(J182:BQ182) -> 42500 | J182: =IF(J181 = 0, 0, J180 / J181) -> 21250 | K182: =IF(K181 = 0, 0, K180 / K181) -> 21250 | L182: 0 | M182: 0 | N182: 0 | O182: 0 | P182: 0 | Q182: 0 | R182: 0 | S182: 0 | T182: 0 | U182: 0 | V182: 0 | W182: 0 | X182: 0 | Y182: 0 | Z182: 0 | AA182: 0 | AB182: 0 | AC182: 0 | AD182: 0 | AE182: 0 | AF182: 0 | AG182: 0 | AH182: 0 | AI182: 0 | AJ182: 0 | AK182: 0 | AL182: 0 | AM182: 0 | AN182: 0 | AO182: 0 | AP182: 0 | AQ182: 0 | AR182: 0 | AS182: 0 | AT182: 0 | AU182: 0 | AV182: 0 | AW182: 0 | AX182: 0 | AY182: 0 | AZ182: 0 | BA182: 0 | BB182: 0 | BC182: 0 | BD182: 0 | BE182: 0 | BF182: 0 | BG182: 0 | BH182: 0 | BI182: 0 | BJ182: 0 | BK182: 0 | BL182: 0 | BM182: 0 | BN182: 0 | BO182: 0 | BP182: 0 | BQ182: 0
A185: IMPLEMENTATION COSTS
B187: Implementation costs
E188: ='Project Inputs'!E$175 -> P3 - Implementation cost | F188: ='Project Inputs'!F$175 -> 367500 | G188: ='Project Inputs'!G$175 -> USD k
E189: ='Project Inputs'!E$168 -> P3 - Implementation duration | F189: ='Project Inputs'!F$168 -> 3 | G189: ='Project Inputs'!G$168 -> years
E190: ='Time&Esc'!E$311 -> P3 - Implementation period flag | F190: ='Time&Esc'!F$311 -> 0 | G190: ='Time&Esc'!G$311 -> flag | H190: ='Time&Esc'!H$311 -> 3 | I190: ='Time&Esc'!I$311 -> 0 | J190: ='Time&Esc'!J$311 -> 0 | K190: ='Time&Esc'!K$311 -> 0 | L190: ='Time&Esc'!L$311 -> 1 | M190: ='Time&Esc'!M$311 -> 1 | N190: ='Time&Esc'!N$311 -> 1 | O190: ='Time&Esc'!O$311 -> 0 | P190: ='Time&Esc'!P$311 -> 0 | Q190: ='Time&Esc'!Q$311 -> 0 | R190: ='Time&Esc'!R$311 -> 0 | S190: ='Time&Esc'!S$311 -> 0 | T190: ='Time&Esc'!T$311 -> 0 | U190: ='Time&Esc'!U$311 -> 0 | V190: ='Time&Esc'!V$311 -> 0 | W190: ='Time&Esc'!W$311 -> 0 | X190: ='Time&Esc'!X$311 -> 0 | Y190: ='Time&Esc'!Y$311 -> 0 | Z190: ='Time&Esc'!Z$311 -> 0 | AA190: ='Time&Esc'!AA$311 -> 0 | AB190: ='Time&Esc'!AB$311 -> 0 | AC190: ='Time&Esc'!AC$311 -> 0 | AD190: ='Time&Esc'!AD$311 -> 0 | AE190: ='Time&Esc'!AE$311 -> 0 | AF190: ='Time&Esc'!AF$311 -> 0 | AG190: ='Time&Esc'!AG$311 -> 0 | AH190: ='Time&Esc'!AH$311 -> 0 | AI190: ='Time&Esc'!AI$311 -> 0 | AJ190: ='Time&Esc'!AJ$311 -> 0 | AK190: ='Time&Esc'!AK$311 -> 0 | AL190: ='Time&Esc'!AL$311 -> 0 | AM190: ='Time&Esc'!AM$311 -> 0 | AN190: ='Time&Esc'!AN$311 -> 0 | AO190: ='Time&Esc'!AO$311 -> 0 | AP190: ='Time&Esc'!AP$311 -> 0 | AQ190: ='Time&Esc'!AQ$311 -> 0 | AR190: ='Time&Esc'!AR$311 -> 0 | AS190: ='Time&Esc'!AS$311 -> 0 | AT190: ='Time&Esc'!AT$311 -> 0 | AU190: ='Time&Esc'!AU$311 -> 0 | AV190: ='Time&Esc'!AV$311 -> 0 | AW190: ='Time&Esc'!AW$311 -> 0 | AX190: ='Time&Esc'!AX$311 -> 0 | AY190: ='Time&Esc'!AY$311 -> 0 | AZ190: ='Time&Esc'!AZ$311 -> 0 | BA190: ='Time&Esc'!BA$311 -> 0 | BB190: ='Time&Esc'!BB$311 -> 0 | BC190: ='Time&Esc'!BC$311 -> 0 | BD190: ='Time&Esc'!BD$311 -> 0 | BE190: ='Time&Esc'!BE$311 -> 0 | BF190: ='Time&Esc'!BF$311 -> 0 | BG190: ='Time&Esc'!BG$311 -> 0 | BH190: ='Time&Esc'!BH$311 -> 0 | BI190: ='Time&Esc'!BI$311 -> 0 | BJ190: ='Time&Esc'!BJ$311 -> 0 | BK190: ='Time&Esc'!BK$311 -> 0 | BL190: ='Time&Esc'!BL$311 -> 0 | BM190: ='Time&Esc'!BM$311 -> 0 | BN190: ='Time&Esc'!BN$311 -> 0 | BO190: ='Time&Esc'!BO$311 -> 0 | BP190: ='Time&Esc'!BP$311 -> 0 | BQ190: ='Time&Esc'!BQ$311 -> 0
E191: ='Time&Esc'!E$675 -> Indexation factor - Implementation | F191: ='Time&Esc'!F$675 -> 0 | G191: ='Time&Esc'!G$675 -> index factor | H191: ='Time&Esc'!H$675 -> 0 | I191: ='Time&Esc'!I$675 -> 0 | J191: ='Time&Esc'!J$675 -> 1 | K191: ='Time&Esc'!K$675 -> 1.02 | L191: ='Time&Esc'!L$675 -> 1.0404 | M191: ='Time&Esc'!M$675 -> 1.061208 | N191: ='Time&Esc'!N$675 -> 1.08243216 | O191: ='Time&Esc'!O$675 -> 1.104080803 | P191: ='Time&Esc'!P$675 -> 1.126162419 | Q191: ='Time&Esc'!Q$675 -> 1.148685668 | R191: ='Time&Esc'!R$675 -> 1.171659381 | S191: ='Time&Esc'!S$675 -> 1.195092569 | T191: ='Time&Esc'!T$675 -> 1.21899442 | U191: ='Time&Esc'!U$675 -> 1.243374308 | V191: ='Time&Esc'!V$675 -> 1.268241795 | W191: ='Time&Esc'!W$675 -> 1.29360663 | X191: ='Time&Esc'!X$675 -> 1.319478763 | Y191: ='Time&Esc'!Y$675 -> 1.345868338 | Z191: ='Time&Esc'!Z$675 -> 1.372785705 | AA191: ='Time&Esc'!AA$675 -> 1.400241419 | AB191: ='Time&Esc'!AB$675 -> 1.428246248 | AC191: ='Time&Esc'!AC$675 -> 1.456811173 | AD191: ='Time&Esc'!AD$675 -> 1.485947396 | AE191: ='Time&Esc'!AE$675 -> 1.515666344 | AF191: ='Time&Esc'!AF$675 -> 1.545979671 | AG191: ='Time&Esc'!AG$675 -> 1.576899264 | AH191: ='Time&Esc'!AH$675 -> 1.608437249 | AI191: ='Time&Esc'!AI$675 -> 1.640605994 | AJ191: ='Time&Esc'!AJ$675 -> 1.673418114 | AK191: ='Time&Esc'!AK$675 -> 1.706886477 | AL191: ='Time&Esc'!AL$675 -> 1.741024206 | AM191: ='Time&Esc'!AM$675 -> 1.77584469 | AN191: ='Time&Esc'!AN$675 -> 1.811361584 | AO191: ='Time&Esc'!AO$675 -> 1.847588816 | AP191: ='Time&Esc'!AP$675 -> 1.884540592 | AQ191: ='Time&Esc'!AQ$675 -> 1.922231404 | AR191: ='Time&Esc'!AR$675 -> 1.960676032 | AS191: ='Time&Esc'!AS$675 -> 1.999889553 | AT191: ='Time&Esc'!AT$675 -> 2.039887344 | AU191: ='Time&Esc'!AU$675 -> 2.080685091 | AV191: ='Time&Esc'!AV$675 -> 2.122298792 | AW191: ='Time&Esc'!AW$675 -> 2.164744768 | AX191: ='Time&Esc'!AX$675 -> 2.208039664 | AY191: ='Time&Esc'!AY$675 -> 2.252200457 | AZ191: ='Time&Esc'!AZ$675 -> 2.297244466 | BA191: ='Time&Esc'!BA$675 -> 2.343189355 | BB191: ='Time&Esc'!BB$675 -> 2.390053142 | BC191: ='Time&Esc'!BC$675 -> 2.437854205 | BD191: ='Time&Esc'!BD$675 -> 2.486611289 | BE191: ='Time&Esc'!BE$675 -> 2.536343515 | BF191: ='Time&Esc'!BF$675 -> 2.587070385 | BG191: ='Time&Esc'!BG$675 -> 2.638811793 | BH191: ='Time&Esc'!BH$675 -> 2.691588029 | BI191: ='Time&Esc'!BI$675 -> 2.74541979 | BJ191: ='Time&Esc'!BJ$675 -> 2.800328185 | BK191: ='Time&Esc'!BK$675 -> 2.856334749 | BL191: ='Time&Esc'!BL$675 -> 2.913461444 | BM191: ='Time&Esc'!BM$675 -> 2.971730673 | BN191: ='Time&Esc'!BN$675 -> 3.031165286 | BO191: ='Time&Esc'!BO$675 -> 3.091788592 | BP191: ='Time&Esc'!BP$675 -> 3.153624364 | BQ191: ='Time&Esc'!BQ$675 -> 3.216696851
E192: P3 - Implementation cost | G192: USD k | H192: =SUM(J192:BQ192) -> 390044.9196 | J192: =$F188 / $F189 * J190 * J191 -> 0 | K192: =$F188 / $F189 * K190 * K191 -> 0 | L192: =$F188 / $F189 * L190 * L191 -> 127449 | M192: =$F188 / $F189 * M190 * M191 -> 129997.98 | N192: =$F188 / $F189 * N190 * N191 -> 132597.9396 | O192: =$F188 / $F189 * O190 * O191 -> 0 | P192: =$F188 / $F189 * P190 * P191 -> 0 | Q192: =$F188 / $F189 * Q190 * Q191 -> 0 | R192: =$F188 / $F189 * R190 * R191 -> 0 | S192: =$F188 / $F189 * S190 * S191 -> 0 | T192: =$F188 / $F189 * T190 * T191 -> 0 | U192: =$F188 / $F189 * U190 * U191 -> 0 | V192: =$F188 / $F189 * V190 * V191 -> 0 | W192: =$F188 / $F189 * W190 * W191 -> 0 | X192: =$F188 / $F189 * X190 * X191 -> 0 | Y192: =$F188 / $F189 * Y190 * Y191 -> 0 | Z192: =$F188 / $F189 * Z190 * Z191 -> 0 | AA192: =$F188 / $F189 * AA190 * AA191 -> 0 | AB192: =$F188 / $F189 * AB190 * AB191 -> 0 | AC192: =$F188 / $F189 * AC190 * AC191 -> 0 | AD192: =$F188 / $F189 * AD190 * AD191 -> 0 | AE192: =$F188 / $F189 * AE190 * AE191 -> 0 | AF192: =$F188 / $F189 * AF190 * AF191 -> 0 | AG192: =$F188 / $F189 * AG190 * AG191 -> 0 | AH192: =$F188 / $F189 * AH190 * AH191 -> 0 | AI192: =$F188 / $F189 * AI190 * AI191 -> 0 | AJ192: =$F188 / $F189 * AJ190 * AJ191 -> 0 | AK192: =$F188 / $F189 * AK190 * AK191 -> 0 | AL192: =$F188 / $F189 * AL190 * AL191 -> 0 | AM192: =$F188 / $F189 * AM190 * AM191 -> 0 | AN192: =$F188 / $F189 * AN190 * AN191 -> 0 | AO192: =$F188 / $F189 * AO190 * AO191 -> 0 | AP192: =$F188 / $F189 * AP190 * AP191 -> 0 | AQ192: =$F188 / $F189 * AQ190 * AQ191 -> 0 | AR192: =$F188 / $F189 * AR190 * AR191 -> 0 | AS192: =$F188 / $F189 * AS190 * AS191 -> 0 | AT192: =$F188 / $F189 * AT190 * AT191 -> 0 | AU192: =$F188 / $F189 * AU190 * AU191 -> 0 | AV192: =$F188 / $F189 * AV190 * AV191 -> 0 | AW192: =$F188 / $F189 * AW190 * AW191 -> 0 | AX192: =$F188 / $F189 * AX190 * AX191 -> 0 | AY192: =$F188 / $F189 * AY190 * AY191 -> 0 | AZ192: =$F188 / $F189 * AZ190 * AZ191 -> 0 | BA192: =$F188 / $F189 * BA190 * BA191 -> 0 | BB192: =$F188 / $F189 * BB190 * BB191 -> 0 | BC192: =$F188 / $F189 * BC190 * BC191 -> 0 | BD192: =$F188 / $F189 * BD190 * BD191 -> 0 | BE192: =$F188 / $F189 * BE190 * BE191 -> 0 | BF192: =$F188 / $F189 * BF190 * BF191 -> 0 | BG192: =$F188 / $F189 * BG190 * BG191 -> 0 | BH192: =$F188 / $F189 * BH190 * BH191 -> 0 | BI192: =$F188 / $F189 * BI190 * BI191 -> 0 | BJ192: =$F188 / $F189 * BJ190 * BJ191 -> 0 | BK192: =$F188 / $F189 * BK190 * BK191 -> 0 | BL192: =$F188 / $F189 * BL190 * BL191 -> 0 | BM192: =$F188 / $F189 * BM190 * BM191 -> 0 | BN192: =$F188 / $F189 * BN190 * BN191 -> 0 | BO192: =$F188 / $F189 * BO190 * BO191 -> 0 | BP192: =$F188 / $F189 * BP190 * BP191 -> 0 | BQ192: =$F188 / $F189 * BQ190 * BQ191 -> 0
B194: Implementation cost allocation
E195: ='Project Inputs'!E$185 -> P3 - Implementation cost - Transferred cost | F195: ='Project Inputs'!F$185 -> 1 | G195: ='Project Inputs'!G$185 -> %
E196: =E$192 -> P3 - Implementation cost | F196: =F$192 -> 0 | G196: USD k | H196: 390044.9196 | I196: 0 | J196: 0 | K196: 0 | L196: 127449 | M196: 129997.98 | N196: 132597.9396 | O196: 0 | P196: 0 | Q196: 0 | R196: 0 | S196: 0 | T196: 0 | U196: 0 | V196: 0 | W196: 0 | X196: 0 | Y196: 0 | Z196: 0 | AA196: 0 | AB196: 0 | AC196: 0 | AD196: 0 | AE196: 0 | AF196: 0 | AG196: 0 | AH196: 0 | AI196: 0 | AJ196: 0 | AK196: 0 | AL196: 0 | AM196: 0 | AN196: 0 | AO196: 0 | AP196: 0 | AQ196: 0 | AR196: 0 | AS196: 0 | AT196: 0 | AU196: 0 | AV196: 0 | AW196: 0 | AX196: 0 | AY196: 0 | AZ196: 0 | BA196: 0 | BB196: 0 | BC196: 0 | BD196: 0 | BE196: 0 | BF196: 0 | BG196: 0 | BH196: 0 | BI196: 0 | BJ196: 0 | BK196: 0 | BL196: 0 | BM196: 0 | BN196: 0 | BO196: 0 | BP196: 0 | BQ196: 0
